Workbook

Sheet Forside 2018
A1: Resultatliste Oslo Cup 2017
A2: Etter 7 av 8 renn
A5: - Oslo Cup arrangeres av Oslo Skikrets i samarbeid med IRS, Heming, Ready, Njård, HSIL og Kjelsås
A6: - 8 renn, arrangert av de samarbeidende klubbene, inngår i Oslo Cup
A7: - Det konkurreres i separate årsklasser, J11, G11, J12 og G12
A8: - Sammenlagtresultatene beregnes med World Cup poeng + deltakerpoeng.
A9: - De fire beste resultatene er tellende sammenlagt, men alle deltakerpoengene teller med i totalresultatet
A10: - Premiering av de tre beste sammenlagt i hver klasse
A13: Poengsystem:
A14: - World Cup poeng for plasseringer (100 poeng for seier, 80 for andre plass osv).
A15: - De fire beste resultatene er tellende i sammendraget
A16: - Det gis 5 deltakerpoeng pr. renn, uanhengig av resultat og om resultatet er tellende i sammendraget
A19: Forklaring på overskriften i resultatlistene:
A20: - Plass = plassering i rennet
A21: - Res. = resultatpoeng etter World Cup skala
A22: - Del. = deltakerpoeng, 5 poeng for deltakelse
A23: - Tot. = totalpoeng for rennet, sum av resultatpoeng og deltakerpoeng
A24: - Resultater/poeng som ikke er tellende for de som har kjørt flere enn fire renn er markert/skravert med grått

Sheet J11 2018
A1: Resultatliste Oslo Cup 2018 - Jenter 11 år
A2: ='Forside 2018'!A2 -> Etter 7 av 8 renn
H3: IRS Rennet | I3: Ljan Rennet | J3: Njård Rennet | K3: Ready Rennet | L3: Telenor Arena Cup | M3: Euro-tecfarten | N3: Oslo Alpinfestival SL | O3: Oslo Alpinfestival SSL | R3: IRS Rennet | S3: Ljan Rennet | T3: Njård Rennet | U3: Ready Rennet | V3: Telenor Arena Cup | W3: Euro-tecfarten | X3: Oslo Alpinfestival SL | Y3: Oslo Alpinfestival SSL | AA3: --------IRS Rennet---------- | AF3: ----------Ljan Rennet--------- | AK3: --------Njård Rennet---------- | AP3: --------Ready Rennet--------- | AU3: -----Telenor Arena Cup---- | AZ3: ------Euro-tecfarten-------- | BE3: ---Oslo Alpinfestival SL--- | BJ3: ---Oslo Alpinfestival SSL---
F4: Antall | H4: 2018-02-03 | I4: 2018-02-04 | J4: 2018-02-10 | K4: 2018-02-11 | L4: 2018-02-14 | M4: 2018-02-28 | N4: 2018-03-03 | O4: 2018-03-04 | Q4: Poeng | R4: 2018-02-03 | S4: 2018-02-04 | T4: 2018-02-10 | U4: 2018-02-11 | V4: 2018-02-14 | W4: 2018-02-28 | X4: 2018-03-03 | Y4: 2018-03-04 | AB4: --------Poeng-------- | AG4: --------Poeng-------- | AL4: -------Poeng--------- | AQ4: -------Poeng--------- | AV4: -------Poeng--------- | BA4: -------Poeng--------- | BF4: -------Poeng--------- | BK4: -------Poeng--------- | BQ4: Løpere med | BR4: Løpere med | BS4: Løpere med | BT4: Løpere med | BU4: Løpere med | BV4: Løpere med | BW4: Løpere med | BX4: Løpere med
A5: Plass | B5: Etternavn | C5: Fornavn | D5: Klubb | E5: Poeng | F5: renn | H5: ------------------------------Plassering i rennene--------------------------------- | Q5: brutto | R5: ----------------Resultatpoeng hvis mer enn 4 renn---------------- | AA5: Plass | AB5: Res. | AC5: Del. | AD5: Tot. | AF5: Plass | AG5: Res. | AH5: Del. | AI5: Tot. | AK5: Plass | AL5: Res. | AM5: Del. | AN5: Tot. | AP5: Plass | AQ5: Res. | AR5: Del. | AS5: Tot. | AU5: Plass | AV5: Res. | AW5: Del. | AX5: Tot. | AZ5: Plass | BA5: Res. | BB5: Del. | BC5: Tot. | BE5: Plass | BF5: Res. | BG5: Del. | BH5: Tot. | BJ5: Plass | BK5: Res. | BL5: Del. | BM5: Tot. | BO5: Plass | BP5: Poeng | BQ5: 8 renn | BR5: 7 renn | BS5: 6 renn | BT5: 5 renn | BU5: 4 renn | BV5: 3 renn | BW5: 2 renn | BX5: kun 1 renn
A6: =IF(E6<E5,BO6,A5) -> 1 | B6: Grobstok | C6: Emilie Smedsrud | D6: Ready | E6: =IF(F6<=4,Q6,(Q6-SUM(SMALL(R6:Y6,{1;2;3;4})))) -> 385 | F6: =(IF(AC6=5,1,0)+IF(AH6=5,1,0)+IF(AM6=5,1,0)+IF(AR6=5,1,0)+IF(AW6=5,1,0)+IF(BB6=5,1,0)+IF(BG6=5,1,0)+IF(BL6=5,1,0)) -> 5 | H6: =IF(AA6="","",AA6) ->  | I6: =IF(AF6="","",AF6) ->  | J6: =IF(AK6="","",AK6) -> 2 | K6: =IF(AP6="","",AP6) -> 2 | L6: =IF(AU6="","",AU6) -> 1 | M6: =IF(AZ6="","",AZ6) -> 1 | N6: =IF(BE6="","",BE6) -> dnf | O6: =IF(BJ6="","",BJ6) ->  | Q6: =AD6+AI6+AN6+AS6+AX6+BC6+BH6 -> 385 | R6: =IF($F6>=5,IF(AB6="","",AB6),"") -> 0 | S6: =IF($F6>=5,IF(AG6="","",AG6),"") -> 0 | T6: =IF($F6>=5,IF(AL6="","",AL6),"") -> 80 | U6: =IF($F6>=5,IF(AQ6="","",AQ6),"") -> 80 | V6: =IF($F6>=5,IF(AV6="","",AV6),"") -> 100 | W6: =IF($F6>=5,IF(BA6="","",BA6),"") -> 100 | X6: =IF($F6>=5,IF(BF6="","",BF6),"") -> 0 | Y6: =IF($F6>=5,IF(BK6="","",BK6),"") -> 0 | AB6: =IF(ISNUMBER(AA6),(VLOOKUP(AA6,$BO$6:$BP$50,2)),0) -> 0 | AC6: =IF(AA6<>"",5,0) -> 0 | AD6: =AB6+AC6 -> 0 | AG6: =IF(ISNUMBER(AF6),(VLOOKUP(AF6,$BO$6:$BP$50,2)),0) -> 0 | AH6: =IF(AF6<>"",5,0) -> 0 | AI6: =AG6+AH6 -> 0 | AK6: 2 | AL6: =IF(ISNUMBER(AK6),(VLOOKUP(AK6,$BO$6:$BP$50,2)),0) -> 80 | AM6: =IF(AK6<>"",5,0) -> 5 | AN6: =AL6+AM6 -> 85 | AP6: 2 | AQ6: =IF(ISNUMBER(AP6),(VLOOKUP(AP6,$BO$6:$BP$50,2)),0) -> 80 | AR6: =IF(AP6<>"",5,0) -> 5 | AS6: =AQ6+AR6 -> 85 | AU6: 1 | AV6: =IF(ISNUMBER(AU6),(VLOOKUP(AU6,$BO$6:$BP$50,2)),0) -> 100 | AW6: =IF(AU6<>"",5,0) -> 5 | AX6: =AV6+AW6 -> 105 | AZ6: 1 | BA6: =IF(ISNUMBER(AZ6),(VLOOKUP(AZ6,$BO$6:$BP$50,2)),0) -> 100 | BB6: =IF(AZ6<>"",5,0) -> 5 | BC6: =BA6+BB6 -> 105 | BE6: dnf | BF6: =IF(ISNUMBER(BE6),(VLOOKUP(BE6,$BO$6:$BP$50,2)),0) -> 0 | BG6: =IF(BE6<>"",5,0) -> 5 | BH6: =BF6+BG6 -> 5 | BK6: =IF(ISNUMBER(BJ6),(VLOOKUP(BJ6,$BO$6:$BP$50,2)),0) -> 0 | BL6: =IF(BJ6<>"",5,0) -> 0 | BM6: =BK6+BL6 -> 0 | BO6: 1 | BP6: 100 | BQ6: =IF($F6=8,1,0) -> 0 | BR6: =IF($F6=7,1,0) -> 0 | BS6: =IF($F6=6,1,0) -> 0 | BT6: =IF($F6=5,1,0) -> 1 | BU6: =IF($F6=4,1,0) -> 0 | BV6: =IF($F6=3,1,0) -> 0 | BW6: =IF($F6=2,1,0) -> 0 | BX6: =IF($F6=1,1,0) -> 0
A7: =IF(E7<E6,BO7,A6) -> 2 | B7: Sande | C7: Malene Louise Gaunt | D7: Heming | E7: =IF(F7<=4,Q7,(Q7-SUM(SMALL(R7:Y7,{1;2;3;4})))) -> 350 | F7: =(IF(AC7=5,1,0)+IF(AH7=5,1,0)+IF(AM7=5,1,0)+IF(AR7=5,1,0)+IF(AW7=5,1,0)+IF(BB7=5,1,0)+IF(BG7=5,1,0)+IF(BL7=5,1,0)) -> 4 | H7: =IF(AA7="","",AA7) ->  | I7: =IF(AF7="","",AF7) ->  | J7: =IF(AK7="","",AK7) -> 1 | K7: =IF(AP7="","",AP7) -> 1 | L7: =IF(AU7="","",AU7) -> 2 | M7: =IF(AZ7="","",AZ7) ->  | N7: =IF(BE7="","",BE7) -> 4 | O7: =IF(BJ7="","",BJ7) ->  | Q7: =AD7+AI7+AN7+AS7+AX7+BC7+BH7 -> 350 | R7: =IF($F7>=5,IF(AB7="","",AB7),"") ->  | S7: =IF($F7>=5,IF(AG7="","",AG7),"") ->  | T7: =IF($F7>=5,IF(AL7="","",AL7),"") ->  | U7: =IF($F7>=5,IF(AQ7="","",AQ7),"") ->  | V7: =IF($F7>=5,IF(AV7="","",AV7),"") ->  | W7: =IF($F7>=5,IF(BA7="","",BA7),"") ->  | X7: =IF($F7>=5,IF(BF7="","",BF7),"") ->  | Y7: =IF($F7>=5,IF(BK7="","",BK7),"") ->  | AB7: =IF(ISNUMBER(AA7),(VLOOKUP(AA7,$BO$6:$BP$50,2)),0) -> 0 | AC7: =IF(AA7<>"",5,0) -> 0 | AD7: =AB7+AC7 -> 0 | AG7: =IF(ISNUMBER(AF7),(VLOOKUP(AF7,$BO$6:$BP$50,2)),0) -> 0 | AH7: =IF(AF7<>"",5,0) -> 0 | AI7: =AG7+AH7 -> 0 | AK7: 1 | AL7: =IF(ISNUMBER(AK7),(VLOOKUP(AK7,$BO$6:$BP$50,2)),0) -> 100 | AM7: =IF(AK7<>"",5,0) -> 5 | AN7: =AL7+AM7 -> 105 | AP7: 1 | AQ7: =IF(ISNUMBER(AP7),(VLOOKUP(AP7,$BO$6:$BP$50,2)),0) -> 100 | AR7: =IF(AP7<>"",5,0) -> 5 | AS7: =AQ7+AR7 -> 105 | AU7: 2 | AV7: =IF(ISNUMBER(AU7),(VLOOKUP(AU7,$BO$6:$BP$50,2)),0) -> 80 | AW7: =IF(AU7<>"",5,0) -> 5 | AX7: =AV7+AW7 -> 85 | BA7: =IF(ISNUMBER(AZ7),(VLOOKUP(AZ7,$BO$6:$BP$50,2)),0) -> 0 | BB7: =IF(AZ7<>"",5,0) -> 0 | BC7: =BA7+BB7 -> 0 | BE7: 4 | BF7: =IF(ISNUMBER(BE7),(VLOOKUP(BE7,$BO$6:$BP$50,2)),0) -> 50 | BG7: =IF(BE7<>"",5,0) -> 5 | BH7: =BF7+BG7 -> 55 | BK7: =IF(ISNUMBER(BJ7),(VLOOKUP(BJ7,$BO$6:$BP$50,2)),0) -> 0 | BL7: =IF(BJ7<>"",5,0) -> 0 | BM7: =BK7+BL7 -> 0 | BO7: 2 | BP7: 80 | BQ7: =IF($F7=8,1,0) -> 0 | BR7: 0 | BS7: 0 | BT7: 0 | BU7: 1 | BV7: 0 | BW7: 0 | BX7: 0
A8: =IF(E8<E7,BO8,A7) -> 3 | B8: Grøndalen | C8: Eira Marie | D8: Ljan | E8: =IF(F8<=4,Q8,(Q8-SUM(SMALL(R8:Y8,{1;2;3;4})))) -> 345 | F8: =(IF(AC8=5,1,0)+IF(AH8=5,1,0)+IF(AM8=5,1,0)+IF(AR8=5,1,0)+IF(AW8=5,1,0)+IF(BB8=5,1,0)+IF(BG8=5,1,0)+IF(BL8=5,1,0)) -> 7 | H8: =IF(AA8="","",AA8) -> 2 | I8: =IF(AF8="","",AF8) -> 2 | J8: =IF(AK8="","",AK8) -> 8 | K8: =IF(AP8="","",AP8) -> 5 | L8: =IF(AU8="","",AU8) -> 13 | M8: =IF(AZ8="","",AZ8) -> 4 | N8: =IF(BE8="","",BE8) -> 1 | O8: =IF(BJ8="","",BJ8) ->  | Q8: =AD8+AI8+AN8+AS8+AX8+BC8+BH8 -> 442 | R8: =IF($F8>=5,IF(AB8="","",AB8),"") -> 80 | S8: =IF($F8>=5,IF(AG8="","",AG8),"") -> 80 | T8: =IF($F8>=5,IF(AL8="","",AL8),"") -> 32 | U8: =IF($F8>=5,IF(AQ8="","",AQ8),"") -> 45 | V8: =IF($F8>=5,IF(AV8="","",AV8),"") -> 20 | W8: =IF($F8>=5,IF(BA8="","",BA8),"") -> 50 | X8: =IF($F8>=5,IF(BF8="","",BF8),"") -> 100 | Y8: =IF($F8>=5,IF(BK8="","",BK8),"") -> 0 | AA8: 2 | AB8: =IF(ISNUMBER(AA8),(VLOOKUP(AA8,$BO$6:$BP$50,2)),0) -> 80 | AC8: =IF(AA8<>"",5,0) -> 5 | AD8: =AB8+AC8 -> 85 | AF8: 2 | AG8: =IF(ISNUMBER(AF8),(VLOOKUP(AF8,$BO$6:$BP$50,2)),0) -> 80 | AH8: =IF(AF8<>"",5,0) -> 5 | AI8: =AG8+AH8 -> 85 | AK8: 8 | AL8: =IF(ISNUMBER(AK8),(VLOOKUP(AK8,$BO$6:$BP$50,2)),0) -> 32 | AM8: =IF(AK8<>"",5,0) -> 5 | AN8: =AL8+AM8 -> 37 | AP8: 5 | AQ8: =IF(ISNUMBER(AP8),(VLOOKUP(AP8,$BO$6:$BP$50,2)),0) -> 45 | AR8: =IF(AP8<>"",5,0) -> 5 | AS8: =AQ8+AR8 -> 50 | AU8: 13 | AV8: =IF(ISNUMBER(AU8),(VLOOKUP(AU8,$BO$6:$BP$50,2)),0) -> 20 | AW8: =IF(AU8<>"",5,0) -> 5 | AX8: =AV8+AW8 -> 25 | AZ8: 4 | BA8: =IF(ISNUMBER(AZ8),(VLOOKUP(AZ8,$BO$6:$BP$50,2)),0) -> 50 | BB8: =IF(AZ8<>"",5,0) -> 5 | BC8: =BA8+BB8 -> 55 | BE8: 1 | BF8: =IF(ISNUMBER(BE8),(VLOOKUP(BE8,$BO$6:$BP$50,2)),0) -> 100 | BG8: =IF(BE8<>"",5,0) -> 5 | BH8: =BF8+BG8 -> 105 | BK8: =IF(ISNUMBER(BJ8),(VLOOKUP(BJ8,$BO$6:$BP$50,2)),0) -> 0 | BL8: =IF(BJ8<>"",5,0) -> 0 | BM8: =BK8+BL8 -> 0 | BO8: 3 | BP8: 60 | BQ8: 0 | BR8: 1 | BS8: 0 | BT8: 0 | BU8: 0 | BV8: 0 | BW8: 0 | BX8: 0
A9: =IF(E9<E8,BO9,A8) -> 4 | B9: Schei | C9: Julie Haakaas | D9: IRS | E9: =IF(F9<=4,Q9,(Q9-SUM(SMALL(R9:Y9,{1;2;3;4})))) -> 325 | F9: =(IF(AC9=5,1,0)+IF(AH9=5,1,0)+IF(AM9=5,1,0)+IF(AR9=5,1,0)+IF(AW9=5,1,0)+IF(BB9=5,1,0)+IF(BG9=5,1,0)+IF(BL9=5,1,0)) -> 6 | H9: =IF(AA9="","",AA9) -> 1 | I9: =IF(AF9="","",AF9) -> 1 | J9: =IF(AK9="","",AK9) -> 4 | K9: =IF(AP9="","",AP9) -> 9 | L9: =IF(AU9="","",AU9) -> 5 | M9: =IF(AZ9="","",AZ9) ->  | N9: =IF(BE9="","",BE9) -> dsq | O9: =IF(BJ9="","",BJ9) ->  | Q9: =AD9+AI9+AN9+AS9+AX9+BC9+BH9 -> 354 | R9: =IF($F9>=5,IF(AB9="","",AB9),"") -> 100 | S9: =IF($F9>=5,IF(AG9="","",AG9),"") -> 100 | T9: =IF($F9>=5,IF(AL9="","",AL9),"") -> 50 | U9: =IF($F9>=5,IF(AQ9="","",AQ9),"") -> 29 | V9: =IF($F9>=5,IF(AV9="","",AV9),"") -> 45 | W9: =IF($F9>=5,IF(BA9="","",BA9),"") -> 0 | X9: =IF($F9>=5,IF(BF9="","",BF9),"") -> 0 | Y9: =IF($F9>=5,IF(BK9="","",BK9),"") -> 0 | AA9: 1 | AB9: =IF(ISNUMBER(AA9),(VLOOKUP(AA9,$BO$6:$BP$50,2)),0) -> 100 | AC9: =IF(AA9<>"",5,0) -> 5 | AD9: =AB9+AC9 -> 105 | AF9: 1 | AG9: =IF(ISNUMBER(AF9),(VLOOKUP(AF9,$BO$6:$BP$50,2)),0) -> 100 | AH9: =IF(AF9<>"",5,0) -> 5 | AI9: =AG9+AH9 -> 105 | AK9: 4 | AL9: =IF(ISNUMBER(AK9),(VLOOKUP(AK9,$BO$6:$BP$50,2)),0) -> 50 | AM9: =IF(AK9<>"",5,0) -> 5 | AN9: =AL9+AM9 -> 55 | AP9: 9 | AQ9: =IF(ISNUMBER(AP9),(VLOOKUP(AP9,$BO$6:$BP$50,2)),0) -> 29 | AR9: =IF(AP9<>"",5,0) -> 5 | AS9: =AQ9+AR9 -> 34 | AU9: 5 | AV9: =IF(ISNUMBER(AU9),(VLOOKUP(AU9,$BO$6:$BP$50,2)),0) -> 45 | AW9: =IF(AU9<>"",5,0) -> 5 | AX9: =AV9+AW9 -> 50 | BA9: =IF(ISNUMBER(AZ9),(VLOOKUP(AZ9,$BO$6:$BP$50,2)),0) -> 0 | BB9: =IF(AZ9<>"",5,0) -> 0 | BC9: =BA9+BB9 -> 0 | BE9: dsq | BF9: =IF(ISNUMBER(BE9),(VLOOKUP(BE9,$BO$6:$BP$50,2)),0) -> 0 | BG9: =IF(BE9<>"",5,0) -> 5 | BH9: =BF9+BG9 -> 5 | BK9: =IF(ISNUMBER(BJ9),(VLOOKUP(BJ9,$BO$6:$BP$50,2)),0) -> 0 | BL9: =IF(BJ9<>"",5,0) -> 0 | BM9: =BK9+BL9 -> 0 | BO9: 4 | BP9: 50 | BQ9: 0 | BR9: 0 | BS9: 1 | BT9: 0 | BU9: 0 | BV9: 0 | BW9: 0 | BX9: 0
A10: =IF(E10<E9,BO10,A9) -> 5 | B10: Elmenhorst-Larsen | C10: Sina | D10: Ready | E10: =IF(F10<=4,Q10,(Q10-SUM(SMALL(R10:Y10,{1;2;3;4})))) -> 280 | F10: =(IF(AC10=5,1,0)+IF(AH10=5,1,0)+IF(AM10=5,1,0)+IF(AR10=5,1,0)+IF(AW10=5,1,0)+IF(BB10=5,1,0)+IF(BG10=5,1,0)+IF(BL10=5,1,0)) -> 6 | H10: =IF(AA10="","",AA10) -> 3 | I10: =IF(AF10="","",AF10) ->  | J10: =IF(AK10="","",AK10) -> 5 | K10: =IF(AP10="","",AP10) -> 4 | L10: =IF(AU10="","",AU10) -> 6 | M10: =IF(AZ10="","",AZ10) -> 3 | N10: =IF(BE10="","",BE10) -> 2 | O10: =IF(BJ10="","",BJ10) ->  | Q10: =AD10+AI10+AN10+AS10+AX10+BC10+BH10 -> 365 | R10: =IF($F10>=5,IF(AB10="","",AB10),"") -> 60 | S10: =IF($F10>=5,IF(AG10="","",AG10),"") -> 0 | T10: =IF($F10>=5,IF(AL10="","",AL10),"") -> 45 | U10: =IF($F10>=5,IF(AQ10="","",AQ10),"") -> 50 | V10: =IF($F10>=5,IF(AV10="","",AV10),"") -> 40 | W10: =IF($F10>=5,IF(BA10="","",BA10),"") -> 60 | X10: =IF($F10>=5,IF(BF10="","",BF10),"") -> 80 | Y10: =IF($F10>=5,IF(BK10="","",BK10),"") -> 0 | AA10: 3 | AB10: =IF(ISNUMBER(AA10),(VLOOKUP(AA10,$BO$6:$BP$50,2)),0) -> 60 | AC10: =IF(AA10<>"",5,0) -> 5 | AD10: =AB10+AC10 -> 65 | AG10: =IF(ISNUMBER(AF10),(VLOOKUP(AF10,$BO$6:$BP$50,2)),0) -> 0 | AH10: =IF(AF10<>"",5,0) -> 0 | AI10: =AG10+AH10 -> 0 | AK10: 5 | AL10: =IF(ISNUMBER(AK10),(VLOOKUP(AK10,$BO$6:$BP$50,2)),0) -> 45 | AM10: =IF(AK10<>"",5,0) -> 5 | AN10: =AL10+AM10 -> 50 | AP10: 4 | AQ10: =IF(ISNUMBER(AP10),(VLOOKUP(AP10,$BO$6:$BP$50,2)),0) -> 50 | AR10: =IF(AP10<>"",5,0) -> 5 | AS10: =AQ10+AR10 -> 55 | AU10: 6 | AV10: =IF(ISNUMBER(AU10),(VLOOKUP(AU10,$BO$6:$BP$50,2)),0) -> 40 | AW10: =IF(AU10<>"",5,0) -> 5 | AX10: =AV10+AW10 -> 45 | AZ10: 3 | BA10: =IF(ISNUMBER(AZ10),(VLOOKUP(AZ10,$BO$6:$BP$50,2)),0) -> 60 | BB10: =IF(AZ10<>"",5,0) -> 5 | BC10: =BA10+BB10 -> 65 | BE10: 2 | BF10: =IF(ISNUMBER(BE10),(VLOOKUP(BE10,$BO$6:$BP$50,2)),0) -> 80 | BG10: =IF(BE10<>"",5,0) -> 5 | BH10: =BF10+BG10 -> 85 | BK10: =IF(ISNUMBER(BJ10),(VLOOKUP(BJ10,$BO$6:$BP$50,2)),0) -> 0 | BL10: =IF(BJ10<>"",5,0) -> 0 | BM10: =BK10+BL10 -> 0 | BO10: 5 | BP10: 45 | BQ10: 0 | BR10: 0 | BS10: 1 | BT10: 0 | BU10: 0 | BV10: 0 | BW10: 0 | BX10: 0
A11: =IF(E11<E10,BO11,A10) -> 6 | B11: Semmelmann | C11: Ellisif Marie | D11: Heming | E11: =IF(F11<=4,Q11,(Q11-SUM(SMALL(R11:Y11,{1;2;3;4})))) -> 260 | F11: =(IF(AC11=5,1,0)+IF(AH11=5,1,0)+IF(AM11=5,1,0)+IF(AR11=5,1,0)+IF(AW11=5,1,0)+IF(BB11=5,1,0)+IF(BG11=5,1,0)+IF(BL11=5,1,0)) -> 4 | H11: =IF(AA11="","",AA11) ->  | I11: =IF(AF11="","",AF11) ->  | J11: =IF(AK11="","",AK11) -> 6 | K11: =IF(AP11="","",AP11) -> 3 | L11: =IF(AU11="","",AU11) -> 3 | M11: =IF(AZ11="","",AZ11) -> 2 | N11: =IF(BE11="","",BE11) ->  | O11: =IF(BJ11="","",BJ11) ->  | Q11: =AD11+AI11+AN11+AS11+AX11+BC11+BH11 -> 260 | R11: =IF($F11>=5,IF(AB11="","",AB11),"") ->  | S11: =IF($F11>=5,IF(AG11="","",AG11),"") ->  | T11: =IF($F11>=5,IF(AL11="","",AL11),"") ->  | U11: =IF($F11>=5,IF(AQ11="","",AQ11),"") ->  | V11: =IF($F11>=5,IF(AV11="","",AV11),"") ->  | W11: =IF($F11>=5,IF(BA11="","",BA11),"") ->  | X11: =IF($F11>=5,IF(BF11="","",BF11),"") ->  | Y11: =IF($F11>=5,IF(BK11="","",BK11),"") ->  | AB11: =IF(ISNUMBER(AA11),(VLOOKUP(AA11,$BO$6:$BP$50,2)),0) -> 0 | AC11: =IF(AA11<>"",5,0) -> 0 | AD11: =AB11+AC11 -> 0 | AG11: =IF(ISNUMBER(AF11),(VLOOKUP(AF11,$BO$6:$BP$50,2)),0) -> 0 | AH11: =IF(AF11<>"",5,0) -> 0 | AI11: =AG11+AH11 -> 0 | AK11: 6 | AL11: =IF(ISNUMBER(AK11),(VLOOKUP(AK11,$BO$6:$BP$50,2)),0) -> 40 | AM11: =IF(AK11<>"",5,0) -> 5 | AN11: =AL11+AM11 -> 45 | AP11: 3 | AQ11: =IF(ISNUMBER(AP11),(VLOOKUP(AP11,$BO$6:$BP$50,2)),0) -> 60 | AR11: =IF(AP11<>"",5,0) -> 5 | AS11: =AQ11+AR11 -> 65 | AU11: 3 | AV11: =IF(ISNUMBER(AU11),(VLOOKUP(AU11,$BO$6:$BP$50,2)),0) -> 60 | AW11: =IF(AU11<>"",5,0) -> 5 | AX11: =AV11+AW11 -> 65 | AZ11: 2 | BA11: =IF(ISNUMBER(AZ11),(VLOOKUP(AZ11,$BO$6:$BP$50,2)),0) -> 80 | BB11: =IF(AZ11<>"",5,0) -> 5 | BC11: =BA11+BB11 -> 85 | BF11: =IF(ISNUMBER(BE11),(VLOOKUP(BE11,$BO$6:$BP$50,2)),0) -> 0 | BG11: =IF(BE11<>"",5,0) -> 0 | BH11: =BF11+BG11 -> 0 | BK11: =IF(ISNUMBER(BJ11),(VLOOKUP(BJ11,$BO$6:$BP$50,2)),0) -> 0 | BL11: =IF(BJ11<>"",5,0) -> 0 | BM11: =BK11+BL11 -> 0 | BO11: 6 | BP11: 40 | BQ11: 0 | BR11: 0 | BS11: 0 | BT11: 0 | BU11: 1 | BV11: 0 | BW11: 0 | BX11: 0
A12: =IF(E12<E11,BO12,A11) -> 7 | B12: Holter | C12: Vilde Emilie | D12: Ullensaker | E12: =IF(F12<=4,Q12,(Q12-SUM(SMALL(R12:Y12,{1;2;3;4})))) -> 176 | F12: =(IF(AC12=5,1,0)+IF(AH12=5,1,0)+IF(AM12=5,1,0)+IF(AR12=5,1,0)+IF(AW12=5,1,0)+IF(BB12=5,1,0)+IF(BG12=5,1,0)+IF(BL12=5,1,0)) -> 4 | H12: =IF(AA12="","",AA12) ->  | I12: =IF(AF12="","",AF12) ->  | J12: =IF(AK12="","",AK12) -> 3 | K12: =IF(AP12="","",AP12) ->  | L12: =IF(AU12="","",AU12) -> 7 | M12: =IF(AZ12="","",AZ12) -> 6 | N12: =IF(BE12="","",BE12) -> 13 | O12: =IF(BJ12="","",BJ12) ->  | Q12: =AD12+AI12+AN12+AS12+AX12+BC12+BH12 -> 176 | R12: =IF($F12>=5,IF(AB12="","",AB12),"") ->  | S12: =IF($F12>=5,IF(AG12="","",AG12),"") ->  | T12: =IF($F12>=5,IF(AL12="","",AL12),"") ->  | U12: =IF($F12>=5,IF(AQ12="","",AQ12),"") ->  | V12: =IF($F12>=5,IF(AV12="","",AV12),"") ->  | W12: =IF($F12>=5,IF(BA12="","",BA12),"") ->  | X12: =IF($F12>=5,IF(BF12="","",BF12),"") ->  | Y12: =IF($F12>=5,IF(BK12="","",BK12),"") ->  | AB12: =IF(ISNUMBER(AA12),(VLOOKUP(AA12,$BO$6:$BP$50,2)),0) -> 0 | AC12: =IF(AA12<>"",5,0) -> 0 | AD12: =AB12+AC12 -> 0 | AG12: =IF(ISNUMBER(AF12),(VLOOKUP(AF12,$BO$6:$BP$50,2)),0) -> 0 | AH12: =IF(AF12<>"",5,0) -> 0 | AI12: =AG12+AH12 -> 0 | AK12: 3 | AL12: =IF(ISNUMBER(AK12),(VLOOKUP(AK12,$BO$6:$BP$50,2)),0) -> 60 | AM12: =IF(AK12<>"",5,0) -> 5 | AN12: =AL12+AM12 -> 65 | AQ12: =IF(ISNUMBER(AP12),(VLOOKUP(AP12,$BO$6:$BP$50,2)),0) -> 0 | AR12: =IF(AP12<>"",5,0) -> 0 | AS12: =AQ12+AR12 -> 0 | AU12: 7 | AV12: =IF(ISNUMBER(AU12),(VLOOKUP(AU12,$BO$6:$BP$50,2)),0) -> 36 | AW12: =IF(AU12<>"",5,0) -> 5 | AX12: =AV12+AW12 -> 41 | AZ12: 6 | BA12: =IF(ISNUMBER(AZ12),(VLOOKUP(AZ12,$BO$6:$BP$50,2)),0) -> 40 | BB12: =IF(AZ12<>"",5,0) -> 5 | BC12: =BA12+BB12 -> 45 | BE12: 13 | BF12: =IF(ISNUMBER(BE12),(VLOOKUP(BE12,$BO$6:$BP$50,2)),0) -> 20 | BG12: =IF(BE12<>"",5,0) -> 5 | BH12: =BF12+BG12 -> 25 | BK12: =IF(ISNUMBER(BJ12),(VLOOKUP(BJ12,$BO$6:$BP$50,2)),0) -> 0 | BL12: =IF(BJ12<>"",5,0) -> 0 | BM12: =BK12+BL12 -> 0 | BO12: 7 | BP12: 36 | BQ12: 0 | BR12: 0 | BS12: 0 | BT12: 0 | BU12: 1 | BV12: 0 | BW12: 0 | BX12: 0
A13: =IF(E13<E12,BO13,A12) -> 8 | B13: Heggelund | C13: Hedda Ramstad | D13: Ullensaker | E13: =IF(F13<=4,Q13,(Q13-SUM(SMALL(R13:Y13,{1;2;3;4})))) -> 169 | F13: =(IF(AC13=5,1,0)+IF(AH13=5,1,0)+IF(AM13=5,1,0)+IF(AR13=5,1,0)+IF(AW13=5,1,0)+IF(BB13=5,1,0)+IF(BG13=5,1,0)+IF(BL13=5,1,0)) -> 5 | H13: =IF(AA13="","",AA13) -> 5 | I13: =IF(AF13="","",AF13) -> dsq | J13: =IF(AK13="","",AK13) ->  | K13: =IF(AP13="","",AP13) ->  | L13: =IF(AU13="","",AU13) -> 17 | M13: =IF(AZ13="","",AZ13) -> 5 | N13: =IF(BE13="","",BE13) -> 6 | O13: =IF(BJ13="","",BJ13) ->  | Q13: =AD13+AI13+AN13+AS13+AX13+BC13+BH13 -> 169 | R13: =IF($F13>=5,IF(AB13="","",AB13),"") -> 45 | S13: =IF($F13>=5,IF(AG13="","",AG13),"") -> 0 | T13: =IF($F13>=5,IF(AL13="","",AL13),"") -> 0 | U13: =IF($F13>=5,IF(AQ13="","",AQ13),"") -> 0 | V13: =IF($F13>=5,IF(AV13="","",AV13),"") -> 14 | W13: =IF($F13>=5,IF(BA13="","",BA13),"") -> 45 | X13: =IF($F13>=5,IF(BF13="","",BF13),"") -> 40 | Y13: =IF($F13>=5,IF(BK13="","",BK13),"") -> 0 | AA13: 5 | AB13: =IF(ISNUMBER(AA13),(VLOOKUP(AA13,$BO$6:$BP$50,2)),0) -> 45 | AC13: =IF(AA13<>"",5,0) -> 5 | AD13: =AB13+AC13 -> 50 | AF13: dsq | AG13: =IF(ISNUMBER(AF13),(VLOOKUP(AF13,$BO$6:$BP$50,2)),0) -> 0 | AH13: =IF(AF13<>"",5,0) -> 5 | AI13: =AG13+AH13 -> 5 | AL13: =IF(ISNUMBER(AK13),(VLOOKUP(AK13,$BO$6:$BP$50,2)),0) -> 0 | AM13: =IF(AK13<>"",5,0) -> 0 | AN13: =AL13+AM13 -> 0 | AQ13: =IF(ISNUMBER(AP13),(VLOOKUP(AP13,$BO$6:$BP$50,2)),0) -> 0 | AR13: =IF(AP13<>"",5,0) -> 0 | AS13: =AQ13+AR13 -> 0 | AU13: 17 | AV13: =IF(ISNUMBER(AU13),(VLOOKUP(AU13,$BO$6:$BP$50,2)),0) -> 14 | AW13: =IF(AU13<>"",5,0) -> 5 | AX13: =AV13+AW13 -> 19 | AZ13: 5 | BA13: =IF(ISNUMBER(AZ13),(VLOOKUP(AZ13,$BO$6:$BP$50,2)),0) -> 45 | BB13: =IF(AZ13<>"",5,0) -> 5 | BC13: =BA13+BB13 -> 50 | BE13: 6 | BF13: =IF(ISNUMBER(BE13),(VLOOKUP(BE13,$BO$6:$BP$50,2)),0) -> 40 | BG13: =IF(BE13<>"",5,0) -> 5 | BH13: =BF13+BG13 -> 45 | BK13: =IF(ISNUMBER(BJ13),(VLOOKUP(BJ13,$BO$6:$BP$50,2)),0) -> 0 | BL13: =IF(BJ13<>"",5,0) -> 0 | BM13: =BK13+BL13 -> 0 | BO13: 8 | BP13: 32 | BQ13: 0 | BR13: 0 | BS13: 0 | BT13: 1 | BU13: 0 | BV13: 0 | BW13: 0 | BX13: 0
A14: =IF(E14<E13,BO14,A13) -> 9 | B14: Bjørland | C14: Vilde | D14: Heming | E14: =IF(F14<=4,Q14,(Q14-SUM(SMALL(R14:Y14,{1;2;3;4})))) -> 149 | F14: =(IF(AC14=5,1,0)+IF(AH14=5,1,0)+IF(AM14=5,1,0)+IF(AR14=5,1,0)+IF(AW14=5,1,0)+IF(BB14=5,1,0)+IF(BG14=5,1,0)+IF(BL14=5,1,0)) -> 4 | H14: =IF(AA14="","",AA14) -> 4 | I14: =IF(AF14="","",AF14) -> 4 | J14: =IF(AK14="","",AK14) ->  | K14: =IF(AP14="","",AP14) ->  | L14: =IF(AU14="","",AU14) -> 24 | M14: =IF(AZ14="","",AZ14) -> 12 | N14: =IF(BE14="","",BE14) ->  | O14: =IF(BJ14="","",BJ14) ->  | Q14: =AD14+AI14+AN14+AS14+AX14+BC14+BH14 -> 149 | R14: =IF($F14>=5,IF(AB14="","",AB14),"") ->  | S14: =IF($F14>=5,IF(AG14="","",AG14),"") ->  | T14: =IF($F14>=5,IF(AL14="","",AL14),"") ->  | U14: =IF($F14>=5,IF(AQ14="","",AQ14),"") ->  | V14: =IF($F14>=5,IF(AV14="","",AV14),"") ->  | W14: =IF($F14>=5,IF(BA14="","",BA14),"") ->  | X14: =IF($F14>=5,IF(BF14="","",BF14),"") ->  | Y14: =IF($F14>=5,IF(BK14="","",BK14),"") ->  | AA14: 4 | AB14: =IF(ISNUMBER(AA14),(VLOOKUP(AA14,$BO$6:$BP$50,2)),0) -> 50 | AC14: =IF(AA14<>"",5,0) -> 5 | AD14: =AB14+AC14 -> 55 | AF14: 4 | AG14: =IF(ISNUMBER(AF14),(VLOOKUP(AF14,$BO$6:$BP$50,2)),0) -> 50 | AH14: =IF(AF14<>"",5,0) -> 5 | AI14: =AG14+AH14 -> 55 | AL14: =IF(ISNUMBER(AK14),(VLOOKUP(AK14,$BO$6:$BP$50,2)),0) -> 0 | AM14: =IF(AK14<>"",5,0) -> 0 | AN14: =AL14+AM14 -> 0 | AQ14: =IF(ISNUMBER(AP14),(VLOOKUP(AP14,$BO$6:$BP$50,2)),0) -> 0 | AR14: =IF(AP14<>"",5,0) -> 0 | AS14: =AQ14+AR14 -> 0 | AU14: 24 | AV14: =IF(ISNUMBER(AU14),(VLOOKUP(AU14,$BO$6:$BP$50,2)),0) -> 7 | AW14: =IF(AU14<>"",5,0) -> 5 | AX14: =AV14+AW14 -> 12 | AZ14: 12 | BA14: =IF(ISNUMBER(AZ14),(VLOOKUP(AZ14,$BO$6:$BP$50,2)),0) -> 22 | BB14: =IF(AZ14<>"",5,0) -> 5 | BC14: =BA14+BB14 -> 27 | BF14: =IF(ISNUMBER(BE14),(VLOOKUP(BE14,$BO$6:$BP$50,2)),0) -> 0 | BG14: =IF(BE14<>"",5,0) -> 0 | BH14: =BF14+BG14 -> 0 | BK14: =IF(ISNUMBER(BJ14),(VLOOKUP(BJ14,$BO$6:$BP$50,2)),0) -> 0 | BL14: =IF(BJ14<>"",5,0) -> 0 | BM14: =BK14+BL14 -> 0 | BO14: 9 | BP14: 29 | BQ14: 0 | BR14: 0 | BS14: 0 | BT14: 0 | BU14: 1 | BV14: 0 | BW14: 0 | BX14: 0
A15: =IF(E15<E14,BO15,A14) -> 10 | B15: Riiber | C15: Kristiane | D15: Heming | E15: =IF(F15<=4,Q15,(Q15-SUM(SMALL(R15:Y15,{1;2;3;4})))) -> 144 | F15: =(IF(AC15=5,1,0)+IF(AH15=5,1,0)+IF(AM15=5,1,0)+IF(AR15=5,1,0)+IF(AW15=5,1,0)+IF(BB15=5,1,0)+IF(BG15=5,1,0)+IF(BL15=5,1,0)) -> 5 | H15: =IF(AA15="","",AA15) ->  | I15: =IF(AF15="","",AF15) ->  | J15: =IF(AK15="","",AK15) -> 10 | K15: =IF(AP15="","",AP15) -> 8 | L15: =IF(AU15="","",AU15) -> 9 | M15: =IF(AZ15="","",AZ15) -> 9 | N15: =IF(BE15="","",BE15) -> 9 | O15: =IF(BJ15="","",BJ15) ->  | Q15: =AD15+AI15+AN15+AS15+AX15+BC15+BH15 -> 170 | R15: =IF($F15>=5,IF(AB15="","",AB15),"") -> 0 | S15: =IF($F15>=5,IF(AG15="","",AG15),"") -> 0 | T15: =IF($F15>=5,IF(AL15="","",AL15),"") -> 26 | U15: =IF($F15>=5,IF(AQ15="","",AQ15),"") -> 32 | V15: =IF($F15>=5,IF(AV15="","",AV15),"") -> 29 | W15: =IF($F15>=5,IF(BA15="","",BA15),"") -> 29 | X15: =IF($F15>=5,IF(BF15="","",BF15),"") -> 29 | Y15: =IF($F15>=5,IF(BK15="","",BK15),"") -> 0 | AB15: =IF(ISNUMBER(AA15),(VLOOKUP(AA15,$BO$6:$BP$50,2)),0) -> 0 | AC15: =IF(AA15<>"",5,0) -> 0 | AD15: =AB15+AC15 -> 0 | AG15: =IF(ISNUMBER(AF15),(VLOOKUP(AF15,$BO$6:$BP$50,2)),0) -> 0 | AH15: =IF(AF15<>"",5,0) -> 0 | AI15: =AG15+AH15 -> 0 | AK15: 10 | AL15: =IF(ISNUMBER(AK15),(VLOOKUP(AK15,$BO$6:$BP$50,2)),0) -> 26 | AM15: =IF(AK15<>"",5,0) -> 5 | AN15: =AL15+AM15 -> 31 | AP15: 8 | AQ15: =IF(ISNUMBER(AP15),(VLOOKUP(AP15,$BO$6:$BP$50,2)),0) -> 32 | AR15: =IF(AP15<>"",5,0) -> 5 | AS15: =AQ15+AR15 -> 37 | AU15: 9 | AV15: =IF(ISNUMBER(AU15),(VLOOKUP(AU15,$BO$6:$BP$50,2)),0) -> 29 | AW15: =IF(AU15<>"",5,0) -> 5 | AX15: =AV15+AW15 -> 34 | AZ15: 9 | BA15: =IF(ISNUMBER(AZ15),(VLOOKUP(AZ15,$BO$6:$BP$50,2)),0) -> 29 | BB15: =IF(AZ15<>"",5,0) -> 5 | BC15: =BA15+BB15 -> 34 | BE15: 9 | BF15: =IF(ISNUMBER(BE15),(VLOOKUP(BE15,$BO$6:$BP$50,2)),0) -> 29 | BG15: =IF(BE15<>"",5,0) -> 5 | BH15: =BF15+BG15 -> 34 | BK15: =IF(ISNUMBER(BJ15),(VLOOKUP(BJ15,$BO$6:$BP$50,2)),0) -> 0 | BL15: =IF(BJ15<>"",5,0) -> 0 | BM15: =BK15+BL15 -> 0 | BO15: 10 | BP15: 26 | BQ15: 0 | BR15: 0 | BS15: 0 | BT15: 1 | BU15: 0 | BV15: 0 | BW15: 0 | BX15: 0
A16: =IF(E16<E15,BO16,A15) -> 11 | B16: Ingebrigtsen | C16: Nora Haugmoen | D16: Heming | E16: =IF(F16<=4,Q16,(Q16-SUM(SMALL(R16:Y16,{1;2;3;4})))) -> 121 | F16: =(IF(AC16=5,1,0)+IF(AH16=5,1,0)+IF(AM16=5,1,0)+IF(AR16=5,1,0)+IF(AW16=5,1,0)+IF(BB16=5,1,0)+IF(BG16=5,1,0)+IF(BL16=5,1,0)) -> 4 | H16: =IF(AA16="","",AA16) ->  | I16: =IF(AF16="","",AF16) ->  | J16: =IF(AK16="","",AK16) -> 9 | K16: =IF(AP16="","",AP16) -> 6 | L16: =IF(AU16="","",AU16) -> dsq | M16: =IF(AZ16="","",AZ16) ->  | N16: =IF(BE16="","",BE16) -> 8 | O16: =IF(BJ16="","",BJ16) ->  | Q16: =AD16+AI16+AN16+AS16+AX16+BC16+BH16 -> 121 | R16: =IF($F16>=5,IF(AB16="","",AB16),"") ->  | S16: =IF($F16>=5,IF(AG16="","",AG16),"") ->  | T16: =IF($F16>=5,IF(AL16="","",AL16),"") ->  | U16: =IF($F16>=5,IF(AQ16="","",AQ16),"") ->  | V16: =IF($F16>=5,IF(AV16="","",AV16),"") ->  | W16: =IF($F16>=5,IF(BA16="","",BA16),"") ->  | X16: =IF($F16>=5,IF(BF16="","",BF16),"") ->  | Y16: =IF($F16>=5,IF(BK16="","",BK16),"") ->  | AB16: =IF(ISNUMBER(AA16),(VLOOKUP(AA16,$BO$6:$BP$50,2)),0) -> 0 | AC16: =IF(AA16<>"",5,0) -> 0 | AD16: =AB16+AC16 -> 0 | AG16: =IF(ISNUMBER(AF16),(VLOOKUP(AF16,$BO$6:$BP$50,2)),0) -> 0 | AH16: =IF(AF16<>"",5,0) -> 0 | AI16: =AG16+AH16 -> 0 | AK16: 9 | AL16: =IF(ISNUMBER(AK16),(VLOOKUP(AK16,$BO$6:$BP$50,2)),0) -> 29 | AM16: =IF(AK16<>"",5,0) -> 5 | AN16: =AL16+AM16 -> 34 | AP16: 6 | AQ16: =IF(ISNUMBER(AP16),(VLOOKUP(AP16,$BO$6:$BP$50,2)),0) -> 40 | AR16: =IF(AP16<>"",5,0) -> 5 | AS16: =AQ16+AR16 -> 45 | AU16: dsq | AV16: =IF(ISNUMBER(AU16),(VLOOKUP(AU16,$BO$6:$BP$50,2)),0) -> 0 | AW16: =IF(AU16<>"",5,0) -> 5 | AX16: =AV16+AW16 -> 5 | BA16: =IF(ISNUMBER(AZ16),(VLOOKUP(AZ16,$BO$6:$BP$50,2)),0) -> 0 | BB16: =IF(AZ16<>"",5,0) -> 0 | BC16: =BA16+BB16 -> 0 | BE16: 8 | BF16: =IF(ISNUMBER(BE16),(VLOOKUP(BE16,$BO$6:$BP$50,2)),0) -> 32 | BG16: =IF(BE16<>"",5,0) -> 5 | BH16: =BF16+BG16 -> 37 | BK16: =IF(ISNUMBER(BJ16),(VLOOKUP(BJ16,$BO$6:$BP$50,2)),0) -> 0 | BL16: =IF(BJ16<>"",5,0) -> 0 | BM16: =BK16+BL16 -> 0 | BO16: 11 | BP16: 24 | BQ16: 0 | BR16: 0 | BS16: 0 | BT16: 0 | BU16: 1 | BV16: 0 | BW16: 0 | BX16: 0
A17: =IF(E17<E16,BO17,A16) -> 12 | B17: Borge-Andersen | C17: Felin | D17: Heming | E17: =IF(F17<=4,Q17,(Q17-SUM(SMALL(R17:Y17,{1;2;3;4})))) -> 114 | F17: =(IF(AC17=5,1,0)+IF(AH17=5,1,0)+IF(AM17=5,1,0)+IF(AR17=5,1,0)+IF(AW17=5,1,0)+IF(BB17=5,1,0)+IF(BG17=5,1,0)+IF(BL17=5,1,0)) -> 4 | H17: =IF(AA17="","",AA17) ->  | I17: =IF(AF17="","",AF17) ->  | J17: =IF(AK17="","",AK17) -> 7 | K17: =IF(AP17="","",AP17) -> 7 | L17: =IF(AU17="","",AU17) -> 12 | M17: =IF(AZ17="","",AZ17) ->  | N17: =IF(BE17="","",BE17) -> dsq | O17: =IF(BJ17="","",BJ17) ->  | Q17: =AD17+AI17+AN17+AS17+AX17+BC17+BH17 -> 114 | R17: =IF($F17>=5,IF(AB17="","",AB17),"") ->  | S17: =IF($F17>=5,IF(AG17="","",AG17),"") ->  | T17: =IF($F17>=5,IF(AL17="","",AL17),"") ->  | U17: =IF($F17>=5,IF(AQ17="","",AQ17),"") ->  | V17: =IF($F17>=5,IF(AV17="","",AV17),"") ->  | W17: =IF($F17>=5,IF(BA17="","",BA17),"") ->  | X17: =IF($F17>=5,IF(BF17="","",BF17),"") ->  | Y17: =IF($F17>=5,IF(BK17="","",BK17),"") ->  | AB17: =IF(ISNUMBER(AA17),(VLOOKUP(AA17,$BO$6:$BP$50,2)),0) -> 0 | AC17: =IF(AA17<>"",5,0) -> 0 | AD17: =AB17+AC17 -> 0 | AG17: =IF(ISNUMBER(AF17),(VLOOKUP(AF17,$BO$6:$BP$50,2)),0) -> 0 | AH17: =IF(AF17<>"",5,0) -> 0 | AI17: =AG17+AH17 -> 0 | AK17: 7 | AL17: =IF(ISNUMBER(AK17),(VLOOKUP(AK17,$BO$6:$BP$50,2)),0) -> 36 | AM17: =IF(AK17<>"",5,0) -> 5 | AN17: =AL17+AM17 -> 41 | AP17: 7 | AQ17: =IF(ISNUMBER(AP17),(VLOOKUP(AP17,$BO$6:$BP$50,2)),0) -> 36 | AR17: =IF(AP17<>"",5,0) -> 5 | AS17: =AQ17+AR17 -> 41 | AU17: 12 | AV17: =IF(ISNUMBER(AU17),(VLOOKUP(AU17,$BO$6:$BP$50,2)),0) -> 22 | AW17: =IF(AU17<>"",5,0) -> 5 | AX17: =AV17+AW17 -> 27 | BA17: =IF(ISNUMBER(AZ17),(VLOOKUP(AZ17,$BO$6:$BP$50,2)),0) -> 0 | BB17: =IF(AZ17<>"",5,0) -> 0 | BC17: =BA17+BB17 -> 0 | BE17: dsq | BF17: =IF(ISNUMBER(BE17),(VLOOKUP(BE17,$BO$6:$BP$50,2)),0) -> 0 | BG17: =IF(BE17<>"",5,0) -> 5 | BH17: =BF17+BG17 -> 5 | BK17: =IF(ISNUMBER(BJ17),(VLOOKUP(BJ17,$BO$6:$BP$50,2)),0) -> 0 | BL17: =IF(BJ17<>"",5,0) -> 0 | BM17: =BK17+BL17 -> 0 | BO17: 12 | BP17: 22 | BQ17: 0 | BR17: 0 | BS17: 0 | BT17: 0 | BU17: 1 | BV17: 0 | BW17: 0 | BX17: 0
A18: =IF(E18<E17,BO18,A17) -> 13 | B18: Ardem | C18: Emilie Caroline | D18: Kjelsås | E18: =IF(F18<=4,Q18,(Q18-SUM(SMALL(R18:Y18,{1;2;3;4})))) -> 111 | F18: =(IF(AC18=5,1,0)+IF(AH18=5,1,0)+IF(AM18=5,1,0)+IF(AR18=5,1,0)+IF(AW18=5,1,0)+IF(BB18=5,1,0)+IF(BG18=5,1,0)+IF(BL18=5,1,0)) -> 5 | H18: =IF(AA18="","",AA18) ->  | I18: =IF(AF18="","",AF18) ->  | J18: =IF(AK18="","",AK18) -> 15 | K18: =IF(AP18="","",AP18) -> 12 | L18: =IF(AU18="","",AU18) -> 19 | M18: =IF(AZ18="","",AZ18) -> 7 | N18: =IF(BE18="","",BE18) -> dsq | O18: =IF(BJ18="","",BJ18) ->  | Q18: =AD18+AI18+AN18+AS18+AX18+BC18+BH18 -> 111 | R18: =IF($F18>=5,IF(AB18="","",AB18),"") -> 0 | S18: =IF($F18>=5,IF(AG18="","",AG18),"") -> 0 | T18: =IF($F18>=5,IF(AL18="","",AL18),"") -> 16 | U18: =IF($F18>=5,IF(AQ18="","",AQ18),"") -> 22 | V18: =IF($F18>=5,IF(AV18="","",AV18),"") -> 12 | W18: =IF($F18>=5,IF(BA18="","",BA18),"") -> 36 | X18: =IF($F18>=5,IF(BF18="","",BF18),"") -> 0 | Y18: =IF($F18>=5,IF(BK18="","",BK18),"") -> 0 | AB18: =IF(ISNUMBER(AA18),(VLOOKUP(AA18,$BO$6:$BP$50,2)),0) -> 0 | AC18: =IF(AA18<>"",5,0) -> 0 | AD18: =AB18+AC18 -> 0 | AG18: =IF(ISNUMBER(AF18),(VLOOKUP(AF18,$BO$6:$BP$50,2)),0) -> 0 | AH18: =IF(AF18<>"",5,0) -> 0 | AI18: =AG18+AH18 -> 0 | AK18: 15 | AL18: =IF(ISNUMBER(AK18),(VLOOKUP(AK18,$BO$6:$BP$50,2)),0) -> 16 | AM18: =IF(AK18<>"",5,0) -> 5 | AN18: =AL18+AM18 -> 21 | AP18: 12 | AQ18: =IF(ISNUMBER(AP18),(VLOOKUP(AP18,$BO$6:$BP$50,2)),0) -> 22 | AR18: =IF(AP18<>"",5,0) -> 5 | AS18: =AQ18+AR18 -> 27 | AU18: 19 | AV18: =IF(ISNUMBER(AU18),(VLOOKUP(AU18,$BO$6:$BP$50,2)),0) -> 12 | AW18: =IF(AU18<>"",5,0) -> 5 | AX18: =AV18+AW18 -> 17 | AZ18: 7 | BA18: =IF(ISNUMBER(AZ18),(VLOOKUP(AZ18,$BO$6:$BP$50,2)),0) -> 36 | BB18: =IF(AZ18<>"",5,0) -> 5 | BC18: =BA18+BB18 -> 41 | BE18: dsq | BF18: =IF(ISNUMBER(BE18),(VLOOKUP(BE18,$BO$6:$BP$50,2)),0) -> 0 | BG18: =IF(BE18<>"",5,0) -> 5 | BH18: =BF18+BG18 -> 5 | BK18: =IF(ISNUMBER(BJ18),(VLOOKUP(BJ18,$BO$6:$BP$50,2)),0) -> 0 | BL18: =IF(BJ18<>"",5,0) -> 0 | BM18: =BK18+BL18 -> 0 | BO18: 13 | BP18: 20 | BQ18: 0 | BR18: =IF($F17=7,1,0) -> 0 | BS18: =IF($F17=6,1,0) -> 0 | BT18: =IF($F17=5,1,0) -> 0 | BU18: =IF($F17=4,1,0) -> 1 | BV18: =IF($F17=3,1,0) -> 0 | BW18: =IF($F17=2,1,0) -> 0 | BX18: =IF($F17=1,1,0) -> 0
A19: =IF(E19<E18,BO19,A18) -> 14 | B19: Wilhelmsen | C19: Victoria Pandher | D19: Ready | E19: =IF(F19<=4,Q19,(Q19-SUM(SMALL(R19:Y19,{1;2;3;4})))) -> 109 | F19: =(IF(AC19=5,1,0)+IF(AH19=5,1,0)+IF(AM19=5,1,0)+IF(AR19=5,1,0)+IF(AW19=5,1,0)+IF(BB19=5,1,0)+IF(BG19=5,1,0)+IF(BL19=5,1,0)) -> 5 | H19: =IF(AA19="","",AA19) ->  | I19: =IF(AF19="","",AF19) ->  | J19: =IF(AK19="","",AK19) -> dnf | K19: =IF(AP19="","",AP19) -> 14 | L19: =IF(AU19="","",AU19) -> 21 | M19: =IF(AZ19="","",AZ19) -> 8 | N19: =IF(BE19="","",BE19) -> 11 | O19: =IF(BJ19="","",BJ19) ->  | Q19: =AD19+AI19+AN19+AS19+AX19+BC19+BH19 -> 109 | R19: =IF($F19>=5,IF(AB19="","",AB19),"") -> 0 | S19: =IF($F19>=5,IF(AG19="","",AG19),"") -> 0 | T19: =IF($F19>=5,IF(AL19="","",AL19),"") -> 0 | U19: =IF($F19>=5,IF(AQ19="","",AQ19),"") -> 18 | V19: =IF($F19>=5,IF(AV19="","",AV19),"") -> 10 | W19: =IF($F19>=5,IF(BA19="","",BA19),"") -> 32 | X19: =IF($F19>=5,IF(BF19="","",BF19),"") -> 24 | Y19: =IF($F19>=5,IF(BK19="","",BK19),"") -> 0 | AB19: =IF(ISNUMBER(AA19),(VLOOKUP(AA19,$BO$6:$BP$50,2)),0) -> 0 | AC19: =IF(AA19<>"",5,0) -> 0 | AD19: =AB19+AC19 -> 0 | AG19: =IF(ISNUMBER(AF19),(VLOOKUP(AF19,$BO$6:$BP$50,2)),0) -> 0 | AH19: =IF(AF19<>"",5,0) -> 0 | AI19: =AG19+AH19 -> 0 | AK19: dnf | AL19: =IF(ISNUMBER(AK19),(VLOOKUP(AK19,$BO$6:$BP$50,2)),0) -> 0 | AM19: =IF(AK19<>"",5,0) -> 5 | AN19: =AL19+AM19 -> 5 | AP19: 14 | AQ19: =IF(ISNUMBER(AP19),(VLOOKUP(AP19,$BO$6:$BP$50,2)),0) -> 18 | AR19: =IF(AP19<>"",5,0) -> 5 | AS19: =AQ19+AR19 -> 23 | AU19: 21 | AV19: =IF(ISNUMBER(AU19),(VLOOKUP(AU19,$BO$6:$BP$50,2)),0) -> 10 | AW19: =IF(AU19<>"",5,0) -> 5 | AX19: =AV19+AW19 -> 15 | AZ19: 8 | BA19: =IF(ISNUMBER(AZ19),(VLOOKUP(AZ19,$BO$6:$BP$50,2)),0) -> 32 | BB19: =IF(AZ19<>"",5,0) -> 5 | BC19: =BA19+BB19 -> 37 | BE19: 11 | BF19: =IF(ISNUMBER(BE19),(VLOOKUP(BE19,$BO$6:$BP$50,2)),0) -> 24 | BG19: =IF(BE19<>"",5,0) -> 5 | BH19: =BF19+BG19 -> 29 | BK19: =IF(ISNUMBER(BJ19),(VLOOKUP(BJ19,$BO$6:$BP$50,2)),0) -> 0 | BL19: =IF(BJ19<>"",5,0) -> 0 | BM19: =BK19+BL19 -> 0 | BO19: 14 | BP19: 18 | BQ19: 0 | BR19: =IF($F18=7,1,0) -> 0 | BS19: =IF($F18=6,1,0) -> 0 | BT19: =IF($F18=5,1,0) -> 1 | BU19: =IF($F18=4,1,0) -> 0 | BV19: =IF($F18=3,1,0) -> 0 | BW19: =IF($F18=2,1,0) -> 0 | BX19: =IF($F18=1,1,0) -> 0
A20: =IF(E20<E19,BO20,A19) -> 15 | B20: Braathen | C20: Elisabeth Texnæs | D20: Heming | E20: =IF(F20<=4,Q20,(Q20-SUM(SMALL(R20:Y20,{1;2;3;4})))) -> 108 | F20: =(IF(AC20=5,1,0)+IF(AH20=5,1,0)+IF(AM20=5,1,0)+IF(AR20=5,1,0)+IF(AW20=5,1,0)+IF(BB20=5,1,0)+IF(BG20=5,1,0)+IF(BL20=5,1,0)) -> 5 | H20: =IF(AA20="","",AA20) ->  | I20: =IF(AF20="","",AF20) ->  | J20: =IF(AK20="","",AK20) -> 12 | K20: =IF(AP20="","",AP20) -> 11 | L20: =IF(AU20="","",AU20) -> 20 | M20: =IF(AZ20="","",AZ20) -> dsq | N20: =IF(BE20="","",BE20) -> 10 | O20: =IF(BJ20="","",BJ20) ->  | Q20: =AD20+AI20+AN20+AS20+AX20+BC20+BH20 -> 108 | R20: =IF($F20>=5,IF(AB20="","",AB20),"") -> 0 | S20: =IF($F20>=5,IF(AG20="","",AG20),"") -> 0 | T20: =IF($F20>=5,IF(AL20="","",AL20),"") -> 22 | U20: =IF($F20>=5,IF(AQ20="","",AQ20),"") -> 24 | V20: =IF($F20>=5,IF(AV20="","",AV20),"") -> 11 | W20: =IF($F20>=5,IF(BA20="","",BA20),"") -> 0 | X20: =IF($F20>=5,IF(BF20="","",BF20),"") -> 26 | Y20: =IF($F20>=5,IF(BK20="","",BK20),"") -> 0 | AB20: =IF(ISNUMBER(AA20),(VLOOKUP(AA20,$BO$6:$BP$50,2)),0) -> 0 | AC20: =IF(AA20<>"",5,0) -> 0 | AD20: =AB20+AC20 -> 0 | AG20: =IF(ISNUMBER(AF20),(VLOOKUP(AF20,$BO$6:$BP$50,2)),0) -> 0 | AH20: =IF(AF20<>"",5,0) -> 0 | AI20: =AG20+AH20 -> 0 | AK20: 12 | AL20: =IF(ISNUMBER(AK20),(VLOOKUP(AK20,$BO$6:$BP$50,2)),0) -> 22 | AM20: =IF(AK20<>"",5,0) -> 5 | AN20: =AL20+AM20 -> 27 | AP20: 11 | AQ20: =IF(ISNUMBER(AP20),(VLOOKUP(AP20,$BO$6:$BP$50,2)),0) -> 24 | AR20: =IF(AP20<>"",5,0) -> 5 | AS20: =AQ20+AR20 -> 29 | AU20: 20 | AV20: =IF(ISNUMBER(AU20),(VLOOKUP(AU20,$BO$6:$BP$50,2)),0) -> 11 | AW20: =IF(AU20<>"",5,0) -> 5 | AX20: =AV20+AW20 -> 16 | AZ20: dsq | BA20: =IF(ISNUMBER(AZ20),(VLOOKUP(AZ20,$BO$6:$BP$50,2)),0) -> 0 | BB20: =IF(AZ20<>"",5,0) -> 5 | BC20: =BA20+BB20 -> 5 | BE20: 10 | BF20: =IF(ISNUMBER(BE20),(VLOOKUP(BE20,$BO$6:$BP$50,2)),0) -> 26 | BG20: =IF(BE20<>"",5,0) -> 5 | BH20: =BF20+BG20 -> 31 | BK20: =IF(ISNUMBER(BJ20),(VLOOKUP(BJ20,$BO$6:$BP$50,2)),0) -> 0 | BL20: =IF(BJ20<>"",5,0) -> 0 | BM20: =BK20+BL20 -> 0 | BO20: 15 | BP20: 16 | BQ20: 0 | BR20: =IF($F19=7,1,0) -> 0 | BS20: =IF($F19=6,1,0) -> 0 | BT20: =IF($F19=5,1,0) -> 1 | BU20: =IF($F19=4,1,0) -> 0 | BV20: =IF($F19=3,1,0) -> 0 | BW20: =IF($F19=2,1,0) -> 0 | BX20: =IF($F19=1,1,0) -> 0
A21: =IF(E21<E20,BO21,A20) -> 16 | B21: Meidell | C21: Lucie Marie | D21: Heming | E21: =IF(F21<=4,Q21,(Q21-SUM(SMALL(R21:Y21,{1;2;3;4})))) -> 102 | F21: =(IF(AC21=5,1,0)+IF(AH21=5,1,0)+IF(AM21=5,1,0)+IF(AR21=5,1,0)+IF(AW21=5,1,0)+IF(BB21=5,1,0)+IF(BG21=5,1,0)+IF(BL21=5,1,0)) -> 2 | H21: =IF(AA21="","",AA21) ->  | I21: =IF(AF21="","",AF21) ->  | J21: =IF(AK21="","",AK21) ->  | K21: =IF(AP21="","",AP21) ->  | L21: =IF(AU21="","",AU21) -> 8 | M21: =IF(AZ21="","",AZ21) ->  | N21: =IF(BE21="","",BE21) -> 3 | O21: =IF(BJ21="","",BJ21) ->  | Q21: =AD21+AI21+AN21+AS21+AX21+BC21+BH21 -> 102 | R21: =IF($F21>=5,IF(AB21="","",AB21),"") ->  | S21: =IF($F21>=5,IF(AG21="","",AG21),"") ->  | T21: =IF($F21>=5,IF(AL21="","",AL21),"") ->  | U21: =IF($F21>=5,IF(AQ21="","",AQ21),"") ->  | V21: =IF($F21>=5,IF(AV21="","",AV21),"") ->  | W21: =IF($F21>=5,IF(BA21="","",BA21),"") ->  | X21: =IF($F21>=5,IF(BF21="","",BF21),"") ->  | Y21: =IF($F21>=5,IF(BK21="","",BK21),"") ->  | AB21: =IF(ISNUMBER(AA21),(VLOOKUP(AA21,$BO$6:$BP$50,2)),0) -> 0 | AC21: =IF(AA21<>"",5,0) -> 0 | AD21: =AB21+AC21 -> 0 | AG21: =IF(ISNUMBER(AF21),(VLOOKUP(AF21,$BO$6:$BP$50,2)),0) -> 0 | AH21: =IF(AF21<>"",5,0) -> 0 | AI21: =AG21+AH21 -> 0 | AL21: =IF(ISNUMBER(AK21),(VLOOKUP(AK21,$BO$6:$BP$50,2)),0) -> 0 | AM21: =IF(AK21<>"",5,0) -> 0 | AN21: =AL21+AM21 -> 0 | AQ21: =IF(ISNUMBER(AP21),(VLOOKUP(AP21,$BO$6:$BP$50,2)),0) -> 0 | AR21: =IF(AP21<>"",5,0) -> 0 | AS21: =AQ21+AR21 -> 0 | AU21: 8 | AV21: =IF(ISNUMBER(AU21),(VLOOKUP(AU21,$BO$6:$BP$50,2)),0) -> 32 | AW21: =IF(AU21<>"",5,0) -> 5 | AX21: =AV21+AW21 -> 37 | BA21: =IF(ISNUMBER(AZ21),(VLOOKUP(AZ21,$BO$6:$BP$50,2)),0) -> 0 | BB21: =IF(AZ21<>"",5,0) -> 0 | BC21: =BA21+BB21 -> 0 | BE21: 3 | BF21: =IF(ISNUMBER(BE21),(VLOOKUP(BE21,$BO$6:$BP$50,2)),0) -> 60 | BG21: =IF(BE21<>"",5,0) -> 5 | BH21: =BF21+BG21 -> 65 | BK21: =IF(ISNUMBER(BJ21),(VLOOKUP(BJ21,$BO$6:$BP$50,2)),0) -> 0 | BL21: =IF(BJ21<>"",5,0) -> 0 | BM21: =BK21+BL21 -> 0 | BO21: 16 | BP21: 15 | BQ21: 0 | BR21: =IF($F19=7,1,0) -> 0 | BS21: =IF($F19=6,1,0) -> 0 | BT21: =IF($F19=5,1,0) -> 1 | BU21: =IF($F19=4,1,0) -> 0 | BV21: =IF($F19=3,1,0) -> 0 | BW21: =IF($F19=2,1,0) -> 0 | BX21: =IF($F19=1,1,0) -> 0
A22: =IF(E22<E21,BO22,A21) -> 17 | B22: Roll | C22: Celine Amelie | D22: Ready | E22: =IF(F22<=4,Q22,(Q22-SUM(SMALL(R22:Y22,{1;2;3;4})))) -> 89 | F22: =(IF(AC22=5,1,0)+IF(AH22=5,1,0)+IF(AM22=5,1,0)+IF(AR22=5,1,0)+IF(AW22=5,1,0)+IF(BB22=5,1,0)+IF(BG22=5,1,0)+IF(BL22=5,1,0)) -> 5 | H22: =IF(AA22="","",AA22) ->  | I22: =IF(AF22="","",AF22) ->  | J22: =IF(AK22="","",AK22) -> 11 | K22: =IF(AP22="","",AP22) -> 17 | L22: =IF(AU22="","",AU22) -> 10 | M22: =IF(AZ22="","",AZ22) -> dsq | N22: =IF(BE22="","",BE22) -> dsq | O22: =IF(BJ22="","",BJ22) ->  | Q22: =AD22+AI22+AN22+AS22+AX22+BC22+BH22 -> 89 | R22: =IF($F22>=5,IF(AB22="","",AB22),"") -> 0 | S22: =IF($F22>=5,IF(AG22="","",AG22),"") -> 0 | T22: =IF($F22>=5,IF(AL22="","",AL22),"") -> 24 | U22: =IF($F22>=5,IF(AQ22="","",AQ22),"") -> 14 | V22: =IF($F22>=5,IF(AV22="","",AV22),"") -> 26 | W22: =IF($F22>=5,IF(BA22="","",BA22),"") -> 0 | X22: =IF($F22>=5,IF(BF22="","",BF22),"") -> 0 | Y22: =IF($F22>=5,IF(BK22="","",BK22),"") -> 0 | AB22: =IF(ISNUMBER(AA22),(VLOOKUP(AA22,$BO$6:$BP$50,2)),0) -> 0 | AC22: =IF(AA22<>"",5,0) -> 0 | AD22: =AB22+AC22 -> 0 | AG22: =IF(ISNUMBER(AF22),(VLOOKUP(AF22,$BO$6:$BP$50,2)),0) -> 0 | AH22: =IF(AF22<>"",5,0) -> 0 | AI22: =AG22+AH22 -> 0 | AK22: 11 | AL22: =IF(ISNUMBER(AK22),(VLOOKUP(AK22,$BO$6:$BP$50,2)),0) -> 24 | AM22: =IF(AK22<>"",5,0) -> 5 | AN22: =AL22+AM22 -> 29 | AP22: 17 | AQ22: =IF(ISNUMBER(AP22),(VLOOKUP(AP22,$BO$6:$BP$50,2)),0) -> 14 | AR22: =IF(AP22<>"",5,0) -> 5 | AS22: =AQ22+AR22 -> 19 | AU22: 10 | AV22: =IF(ISNUMBER(AU22),(VLOOKUP(AU22,$BO$6:$BP$50,2)),0) -> 26 | AW22: =IF(AU22<>"",5,0) -> 5 | AX22: =AV22+AW22 -> 31 | AZ22: dsq | BA22: =IF(ISNUMBER(AZ22),(VLOOKUP(AZ22,$BO$6:$BP$50,2)),0) -> 0 | BB22: =IF(AZ22<>"",5,0) -> 5 | BC22: =BA22+BB22 -> 5 | BE22: dsq | BF22: =IF(ISNUMBER(BE22),(VLOOKUP(BE22,$BO$6:$BP$50,2)),0) -> 0 | BG22: =IF(BE22<>"",5,0) -> 5 | BH22: =BF22+BG22 -> 5 | BK22: =IF(ISNUMBER(BJ22),(VLOOKUP(BJ22,$BO$6:$BP$50,2)),0) -> 0 | BL22: =IF(BJ22<>"",5,0) -> 0 | BM22: =BK22+BL22 -> 0 | BO22: 17 | BP22: 14 | BQ22: 0 | BR22: 0 | BS22: 0 | BT22: 1 | BU22: 0 | BV22: 0 | BW22: 0 | BX22: 0
A23: =IF(E23<E22,BO23,A22) -> 18 | B23: Kolbjørnsrud | C23: Ingrid | D23: Kjelsås | E23: =IF(F23<=4,Q23,(Q23-SUM(SMALL(R23:Y23,{1;2;3;4})))) -> 82 | F23: =(IF(AC23=5,1,0)+IF(AH23=5,1,0)+IF(AM23=5,1,0)+IF(AR23=5,1,0)+IF(AW23=5,1,0)+IF(BB23=5,1,0)+IF(BG23=5,1,0)+IF(BL23=5,1,0)) -> 5 | H23: =IF(AA23="","",AA23) ->  | I23: =IF(AF23="","",AF23) ->  | J23: =IF(AK23="","",AK23) -> 17 | K23: =IF(AP23="","",AP23) -> dnf | L23: =IF(AU23="","",AU23) -> 26 | M23: =IF(AZ23="","",AZ23) -> 13 | N23: =IF(BE23="","",BE23) -> 14 | O23: =IF(BJ23="","",BJ23) ->  | Q23: =AD23+AI23+AN23+AS23+AX23+BC23+BH23 -> 82 | R23: =IF($F23>=5,IF(AB23="","",AB23),"") -> 0 | S23: =IF($F23>=5,IF(AG23="","",AG23),"") -> 0 | T23: =IF($F23>=5,IF(AL23="","",AL23),"") -> 14 | U23: =IF($F23>=5,IF(AQ23="","",AQ23),"") -> 0 | V23: =IF($F23>=5,IF(AV23="","",AV23),"") -> 5 | W23: =IF($F23>=5,IF(BA23="","",BA23),"") -> 20 | X23: =IF($F23>=5,IF(BF23="","",BF23),"") -> 18 | Y23: =IF($F23>=5,IF(BK23="","",BK23),"") -> 0 | AB23: =IF(ISNUMBER(AA23),(VLOOKUP(AA23,$BO$6:$BP$50,2)),0) -> 0 | AC23: =IF(AA23<>"",5,0) -> 0 | AD23: =AB23+AC23 -> 0 | AG23: =IF(ISNUMBER(AF23),(VLOOKUP(AF23,$BO$6:$BP$50,2)),0) -> 0 | AH23: =IF(AF23<>"",5,0) -> 0 | AI23: =AG23+AH23 -> 0 | AK23: 17 | AL23: =IF(ISNUMBER(AK23),(VLOOKUP(AK23,$BO$6:$BP$50,2)),0) -> 14 | AM23: =IF(AK23<>"",5,0) -> 5 | AN23: =AL23+AM23 -> 19 | AP23: dnf | AQ23: =IF(ISNUMBER(AP23),(VLOOKUP(AP23,$BO$6:$BP$50,2)),0) -> 0 | AR23: =IF(AP23<>"",5,0) -> 5 | AS23: =AQ23+AR23 -> 5 | AU23: 26 | AV23: =IF(ISNUMBER(AU23),(VLOOKUP(AU23,$BO$6:$BP$50,2)),0) -> 5 | AW23: =IF(AU23<>"",5,0) -> 5 | AX23: =AV23+AW23 -> 10 | AZ23: 13 | BA23: =IF(ISNUMBER(AZ23),(VLOOKUP(AZ23,$BO$6:$BP$50,2)),0) -> 20 | BB23: =IF(AZ23<>"",5,0) -> 5 | BC23: =BA23+BB23 -> 25 | BE23: 14 | BF23: =IF(ISNUMBER(BE23),(VLOOKUP(BE23,$BO$6:$BP$50,2)),0) -> 18 | BG23: =IF(BE23<>"",5,0) -> 5 | BH23: =BF23+BG23 -> 23 | BK23: =IF(ISNUMBER(BJ23),(VLOOKUP(BJ23,$BO$6:$BP$50,2)),0) -> 0 | BL23: =IF(BJ23<>"",5,0) -> 0 | BM23: =BK23+BL23 -> 0 | BO23: 18 | BP23: 13 | BQ23: 0 | BR23: 0 | BS23: 0 | BT23: 0 | BU23: 0 | BV23: 0 | BW23: 1 | BX23: 0
A24: =IF(E24<E23,BO24,A23) -> 19 | B24: Danielsen | C24: Hedvig Aabel | D24: Heming | E24: =IF(F24<=4,Q24,(Q24-SUM(SMALL(R24:Y24,{1;2;3;4})))) -> 79 | F24: =(IF(AC24=5,1,0)+IF(AH24=5,1,0)+IF(AM24=5,1,0)+IF(AR24=5,1,0)+IF(AW24=5,1,0)+IF(BB24=5,1,0)+IF(BG24=5,1,0)+IF(BL24=5,1,0)) -> 5 | H24: =IF(AA24="","",AA24) ->  | I24: =IF(AF24="","",AF24) ->  | J24: =IF(AK24="","",AK24) -> 19 | K24: =IF(AP24="","",AP24) -> 18 | L24: =IF(AU24="","",AU24) -> 28 | M24: =IF(AZ24="","",AZ24) -> 10 | N24: =IF(BE24="","",BE24) -> dnf | O24: =IF(BJ24="","",BJ24) ->  | Q24: =AD24+AI24+AN24+AS24+AX24+BC24+BH24 -> 79 | R24: =IF($F24>=5,IF(AB24="","",AB24),"") -> 0 | S24: =IF($F24>=5,IF(AG24="","",AG24),"") -> 0 | T24: =IF($F24>=5,IF(AL24="","",AL24),"") -> 12 | U24: =IF($F24>=5,IF(AQ24="","",AQ24),"") -> 13 | V24: =IF($F24>=5,IF(AV24="","",AV24),"") -> 3 | W24: =IF($F24>=5,IF(BA24="","",BA24),"") -> 26 | X24: =IF($F24>=5,IF(BF24="","",BF24),"") -> 0 | Y24: =IF($F24>=5,IF(BK24="","",BK24),"") -> 0 | AB24: =IF(ISNUMBER(AA24),(VLOOKUP(AA24,$BO$6:$BP$50,2)),0) -> 0 | AC24: =IF(AA24<>"",5,0) -> 0 | AD24: =AB24+AC24 -> 0 | AG24: =IF(ISNUMBER(AF24),(VLOOKUP(AF24,$BO$6:$BP$50,2)),0) -> 0 | AH24: =IF(AF24<>"",5,0) -> 0 | AI24: =AG24+AH24 -> 0 | AK24: 19 | AL24: =IF(ISNUMBER(AK24),(VLOOKUP(AK24,$BO$6:$BP$50,2)),0) -> 12 | AM24: =IF(AK24<>"",5,0) -> 5 | AN24: =AL24+AM24 -> 17 | AP24: 18 | AQ24: =IF(ISNUMBER(AP24),(VLOOKUP(AP24,$BO$6:$BP$50,2)),0) -> 13 | AR24: =IF(AP24<>"",5,0) -> 5 | AS24: =AQ24+AR24 -> 18 | AU24: 28 | AV24: =IF(ISNUMBER(AU24),(VLOOKUP(AU24,$BO$6:$BP$50,2)),0) -> 3 | AW24: =IF(AU24<>"",5,0) -> 5 | AX24: =AV24+AW24 -> 8 | AZ24: 10 | BA24: =IF(ISNUMBER(AZ24),(VLOOKUP(AZ24,$BO$6:$BP$50,2)),0) -> 26 | BB24: =IF(AZ24<>"",5,0) -> 5 | BC24: =BA24+BB24 -> 31 | BE24: dnf | BF24: =IF(ISNUMBER(BE24),(VLOOKUP(BE24,$BO$6:$BP$50,2)),0) -> 0 | BG24: =IF(BE24<>"",5,0) -> 5 | BH24: =BF24+BG24 -> 5 | BK24: =IF(ISNUMBER(BJ24),(VLOOKUP(BJ24,$BO$6:$BP$50,2)),0) -> 0 | BL24: =IF(BJ24<>"",5,0) -> 0 | BM24: =BK24+BL24 -> 0 | BO24: 19 | BP24: 12 | BQ24: 0 | BR24: 0 | BS24: 0 | BT24: 1 | BU24: 0 | BV24: 0 | BW24: 0 | BX24: 0
A25: =IF(E25<E24,BO25,A24) -> 20 | B25: Eskeland | C25: Helen Olivia | D25: Heming | E25: =IF(F25<=4,Q25,(Q25-SUM(SMALL(R25:Y25,{1;2;3;4})))) -> 77 | F25: =(IF(AC25=5,1,0)+IF(AH25=5,1,0)+IF(AM25=5,1,0)+IF(AR25=5,1,0)+IF(AW25=5,1,0)+IF(BB25=5,1,0)+IF(BG25=5,1,0)+IF(BL25=5,1,0)) -> 3 | H25: =IF(AA25="","",AA25) ->  | I25: =IF(AF25="","",AF25) ->  | J25: =IF(AK25="","",AK25) -> 13 | K25: =IF(AP25="","",AP25) -> 10 | L25: =IF(AU25="","",AU25) -> 15 | M25: =IF(AZ25="","",AZ25) ->  | N25: =IF(BE25="","",BE25) ->  | O25: =IF(BJ25="","",BJ25) ->  | Q25: =AD25+AI25+AN25+AS25+AX25+BC25+BH25 -> 77 | R25: =IF($F25>=5,IF(AB25="","",AB25),"") ->  | S25: =IF($F25>=5,IF(AG25="","",AG25),"") ->  | T25: =IF($F25>=5,IF(AL25="","",AL25),"") ->  | U25: =IF($F25>=5,IF(AQ25="","",AQ25),"") ->  | V25: =IF($F25>=5,IF(AV25="","",AV25),"") ->  | W25: =IF($F25>=5,IF(BA25="","",BA25),"") ->  | X25: =IF($F25>=5,IF(BF25="","",BF25),"") ->  | Y25: =IF($F25>=5,IF(BK25="","",BK25),"") ->  | AB25: =IF(ISNUMBER(AA25),(VLOOKUP(AA25,$BO$6:$BP$50,2)),0) -> 0 | AC25: =IF(AA25<>"",5,0) -> 0 | AD25: =AB25+AC25 -> 0 | AG25: =IF(ISNUMBER(AF25),(VLOOKUP(AF25,$BO$6:$BP$50,2)),0) -> 0 | AH25: =IF(AF25<>"",5,0) -> 0 | AI25: =AG25+AH25 -> 0 | AK25: 13 | AL25: =IF(ISNUMBER(AK25),(VLOOKUP(AK25,$BO$6:$BP$50,2)),0) -> 20 | AM25: =IF(AK25<>"",5,0) -> 5 | AN25: =AL25+AM25 -> 25 | AP25: 10 | AQ25: =IF(ISNUMBER(AP25),(VLOOKUP(AP25,$BO$6:$BP$50,2)),0) -> 26 | AR25: =IF(AP25<>"",5,0) -> 5 | AS25: =AQ25+AR25 -> 31 | AU25: 15 | AV25: =IF(ISNUMBER(AU25),(VLOOKUP(AU25,$BO$6:$BP$50,2)),0) -> 16 | AW25: =IF(AU25<>"",5,0) -> 5 | AX25: =AV25+AW25 -> 21 | BA25: =IF(ISNUMBER(AZ25),(VLOOKUP(AZ25,$BO$6:$BP$50,2)),0) -> 0 | BB25: =IF(AZ25<>"",5,0) -> 0 | BC25: =BA25+BB25 -> 0 | BF25: =IF(ISNUMBER(BE25),(VLOOKUP(BE25,$BO$6:$BP$50,2)),0) -> 0 | BG25: =IF(BE25<>"",5,0) -> 0 | BH25: =BF25+BG25 -> 0 | BK25: =IF(ISNUMBER(BJ25),(VLOOKUP(BJ25,$BO$6:$BP$50,2)),0) -> 0 | BL25: =IF(BJ25<>"",5,0) -> 0 | BM25: =BK25+BL25 -> 0 | BO25: 20 | BP25: 11 | BQ25: 0 | BR25: 0 | BS25: 0 | BT25: 1 | BU25: 0 | BV25: 0 | BW25: 0 | BX25: 0
A26: =IF(E26<E25,BO26,A25) -> 21 | B26: Fleischer | C26: Elise Victoria | D26: Heming | E26: =IF(F26<=4,Q26,(Q26-SUM(SMALL(R26:Y26,{1;2;3;4})))) -> 70 | F26: =(IF(AC26=5,1,0)+IF(AH26=5,1,0)+IF(AM26=5,1,0)+IF(AR26=5,1,0)+IF(AW26=5,1,0)+IF(BB26=5,1,0)+IF(BG26=5,1,0)+IF(BL26=5,1,0)) -> 2 | H26: =IF(AA26="","",AA26) ->  | I26: =IF(AF26="","",AF26) ->  | J26: =IF(AK26="","",AK26) ->  | K26: =IF(AP26="","",AP26) ->  | L26: =IF(AU26="","",AU26) -> 16 | M26: =IF(AZ26="","",AZ26) ->  | N26: =IF(BE26="","",BE26) -> 5 | O26: =IF(BJ26="","",BJ26) ->  | Q26: =AD26+AI26+AN26+AS26+AX26+BC26+BH26 -> 70 | R26: =IF($F26>=5,IF(AB26="","",AB26),"") ->  | S26: =IF($F26>=5,IF(AG26="","",AG26),"") ->  | T26: =IF($F26>=5,IF(AL26="","",AL26),"") ->  | U26: =IF($F26>=5,IF(AQ26="","",AQ26),"") ->  | W26: =IF($F26>=5,IF(BA26="","",BA26),"") ->  | X26: =IF($F26>=5,IF(BF26="","",BF26),"") ->  | Y26: =IF($F26>=5,IF(BK26="","",BK26),"") ->  | AB26: =IF(ISNUMBER(AA26),(VLOOKUP(AA26,$BO$6:$BP$50,2)),0) -> 0 | AC26: =IF(AA26<>"",5,0) -> 0 | AD26: =AB26+AC26 -> 0 | AG26: =IF(ISNUMBER(AF26),(VLOOKUP(AF26,$BO$6:$BP$50,2)),0) -> 0 | AH26: =IF(AF26<>"",5,0) -> 0 | AI26: =AG26+AH26 -> 0 | AL26: =IF(ISNUMBER(AK26),(VLOOKUP(AK26,$BO$6:$BP$50,2)),0) -> 0 | AM26: =IF(AK26<>"",5,0) -> 0 | AN26: =AL26+AM26 -> 0 | AQ26: =IF(ISNUMBER(AP26),(VLOOKUP(AP26,$BO$6:$BP$50,2)),0) -> 0 | AR26: =IF(AP26<>"",5,0) -> 0 | AS26: =AQ26+AR26 -> 0 | AU26: 16 | AV26: =IF(ISNUMBER(AU26),(VLOOKUP(AU26,$BO$6:$BP$50,2)),0) -> 15 | AW26: =IF(AU26<>"",5,0) -> 5 | AX26: =AV26+AW26 -> 20 | BA26: =IF(ISNUMBER(AZ26),(VLOOKUP(AZ26,$BO$6:$BP$50,2)),0) -> 0 | BB26: =IF(AZ26<>"",5,0) -> 0 | BC26: =BA26+BB26 -> 0 | BE26: 5 | BF26: =IF(ISNUMBER(BE26),(VLOOKUP(BE26,$BO$6:$BP$50,2)),0) -> 45 | BG26: =IF(BE26<>"",5,0) -> 5 | BH26: =BF26+BG26 -> 50 | BK26: =IF(ISNUMBER(BJ26),(VLOOKUP(BJ26,$BO$6:$BP$50,2)),0) -> 0 | BL26: =IF(BJ26<>"",5,0) -> 0 | BM26: =BK26+BL26 -> 0 | BO26: 21 | BP26: 10 | BQ26: 0 | BR26: 0 | BS26: 0 | BT26: 1 | BU26: 0 | BV26: 0 | BW26: 0 | BX26: 0
A27: =IF(E27<E26,BO27,A26) -> 22 | B27: Rivelsrud | C27: Matilde Sofia | D27: Heming | E27: =IF(F27<=4,Q27,(Q27-SUM(SMALL(R27:Y27,{1;2;3;4})))) -> 66 | F27: =(IF(AC27=5,1,0)+IF(AH27=5,1,0)+IF(AM27=5,1,0)+IF(AR27=5,1,0)+IF(AW27=5,1,0)+IF(BB27=5,1,0)+IF(BG27=5,1,0)+IF(BL27=5,1,0)) -> 4 | H27: =IF(AA27="","",AA27) ->  | I27: =IF(AF27="","",AF27) ->  | J27: =IF(AK27="","",AK27) -> 14 | K27: =IF(AP27="","",AP27) -> 13 | L27: =IF(AU27="","",AU27) -> 23 | M27: =IF(AZ27="","",AZ27) ->  | N27: =IF(BE27="","",BE27) -> dsq | O27: =IF(BJ27="","",BJ27) ->  | Q27: =AD27+AI27+AN27+AS27+AX27+BC27+BH27 -> 66 | R27: =IF($F27>=5,IF(AB27="","",AB27),"") ->  | S27: =IF($F27>=5,IF(AG27="","",AG27),"") ->  | T27: =IF($F27>=5,IF(AL27="","",AL27),"") ->  | U27: =IF($F27>=5,IF(AQ27="","",AQ27),"") ->  | V27: =IF($F27>=5,IF(AV27="","",AV27),"") ->  | W27: =IF($F27>=5,IF(BA27="","",BA27),"") ->  | X27: =IF($F27>=5,IF(BF27="","",BF27),"") ->  | Y27: =IF($F27>=5,IF(BK27="","",BK27),"") ->  | AB27: =IF(ISNUMBER(AA27),(VLOOKUP(AA27,$BO$6:$BP$50,2)),0) -> 0 | AC27: =IF(AA27<>"",5,0) -> 0 | AD27: =AB27+AC27 -> 0 | AG27: =IF(ISNUMBER(AF27),(VLOOKUP(AF27,$BO$6:$BP$50,2)),0) -> 0 | AH27: =IF(AF27<>"",5,0) -> 0 | AI27: =AG27+AH27 -> 0 | AK27: 14 | AL27: =IF(ISNUMBER(AK27),(VLOOKUP(AK27,$BO$6:$BP$50,2)),0) -> 18 | AM27: =IF(AK27<>"",5,0) -> 5 | AN27: =AL27+AM27 -> 23 | AP27: 13 | AQ27: =IF(ISNUMBER(AP27),(VLOOKUP(AP27,$BO$6:$BP$50,2)),0) -> 20 | AR27: =IF(AP27<>"",5,0) -> 5 | AS27: =AQ27+AR27 -> 25 | AU27: 23 | AV27: =IF(ISNUMBER(AU27),(VLOOKUP(AU27,$BO$6:$BP$50,2)),0) -> 8 | AW27: =IF(AU27<>"",5,0) -> 5 | AX27: =AV27+AW27 -> 13 | BA27: =IF(ISNUMBER(AZ27),(VLOOKUP(AZ27,$BO$6:$BP$50,2)),0) -> 0 | BB27: =IF(AZ27<>"",5,0) -> 0 | BC27: =BA27+BB27 -> 0 | BE27: dsq | BF27: =IF(ISNUMBER(BE27),(VLOOKUP(BE27,$BO$6:$BP$50,2)),0) -> 0 | BG27: =IF(BE27<>"",5,0) -> 5 | BH27: =BF27+BG27 -> 5 | BK27: =IF(ISNUMBER(BJ27),(VLOOKUP(BJ27,$BO$6:$BP$50,2)),0) -> 0 | BL27: =IF(BJ27<>"",5,0) -> 0 | BM27: =BK27+BL27 -> 0 | BO27: 22 | BP27: 9 | BQ27: 0 | BR27: 0 | BS27: 0 | BT27: 0 | BU27: 0 | BV27: 1 | BW27: 0 | BX27: 0
A28: =IF(E28<E27,BO28,A27) -> 23 | B28: Dahl | C28: Olea | D28: Ljan | E28: =IF(F28<=4,Q28,(Q28-SUM(SMALL(R28:Y28,{1;2;3;4})))) -> 65 | F28: =(IF(AC28=5,1,0)+IF(AH28=5,1,0)+IF(AM28=5,1,0)+IF(AR28=5,1,0)+IF(AW28=5,1,0)+IF(BB28=5,1,0)+IF(BG28=5,1,0)+IF(BL28=5,1,0)) -> 1 | H28: =IF(AA28="","",AA28) ->  | I28: =IF(AF28="","",AF28) -> 3 | J28: =IF(AK28="","",AK28) ->  | K28: =IF(AP28="","",AP28) ->  | L28: =IF(AU28="","",AU28) ->  | M28: =IF(AZ28="","",AZ28) ->  | N28: =IF(BE28="","",BE28) ->  | O28: =IF(BJ28="","",BJ28) ->  | Q28: =AD28+AI28+AN28+AS28+AX28+BC28+BH28 -> 65 | R28: =IF($F28>=5,IF(AB28="","",AB28),"") ->  | S28: =IF($F28>=5,IF(AG28="","",AG28),"") ->  | T28: =IF($F28>=5,IF(AL28="","",AL28),"") ->  | U28: =IF($F28>=5,IF(AQ28="","",AQ28),"") ->  | V28: =IF($F28>=5,IF(AV28="","",AV28),"") ->  | W28: =IF($F28>=5,IF(BA28="","",BA28),"") ->  | X28: =IF($F28>=5,IF(BF28="","",BF28),"") ->  | Y28: =IF($F28>=5,IF(BK28="","",BK28),"") ->  | AB28: =IF(ISNUMBER(AA28),(VLOOKUP(AA28,$BO$6:$BP$50,2)),0) -> 0 | AC28: =IF(AA28<>"",5,0) -> 0 | AD28: =AB28+AC28 -> 0 | AF28: 3 | AG28: =IF(ISNUMBER(AF28),(VLOOKUP(AF28,$BO$6:$BP$50,2)),0) -> 60 | AH28: =IF(AF28<>"",5,0) -> 5 | AI28: =AG28+AH28 -> 65 | AL28: =IF(ISNUMBER(AK28),(VLOOKUP(AK28,$BO$6:$BP$50,2)),0) -> 0 | AM28: =IF(AK28<>"",5,0) -> 0 | AN28: =AL28+AM28 -> 0 | AQ28: =IF(ISNUMBER(AP28),(VLOOKUP(AP28,$BO$6:$BP$50,2)),0) -> 0 | AR28: =IF(AP28<>"",5,0) -> 0 | AS28: =AQ28+AR28 -> 0 | AV28: =IF(ISNUMBER(AU28),(VLOOKUP(AU28,$BO$6:$BP$50,2)),0) -> 0 | AW28: =IF(AU28<>"",5,0) -> 0 | AX28: =AV28+AW28 -> 0 | BA28: =IF(ISNUMBER(AZ28),(VLOOKUP(AZ28,$BO$6:$BP$50,2)),0) -> 0 | BB28: =IF(AZ28<>"",5,0) -> 0 | BC28: =BA28+BB28 -> 0 | BF28: =IF(ISNUMBER(BE28),(VLOOKUP(BE28,$BO$6:$BP$50,2)),0) -> 0 | BG28: =IF(BE28<>"",5,0) -> 0 | BH28: =BF28+BG28 -> 0 | BK28: =IF(ISNUMBER(BJ28),(VLOOKUP(BJ28,$BO$6:$BP$50,2)),0) -> 0 | BL28: =IF(BJ28<>"",5,0) -> 0 | BM28: =BK28+BL28 -> 0 | BO28: 23 | BP28: 8 | BQ28: 0 | BR28: =IF($F23=7,1,0) -> 0 | BS28: =IF($F23=6,1,0) -> 0 | BT28: =IF($F23=5,1,0) -> 1 | BU28: =IF($F23=4,1,0) -> 0 | BV28: =IF($F23=3,1,0) -> 0 | BW28: =IF($F23=2,1,0) -> 0 | BX28: =IF($F23=1,1,0) -> 0
A29: =IF(E29<E28,BO29,A28) -> 24 | B29: Bunæs-Røyr | C29: Cornelia | D29: Stabæk | E29: =IF(F29<=4,Q29,(Q29-SUM(SMALL(R29:Y29,{1;2;3;4})))) -> 55 | F29: =(IF(AC29=5,1,0)+IF(AH29=5,1,0)+IF(AM29=5,1,0)+IF(AR29=5,1,0)+IF(AW29=5,1,0)+IF(BB29=5,1,0)+IF(BG29=5,1,0)+IF(BL29=5,1,0)) -> 1 | H29: =IF(AA29="","",AA29) ->  | I29: =IF(AF29="","",AF29) ->  | J29: =IF(AK29="","",AK29) ->  | K29: =IF(AP29="","",AP29) ->  | L29: =IF(AU29="","",AU29) -> 4 | M29: =IF(AZ29="","",AZ29) ->  | N29: =IF(BE29="","",BE29) ->  | O29: =IF(BJ29="","",BJ29) ->  | Q29: =AD29+AI29+AN29+AS29+AX29+BC29+BH29 -> 55 | R29: =IF($F29>=5,IF(AB29="","",AB29),"") ->  | S29: =IF($F29>=5,IF(AG29="","",AG29),"") ->  | T29: =IF($F29>=5,IF(AL29="","",AL29),"") ->  | U29: =IF($F29>=5,IF(AQ29="","",AQ29),"") ->  | V29: =IF($F29>=5,IF(AV29="","",AV29),"") ->  | W29: =IF($F29>=5,IF(BA29="","",BA29),"") ->  | X29: =IF($F29>=5,IF(BF29="","",BF29),"") ->  | Y29: =IF($F29>=5,IF(BK29="","",BK29),"") ->  | AB29: =IF(ISNUMBER(AA29),(VLOOKUP(AA29,$BO$6:$BP$50,2)),0) -> 0 | AC29: =IF(AA29<>"",5,0) -> 0 | AD29: =AB29+AC29 -> 0 | AG29: =IF(ISNUMBER(AF29),(VLOOKUP(AF29,$BO$6:$BP$50,2)),0) -> 0 | AH29: =IF(AF29<>"",5,0) -> 0 | AI29: =AG29+AH29 -> 0 | AL29: =IF(ISNUMBER(AK29),(VLOOKUP(AK29,$BO$6:$BP$50,2)),0) -> 0 | AM29: =IF(AK29<>"",5,0) -> 0 | AN29: =AL29+AM29 -> 0 | AQ29: =IF(ISNUMBER(AP29),(VLOOKUP(AP29,$BO$6:$BP$50,2)),0) -> 0 | AR29: =IF(AP29<>"",5,0) -> 0 | AS29: =AQ29+AR29 -> 0 | AU29: 4 | AV29: =IF(ISNUMBER(AU29),(VLOOKUP(AU29,$BO$6:$BP$50,2)),0) -> 50 | AW29: =IF(AU29<>"",5,0) -> 5 | AX29: =AV29+AW29 -> 55 | BA29: =IF(ISNUMBER(AZ29),(VLOOKUP(AZ29,$BO$6:$BP$50,2)),0) -> 0 | BB29: =IF(AZ29<>"",5,0) -> 0 | BC29: =BA29+BB29 -> 0 | BF29: =IF(ISNUMBER(BE29),(VLOOKUP(BE29,$BO$6:$BP$50,2)),0) -> 0 | BG29: =IF(BE29<>"",5,0) -> 0 | BH29: =BF29+BG29 -> 0 | BK29: =IF(ISNUMBER(BJ29),(VLOOKUP(BJ29,$BO$6:$BP$50,2)),0) -> 0 | BL29: =IF(BJ29<>"",5,0) -> 0 | BM29: =BK29+BL29 -> 0 | BO29: 24 | BP29: 7 | BQ29: 0 | BR29: =IF($F24=7,1,0) -> 0 | BS29: =IF($F24=6,1,0) -> 0 | BT29: =IF($F24=5,1,0) -> 1 | BU29: =IF($F24=4,1,0) -> 0 | BV29: =IF($F24=3,1,0) -> 0 | BW29: =IF($F24=2,1,0) -> 0 | BX29: =IF($F24=1,1,0) -> 0
A30: =IF(E30<E29,BO30,A29) -> 25 | B30: Hovdenak | C30: Selma Stenersen | D30: Njård | E30: =IF(F30<=4,Q30,(Q30-SUM(SMALL(R30:Y30,{1;2;3;4})))) -> 49 | F30: =(IF(AC30=5,1,0)+IF(AH30=5,1,0)+IF(AM30=5,1,0)+IF(AR30=5,1,0)+IF(AW30=5,1,0)+IF(BB30=5,1,0)+IF(BG30=5,1,0)+IF(BL30=5,1,0)) -> 3 | H30: =IF(AA30="","",AA30) ->  | I30: =IF(AF30="","",AF30) ->  | J30: =IF(AK30="","",AK30) -> 18 | K30: =IF(AP30="","",AP30) -> 16 | L30: =IF(AU30="","",AU30) -> 25 | M30: =IF(AZ30="","",AZ30) ->  | N30: =IF(BE30="","",BE30) ->  | O30: =IF(BJ30="","",BJ30) ->  | Q30: =AD30+AI30+AN30+AS30+AX30+BC30+BH30 -> 49 | R30: =IF($F30>=5,IF(AB30="","",AB30),"") ->  | S30: =IF($F30>=5,IF(AG30="","",AG30),"") ->  | T30: =IF($F30>=5,IF(AL30="","",AL30),"") ->  | U30: =IF($F30>=5,IF(AQ30="","",AQ30),"") ->  | V30: =IF($F30>=5,IF(AV30="","",AV30),"") ->  | W30: =IF($F30>=5,IF(BA30="","",BA30),"") ->  | X30: =IF($F30>=5,IF(BF30="","",BF30),"") ->  | Y30: =IF($F30>=5,IF(BK30="","",BK30),"") ->  | AB30: =IF(ISNUMBER(AA30),(VLOOKUP(AA30,$BO$6:$BP$50,2)),0) -> 0 | AC30: =IF(AA30<>"",5,0) -> 0 | AD30: =AB30+AC30 -> 0 | AG30: =IF(ISNUMBER(AF30),(VLOOKUP(AF30,$BO$6:$BP$50,2)),0) -> 0 | AH30: =IF(AF30<>"",5,0) -> 0 | AI30: =AG30+AH30 -> 0 | AK30: 18 | AL30: =IF(ISNUMBER(AK30),(VLOOKUP(AK30,$BO$6:$BP$50,2)),0) -> 13 | AM30: =IF(AK30<>"",5,0) -> 5 | AN30: =AL30+AM30 -> 18 | AP30: 16 | AQ30: =IF(ISNUMBER(AP30),(VLOOKUP(AP30,$BO$6:$BP$50,2)),0) -> 15 | AR30: =IF(AP30<>"",5,0) -> 5 | AS30: =AQ30+AR30 -> 20 | AU30: 25 | AV30: =IF(ISNUMBER(AU30),(VLOOKUP(AU30,$BO$6:$BP$50,2)),0) -> 6 | AW30: =IF(AU30<>"",5,0) -> 5 | AX30: =AV30+AW30 -> 11 | BA30: =IF(ISNUMBER(AZ30),(VLOOKUP(AZ30,$BO$6:$BP$50,2)),0) -> 0 | BB30: =IF(AZ30<>"",5,0) -> 0 | BC30: =BA30+BB30 -> 0 | BF30: =IF(ISNUMBER(BE30),(VLOOKUP(BE30,$BO$6:$BP$50,2)),0) -> 0 | BG30: =IF(BE30<>"",5,0) -> 0 | BH30: =BF30+BG30 -> 0 | BK30: =IF(ISNUMBER(BJ30),(VLOOKUP(BJ30,$BO$6:$BP$50,2)),0) -> 0 | BL30: =IF(BJ30<>"",5,0) -> 0 | BM30: =BK30+BL30 -> 0 | BO30: 25 | BP30: 6 | BQ30: 0 | BR30: =IF($F25=7,1,0) -> 0 | BS30: =IF($F25=6,1,0) -> 0 | BT30: =IF($F25=5,1,0) -> 0 | BU30: =IF($F25=4,1,0) -> 0 | BV30: =IF($F25=3,1,0) -> 1 | BW30: =IF($F25=2,1,0) -> 0 | BX30: =IF($F25=1,1,0) -> 0
A31: =IF(E31<E30,BO31,A30) -> 26 | B31: Vigstad-Petersen | C31: Tina | D31: HSIL | E31: =IF(F31<=4,Q31,(Q31-SUM(SMALL(R31:Y31,{1;2;3;4})))) -> 46 | F31: =(IF(AC31=5,1,0)+IF(AH31=5,1,0)+IF(AM31=5,1,0)+IF(AR31=5,1,0)+IF(AW31=5,1,0)+IF(BB31=5,1,0)+IF(BG31=5,1,0)+IF(BL31=5,1,0)) -> 2 | H31: =IF(AA31="","",AA31) ->  | I31: =IF(AF31="","",AF31) ->  | J31: =IF(AK31="","",AK31) ->  | K31: =IF(AP31="","",AP31) ->  | L31: =IF(AU31="","",AU31) ->  | M31: =IF(AZ31="","",AZ31) -> dsq | N31: =IF(BE31="","",BE31) -> 7 | O31: =IF(BJ31="","",BJ31) ->  | Q31: =AD31+AI31+AN31+AS31+AX31+BC31+BH31 -> 46 | R31: =IF($F31>=5,IF(AB31="","",AB31),"") ->  | S31: =IF($F31>=5,IF(AG31="","",AG31),"") ->  | T31: =IF($F31>=5,IF(AL31="","",AL31),"") ->  | U31: =IF($F31>=5,IF(AQ31="","",AQ31),"") ->  | V31: =IF($F31>=5,IF(AV31="","",AV31),"") ->  | W31: =IF($F31>=5,IF(BA31="","",BA31),"") ->  | X31: =IF($F31>=5,IF(BF31="","",BF31),"") ->  | Y31: =IF($F31>=5,IF(BK31="","",BK31),"") ->  | AB31: =IF(ISNUMBER(AA31),(VLOOKUP(AA31,$BO$6:$BP$50,2)),0) -> 0 | AC31: =IF(AA31<>"",5,0) -> 0 | AD31: =AB31+AC31 -> 0 | AG31: =IF(ISNUMBER(AF31),(VLOOKUP(AF31,$BO$6:$BP$50,2)),0) -> 0 | AH31: =IF(AF31<>"",5,0) -> 0 | AI31: =AG31+AH31 -> 0 | AL31: =IF(ISNUMBER(AK31),(VLOOKUP(AK31,$BO$6:$BP$50,2)),0) -> 0 | AM31: =IF(AK31<>"",5,0) -> 0 | AN31: =AL31+AM31 -> 0 | AQ31: =IF(ISNUMBER(AP31),(VLOOKUP(AP31,$BO$6:$BP$50,2)),0) -> 0 | AR31: =IF(AP31<>"",5,0) -> 0 | AS31: =AQ31+AR31 -> 0 | AV31: =IF(ISNUMBER(AU31),(VLOOKUP(AU31,$BO$6:$BP$50,2)),0) -> 0 | AW31: =IF(AU31<>"",5,0) -> 0 | AX31: =AV31+AW31 -> 0 | AZ31: dsq | BA31: =IF(ISNUMBER(AZ31),(VLOOKUP(AZ31,$BO$6:$BP$50,2)),0) -> 0 | BB31: =IF(AZ31<>"",5,0) -> 5 | BC31: =BA31+BB31 -> 5 | BE31: 7 | BF31: =IF(ISNUMBER(BE31),(VLOOKUP(BE31,$BO$6:$BP$50,2)),0) -> 36 | BG31: =IF(BE31<>"",5,0) -> 5 | BH31: =BF31+BG31 -> 41 | BK31: =IF(ISNUMBER(BJ31),(VLOOKUP(BJ31,$BO$6:$BP$50,2)),0) -> 0 | BL31: =IF(BJ31<>"",5,0) -> 0 | BM31: =BK31+BL31 -> 0 | BO31: 26 | BP31: 5 | BQ31: 0 | BR31: =IF($F25=7,1,0) -> 0 | BS31: =IF($F25=6,1,0) -> 0 | BT31: =IF($F25=5,1,0) -> 0 | BU31: =IF($F25=4,1,0) -> 0 | BV31: =IF($F25=3,1,0) -> 1 | BW31: =IF($F25=2,1,0) -> 0 | BX31: =IF($F25=1,1,0) -> 0
A32: =IF(E32<E31,BO32,A31) -> 27 | B32: Kristoffersen | C32: Kajsa Dahl | D32: Ready | E32: =IF(F32<=4,Q32,(Q32-SUM(SMALL(R32:Y32,{1;2;3;4})))) -> 42 | F32: =(IF(AC32=5,1,0)+IF(AH32=5,1,0)+IF(AM32=5,1,0)+IF(AR32=5,1,0)+IF(AW32=5,1,0)+IF(BB32=5,1,0)+IF(BG32=5,1,0)+IF(BL32=5,1,0)) -> 3 | H32: =IF(AA32="","",AA32) ->  | I32: =IF(AF32="","",AF32) ->  | J32: =IF(AK32="","",AK32) -> 20 | K32: =IF(AP32="","",AP32) -> 19 | L32: =IF(AU32="","",AU32) -> 27 | M32: =IF(AZ32="","",AZ32) ->  | N32: =IF(BE32="","",BE32) ->  | O32: =IF(BJ32="","",BJ32) ->  | Q32: =AD32+AI32+AN32+AS32+AX32+BC32+BH32 -> 42 | R32: =IF($F32>=5,IF(AB32="","",AB32),"") ->  | S32: =IF($F32>=5,IF(AG32="","",AG32),"") ->  | T32: =IF($F32>=5,IF(AL32="","",AL32),"") ->  | U32: =IF($F32>=5,IF(AQ32="","",AQ32),"") ->  | V32: =IF($F32>=5,IF(AV32="","",AV32),"") ->  | W32: =IF($F32>=5,IF(BA32="","",BA32),"") ->  | X32: =IF($F32>=5,IF(BF32="","",BF32),"") ->  | Y32: =IF($F32>=5,IF(BK32="","",BK32),"") ->  | AB32: =IF(ISNUMBER(AA32),(VLOOKUP(AA32,$BO$6:$BP$50,2)),0) -> 0 | AC32: =IF(AA32<>"",5,0) -> 0 | AD32: =AB32+AC32 -> 0 | AG32: =IF(ISNUMBER(AF32),(VLOOKUP(AF32,$BO$6:$BP$50,2)),0) -> 0 | AH32: =IF(AF32<>"",5,0) -> 0 | AI32: =AG32+AH32 -> 0 | AK32: 20 | AL32: =IF(ISNUMBER(AK32),(VLOOKUP(AK32,$BO$6:$BP$50,2)),0) -> 11 | AM32: =IF(AK32<>"",5,0) -> 5 | AN32: =AL32+AM32 -> 16 | AP32: 19 | AQ32: =IF(ISNUMBER(AP32),(VLOOKUP(AP32,$BO$6:$BP$50,2)),0) -> 12 | AR32: =IF(AP32<>"",5,0) -> 5 | AS32: =AQ32+AR32 -> 17 | AU32: 27 | AV32: =IF(ISNUMBER(AU32),(VLOOKUP(AU32,$BO$6:$BP$50,2)),0) -> 4 | AW32: =IF(AU32<>"",5,0) -> 5 | AX32: =AV32+AW32 -> 9 | BA32: =IF(ISNUMBER(AZ32),(VLOOKUP(AZ32,$BO$6:$BP$50,2)),0) -> 0 | BB32: =IF(AZ32<>"",5,0) -> 0 | BC32: =BA32+BB32 -> 0 | BF32: =IF(ISNUMBER(BE32),(VLOOKUP(BE32,$BO$6:$BP$50,2)),0) -> 0 | BG32: =IF(BE32<>"",5,0) -> 0 | BH32: =BF32+BG32 -> 0 | BK32: =IF(ISNUMBER(BJ32),(VLOOKUP(BJ32,$BO$6:$BP$50,2)),0) -> 0 | BL32: =IF(BJ32<>"",5,0) -> 0 | BM32: =BK32+BL32 -> 0 | BO32: 27 | BP32: 4 | BQ32: 0 | BR32: =IF($F26=7,1,0) -> 0 | BS32: =IF($F26=6,1,0) -> 0 | BT32: =IF($F26=5,1,0) -> 0 | BU32: =IF($F26=4,1,0) -> 0 | BV32: =IF($F26=3,1,0) -> 0 | BW32: =IF($F26=2,1,0) -> 1 | BX32: =IF($F26=1,1,0) -> 0
A33: =IF(E33<E32,BO33,A32) -> 28 | B33: Christiansen | C33: Aleksandra | D33: Try | E33: =IF(F33<=4,Q33,(Q33-SUM(SMALL(R33:Y33,{1;2;3;4})))) -> 39 | F33: =(IF(AC33=5,1,0)+IF(AH33=5,1,0)+IF(AM33=5,1,0)+IF(AR33=5,1,0)+IF(AW33=5,1,0)+IF(BB33=5,1,0)+IF(BG33=5,1,0)+IF(BL33=5,1,0)) -> 2 | H33: =IF(AA33="","",AA33) ->  | I33: =IF(AF33="","",AF33) ->  | J33: =IF(AK33="","",AK33) ->  | K33: =IF(AP33="","",AP33) -> 15 | L33: =IF(AU33="","",AU33) -> 18 | M33: =IF(AZ33="","",AZ33) ->  | N33: =IF(BE33="","",BE33) ->  | O33: =IF(BJ33="","",BJ33) ->  | Q33: =AD33+AI33+AN33+AS33+AX33+BC33+BH33 -> 39 | R33: =IF($F33>=5,IF(AB33="","",AB33),"") ->  | S33: =IF($F33>=5,IF(AG33="","",AG33),"") ->  | T33: =IF($F33>=5,IF(AL33="","",AL33),"") ->  | U33: =IF($F33>=5,IF(AQ33="","",AQ33),"") ->  | V33: =IF($F33>=5,IF(AV33="","",AV33),"") ->  | W33: =IF($F33>=5,IF(BA33="","",BA33),"") ->  | X33: =IF($F33>=5,IF(BF33="","",BF33),"") ->  | Y33: =IF($F33>=5,IF(BK33="","",BK33),"") ->  | AB33: =IF(ISNUMBER(AA33),(VLOOKUP(AA33,$BO$6:$BP$50,2)),0) -> 0 | AC33: =IF(AA33<>"",5,0) -> 0 | AD33: =AB33+AC33 -> 0 | AG33: =IF(ISNUMBER(AF33),(VLOOKUP(AF33,$BO$6:$BP$50,2)),0) -> 0 | AH33: =IF(AF33<>"",5,0) -> 0 | AI33: =AG33+AH33 -> 0 | AL33: =IF(ISNUMBER(AK33),(VLOOKUP(AK33,$BO$6:$BP$50,2)),0) -> 0 | AM33: =IF(AK33<>"",5,0) -> 0 | AN33: =AL33+AM33 -> 0 | AP33: 15 | AQ33: =IF(ISNUMBER(AP33),(VLOOKUP(AP33,$BO$6:$BP$50,2)),0) -> 16 | AR33: =IF(AP33<>"",5,0) -> 5 | AS33: =AQ33+AR33 -> 21 | AU33: 18 | AV33: =IF(ISNUMBER(AU33),(VLOOKUP(AU33,$BO$6:$BP$50,2)),0) -> 13 | AW33: =IF(AU33<>"",5,0) -> 5 | AX33: =AV33+AW33 -> 18 | BA33: =IF(ISNUMBER(AZ33),(VLOOKUP(AZ33,$BO$6:$BP$50,2)),0) -> 0 | BB33: =IF(AZ33<>"",5,0) -> 0 | BC33: =BA33+BB33 -> 0 | BF33: =IF(ISNUMBER(BE33),(VLOOKUP(BE33,$BO$6:$BP$50,2)),0) -> 0 | BG33: =IF(BE33<>"",5,0) -> 0 | BH33: =BF33+BG33 -> 0 | BK33: =IF(ISNUMBER(BJ33),(VLOOKUP(BJ33,$BO$6:$BP$50,2)),0) -> 0 | BL33: =IF(BJ33<>"",5,0) -> 0 | BM33: =BK33+BL33 -> 0 | BO33: 28 | BP33: 3 | BQ33: 0 | BR33: 0 | BS33: 0 | BT33: 0 | BU33: 1 | BV33: 0 | BW33: 0 | BX33: 0
A34: =IF(E34<E33,BO34,A33) -> 29 | B34: Veiteberg | C34: Anna Elise | D34: Ullensaker | E34: =IF(F34<=4,Q34,(Q34-SUM(SMALL(R34:Y34,{1;2;3;4})))) -> 34 | F34: =(IF(AC34=5,1,0)+IF(AH34=5,1,0)+IF(AM34=5,1,0)+IF(AR34=5,1,0)+IF(AW34=5,1,0)+IF(BB34=5,1,0)+IF(BG34=5,1,0)+IF(BL34=5,1,0)) -> 2 | H34: =IF(AA34="","",AA34) ->  | I34: =IF(AF34="","",AF34) ->  | J34: =IF(AK34="","",AK34) ->  | K34: =IF(AP34="","",AP34) ->  | L34: =IF(AU34="","",AU34) -> dsq | M34: =IF(AZ34="","",AZ34) -> 11 | N34: =IF(BE34="","",BE34) ->  | O34: =IF(BJ34="","",BJ34) ->  | Q34: =AD34+AI34+AN34+AS34+AX34+BC34+BH34 -> 34 | R34: =IF($F34>=5,IF(AB34="","",AB34),"") ->  | S34: =IF($F34>=5,IF(AG34="","",AG34),"") ->  | T34: =IF($F34>=5,IF(AL34="","",AL34),"") ->  | U34: =IF($F34>=5,IF(AQ34="","",AQ34),"") ->  | V34: =IF($F34>=5,IF(AV34="","",AV34),"") ->  | W34: =IF($F34>=5,IF(BA34="","",BA34),"") ->  | X34: =IF($F34>=5,IF(BF34="","",BF34),"") ->  | Y34: =IF($F34>=5,IF(BK34="","",BK34),"") ->  | AB34: =IF(ISNUMBER(AA34),(VLOOKUP(AA34,$BO$6:$BP$50,2)),0) -> 0 | AC34: =IF(AA34<>"",5,0) -> 0 | AD34: =AB34+AC34 -> 0 | AG34: =IF(ISNUMBER(AF34),(VLOOKUP(AF34,$BO$6:$BP$50,2)),0) -> 0 | AH34: =IF(AF34<>"",5,0) -> 0 | AI34: =AG34+AH34 -> 0 | AL34: =IF(ISNUMBER(AK34),(VLOOKUP(AK34,$BO$6:$BP$50,2)),0) -> 0 | AM34: =IF(AK34<>"",5,0) -> 0 | AN34: =AL34+AM34 -> 0 | AQ34: =IF(ISNUMBER(AP34),(VLOOKUP(AP34,$BO$6:$BP$50,2)),0) -> 0 | AR34: =IF(AP34<>"",5,0) -> 0 | AS34: =AQ34+AR34 -> 0 | AU34: dsq | AV34: =IF(ISNUMBER(AU34),(VLOOKUP(AU34,$BO$6:$BP$50,2)),0) -> 0 | AW34: =IF(AU34<>"",5,0) -> 5 | AX34: =AV34+AW34 -> 5 | AZ34: 11 | BA34: =IF(ISNUMBER(AZ34),(VLOOKUP(AZ34,$BO$6:$BP$50,2)),0) -> 24 | BB34: =IF(AZ34<>"",5,0) -> 5 | BC34: =BA34+BB34 -> 29 | BF34: =IF(ISNUMBER(BE34),(VLOOKUP(BE34,$BO$6:$BP$50,2)),0) -> 0 | BG34: =IF(BE34<>"",5,0) -> 0 | BH34: =BF34+BG34 -> 0 | BK34: =IF(ISNUMBER(BJ34),(VLOOKUP(BJ34,$BO$6:$BP$50,2)),0) -> 0 | BL34: =IF(BJ34<>"",5,0) -> 0 | BM34: =BK34+BL34 -> 0 | BO34: 29 | BP34: 2 | BQ34: 0 | BR34: 0 | BS34: 0 | BT34: 0 | BU34: 0 | BV34: 0 | BW34: 0 | BX34: 1
A35: =IF(E35<E34,BO35,A34) -> 30 | B35: Størmer-Nilsen | C35: Filippa | D35: Heming | E35: =IF(F35<=4,Q35,(Q35-SUM(SMALL(R35:Y35,{1;2;3;4})))) -> 29 | F35: =(IF(AC35=5,1,0)+IF(AH35=5,1,0)+IF(AM35=5,1,0)+IF(AR35=5,1,0)+IF(AW35=5,1,0)+IF(BB35=5,1,0)+IF(BG35=5,1,0)+IF(BL35=5,1,0)) -> 1 | H35: =IF(AA35="","",AA35) ->  | I35: =IF(AF35="","",AF35) ->  | J35: =IF(AK35="","",AK35) ->  | K35: =IF(AP35="","",AP35) ->  | L35: =IF(AU35="","",AU35) -> 11 | M35: =IF(AZ35="","",AZ35) ->  | N35: =IF(BE35="","",BE35) ->  | O35: =IF(BJ35="","",BJ35) ->  | Q35: =AD35+AI35+AN35+AS35+AX35+BC35+BH35 -> 29 | R35: =IF($F35>=5,IF(AB35="","",AB35),"") ->  | S35: =IF($F35>=5,IF(AG35="","",AG35),"") ->  | T35: =IF($F35>=5,IF(AL35="","",AL35),"") ->  | U35: =IF($F35>=5,IF(AQ35="","",AQ35),"") ->  | V35: =IF($F35>=5,IF(AV35="","",AV35),"") ->  | W35: =IF($F35>=5,IF(BA35="","",BA35),"") ->  | X35: =IF($F35>=5,IF(BF35="","",BF35),"") ->  | Y35: =IF($F35>=5,IF(BK35="","",BK35),"") ->  | AB35: =IF(ISNUMBER(AA35),(VLOOKUP(AA35,$BO$6:$BP$50,2)),0) -> 0 | AC35: =IF(AA35<>"",5,0) -> 0 | AD35: =AB35+AC35 -> 0 | AG35: =IF(ISNUMBER(AF35),(VLOOKUP(AF35,$BO$6:$BP$50,2)),0) -> 0 | AH35: =IF(AF35<>"",5,0) -> 0 | AI35: =AG35+AH35 -> 0 | AL35: =IF(ISNUMBER(AK35),(VLOOKUP(AK35,$BO$6:$BP$50,2)),0) -> 0 | AM35: =IF(AK35<>"",5,0) -> 0 | AN35: =AL35+AM35 -> 0 | AQ35: =IF(ISNUMBER(AP35),(VLOOKUP(AP35,$BO$6:$BP$50,2)),0) -> 0 | AR35: =IF(AP35<>"",5,0) -> 0 | AS35: =AQ35+AR35 -> 0 | AU35: 11 | AV35: =IF(ISNUMBER(AU35),(VLOOKUP(AU35,$BO$6:$BP$50,2)),0) -> 24 | AW35: =IF(AU35<>"",5,0) -> 5 | AX35: =AV35+AW35 -> 29 | BA35: =IF(ISNUMBER(AZ35),(VLOOKUP(AZ35,$BO$6:$BP$50,2)),0) -> 0 | BB35: =IF(AZ35<>"",5,0) -> 0 | BC35: =BA35+BB35 -> 0 | BF35: =IF(ISNUMBER(BE35),(VLOOKUP(BE35,$BO$6:$BP$50,2)),0) -> 0 | BG35: =IF(BE35<>"",5,0) -> 0 | BH35: =BF35+BG35 -> 0 | BK35: =IF(ISNUMBER(BJ35),(VLOOKUP(BJ35,$BO$6:$BP$50,2)),0) -> 0 | BL35: =IF(BJ35<>"",5,0) -> 0 | BM35: =BK35+BL35 -> 0 | BO35: 30 | BP35: 1 | BQ35: 0 | BR35: =IF($F26=7,1,0) -> 0 | BS35: =IF($F26=6,1,0) -> 0 | BT35: =IF($F26=5,1,0) -> 0 | BU35: =IF($F26=4,1,0) -> 0 | BV35: =IF($F26=3,1,0) -> 0 | BW35: =IF($F26=2,1,0) -> 1 | BX35: =IF($F26=1,1,0) -> 0
A36: =IF(E36<E35,BO36,A35) -> 31 | B36: Bergh | C36: Karoline Molland | D36: Heming | E36: =IF(F36<=4,Q36,(Q36-SUM(SMALL(R36:Y36,{1;2;3;4})))) -> 27 | F36: =(IF(AC36=5,1,0)+IF(AH36=5,1,0)+IF(AM36=5,1,0)+IF(AR36=5,1,0)+IF(AW36=5,1,0)+IF(BB36=5,1,0)+IF(BG36=5,1,0)+IF(BL36=5,1,0)) -> 1 | H36: =IF(AA36="","",AA36) ->  | I36: =IF(AF36="","",AF36) ->  | J36: =IF(AK36="","",AK36) ->  | K36: =IF(AP36="","",AP36) ->  | L36: =IF(AU36="","",AU36) ->  | M36: =IF(AZ36="","",AZ36) ->  | N36: =IF(BE36="","",BE36) -> 12 | O36: =IF(BJ36="","",BJ36) ->  | Q36: =AD36+AI36+AN36+AS36+AX36+BC36+BH36 -> 27 | R36: =IF($F36>=5,IF(AB36="","",AB36),"") ->  | S36: =IF($F36>=5,IF(AG36="","",AG36),"") ->  | T36: =IF($F36>=5,IF(AL36="","",AL36),"") ->  | U36: =IF($F36>=5,IF(AQ36="","",AQ36),"") ->  | V36: =IF($F36>=5,IF(AV36="","",AV36),"") ->  | W36: =IF($F36>=5,IF(BA36="","",BA36),"") ->  | X36: =IF($F36>=5,IF(BF36="","",BF36),"") ->  | Y36: =IF($F36>=5,IF(BK36="","",BK36),"") ->  | AB36: =IF(ISNUMBER(AA36),(VLOOKUP(AA36,$BO$6:$BP$50,2)),0) -> 0 | AC36: =IF(AA36<>"",5,0) -> 0 | AD36: =AB36+AC36 -> 0 | AG36: =IF(ISNUMBER(AF36),(VLOOKUP(AF36,$BO$6:$BP$50,2)),0) -> 0 | AH36: =IF(AF36<>"",5,0) -> 0 | AI36: =AG36+AH36 -> 0 | AL36: =IF(ISNUMBER(AK36),(VLOOKUP(AK36,$BO$6:$BP$50,2)),0) -> 0 | AM36: =IF(AK36<>"",5,0) -> 0 | AN36: =AL36+AM36 -> 0 | AQ36: =IF(ISNUMBER(AP36),(VLOOKUP(AP36,$BO$6:$BP$50,2)),0) -> 0 | AR36: =IF(AP36<>"",5,0) -> 0 | AS36: =AQ36+AR36 -> 0 | AV36: =IF(ISNUMBER(AU36),(VLOOKUP(AU36,$BO$6:$BP$50,2)),0) -> 0 | AW36: =IF(AU36<>"",5,0) -> 0 | AX36: =AV36+AW36 -> 0 | BA36: =IF(ISNUMBER(AZ36),(VLOOKUP(AZ36,$BO$6:$BP$50,2)),0) -> 0 | BB36: =IF(AZ36<>"",5,0) -> 0 | BC36: =BA36+BB36 -> 0 | BE36: 12 | BF36: =IF(ISNUMBER(BE36),(VLOOKUP(BE36,$BO$6:$BP$50,2)),0) -> 22 | BG36: =IF(BE36<>"",5,0) -> 5 | BH36: =BF36+BG36 -> 27 | BK36: =IF(ISNUMBER(BJ36),(VLOOKUP(BJ36,$BO$6:$BP$50,2)),0) -> 0 | BL36: =IF(BJ36<>"",5,0) -> 0 | BM36: =BK36+BL36 -> 0 | BO36: 31 | BP36: 0 | BQ36: 0 | BR36: 0 | BS36: 0 | BT36: 0 | BU36: 1 | BV36: 0 | BW36: 0 | BX36: 0
A37: =IF(E37<E36,BO37,A36) -> 32 | B37: Mannion | C37: Nora Isabel | D37: Ullensaker | E37: =IF(F37<=4,Q37,(Q37-SUM(SMALL(R37:Y37,{1;2;3;4})))) -> 23 | F37: =(IF(AC37=5,1,0)+IF(AH37=5,1,0)+IF(AM37=5,1,0)+IF(AR37=5,1,0)+IF(AW37=5,1,0)+IF(BB37=5,1,0)+IF(BG37=5,1,0)+IF(BL37=5,1,0)) -> 1 | H37: =IF(AA37="","",AA37) ->  | I37: =IF(AF37="","",AF37) ->  | J37: =IF(AK37="","",AK37) ->  | K37: =IF(AP37="","",AP37) ->  | L37: =IF(AU37="","",AU37) -> 14 | M37: =IF(AZ37="","",AZ37) ->  | N37: =IF(BE37="","",BE37) ->  | O37: =IF(BJ37="","",BJ37) ->  | Q37: =AD37+AI37+AN37+AS37+AX37+BC37+BH37 -> 23 | R37: =IF($F37>=5,IF(AB37="","",AB37),"") ->  | S37: =IF($F37>=5,IF(AG37="","",AG37),"") ->  | T37: =IF($F37>=5,IF(AL37="","",AL37),"") ->  | U37: =IF($F37>=5,IF(AQ37="","",AQ37),"") ->  | V37: =IF($F37>=5,IF(AV37="","",AV37),"") ->  | W37: =IF($F37>=5,IF(BA37="","",BA37),"") ->  | X37: =IF($F37>=5,IF(BF37="","",BF37),"") ->  | Y37: =IF($F37>=5,IF(BK37="","",BK37),"") ->  | AB37: =IF(ISNUMBER(AA37),(VLOOKUP(AA37,$BO$6:$BP$50,2)),0) -> 0 | AC37: =IF(AA37<>"",5,0) -> 0 | AD37: =AB37+AC37 -> 0 | AG37: =IF(ISNUMBER(AF37),(VLOOKUP(AF37,$BO$6:$BP$50,2)),0) -> 0 | AH37: =IF(AF37<>"",5,0) -> 0 | AI37: =AG37+AH37 -> 0 | AL37: =IF(ISNUMBER(AK37),(VLOOKUP(AK37,$BO$6:$BP$50,2)),0) -> 0 | AM37: =IF(AK37<>"",5,0) -> 0 | AN37: =AL37+AM37 -> 0 | AQ37: =IF(ISNUMBER(AP37),(VLOOKUP(AP37,$BO$6:$BP$50,2)),0) -> 0 | AR37: =IF(AP37<>"",5,0) -> 0 | AS37: =AQ37+AR37 -> 0 | AU37: 14 | AV37: =IF(ISNUMBER(AU37),(VLOOKUP(AU37,$BO$6:$BP$50,2)),0) -> 18 | AW37: =IF(AU37<>"",5,0) -> 5 | AX37: =AV37+AW37 -> 23 | BA37: =IF(ISNUMBER(AZ37),(VLOOKUP(AZ37,$BO$6:$BP$50,2)),0) -> 0 | BB37: =IF(AZ37<>"",5,0) -> 0 | BC37: =BA37+BB37 -> 0 | BF37: =IF(ISNUMBER(BE37),(VLOOKUP(BE37,$BO$6:$BP$50,2)),0) -> 0 | BG37: =IF(BE37<>"",5,0) -> 0 | BH37: =BF37+BG37 -> 0 | BK37: =IF(ISNUMBER(BJ37),(VLOOKUP(BJ37,$BO$6:$BP$50,2)),0) -> 0 | BL37: =IF(BJ37<>"",5,0) -> 0 | BM37: =BK37+BL37 -> 0 | BO37: 32 | BP37: 0 | BQ37: 0 | BR37: 0 | BS37: 0 | BT37: 0 | BU37: 0 | BV37: 0 | BW37: 0 | BX37: 1
A38: =IF(E38<E37,BO38,A37) -> 33 | B38: Karlstrøm | C38: Tomine | D38: Heming | E38: =IF(F38<=4,Q38,(Q38-SUM(SMALL(R38:Y38,{1;2;3;4})))) -> 20 | F38: =(IF(AC38=5,1,0)+IF(AH38=5,1,0)+IF(AM38=5,1,0)+IF(AR38=5,1,0)+IF(AW38=5,1,0)+IF(BB38=5,1,0)+IF(BG38=5,1,0)+IF(BL38=5,1,0)) -> 1 | H38: =IF(AA38="","",AA38) ->  | I38: =IF(AF38="","",AF38) ->  | J38: =IF(AK38="","",AK38) -> 16 | K38: =IF(AP38="","",AP38) ->  | L38: =IF(AU38="","",AU38) ->  | M38: =IF(AZ38="","",AZ38) ->  | N38: =IF(BE38="","",BE38) ->  | O38: =IF(BJ38="","",BJ38) ->  | Q38: =AD38+AI38+AN38+AS38+AX38+BC38+BH38 -> 20 | R38: =IF($F38>=5,IF(AB38="","",AB38),"") ->  | S38: =IF($F38>=5,IF(AG38="","",AG38),"") ->  | T38: =IF($F38>=5,IF(AL38="","",AL38),"") ->  | U38: =IF($F38>=5,IF(AQ38="","",AQ38),"") ->  | V38: =IF($F38>=5,IF(AV38="","",AV38),"") ->  | W38: =IF($F38>=5,IF(BA38="","",BA38),"") ->  | X38: =IF($F38>=5,IF(BF38="","",BF38),"") ->  | Y38: =IF($F38>=5,IF(BK38="","",BK38),"") ->  | AB38: =IF(ISNUMBER(AA38),(VLOOKUP(AA38,$BO$6:$BP$50,2)),0) -> 0 | AC38: =IF(AA38<>"",5,0) -> 0 | AD38: =AB38+AC38 -> 0 | AG38: =IF(ISNUMBER(AF38),(VLOOKUP(AF38,$BO$6:$BP$50,2)),0) -> 0 | AH38: =IF(AF38<>"",5,0) -> 0 | AI38: =AG38+AH38 -> 0 | AK38: 16 | AL38: =IF(ISNUMBER(AK38),(VLOOKUP(AK38,$BO$6:$BP$50,2)),0) -> 15 | AM38: =IF(AK38<>"",5,0) -> 5 | AN38: =AL38+AM38 -> 20 | AQ38: =IF(ISNUMBER(AP38),(VLOOKUP(AP38,$BO$6:$BP$50,2)),0) -> 0 | AR38: =IF(AP38<>"",5,0) -> 0 | AS38: =AQ38+AR38 -> 0 | AV38: =IF(ISNUMBER(AU38),(VLOOKUP(AU38,$BO$6:$BP$50,2)),0) -> 0 | AW38: =IF(AU38<>"",5,0) -> 0 | AX38: =AV38+AW38 -> 0 | BA38: =IF(ISNUMBER(AZ38),(VLOOKUP(AZ38,$BO$6:$BP$50,2)),0) -> 0 | BB38: =IF(AZ38<>"",5,0) -> 0 | BC38: =BA38+BB38 -> 0 | BF38: =IF(ISNUMBER(BE38),(VLOOKUP(BE38,$BO$6:$BP$50,2)),0) -> 0 | BG38: =IF(BE38<>"",5,0) -> 0 | BH38: =BF38+BG38 -> 0 | BK38: =IF(ISNUMBER(BJ38),(VLOOKUP(BJ38,$BO$6:$BP$50,2)),0) -> 0 | BL38: =IF(BJ38<>"",5,0) -> 0 | BM38: =BK38+BL38 -> 0 | BO38: 33 | BP38: 0 | BQ38: 0 | BR38: 0 | BS38: 0 | BT38: 0 | BU38: 0 | BV38: 0 | BW38: 0 | BX38: 1
A39: =IF(E39<E38,BO39,A38) -> 34 | B39: Flaaten | C39: Filippa | D39: Heming | E39: =IF(F39<=4,Q39,(Q39-SUM(SMALL(R39:Y39,{1;2;3;4})))) -> 14 | F39: =(IF(AC39=5,1,0)+IF(AH39=5,1,0)+IF(AM39=5,1,0)+IF(AR39=5,1,0)+IF(AW39=5,1,0)+IF(BB39=5,1,0)+IF(BG39=5,1,0)+IF(BL39=5,1,0)) -> 1 | H39: =IF(AA39="","",AA39) ->  | I39: =IF(AF39="","",AF39) ->  | J39: =IF(AK39="","",AK39) ->  | K39: =IF(AP39="","",AP39) ->  | L39: =IF(AU39="","",AU39) -> 22 | M39: =IF(AZ39="","",AZ39) ->  | N39: =IF(BE39="","",BE39) ->  | O39: =IF(BJ39="","",BJ39) ->  | Q39: =AD39+AI39+AN39+AS39+AX39+BC39+BH39 -> 14 | R39: =IF($F30>=5,IF(AB39="","",AB39),"") ->  | S39: =IF($F30>=5,IF(AG39="","",AG39),"") ->  | T39: =IF($F30>=5,IF(AL39="","",AL39),"") ->  | U39: =IF($F30>=5,IF(AQ39="","",AQ39),"") ->  | V39: =IF($F30>=5,IF(AR39="","",AR39),"") ->  | W39: =IF($F30>=5,IF(AV39="","",AV39),"") ->  | X39: =IF($F30>=5,IF(BA39="","",BA39),"") ->  | Y39: =IF($F30>=5,IF(BF39="","",BF39),"") ->  | AB39: =IF(ISNUMBER(AA39),(VLOOKUP(AA39,$BO$6:$BP$50,2)),0) -> 0 | AC39: =IF(AA39<>"",5,0) -> 0 | AD39: =AB39+AC39 -> 0 | AG39: =IF(ISNUMBER(AF39),(VLOOKUP(AF39,$BO$6:$BP$50,2)),0) -> 0 | AH39: =IF(AF39<>"",5,0) -> 0 | AI39: =AG39+AH39 -> 0 | AL39: =IF(ISNUMBER(AK39),(VLOOKUP(AK39,$BO$6:$BP$50,2)),0) -> 0 | AM39: =IF(AK39<>"",5,0) -> 0 | AN39: =AL39+AM39 -> 0 | AQ39: =IF(ISNUMBER(AP39),(VLOOKUP(AP39,$BO$6:$BP$50,2)),0) -> 0 | AR39: =IF(AP39<>"",5,0) -> 0 | AS39: =AQ39+AR39 -> 0 | AU39: 22 | AV39: =IF(ISNUMBER(AU39),(VLOOKUP(AU39,$BO$6:$BP$50,2)),0) -> 9 | AW39: =IF(AU39<>"",5,0) -> 5 | AX39: =AV39+AW39 -> 14 | BA39: =IF(ISNUMBER(AZ39),(VLOOKUP(AZ39,$BO$6:$BP$50,2)),0) -> 0 | BB39: =IF(AZ39<>"",5,0) -> 0 | BC39: =BA39+BB39 -> 0 | BF39: =IF(ISNUMBER(BE39),(VLOOKUP(BE39,$BO$6:$BP$50,2)),0) -> 0 | BG39: =IF(BE39<>"",5,0) -> 0 | BH39: =BF39+BG39 -> 0 | BK39: =IF(ISNUMBER(BJ39),(VLOOKUP(BJ39,$BO$6:$BP$50,2)),0) -> 0 | BL39: =IF(BJ39<>"",5,0) -> 0 | BM39: =BK39+BL39 -> 0 | BO39: 34 | BP39: 0 | BQ39: 0 | BR39: 0 | BS39: 0 | BT39: 0 | BU39: 0 | BV39: 1 | BW39: 0 | BX39: 0
A40: =IF(E40<E39,BO40,A39) -> 35 | B40: Myrbø | C40: Maria Isabelle | D40: Try | E40: =IF(F40<=4,Q40,(Q40-SUM(SMALL(R40:Y40,{1;2;3;4})))) -> 7 | F40: =(IF(AC40=5,1,0)+IF(AH40=5,1,0)+IF(AM40=5,1,0)+IF(AR40=5,1,0)+IF(AW40=5,1,0)+IF(BB40=5,1,0)+IF(BG40=5,1,0)+IF(BL40=5,1,0)) -> 1 | H40: =IF(AA40="","",AA40) ->  | I40: =IF(AF40="","",AF40) ->  | J40: =IF(AK40="","",AK40) ->  | K40: =IF(AP40="","",AP40) ->  | L40: =IF(AU40="","",AU40) -> 29 | M40: =IF(AZ40="","",AZ40) ->  | N40: =IF(BE40="","",BE40) ->  | O40: =IF(BJ40="","",BJ40) ->  | Q40: =AD40+AI40+AN40+AS40+AX40+BC40+BH40 -> 7 | R40: =IF($F31>=5,IF(AB40="","",AB40),"") ->  | S40: =IF($F31>=5,IF(AG40="","",AG40),"") ->  | T40: =IF($F31>=5,IF(AL40="","",AL40),"") ->  | U40: =IF($F31>=5,IF(AQ40="","",AQ40),"") ->  | V40: =IF($F31>=5,IF(AR40="","",AR40),"") ->  | W40: =IF($F31>=5,IF(AV40="","",AV40),"") ->  | X40: =IF($F31>=5,IF(BA40="","",BA40),"") ->  | Y40: =IF($F31>=5,IF(BF40="","",BF40),"") ->  | AB40: =IF(ISNUMBER(AA40),(VLOOKUP(AA40,$BO$6:$BP$50,2)),0) -> 0 | AC40: =IF(AA40<>"",5,0) -> 0 | AD40: =AB40+AC40 -> 0 | AG40: =IF(ISNUMBER(AF40),(VLOOKUP(AF40,$BO$6:$BP$50,2)),0) -> 0 | AH40: =IF(AF40<>"",5,0) -> 0 | AI40: =AG40+AH40 -> 0 | AL40: =IF(ISNUMBER(AK40),(VLOOKUP(AK40,$BO$6:$BP$50,2)),0) -> 0 | AM40: =IF(AK40<>"",5,0) -> 0 | AN40: =AL40+AM40 -> 0 | AQ40: =IF(ISNUMBER(AP40),(VLOOKUP(AP40,$BO$6:$BP$50,2)),0) -> 0 | AR40: =IF(AP40<>"",5,0) -> 0 | AS40: =AQ40+AR40 -> 0 | AU40: 29 | AV40: =IF(ISNUMBER(AU40),(VLOOKUP(AU40,$BO$6:$BP$50,2)),0) -> 2 | AW40: =IF(AU40<>"",5,0) -> 5 | AX40: =AV40+AW40 -> 7 | BA40: =IF(ISNUMBER(AZ40),(VLOOKUP(AZ40,$BO$6:$BP$50,2)),0) -> 0 | BB40: =IF(AZ40<>"",5,0) -> 0 | BC40: =BA40+BB40 -> 0 | BF40: =IF(ISNUMBER(BE40),(VLOOKUP(BE40,$BO$6:$BP$50,2)),0) -> 0 | BG40: =IF(BE40<>"",5,0) -> 0 | BH40: =BF40+BG40 -> 0 | BK40: =IF(ISNUMBER(BJ40),(VLOOKUP(BJ40,$BO$6:$BP$50,2)),0) -> 0 | BL40: =IF(BJ40<>"",5,0) -> 0 | BM40: =BK40+BL40 -> 0 | BO40: 35 | BP40: 0 | BQ40: 0 | BR40: 0 | BS40: 0 | BT40: 0 | BU40: 0 | BV40: 0 | BW40: 1 | BX40: 0
A41: =IF(E41<E40,BO41,A40) -> 36 | B41: Kopp | C41: Vilhelmine | D41: Try | E41: =IF(F41<=4,Q41,(Q41-SUM(SMALL(R41:Y41,{1;2;3;4})))) -> 6 | F41: =(IF(AC41=5,1,0)+IF(AH41=5,1,0)+IF(AM41=5,1,0)+IF(AR41=5,1,0)+IF(AW41=5,1,0)+IF(BB41=5,1,0)+IF(BG41=5,1,0)+IF(BL41=5,1,0)) -> 1 | H41: =IF(AA41="","",AA41) ->  | I41: =IF(AF41="","",AF41) ->  | J41: =IF(AK41="","",AK41) ->  | K41: =IF(AP41="","",AP41) ->  | L41: =IF(AU41="","",AU41) -> 30 | M41: =IF(AZ41="","",AZ41) ->  | N41: =IF(BE41="","",BE41) ->  | O41: =IF(BJ41="","",BJ41) ->  | Q41: =AD41+AI41+AN41+AS41+AX41+BC41+BH41 -> 6 | R41: =IF($F32>=5,IF(AB41="","",AB41),"") ->  | S41: =IF($F32>=5,IF(AG41="","",AG41),"") ->  | T41: =IF($F32>=5,IF(AL41="","",AL41),"") ->  | U41: =IF($F32>=5,IF(AQ41="","",AQ41),"") ->  | V41: =IF($F32>=5,IF(AR41="","",AR41),"") ->  | W41: =IF($F32>=5,IF(AV41="","",AV41),"") ->  | X41: =IF($F32>=5,IF(BA41="","",BA41),"") ->  | Y41: =IF($F32>=5,IF(BF41="","",BF41),"") ->  | AB41: =IF(ISNUMBER(AA41),(VLOOKUP(AA41,$BO$6:$BP$50,2)),0) -> 0 | AC41: =IF(AA41<>"",5,0) -> 0 | AD41: =AB41+AC41 -> 0 | AG41: =IF(ISNUMBER(AF41),(VLOOKUP(AF41,$BO$6:$BP$50,2)),0) -> 0 | AH41: =IF(AF41<>"",5,0) -> 0 | AI41: =AG41+AH41 -> 0 | AL41: =IF(ISNUMBER(AK41),(VLOOKUP(AK41,$BO$6:$BP$50,2)),0) -> 0 | AM41: =IF(AK41<>"",5,0) -> 0 | AN41: =AL41+AM41 -> 0 | AQ41: =IF(ISNUMBER(AP41),(VLOOKUP(AP41,$BO$6:$BP$50,2)),0) -> 0 | AR41: =IF(AP41<>"",5,0) -> 0 | AS41: =AQ41+AR41 -> 0 | AU41: 30 | AV41: =IF(ISNUMBER(AU41),(VLOOKUP(AU41,$BO$6:$BP$50,2)),0) -> 1 | AW41: =IF(AU41<>"",5,0) -> 5 | AX41: =AV41+AW41 -> 6 | BA41: =IF(ISNUMBER(AZ41),(VLOOKUP(AZ41,$BO$6:$BP$50,2)),0) -> 0 | BB41: =IF(AZ41<>"",5,0) -> 0 | BC41: =BA41+BB41 -> 0 | BF41: =IF(ISNUMBER(BE41),(VLOOKUP(BE41,$BO$6:$BP$50,2)),0) -> 0 | BG41: =IF(BE41<>"",5,0) -> 0 | BH41: =BF41+BG41 -> 0 | BK41: =IF(ISNUMBER(BJ41),(VLOOKUP(BJ41,$BO$6:$BP$50,2)),0) -> 0 | BL41: =IF(BJ41<>"",5,0) -> 0 | BM41: =BK41+BL41 -> 0 | BO41: 36 | BP41: 0 | BQ41: 0 | BR41: 0 | BS41: 0 | BT41: 0 | BU41: 0 | BV41: 1 | BW41: 0 | BX41: 0
A42: =IF(E42<E41,BO42,A41) -> 37 | B42: Gras | C42: Anais | D42: Ljan | E42: =IF(F42<=4,Q42,(Q42-SUM(SMALL(R42:Y42,{1;2;3;4})))) -> 5 | F42: =(IF(AC42=5,1,0)+IF(AH42=5,1,0)+IF(AM42=5,1,0)+IF(AR42=5,1,0)+IF(AW42=5,1,0)+IF(BB42=5,1,0)+IF(BG42=5,1,0)+IF(BL42=5,1,0)) -> 1 | H42: =IF(AA42="","",AA42) ->  | I42: =IF(AF42="","",AF42) -> dsq | J42: =IF(AK42="","",AK42) ->  | K42: =IF(AP42="","",AP42) ->  | L42: =IF(AU42="","",AU42) ->  | M42: =IF(AZ42="","",AZ42) ->  | N42: =IF(BE42="","",BE42) ->  | O42: =IF(BJ42="","",BJ42) ->  | Q42: =AD42+AI42+AN42+AS42+AX42+BC42+BH42 -> 5 | R42: =IF($F33>=5,IF(AB42="","",AB42),"") ->  | S42: =IF($F33>=5,IF(AG42="","",AG42),"") ->  | T42: =IF($F33>=5,IF(AL42="","",AL42),"") ->  | U42: =IF($F33>=5,IF(AQ42="","",AQ42),"") ->  | V42: =IF($F33>=5,IF(AR42="","",AR42),"") ->  | W42: =IF($F33>=5,IF(AV42="","",AV42),"") ->  | X42: =IF($F33>=5,IF(BA42="","",BA42),"") ->  | Y42: =IF($F33>=5,IF(BF42="","",BF42),"") ->  | AB42: =IF(ISNUMBER(AA42),(VLOOKUP(AA42,$BO$6:$BP$50,2)),0) -> 0 | AC42: =IF(AA42<>"",5,0) -> 0 | AD42: =AB42+AC42 -> 0 | AF42: dsq | AG42: =IF(ISNUMBER(AF42),(VLOOKUP(AF42,$BO$6:$BP$50,2)),0) -> 0 | AH42: =IF(AF42<>"",5,0) -> 5 | AI42: =AG42+AH42 -> 5 | AL42: =IF(ISNUMBER(AK42),(VLOOKUP(AK42,$BO$6:$BP$50,2)),0) -> 0 | AM42: =IF(AK42<>"",5,0) -> 0 | AN42: =AL42+AM42 -> 0 | AQ42: =IF(ISNUMBER(AP42),(VLOOKUP(AP42,$BO$6:$BP$50,2)),0) -> 0 | AR42: =IF(AP42<>"",5,0) -> 0 | AS42: =AQ42+AR42 -> 0 | AV42: =IF(ISNUMBER(AU42),(VLOOKUP(AU42,$BO$6:$BP$50,2)),0) -> 0 | AW42: =IF(AU42<>"",5,0) -> 0 | AX42: =AV42+AW42 -> 0 | BA42: =IF(ISNUMBER(AZ42),(VLOOKUP(AZ42,$BO$6:$BP$50,2)),0) -> 0 | BB42: =IF(AZ42<>"",5,0) -> 0 | BC42: =BA42+BB42 -> 0 | BF42: =IF(ISNUMBER(BE42),(VLOOKUP(BE42,$BO$6:$BP$50,2)),0) -> 0 | BG42: =IF(BE42<>"",5,0) -> 0 | BH42: =BF42+BG42 -> 0 | BK42: =IF(ISNUMBER(BJ42),(VLOOKUP(BJ42,$BO$6:$BP$50,2)),0) -> 0 | BL42: =IF(BJ42<>"",5,0) -> 0 | BM42: =BK42+BL42 -> 0 | BO42: 37 | BP42: 0 | BQ42: 0 | BR42: 0 | BS42: 0 | BT42: 0 | BU42: 0 | BV42: 0 | BW42: 1 | BX42: 0
A43: =IF(E43<E42,BO43,A42) -> 37 | B43: Blokkum | C43: Hedda Nesholtet | D43: Try | E43: =IF(F43<=4,Q43,(Q43-SUM(SMALL(R43:Y43,{1;2;3;4})))) -> 5 | F43: =(IF(AC43=5,1,0)+IF(AH43=5,1,0)+IF(AM43=5,1,0)+IF(AR43=5,1,0)+IF(AW43=5,1,0)+IF(BB43=5,1,0)+IF(BG43=5,1,0)+IF(BL43=5,1,0)) -> 1 | H43: =IF(AA43="","",AA43) ->  | I43: =IF(AF43="","",AF43) ->  | J43: =IF(AK43="","",AK43) ->  | K43: =IF(AP43="","",AP43) ->  | L43: =IF(AU43="","",AU43) -> 31 | M43: =IF(AZ43="","",AZ43) ->  | N43: =IF(BE43="","",BE43) ->  | O43: =IF(BJ43="","",BJ43) ->  | Q43: =AD43+AI43+AN43+AS43+AX43+BC43+BH43 -> 5 | R43: =IF($F34>=5,IF(AB43="","",AB43),"") ->  | S43: =IF($F34>=5,IF(AG43="","",AG43),"") ->  | T43: =IF($F34>=5,IF(AL43="","",AL43),"") ->  | U43: =IF($F34>=5,IF(AQ43="","",AQ43),"") ->  | V43: =IF($F34>=5,IF(AR43="","",AR43),"") ->  | W43: =IF($F34>=5,IF(AV43="","",AV43),"") ->  | X43: =IF($F34>=5,IF(BA43="","",BA43),"") ->  | Y43: =IF($F34>=5,IF(BF43="","",BF43),"") ->  | AB43: =IF(ISNUMBER(AA43),(VLOOKUP(AA43,$BO$6:$BP$50,2)),0) -> 0 | AC43: =IF(AA43<>"",5,0) -> 0 | AD43: =AB43+AC43 -> 0 | AG43: =IF(ISNUMBER(AF43),(VLOOKUP(AF43,$BO$6:$BP$50,2)),0) -> 0 | AH43: =IF(AF43<>"",5,0) -> 0 | AI43: =AG43+AH43 -> 0 | AL43: =IF(ISNUMBER(AK43),(VLOOKUP(AK43,$BO$6:$BP$50,2)),0) -> 0 | AM43: =IF(AK43<>"",5,0) -> 0 | AN43: =AL43+AM43 -> 0 | AQ43: =IF(ISNUMBER(AP43),(VLOOKUP(AP43,$BO$6:$BP$50,2)),0) -> 0 | AR43: =IF(AP43<>"",5,0) -> 0 | AS43: =AQ43+AR43 -> 0 | AU43: 31 | AV43: =IF(ISNUMBER(AU43),(VLOOKUP(AU43,$BO$6:$BP$50,2)),0) -> 0 | AW43: =IF(AU43<>"",5,0) -> 5 | AX43: =AV43+AW43 -> 5 | BA43: =IF(ISNUMBER(AZ43),(VLOOKUP(AZ43,$BO$6:$BP$50,2)),0) -> 0 | BB43: =IF(AZ43<>"",5,0) -> 0 | BC43: =BA43+BB43 -> 0 | BF43: =IF(ISNUMBER(BE43),(VLOOKUP(BE43,$BO$6:$BP$50,2)),0) -> 0 | BG43: =IF(BE43<>"",5,0) -> 0 | BH43: =BF43+BG43 -> 0 | BK43: =IF(ISNUMBER(BJ43),(VLOOKUP(BJ43,$BO$6:$BP$50,2)),0) -> 0 | BL43: =IF(BJ43<>"",5,0) -> 0 | BM43: =BK43+BL43 -> 0 | BO43: 38 | BP43: 0 | BQ43: 0 | BR43: 0 | BS43: 0 | BT43: 0 | BU43: 0 | BV43: 0 | BW43: 1 | BX43: 0
A44: =IF(E44<E43,BO44,A43) -> 37 | B44: Sohlberg | C44: Emicke | D44: Stabæk | E44: =IF(F44<=4,Q44,(Q44-SUM(SMALL(R44:Y44,{1;2;3;4})))) -> 5 | F44: =(IF(AC44=5,1,0)+IF(AH44=5,1,0)+IF(AM44=5,1,0)+IF(AR44=5,1,0)+IF(AW44=5,1,0)+IF(BB44=5,1,0)+IF(BG44=5,1,0)+IF(BL44=5,1,0)) -> 1 | H44: =IF(AA44="","",AA44) ->  | I44: =IF(AF44="","",AF44) ->  | J44: =IF(AK44="","",AK44) ->  | K44: =IF(AP44="","",AP44) ->  | L44: =IF(AU44="","",AU44) -> dnf | M44: =IF(AZ44="","",AZ44) ->  | N44: =IF(BE44="","",BE44) ->  | O44: =IF(BJ44="","",BJ44) ->  | Q44: =AD44+AI44+AN44+AS44+AX44+BC44+BH44 -> 5 | R44: =IF($F35>=5,IF(AB44="","",AB44),"") ->  | S44: =IF($F35>=5,IF(AG44="","",AG44),"") ->  | T44: =IF($F35>=5,IF(AL44="","",AL44),"") ->  | U44: =IF($F35>=5,IF(AQ44="","",AQ44),"") ->  | V44: =IF($F35>=5,IF(AR44="","",AR44),"") ->  | W44: =IF($F35>=5,IF(AV44="","",AV44),"") ->  | X44: =IF($F35>=5,IF(BA44="","",BA44),"") ->  | Y44: =IF($F35>=5,IF(BF44="","",BF44),"") ->  | AB44: =IF(ISNUMBER(AA44),(VLOOKUP(AA44,$BO$6:$BP$50,2)),0) -> 0 | AC44: =IF(AA44<>"",5,0) -> 0 | AD44: =AB44+AC44 -> 0 | AG44: =IF(ISNUMBER(AF44),(VLOOKUP(AF44,$BO$6:$BP$50,2)),0) -> 0 | AH44: =IF(AF44<>"",5,0) -> 0 | AI44: =AG44+AH44 -> 0 | AL44: =IF(ISNUMBER(AK44),(VLOOKUP(AK44,$BO$6:$BP$50,2)),0) -> 0 | AM44: =IF(AK44<>"",5,0) -> 0 | AN44: =AL44+AM44 -> 0 | AQ44: =IF(ISNUMBER(AP44),(VLOOKUP(AP44,$BO$6:$BP$50,2)),0) -> 0 | AR44: =IF(AP44<>"",5,0) -> 0 | AS44: =AQ44+AR44 -> 0 | AU44: dnf | AV44: =IF(ISNUMBER(AU44),(VLOOKUP(AU44,$BO$6:$BP$50,2)),0) -> 0 | AW44: =IF(AU44<>"",5,0) -> 5 | AX44: =AV44+AW44 -> 5 | BA44: =IF(ISNUMBER(AZ44),(VLOOKUP(AZ44,$BO$6:$BP$50,2)),0) -> 0 | BB44: =IF(AZ44<>"",5,0) -> 0 | BC44: =BA44+BB44 -> 0 | BF44: =IF(ISNUMBER(BE44),(VLOOKUP(BE44,$BO$6:$BP$50,2)),0) -> 0 | BG44: =IF(BE44<>"",5,0) -> 0 | BH44: =BF44+BG44 -> 0 | BK44: =IF(ISNUMBER(BJ44),(VLOOKUP(BJ44,$BO$6:$BP$50,2)),0) -> 0 | BL44: =IF(BJ44<>"",5,0) -> 0 | BM44: =BK44+BL44 -> 0 | BO44: 39 | BP44: 0 | BQ44: 0 | BR44: 0 | BS44: 0 | BT44: 0 | BU44: 0 | BV44: 0 | BW44: 0 | BX44: 1
A45: =IF(E45<E44,BO45,A44) -> 37 | B45: Jørgensen | C45: Kaia Celin | D45: Heming | E45: =IF(F45<=4,Q45,(Q45-SUM(SMALL(R45:Y45,{1;2;3;4})))) -> 5 | F45: =(IF(AC45=5,1,0)+IF(AH45=5,1,0)+IF(AM45=5,1,0)+IF(AR45=5,1,0)+IF(AW45=5,1,0)+IF(BB45=5,1,0)+IF(BG45=5,1,0)+IF(BL45=5,1,0)) -> 1 | H45: =IF(AA45="","",AA45) ->  | I45: =IF(AF45="","",AF45) ->  | J45: =IF(AK45="","",AK45) ->  | K45: =IF(AP45="","",AP45) ->  | L45: =IF(AU45="","",AU45) -> dnf | M45: =IF(AZ45="","",AZ45) ->  | N45: =IF(BE45="","",BE45) ->  | O45: =IF(BJ45="","",BJ45) ->  | Q45: =AD45+AI45+AN45+AS45+AX45+BC45+BH45 -> 5 | R45: =IF($F36>=5,IF(AB45="","",AB45),"") ->  | S45: =IF($F36>=5,IF(AG45="","",AG45),"") ->  | T45: =IF($F36>=5,IF(AL45="","",AL45),"") ->  | U45: =IF($F36>=5,IF(AQ45="","",AQ45),"") ->  | V45: =IF($F36>=5,IF(AR45="","",AR45),"") ->  | W45: =IF($F36>=5,IF(AV45="","",AV45),"") ->  | X45: =IF($F36>=5,IF(BA45="","",BA45),"") ->  | Y45: =IF($F36>=5,IF(BF45="","",BF45),"") ->  | AB45: =IF(ISNUMBER(AA45),(VLOOKUP(AA45,$BO$6:$BP$50,2)),0) -> 0 | AC45: =IF(AA45<>"",5,0) -> 0 | AD45: =AB45+AC45 -> 0 | AG45: =IF(ISNUMBER(AF45),(VLOOKUP(AF45,$BO$6:$BP$50,2)),0) -> 0 | AH45: =IF(AF45<>"",5,0) -> 0 | AI45: =AG45+AH45 -> 0 | AL45: =IF(ISNUMBER(AK45),(VLOOKUP(AK45,$BO$6:$BP$50,2)),0) -> 0 | AM45: =IF(AK45<>"",5,0) -> 0 | AN45: =AL45+AM45 -> 0 | AQ45: =IF(ISNUMBER(AP45),(VLOOKUP(AP45,$BO$6:$BP$50,2)),0) -> 0 | AR45: =IF(AP45<>"",5,0) -> 0 | AS45: =AQ45+AR45 -> 0 | AU45: dnf | AV45: =IF(ISNUMBER(AU45),(VLOOKUP(AU45,$BO$6:$BP$50,2)),0) -> 0 | AW45: =IF(AU45<>"",5,0) -> 5 | AX45: =AV45+AW45 -> 5 | BA45: =IF(ISNUMBER(AZ45),(VLOOKUP(AZ45,$BO$6:$BP$50,2)),0) -> 0 | BB45: =IF(AZ45<>"",5,0) -> 0 | BC45: =BA45+BB45 -> 0 | BF45: =IF(ISNUMBER(BE45),(VLOOKUP(BE45,$BO$6:$BP$50,2)),0) -> 0 | BG45: =IF(BE45<>"",5,0) -> 0 | BH45: =BF45+BG45 -> 0 | BK45: =IF(ISNUMBER(BJ45),(VLOOKUP(BJ45,$BO$6:$BP$50,2)),0) -> 0 | BL45: =IF(BJ45<>"",5,0) -> 0 | BM45: =BK45+BL45 -> 0 | BO45: 40 | BP45: 0 | BQ45: 0 | BR45: 0 | BS45: 0 | BT45: 0 | BU45: 0 | BV45: 0 | BW45: 0 | BX45: 1
H46: =IF(AA46="","",AA46) ->  | I46: =IF(AF46="","",AF46) ->  | J46: =IF(AK46="","",AK46) ->  | K46: =IF(AP46="","",AP46) ->  | L46: =IF(AU46="","",AU46) ->  | M46: =IF(AZ46="","",AZ46) ->  | N46: =IF(BE46="","",BE46) ->  | O46: =IF(BJ46="","",BJ46) ->  | Q46: =AD46+AI46+AN46+AS46+AX46+BC46+BH46 -> 0 | R46: =IF($F37>=5,IF(AB46="","",AB46),"") ->  | S46: =IF($F37>=5,IF(AG46="","",AG46),"") ->  | T46: =IF($F37>=5,IF(AL46="","",AL46),"") ->  | U46: =IF($F37>=5,IF(AQ46="","",AQ46),"") ->  | W46: =IF($F37>=5,IF(AV46="","",AV46),"") ->  | X46: =IF($F37>=5,IF(BA46="","",BA46),"") ->  | Y46: =IF($F37>=5,IF(BF46="","",BF46),"") ->  | AB46: =IF(ISNUMBER(AA46),(VLOOKUP(AA46,$BO$6:$BP$50,2)),0) -> 0 | AC46: =IF(AA46<>"",5,0) -> 0 | AD46: =AB46+AC46 -> 0 | AG46: =IF(ISNUMBER(AF46),(VLOOKUP(AF46,$BO$6:$BP$50,2)),0) -> 0 | AH46: =IF(AF46<>"",5,0) -> 0 | AI46: =AG46+AH46 -> 0 | AL46: =IF(ISNUMBER(AK46),(VLOOKUP(AK46,$BO$6:$BP$50,2)),0) -> 0 | AM46: =IF(AK46<>"",5,0) -> 0 | AN46: =AL46+AM46 -> 0 | AQ46: =IF(ISNUMBER(AP46),(VLOOKUP(AP46,$BO$6:$BP$50,2)),0) -> 0 | AR46: =IF(AP46<>"",5,0) -> 0 | AS46: =AQ46+AR46 -> 0 | AV46: =IF(ISNUMBER(AU46),(VLOOKUP(AU46,$BO$6:$BP$50,2)),0) -> 0 | AW46: =IF(AU46<>"",5,0) -> 0 | AX46: =AV46+AW46 -> 0 | BA46: =IF(ISNUMBER(AZ46),(VLOOKUP(AZ46,$BO$6:$BP$50,2)),0) -> 0 | BB46: =IF(AZ46<>"",5,0) -> 0 | BC46: =BA46+BB46 -> 0 | BF46: =IF(ISNUMBER(BE46),(VLOOKUP(BE46,$BO$6:$BP$50,2)),0) -> 0 | BG46: =IF(BE46<>"",5,0) -> 0 | BH46: =BF46+BG46 -> 0 | BK46: =IF(ISNUMBER(BJ46),(VLOOKUP(BJ46,$BO$6:$BP$50,2)),0) -> 0 | BL46: =IF(BJ46<>"",5,0) -> 0 | BM46: =BK46+BL46 -> 0 | BO46: 41 | BP46: 0 | BQ46: 0 | BR46: 0 | BS46: 0 | BT46: 0 | BU46: 0 | BV46: 0 | BW46: 0 | BX46: 1
Q47: 0 | AB47: 0 | AC47: 0 | AD47: 0 | AG47: 0 | AH47: 0 | AI47: 0 | AL47: 0 | AM47: 0 | AN47: 0 | AQ47: 0 | AR47: 0 | AS47: 0 | AV47: 0 | AW47: 0 | AX47: 0 | BA47: 0 | BB47: 0 | BC47: 0 | BF47: 0 | BG47: 0 | BH47: 0 | BK47: 0 | BL47: 0 | BM47: 0 | BO47: 42 | BP47: 0 | BQ47: 0 | BR47: 0 | BS47: 0 | BT47: 0 | BU47: 0 | BV47: 0 | BW47: 0 | BX47: 1
H48: =IF(AA48="","",AA48) ->  | I48: =IF(AF48="","",AF48) ->  | J48: =IF(AK48="","",AK48) ->  | K48: =IF(AP48="","",AP48) ->  | L48: =IF(AU48="","",AU48) ->  | M48: =IF(AU48="","",AU48) ->  | N48: =IF(AZ48="","",AZ48) ->  | O48: =IF(BE48="","",BE48) ->  | Q48: 0 | AB48: 0 | AC48: 0 | AD48: 0 | AG48: 0 | AH48: 0 | AI48: 0 | AL48: 0 | AM48: 0 | AN48: 0 | AQ48: 0 | AR48: 0 | AS48: 0 | AV48: 0 | AW48: 0 | AX48: 0 | BA48: 0 | BB48: 0 | BC48: 0 | BF48: 0 | BG48: 0 | BH48: 0 | BK48: 0 | BL48: 0 | BM48: 0 | BO48: 43 | BP48: 0 | BQ48: 0 | BR48: 0 | BS48: 0 | BT48: 0 | BU48: 0 | BV48: 0 | BW48: 0 | BX48: 1
Q49: 0 | AB49: 0 | AC49: 0 | AD49: 0 | AG49: 0 | AH49: 0 | AI49: 0 | AL49: 0 | AM49: 0 | AN49: 0 | AQ49: 0 | AR49: 0 | AS49: 0 | AV49: 0 | AW49: 0 | AX49: 0 | BA49: 0 | BB49: 0 | BC49: 0 | BF49: 0 | BG49: 0 | BH49: 0 | BK49: 0 | BL49: 0 | BM49: 0 | BO49: 44 | BP49: 0 | BQ49: 0 | BR49: 0 | BS49: 0 | BT49: 0 | BU49: 0 | BV49: 0 | BW49: 0 | BX49: 1
Q50: 0 | AI50: 0 | AN50: 0 | AS50: 0 | AX50: 0 | BC50: 0 | BH50: 0 | BM50: 0 | BO50: 45 | BP50: 0 | BQ50: 0 | BR50: 0 | BS50: 0 | BT50: 0 | BU50: 0 | BV50: 0 | BW50: 0 | BX50: 1
Q51: 0 | AI51: 0 | AN51: 0 | AS51: 0 | AX51: 0 | BC51: 0 | BH51: 0 | BM51: 0 | BO51: 46 | BP51: 0 | BQ51: 0 | BR51: =IF($F42=7,1,0) -> 0 | BS51: 0 | BT51: 0 | BU51: 0 | BV51: 0 | BW51: 0 | BX51: 1
Q52: 0 | AI52: 0 | AN52: 0 | AS52: 0 | AX52: 0 | BC52: 0 | BH52: 0 | BM52: 0 | BO52: 47 | BP52: 0 | BQ52: 0 | BR52: 0 | BS52: 0 | BT52: 0 | BU52: 0 | BV52: 0 | BW52: 0 | BX52: 1
BO53: 48 | BP53: 0

Sheet G11 2018
A1: Resultatliste Oslo Cup 2018 - Gutter 11 år
A2: ='Forside 2018'!A2 -> Etter 7 av 8 renn
H3: IRS Rennet | I3: Ljan Rennet | J3: Njård Rennet | K3: Ready Rennet | L3: Telenor Arena Cup | M3: Euro-tecfarten | N3: Oslo Alpinfestival SL | O3: Oslo Alpinfestival SSL | R3: IRS Rennet | S3: Ljan Rennet | T3: Njård Rennet | U3: Ready Rennet | V3: Telenor Arena Cup | W3: Euro-tecfarten | X3: Oslo Alpinfestival SL | Y3: Oslo Alpinfestival SSL | AA3: --------IRS Rennet---------- | AF3: ----------Ljan Rennet--------- | AK3: --------Njård Rennet---------- | AP3: --------Ready Rennet--------- | AU3: -----Telenor Arena Cup---- | AZ3: ------Euro-tecfarten-------- | BE3: ---Oslo Alpinfestival SL--- | BJ3: ---Oslo Alpinfestival SSL---
F4: Antall | H4: 2018-02-03 | I4: 2018-02-04 | J4: 2018-02-10 | K4: 2018-02-11 | L4: 2018-02-14 | M4: 2018-02-28 | N4: 2018-03-03 | O4: 2018-03-04 | Q4: Poeng | R4: 2018-02-03 | S4: 2018-02-04 | T4: 2018-02-10 | U4: 2018-02-11 | V4: 2018-02-14 | W4: 2018-02-28 | X4: 2018-03-03 | Y4: 2018-03-04 | AB4: --------Poeng-------- | AG4: --------Poeng-------- | AL4: -------Poeng--------- | AQ4: -------Poeng--------- | AV4: -------Poeng--------- | BA4: -------Poeng--------- | BF4: -------Poeng--------- | BK4: -------Poeng--------- | BQ4: Løpere med | BR4: Løpere med | BS4: Løpere med | BT4: Løpere med | BU4: Løpere med | BV4: Løpere med | BW4: Løpere med | BX4: Løpere med
A5: Plass | B5: Etternavn | C5: Fornavn | D5: Klubb | E5: Poeng | F5: renn | H5: ------------------------------Plassering i rennene--------------------------------- | Q5: brutto | R5: ----------------Resultatpoeng hvis mer enn 4 renn---------------- | AA5: Plass | AB5: Res. | AC5: Del. | AD5: Tot. | AF5: Plass | AG5: Res. | AH5: Del. | AI5: Tot. | AK5: Plass | AL5: Res. | AM5: Del. | AN5: Tot. | AP5: Plass | AQ5: Res. | AR5: Del. | AS5: Tot. | AU5: Plass | AV5: Res. | AW5: Del. | AX5: Tot. | AZ5: Plass | BA5: Res. | BB5: Del. | BC5: Tot. | BE5: Plass | BF5: Res. | BG5: Del. | BH5: Tot. | BJ5: Plass | BK5: Res. | BL5: Del. | BM5: Tot. | BO5: Plass | BP5: Poeng | BQ5: 8 renn | BR5: 7 renn | BS5: 6 renn | BT5: 5 renn | BU5: 4 renn | BV5: 3 renn | BW5: 2 renn | BX5: kun 1 renn
A6: =IF(E6<E5,BO6,A5) -> 1 | B6: Danielsen | C6: Didrik Heggelund | D6: Ullensaker | E6: =IF(F6<=4,Q6,(Q6-SUM(SMALL(R6:Y6,{1;2;3;4})))) -> 415 | F6: =(IF(AC6=5,1,0)+IF(AH6=5,1,0)+IF(AM6=5,1,0)+IF(AR6=5,1,0)+IF(AW6=5,1,0)+IF(BB6=5,1,0)+IF(BG6=5,1,0)+IF(BL6=5,1,0)) -> 7 | H6: =IF(AA6="","",AA6) -> 1 | I6: =IF(AF6="","",AF6) -> 1 | J6: =IF(AK6="","",AK6) -> 2 | K6: =IF(AP6="","",AP6) -> 2 | L6: =IF(AU6="","",AU6) -> 7 | M6: =IF(AZ6="","",AZ6) -> 2 | N6: =IF(BE6="","",BE6) -> 1 | O6: =IF(BJ6="","",BJ6) ->  | Q6: =AD6+AI6+AN6+AS6+AX6+BC6+BH6 -> 611 | R6: =IF($F6>=5,IF(AB6="","",AB6),"") -> 100 | S6: =IF($F6>=5,IF(AG6="","",AG6),"") -> 100 | T6: =IF($F6>=5,IF(AL6="","",AL6),"") -> 80 | U6: =IF($F6>=5,IF(AQ6="","",AQ6),"") -> 80 | V6: =IF($F6>=5,IF(AV6="","",AV6),"") -> 36 | W6: =IF($F6>=5,IF(BA6="","",BA6),"") -> 80 | X6: =IF($F6>=5,IF(BF6="","",BF6),"") -> 100 | Y6: =IF($F6>=5,IF(BK6="","",BK6),"") -> 0 | AA6: 1 | AB6: =IF(ISNUMBER(AA6),(VLOOKUP(AA6,$BO$6:$BP$50,2)),0) -> 100 | AC6: =IF(AA6<>"",5,0) -> 5 | AD6: =AB6+AC6 -> 105 | AF6: 1 | AG6: =IF(ISNUMBER(AF6),(VLOOKUP(AF6,$BO$6:$BP$50,2)),0) -> 100 | AH6: =IF(AF6<>"",5,0) -> 5 | AI6: =AG6+AH6 -> 105 | AK6: 2 | AL6: =IF(ISNUMBER(AK6),(VLOOKUP(AK6,$BO$6:$BP$50,2)),0) -> 80 | AM6: =IF(AK6<>"",5,0) -> 5 | AN6: =AL6+AM6 -> 85 | AP6: 2 | AQ6: =IF(ISNUMBER(AP6),(VLOOKUP(AP6,$BO$6:$BP$50,2)),0) -> 80 | AR6: =IF(AP6<>"",5,0) -> 5 | AS6: =AQ6+AR6 -> 85 | AU6: 7 | AV6: =IF(ISNUMBER(AU6),(VLOOKUP(AU6,$BO$6:$BP$50,2)),0) -> 36 | AW6: =IF(AU6<>"",5,0) -> 5 | AX6: =AV6+AW6 -> 41 | AZ6: 2 | BA6: =IF(ISNUMBER(AZ6),(VLOOKUP(AZ6,$BO$6:$BP$50,2)),0) -> 80 | BB6: =IF(AZ6<>"",5,0) -> 5 | BC6: =BA6+BB6 -> 85 | BE6: 1 | BF6: =IF(ISNUMBER(BE6),(VLOOKUP(BE6,$BO$6:$BP$50,2)),0) -> 100 | BG6: =IF(BE6<>"",5,0) -> 5 | BH6: =BF6+BG6 -> 105 | BK6: =IF(ISNUMBER(BJ6),(VLOOKUP(BJ6,$BO$6:$BP$50,2)),0) -> 0 | BL6: =IF(BJ6<>"",5,0) -> 0 | BM6: =BK6+BL6 -> 0 | BO6: 1 | BP6: 100 | BQ6: =IF($F6=8,1,0) -> 0 | BR6: =IF($F6=7,1,0) -> 1 | BS6: =IF($F6=6,1,0) -> 0 | BT6: =IF($F6=5,1,0) -> 0 | BU6: =IF($F6=4,1,0) -> 0 | BV6: =IF($F6=3,1,0) -> 0 | BW6: =IF($F6=2,1,0) -> 0 | BX6: =IF($F6=1,1,0) -> 0
A7: =IF(E7<E6,BO7,A6) -> 2 | B7: Lien | C7: Johan Oscar | D7: Heming | E7: =IF(F7<=4,Q7,(Q7-SUM(SMALL(R7:Y7,{1;2;3;4})))) -> 305 | F7: =(IF(AC7=5,1,0)+IF(AH7=5,1,0)+IF(AM7=5,1,0)+IF(AR7=5,1,0)+IF(AW7=5,1,0)+IF(BB7=5,1,0)+IF(BG7=5,1,0)+IF(BL7=5,1,0)) -> 7 | H7: =IF(AA7="","",AA7) -> 5 | I7: =IF(AF7="","",AF7) -> 5 | J7: =IF(AK7="","",AK7) -> 1 | K7: =IF(AP7="","",AP7) -> dnf | L7: =IF(AU7="","",AU7) -> 2 | M7: =IF(AZ7="","",AZ7) -> 8 | N7: =IF(BE7="","",BE7) -> 14 | O7: =IF(BJ7="","",BJ7) ->  | Q7: =AD7+AI7+AN7+AS7+AX7+BC7+BH7 -> 355 | R7: =IF($F7>=5,IF(AB7="","",AB7),"") -> 45 | S7: =IF($F7>=5,IF(AG7="","",AG7),"") -> 45 | T7: =IF($F7>=5,IF(AL7="","",AL7),"") -> 100 | U7: =IF($F7>=5,IF(AQ7="","",AQ7),"") -> 0 | V7: =IF($F7>=5,IF(AV7="","",AV7),"") -> 80 | W7: =IF($F7>=5,IF(BA7="","",BA7),"") -> 32 | X7: =IF($F7>=5,IF(BF7="","",BF7),"") -> 18 | Y7: =IF($F7>=5,IF(BK7="","",BK7),"") -> 0 | AA7: 5 | AB7: =IF(ISNUMBER(AA7),(VLOOKUP(AA7,$BO$6:$BP$50,2)),0) -> 45 | AC7: =IF(AA7<>"",5,0) -> 5 | AD7: =AB7+AC7 -> 50 | AF7: 5 | AG7: =IF(ISNUMBER(AF7),(VLOOKUP(AF7,$BO$6:$BP$50,2)),0) -> 45 | AH7: =IF(AF7<>"",5,0) -> 5 | AI7: =AG7+AH7 -> 50 | AK7: 1 | AL7: =IF(ISNUMBER(AK7),(VLOOKUP(AK7,$BO$6:$BP$50,2)),0) -> 100 | AM7: =IF(AK7<>"",5,0) -> 5 | AN7: =AL7+AM7 -> 105 | AP7: dnf | AQ7: =IF(ISNUMBER(AP7),(VLOOKUP(AP7,$BO$6:$BP$50,2)),0) -> 0 | AR7: =IF(AP7<>"",5,0) -> 5 | AS7: =AQ7+AR7 -> 5 | AU7: 2 | AV7: =IF(ISNUMBER(AU7),(VLOOKUP(AU7,$BO$6:$BP$50,2)),0) -> 80 | AW7: =IF(AU7<>"",5,0) -> 5 | AX7: =AV7+AW7 -> 85 | AZ7: 8 | BA7: =IF(ISNUMBER(AZ7),(VLOOKUP(AZ7,$BO$6:$BP$50,2)),0) -> 32 | BB7: =IF(AZ7<>"",5,0) -> 5 | BC7: =BA7+BB7 -> 37 | BE7: 14 | BF7: =IF(ISNUMBER(BE7),(VLOOKUP(BE7,$BO$6:$BP$50,2)),0) -> 18 | BG7: =IF(BE7<>"",5,0) -> 5 | BH7: =BF7+BG7 -> 23 | BK7: =IF(ISNUMBER(BJ7),(VLOOKUP(BJ7,$BO$6:$BP$50,2)),0) -> 0 | BL7: =IF(BJ7<>"",5,0) -> 0 | BM7: =BK7+BL7 -> 0 | BO7: 2 | BP7: 80 | BQ7: =IF($F7=8,1,0) -> 0 | BR7: 1 | BS7: 0 | BT7: 0 | BU7: 0 | BV7: 0 | BW7: 0 | BX7: 0
A8: =IF(E8<E7,BO8,A7) -> 3 | B8: Hemminghytt | C8: Fredrik | D8: Lommedalen | E8: =IF(F8<=4,Q8,(Q8-SUM(SMALL(R8:Y8,{1;2;3;4})))) -> 295 | F8: =(IF(AC8=5,1,0)+IF(AH8=5,1,0)+IF(AM8=5,1,0)+IF(AR8=5,1,0)+IF(AW8=5,1,0)+IF(BB8=5,1,0)+IF(BG8=5,1,0)+IF(BL8=5,1,0)) -> 6 | H8: =IF(AA8="","",AA8) -> 2 | I8: =IF(AF8="","",AF8) ->  | J8: =IF(AK8="","",AK8) -> 8 | K8: =IF(AP8="","",AP8) -> 5 | L8: =IF(AU8="","",AU8) -> 1 | M8: =IF(AZ8="","",AZ8) -> 6 | N8: =IF(BE8="","",BE8) -> dnf | O8: =IF(BJ8="","",BJ8) ->  | Q8: =AD8+AI8+AN8+AS8+AX8+BC8+BH8 -> 327 | R8: =IF($F8>=5,IF(AB8="","",AB8),"") -> 80 | S8: =IF($F8>=5,IF(AG8="","",AG8),"") -> 0 | T8: =IF($F8>=5,IF(AL8="","",AL8),"") -> 32 | U8: =IF($F8>=5,IF(AQ8="","",AQ8),"") -> 45 | V8: =IF($F8>=5,IF(AV8="","",AV8),"") -> 100 | W8: =IF($F8>=5,IF(BA8="","",BA8),"") -> 40 | X8: =IF($F8>=5,IF(BF8="","",BF8),"") -> 0 | Y8: =IF($F8>=5,IF(BK8="","",BK8),"") -> 0 | AA8: 2 | AB8: =IF(ISNUMBER(AA8),(VLOOKUP(AA8,$BO$6:$BP$50,2)),0) -> 80 | AC8: =IF(AA8<>"",5,0) -> 5 | AD8: =AB8+AC8 -> 85 | AG8: =IF(ISNUMBER(AF8),(VLOOKUP(AF8,$BO$6:$BP$50,2)),0) -> 0 | AH8: =IF(AF8<>"",5,0) -> 0 | AI8: =AG8+AH8 -> 0 | AK8: 8 | AL8: =IF(ISNUMBER(AK8),(VLOOKUP(AK8,$BO$6:$BP$50,2)),0) -> 32 | AM8: =IF(AK8<>"",5,0) -> 5 | AN8: =AL8+AM8 -> 37 | AP8: 5 | AQ8: =IF(ISNUMBER(AP8),(VLOOKUP(AP8,$BO$6:$BP$50,2)),0) -> 45 | AR8: =IF(AP8<>"",5,0) -> 5 | AS8: =AQ8+AR8 -> 50 | AU8: 1 | AV8: =IF(ISNUMBER(AU8),(VLOOKUP(AU8,$BO$6:$BP$50,2)),0) -> 100 | AW8: =IF(AU8<>"",5,0) -> 5 | AX8: =AV8+AW8 -> 105 | AZ8: 6 | BA8: =IF(ISNUMBER(AZ8),(VLOOKUP(AZ8,$BO$6:$BP$50,2)),0) -> 40 | BB8: =IF(AZ8<>"",5,0) -> 5 | BC8: =BA8+BB8 -> 45 | BE8: dnf | BF8: =IF(ISNUMBER(BE8),(VLOOKUP(BE8,$BO$6:$BP$50,2)),0) -> 0 | BG8: =IF(BE8<>"",5,0) -> 5 | BH8: =BF8+BG8 -> 5 | BK8: =IF(ISNUMBER(BJ8),(VLOOKUP(BJ8,$BO$6:$BP$50,2)),0) -> 0 | BL8: =IF(BJ8<>"",5,0) -> 0 | BM8: =BK8+BL8 -> 0 | BO8: 3 | BP8: 60 | BQ8: 0 | BR8: 0 | BS8: 1 | BT8: 0 | BU8: 0 | BV8: 0 | BW8: 0 | BX8: 0
A9: =IF(E9<E8,BO9,A8) -> 4 | B9: Øslebø | C9: Kristoffer | D9: Ready | E9: =IF(F9<=4,Q9,(Q9-SUM(SMALL(R9:Y9,{1;2;3;4})))) -> 265 | F9: =(IF(AC9=5,1,0)+IF(AH9=5,1,0)+IF(AM9=5,1,0)+IF(AR9=5,1,0)+IF(AW9=5,1,0)+IF(BB9=5,1,0)+IF(BG9=5,1,0)+IF(BL9=5,1,0)) -> 7 | H9: =IF(AA9="","",AA9) -> 3 | I9: =IF(AF9="","",AF9) -> 3 | J9: =IF(AK9="","",AK9) -> 4 | K9: =IF(AP9="","",AP9) -> 4 | L9: =IF(AU9="","",AU9) -> dsq | M9: =IF(AZ9="","",AZ9) -> 4 | N9: =IF(BE9="","",BE9) -> 3 | O9: =IF(BJ9="","",BJ9) ->  | Q9: =AD9+AI9+AN9+AS9+AX9+BC9+BH9 -> 365 | R9: =IF($F9>=5,IF(AB9="","",AB9),"") -> 60 | S9: =IF($F9>=5,IF(AG9="","",AG9),"") -> 60 | T9: =IF($F9>=5,IF(AL9="","",AL9),"") -> 50 | U9: =IF($F9>=5,IF(AQ9="","",AQ9),"") -> 50 | V9: =IF($F9>=5,IF(AV9="","",AV9),"") -> 0 | W9: =IF($F9>=5,IF(BA9="","",BA9),"") -> 50 | X9: =IF($F9>=5,IF(BF9="","",BF9),"") -> 60 | Y9: =IF($F9>=5,IF(BK9="","",BK9),"") -> 0 | AA9: 3 | AB9: =IF(ISNUMBER(AA9),(VLOOKUP(AA9,$BO$6:$BP$50,2)),0) -> 60 | AC9: =IF(AA9<>"",5,0) -> 5 | AD9: =AB9+AC9 -> 65 | AF9: 3 | AG9: =IF(ISNUMBER(AF9),(VLOOKUP(AF9,$BO$6:$BP$50,2)),0) -> 60 | AH9: =IF(AF9<>"",5,0) -> 5 | AI9: =AG9+AH9 -> 65 | AK9: 4 | AL9: =IF(ISNUMBER(AK9),(VLOOKUP(AK9,$BO$6:$BP$50,2)),0) -> 50 | AM9: =IF(AK9<>"",5,0) -> 5 | AN9: =AL9+AM9 -> 55 | AP9: 4 | AQ9: =IF(ISNUMBER(AP9),(VLOOKUP(AP9,$BO$6:$BP$50,2)),0) -> 50 | AR9: =IF(AP9<>"",5,0) -> 5 | AS9: =AQ9+AR9 -> 55 | AU9: dsq | AV9: =IF(ISNUMBER(AU9),(VLOOKUP(AU9,$BO$6:$BP$50,2)),0) -> 0 | AW9: =IF(AU9<>"",5,0) -> 5 | AX9: =AV9+AW9 -> 5 | AZ9: 4 | BA9: =IF(ISNUMBER(AZ9),(VLOOKUP(AZ9,$BO$6:$BP$50,2)),0) -> 50 | BB9: =IF(AZ9<>"",5,0) -> 5 | BC9: =BA9+BB9 -> 55 | BE9: 3 | BF9: =IF(ISNUMBER(BE9),(VLOOKUP(BE9,$BO$6:$BP$50,2)),0) -> 60 | BG9: =IF(BE9<>"",5,0) -> 5 | BH9: =BF9+BG9 -> 65 | BK9: =IF(ISNUMBER(BJ9),(VLOOKUP(BJ9,$BO$6:$BP$50,2)),0) -> 0 | BL9: =IF(BJ9<>"",5,0) -> 0 | BM9: =BK9+BL9 -> 0 | BO9: 4 | BP9: 50 | BQ9: 0 | BR9: 1 | BS9: 0 | BT9: 0 | BU9: 0 | BV9: 0 | BW9: 0 | BX9: 0
A10: =IF(E10<E9,BO10,A9) -> 5 | B10: Hagen | C10: Storm | D10: Kjelsås | E10: =IF(F10<=4,Q10,(Q10-SUM(SMALL(R10:Y10,{1;2;3;4})))) -> 251 | F10: =(IF(AC10=5,1,0)+IF(AH10=5,1,0)+IF(AM10=5,1,0)+IF(AR10=5,1,0)+IF(AW10=5,1,0)+IF(BB10=5,1,0)+IF(BG10=5,1,0)+IF(BL10=5,1,0)) -> 6 | H10: =IF(AA10="","",AA10) ->  | I10: =IF(AF10="","",AF10) -> 2 | J10: =IF(AK10="","",AK10) -> 7 | K10: =IF(AP10="","",AP10) -> 3 | L10: =IF(AU10="","",AU10) -> 8 | M10: =IF(AZ10="","",AZ10) -> 5 | N10: =IF(BE10="","",BE10) -> 18 | O10: =IF(BJ10="","",BJ10) ->  | Q10: =AD10+AI10+AN10+AS10+AX10+BC10+BH10 -> 296 | R10: =IF($F10>=5,IF(AB10="","",AB10),"") -> 0 | S10: =IF($F10>=5,IF(AG10="","",AG10),"") -> 80 | T10: =IF($F10>=5,IF(AL10="","",AL10),"") -> 36 | U10: =IF($F10>=5,IF(AQ10="","",AQ10),"") -> 60 | V10: =IF($F10>=5,IF(AV10="","",AV10),"") -> 32 | W10: =IF($F10>=5,IF(BA10="","",BA10),"") -> 45 | X10: =IF($F10>=5,IF(BF10="","",BF10),"") -> 13 | Y10: =IF($F10>=5,IF(BK10="","",BK10),"") -> 0 | AB10: =IF(ISNUMBER(AA10),(VLOOKUP(AA10,$BO$6:$BP$50,2)),0) -> 0 | AC10: =IF(AA10<>"",5,0) -> 0 | AD10: =AB10+AC10 -> 0 | AF10: 2 | AG10: =IF(ISNUMBER(AF10),(VLOOKUP(AF10,$BO$6:$BP$50,2)),0) -> 80 | AH10: =IF(AF10<>"",5,0) -> 5 | AI10: =AG10+AH10 -> 85 | AK10: 7 | AL10: =IF(ISNUMBER(AK10),(VLOOKUP(AK10,$BO$6:$BP$50,2)),0) -> 36 | AM10: =IF(AK10<>"",5,0) -> 5 | AN10: =AL10+AM10 -> 41 | AP10: 3 | AQ10: =IF(ISNUMBER(AP10),(VLOOKUP(AP10,$BO$6:$BP$50,2)),0) -> 60 | AR10: =IF(AP10<>"",5,0) -> 5 | AS10: =AQ10+AR10 -> 65 | AU10: 8 | AV10: =IF(ISNUMBER(AU10),(VLOOKUP(AU10,$BO$6:$BP$50,2)),0) -> 32 | AW10: =IF(AU10<>"",5,0) -> 5 | AX10: =AV10+AW10 -> 37 | AZ10: 5 | BA10: =IF(ISNUMBER(AZ10),(VLOOKUP(AZ10,$BO$6:$BP$50,2)),0) -> 45 | BB10: =IF(AZ10<>"",5,0) -> 5 | BC10: =BA10+BB10 -> 50 | BE10: 18 | BF10: =IF(ISNUMBER(BE10),(VLOOKUP(BE10,$BO$6:$BP$50,2)),0) -> 13 | BG10: =IF(BE10<>"",5,0) -> 5 | BH10: =BF10+BG10 -> 18 | BK10: =IF(ISNUMBER(BJ10),(VLOOKUP(BJ10,$BO$6:$BP$50,2)),0) -> 0 | BL10: =IF(BJ10<>"",5,0) -> 0 | BM10: =BK10+BL10 -> 0 | BO10: 5 | BP10: 45 | BQ10: 0 | BR10: 0 | BS10: 1 | BT10: 0 | BU10: 0 | BV10: 0 | BW10: 0 | BX10: 0
A11: =IF(E11<E10,BO11,A10) -> 6 | B11: Foss | C11: Philip | D11: Heming | E11: =IF(F11<=4,Q11,(Q11-SUM(SMALL(R11:Y11,{1;2;3;4})))) -> 215 | F11: =(IF(AC11=5,1,0)+IF(AH11=5,1,0)+IF(AM11=5,1,0)+IF(AR11=5,1,0)+IF(AW11=5,1,0)+IF(BB11=5,1,0)+IF(BG11=5,1,0)+IF(BL11=5,1,0)) -> 3 | H11: =IF(AA11="","",AA11) ->  | I11: =IF(AF11="","",AF11) ->  | J11: =IF(AK11="","",AK11) -> 6 | K11: =IF(AP11="","",AP11) -> 1 | L11: =IF(AU11="","",AU11) -> 3 | M11: =IF(AZ11="","",AZ11) ->  | N11: =IF(BE11="","",BE11) ->  | O11: =IF(BJ11="","",BJ11) ->  | Q11: =AD11+AI11+AN11+AS11+AX11+BC11+BH11 -> 215 | R11: =IF($F11>=5,IF(AB11="","",AB11),"") ->  | S11: =IF($F11>=5,IF(AG11="","",AG11),"") ->  | T11: =IF($F11>=5,IF(AL11="","",AL11),"") ->  | U11: =IF($F11>=5,IF(AQ11="","",AQ11),"") ->  | V11: =IF($F11>=5,IF(AV11="","",AV11),"") ->  | W11: =IF($F11>=5,IF(BA11="","",BA11),"") ->  | X11: =IF($F11>=5,IF(BF11="","",BF11),"") ->  | Y11: =IF($F11>=5,IF(BK11="","",BK11),"") ->  | AB11: =IF(ISNUMBER(AA11),(VLOOKUP(AA11,$BO$6:$BP$50,2)),0) -> 0 | AC11: =IF(AA11<>"",5,0) -> 0 | AD11: =AB11+AC11 -> 0 | AG11: =IF(ISNUMBER(AF11),(VLOOKUP(AF11,$BO$6:$BP$50,2)),0) -> 0 | AH11: =IF(AF11<>"",5,0) -> 0 | AI11: =AG11+AH11 -> 0 | AK11: 6 | AL11: =IF(ISNUMBER(AK11),(VLOOKUP(AK11,$BO$6:$BP$50,2)),0) -> 40 | AM11: =IF(AK11<>"",5,0) -> 5 | AN11: =AL11+AM11 -> 45 | AP11: 1 | AQ11: =IF(ISNUMBER(AP11),(VLOOKUP(AP11,$BO$6:$BP$50,2)),0) -> 100 | AR11: =IF(AP11<>"",5,0) -> 5 | AS11: =AQ11+AR11 -> 105 | AU11: 3 | AV11: =IF(ISNUMBER(AU11),(VLOOKUP(AU11,$BO$6:$BP$50,2)),0) -> 60 | AW11: =IF(AU11<>"",5,0) -> 5 | AX11: =AV11+AW11 -> 65 | BA11: =IF(ISNUMBER(AZ11),(VLOOKUP(AZ11,$BO$6:$BP$50,2)),0) -> 0 | BB11: =IF(AZ11<>"",5,0) -> 0 | BC11: =BA11+BB11 -> 0 | BF11: =IF(ISNUMBER(BE11),(VLOOKUP(BE11,$BO$6:$BP$50,2)),0) -> 0 | BG11: =IF(BE11<>"",5,0) -> 0 | BH11: =BF11+BG11 -> 0 | BK11: =IF(ISNUMBER(BJ11),(VLOOKUP(BJ11,$BO$6:$BP$50,2)),0) -> 0 | BL11: =IF(BJ11<>"",5,0) -> 0 | BM11: =BK11+BL11 -> 0 | BO11: 6 | BP11: 40 | BQ11: 0 | BR11: 0 | BS11: 0 | BT11: 0 | BU11: 0 | BV11: 1 | BW11: 0 | BX11: 0
A12: =IF(E12<E11,BO12,A11) -> 7 | B12: Finne | C12: Peder August | D12: Heming | E12: =IF(F12<=4,Q12,(Q12-SUM(SMALL(R12:Y12,{1;2;3;4})))) -> 199 | F12: =(IF(AC12=5,1,0)+IF(AH12=5,1,0)+IF(AM12=5,1,0)+IF(AR12=5,1,0)+IF(AW12=5,1,0)+IF(BB12=5,1,0)+IF(BG12=5,1,0)+IF(BL12=5,1,0)) -> 6 | H12: =IF(AA12="","",AA12) -> 8 | I12: =IF(AF12="","",AF12) ->  | J12: =IF(AK12="","",AK12) -> 3 | K12: =IF(AP12="","",AP12) -> 6 | L12: =IF(AU12="","",AU12) -> 9 | M12: =IF(AZ12="","",AZ12) -> 7 | N12: =IF(BE12="","",BE12) -> 6 | O12: =IF(BJ12="","",BJ12) ->  | Q12: =AD12+AI12+AN12+AS12+AX12+BC12+BH12 -> 267 | R12: =IF($F12>=5,IF(AB12="","",AB12),"") -> 32 | S12: =IF($F12>=5,IF(AG12="","",AG12),"") -> 0 | T12: =IF($F12>=5,IF(AL12="","",AL12),"") -> 60 | U12: =IF($F12>=5,IF(AQ12="","",AQ12),"") -> 40 | W12: =IF($F12>=5,IF(BA12="","",BA12),"") -> 36 | X12: =IF($F12>=5,IF(BF12="","",BF12),"") -> 40 | Y12: =IF($F12>=5,IF(BK12="","",BK12),"") -> 0 | AA12: 8 | AB12: =IF(ISNUMBER(AA12),(VLOOKUP(AA12,$BO$6:$BP$50,2)),0) -> 32 | AC12: =IF(AA12<>"",5,0) -> 5 | AD12: =AB12+AC12 -> 37 | AG12: =IF(ISNUMBER(AF12),(VLOOKUP(AF12,$BO$6:$BP$50,2)),0) -> 0 | AH12: =IF(AF12<>"",5,0) -> 0 | AI12: =AG12+AH12 -> 0 | AK12: 3 | AL12: =IF(ISNUMBER(AK12),(VLOOKUP(AK12,$BO$6:$BP$50,2)),0) -> 60 | AM12: =IF(AK12<>"",5,0) -> 5 | AN12: =AL12+AM12 -> 65 | AP12: 6 | AQ12: =IF(ISNUMBER(AP12),(VLOOKUP(AP12,$BO$6:$BP$50,2)),0) -> 40 | AR12: =IF(AP12<>"",5,0) -> 5 | AS12: =AQ12+AR12 -> 45 | AU12: 9 | AV12: =IF(ISNUMBER(AU12),(VLOOKUP(AU12,$BO$6:$BP$50,2)),0) -> 29 | AW12: =IF(AU12<>"",5,0) -> 5 | AX12: =AV12+AW12 -> 34 | AZ12: 7 | BA12: =IF(ISNUMBER(AZ12),(VLOOKUP(AZ12,$BO$6:$BP$50,2)),0) -> 36 | BB12: =IF(AZ12<>"",5,0) -> 5 | BC12: =BA12+BB12 -> 41 | BE12: 6 | BF12: =IF(ISNUMBER(BE12),(VLOOKUP(BE12,$BO$6:$BP$50,2)),0) -> 40 | BG12: =IF(BE12<>"",5,0) -> 5 | BH12: =BF12+BG12 -> 45 | BK12: =IF(ISNUMBER(BJ12),(VLOOKUP(BJ12,$BO$6:$BP$50,2)),0) -> 0 | BL12: =IF(BJ12<>"",5,0) -> 0 | BM12: =BK12+BL12 -> 0 | BO12: 7 | BP12: 36 | BQ12: 0 | BR12: 0 | BS12: 1 | BT12: 0 | BU12: 0 | BV12: 0 | BW12: 0 | BX12: 0
A13: =IF(E13<E12,BO13,A12) -> 8 | B13: Røkke | C13: Lukas Thulin | D13: IRS | E13: =IF(F13<=4,Q13,(Q13-SUM(SMALL(R13:Y13,{1;2;3;4})))) -> 175 | F13: =(IF(AC13=5,1,0)+IF(AH13=5,1,0)+IF(AM13=5,1,0)+IF(AR13=5,1,0)+IF(AW13=5,1,0)+IF(BB13=5,1,0)+IF(BG13=5,1,0)+IF(BL13=5,1,0)) -> 7 | H13: =IF(AA13="","",AA13) -> 4 | I13: =IF(AF13="","",AF13) -> 8 | J13: =IF(AK13="","",AK13) -> 17 | K13: =IF(AP13="","",AP13) -> 8 | L13: =IF(AU13="","",AU13) -> 10 | M13: =IF(AZ13="","",AZ13) -> 15 | N13: =IF(BE13="","",BE13) -> dsq | O13: =IF(BJ13="","",BJ13) ->  | Q13: =AD13+AI13+AN13+AS13+AX13+BC13+BH13 -> 205 | R13: =IF($F13>=5,IF(AB13="","",AB13),"") -> 50 | S13: =IF($F13>=5,IF(AG13="","",AG13),"") -> 32 | T13: =IF($F13>=5,IF(AL13="","",AL13),"") -> 14 | U13: =IF($F13>=5,IF(AQ13="","",AQ13),"") -> 32 | V13: =IF($F13>=5,IF(AV13="","",AV13),"") -> 26 | W13: =IF($F13>=5,IF(BA13="","",BA13),"") -> 16 | X13: =IF($F13>=5,IF(BF13="","",BF13),"") -> 0 | Y13: =IF($F13>=5,IF(BK13="","",BK13),"") -> 0 | AA13: 4 | AB13: =IF(ISNUMBER(AA13),(VLOOKUP(AA13,$BO$6:$BP$50,2)),0) -> 50 | AC13: =IF(AA13<>"",5,0) -> 5 | AD13: =AB13+AC13 -> 55 | AF13: 8 | AG13: =IF(ISNUMBER(AF13),(VLOOKUP(AF13,$BO$6:$BP$50,2)),0) -> 32 | AH13: =IF(AF13<>"",5,0) -> 5 | AI13: =AG13+AH13 -> 37 | AK13: 17 | AL13: =IF(ISNUMBER(AK13),(VLOOKUP(AK13,$BO$6:$BP$50,2)),0) -> 14 | AM13: =IF(AK13<>"",5,0) -> 5 | AN13: =AL13+AM13 -> 19 | AP13: 8 | AQ13: =IF(ISNUMBER(AP13),(VLOOKUP(AP13,$BO$6:$BP$50,2)),0) -> 32 | AR13: =IF(AP13<>"",5,0) -> 5 | AS13: =AQ13+AR13 -> 37 | AU13: 10 | AV13: =IF(ISNUMBER(AU13),(VLOOKUP(AU13,$BO$6:$BP$50,2)),0) -> 26 | AW13: =IF(AU13<>"",5,0) -> 5 | AX13: =AV13+AW13 -> 31 | AZ13: 15 | BA13: =IF(ISNUMBER(AZ13),(VLOOKUP(AZ13,$BO$6:$BP$50,2)),0) -> 16 | BB13: =IF(AZ13<>"",5,0) -> 5 | BC13: =BA13+BB13 -> 21 | BE13: dsq | BF13: =IF(ISNUMBER(BE13),(VLOOKUP(BE13,$BO$6:$BP$50,2)),0) -> 0 | BG13: =IF(BE13<>"",5,0) -> 5 | BH13: =BF13+BG13 -> 5 | BK13: =IF(ISNUMBER(BJ13),(VLOOKUP(BJ13,$BO$6:$BP$50,2)),0) -> 0 | BL13: =IF(BJ13<>"",5,0) -> 0 | BM13: =BK13+BL13 -> 0 | BO13: 8 | BP13: 32 | BQ13: 0 | BR13: 1 | BS13: 0 | BT13: 0 | BU13: 0 | BV13: 0 | BW13: 0 | BX13: 0
A14: =IF(E14<E13,BO14,A13) -> 9 | B14: Aasdal | C14: BIRK | D14: Ljan | E14: =IF(F14<=4,Q14,(Q14-SUM(SMALL(R14:Y14,{1;2;3;4})))) -> 162 | F14: =(IF(AC14=5,1,0)+IF(AH14=5,1,0)+IF(AM14=5,1,0)+IF(AR14=5,1,0)+IF(AW14=5,1,0)+IF(BB14=5,1,0)+IF(BG14=5,1,0)+IF(BL14=5,1,0)) -> 6 | H14: =IF(AA14="","",AA14) -> 7 | I14: =IF(AF14="","",AF14) -> 4 | J14: =IF(AK14="","",AK14) -> 12 | K14: =IF(AP14="","",AP14) ->  | L14: =IF(AU14="","",AU14) -> 12 | M14: =IF(AZ14="","",AZ14) -> 11 | N14: =IF(BE14="","",BE14) -> dsq | O14: =IF(BJ14="","",BJ14) ->  | Q14: =AD14+AI14+AN14+AS14+AX14+BC14+BH14 -> 184 | R14: =IF($F14>=5,IF(AB14="","",AB14),"") -> 36 | S14: =IF($F14>=5,IF(AG14="","",AG14),"") -> 50 | T14: =IF($F14>=5,IF(AL14="","",AL14),"") -> 22 | U14: =IF($F14>=5,IF(AQ14="","",AQ14),"") -> 0 | V14: =IF($F14>=5,IF(AV14="","",AV14),"") -> 22 | W14: =IF($F14>=5,IF(BA14="","",BA14),"") -> 24 | X14: =IF($F14>=5,IF(BF14="","",BF14),"") -> 0 | Y14: =IF($F14>=5,IF(BK14="","",BK14),"") -> 0 | AA14: 7 | AB14: =IF(ISNUMBER(AA14),(VLOOKUP(AA14,$BO$6:$BP$50,2)),0) -> 36 | AC14: =IF(AA14<>"",5,0) -> 5 | AD14: =AB14+AC14 -> 41 | AF14: 4 | AG14: =IF(ISNUMBER(AF14),(VLOOKUP(AF14,$BO$6:$BP$50,2)),0) -> 50 | AH14: =IF(AF14<>"",5,0) -> 5 | AI14: =AG14+AH14 -> 55 | AK14: 12 | AL14: =IF(ISNUMBER(AK14),(VLOOKUP(AK14,$BO$6:$BP$50,2)),0) -> 22 | AM14: =IF(AK14<>"",5,0) -> 5 | AN14: =AL14+AM14 -> 27 | AQ14: =IF(ISNUMBER(AP14),(VLOOKUP(AP14,$BO$6:$BP$50,2)),0) -> 0 | AR14: =IF(AP14<>"",5,0) -> 0 | AS14: =AQ14+AR14 -> 0 | AU14: 12 | AV14: =IF(ISNUMBER(AU14),(VLOOKUP(AU14,$BO$6:$BP$50,2)),0) -> 22 | AW14: =IF(AU14<>"",5,0) -> 5 | AX14: =AV14+AW14 -> 27 | AZ14: 11 | BA14: =IF(ISNUMBER(AZ14),(VLOOKUP(AZ14,$BO$6:$BP$50,2)),0) -> 24 | BB14: =IF(AZ14<>"",5,0) -> 5 | BC14: =BA14+BB14 -> 29 | BE14: dsq | BF14: =IF(ISNUMBER(BE14),(VLOOKUP(BE14,$BO$6:$BP$50,2)),0) -> 0 | BG14: =IF(BE14<>"",5,0) -> 5 | BH14: =BF14+BG14 -> 5 | BK14: =IF(ISNUMBER(BJ14),(VLOOKUP(BJ14,$BO$6:$BP$50,2)),0) -> 0 | BL14: =IF(BJ14<>"",5,0) -> 0 | BM14: =BK14+BL14 -> 0 | BO14: 9 | BP14: 29 | BQ14: 0 | BR14: 0 | BS14: 1 | BT14: 0 | BU14: 0 | BV14: 0 | BW14: 0 | BX14: 0
A15: =IF(E15<E14,BO15,A14) -> 10 | B15: Bagstevold | C15: Sindre | D15: Heming | E15: =IF(F15<=4,Q15,(Q15-SUM(SMALL(R15:Y15,{1;2;3;4})))) -> 150 | F15: =(IF(AC15=5,1,0)+IF(AH15=5,1,0)+IF(AM15=5,1,0)+IF(AR15=5,1,0)+IF(AW15=5,1,0)+IF(BB15=5,1,0)+IF(BG15=5,1,0)+IF(BL15=5,1,0)) -> 3 | H15: =IF(AA15="","",AA15) ->  | I15: =IF(AF15="","",AF15) ->  | J15: =IF(AK15="","",AK15) -> 5 | K15: =IF(AP15="","",AP15) ->  | L15: =IF(AU15="","",AU15) -> 6 | M15: =IF(AZ15="","",AZ15) ->  | N15: =IF(BE15="","",BE15) -> 4 | O15: =IF(BJ15="","",BJ15) ->  | Q15: =AD15+AI15+AN15+AS15+AX15+BC15+BH15 -> 150 | R15: =IF($F15>=5,IF(AB15="","",AB15),"") ->  | S15: =IF($F15>=5,IF(AG15="","",AG15),"") ->  | T15: =IF($F15>=5,IF(AL15="","",AL15),"") ->  | U15: =IF($F15>=5,IF(AQ15="","",AQ15),"") ->  | V15: =IF($F15>=5,IF(AV15="","",AV15),"") ->  | W15: =IF($F15>=5,IF(BA15="","",BA15),"") ->  | X15: =IF($F15>=5,IF(BF15="","",BF15),"") ->  | Y15: =IF($F15>=5,IF(BK15="","",BK15),"") ->  | AB15: =IF(ISNUMBER(AA15),(VLOOKUP(AA15,$BO$6:$BP$50,2)),0) -> 0 | AC15: =IF(AA15<>"",5,0) -> 0 | AD15: =AB15+AC15 -> 0 | AG15: =IF(ISNUMBER(AF15),(VLOOKUP(AF15,$BO$6:$BP$50,2)),0) -> 0 | AH15: =IF(AF15<>"",5,0) -> 0 | AI15: =AG15+AH15 -> 0 | AK15: 5 | AL15: =IF(ISNUMBER(AK15),(VLOOKUP(AK15,$BO$6:$BP$50,2)),0) -> 45 | AM15: =IF(AK15<>"",5,0) -> 5 | AN15: =AL15+AM15 -> 50 | AQ15: =IF(ISNUMBER(AP15),(VLOOKUP(AP15,$BO$6:$BP$50,2)),0) -> 0 | AR15: =IF(AP15<>"",5,0) -> 0 | AS15: =AQ15+AR15 -> 0 | AU15: 6 | AV15: =IF(ISNUMBER(AU15),(VLOOKUP(AU15,$BO$6:$BP$50,2)),0) -> 40 | AW15: =IF(AU15<>"",5,0) -> 5 | AX15: =AV15+AW15 -> 45 | BA15: =IF(ISNUMBER(AZ15),(VLOOKUP(AZ15,$BO$6:$BP$50,2)),0) -> 0 | BB15: =IF(AZ15<>"",5,0) -> 0 | BC15: =BA15+BB15 -> 0 | BE15: 4 | BF15: =IF(ISNUMBER(BE15),(VLOOKUP(BE15,$BO$6:$BP$50,2)),0) -> 50 | BG15: =IF(BE15<>"",5,0) -> 5 | BH15: =BF15+BG15 -> 55 | BK15: =IF(ISNUMBER(BJ15),(VLOOKUP(BJ15,$BO$6:$BP$50,2)),0) -> 0 | BL15: =IF(BJ15<>"",5,0) -> 0 | BM15: =BK15+BL15 -> 0 | BO15: 10 | BP15: 26 | BQ15: 0 | BR15: 0 | BS15: 0 | BT15: 0 | BU15: 0 | BV15: 1 | BW15: 0 | BX15: 0
A16: =IF(E16<E15,BO16,A15) -> 11 | B16: Toft | C16: Ola Mostraum | D16: Kjelsås | E16: =IF(F16<=4,Q16,(Q16-SUM(SMALL(R16:Y16,{1;2;3;4})))) -> 145 | F16: =(IF(AC16=5,1,0)+IF(AH16=5,1,0)+IF(AM16=5,1,0)+IF(AR16=5,1,0)+IF(AW16=5,1,0)+IF(BB16=5,1,0)+IF(BG16=5,1,0)+IF(BL16=5,1,0)) -> 6 | H16: =IF(AA16="","",AA16) -> 10 | I16: =IF(AF16="","",AF16) -> dsq | J16: =IF(AK16="","",AK16) -> 19 | K16: =IF(AP16="","",AP16) -> 14 | L16: =IF(AU16="","",AU16) ->  | M16: =IF(AZ16="","",AZ16) -> 10 | N16: =IF(BE16="","",BE16) -> 5 | O16: =IF(BJ16="","",BJ16) ->  | Q16: =AD16+AI16+AN16+AS16+AX16+BC16+BH16 -> 157 | R16: =IF($F16>=5,IF(AB16="","",AB16),"") -> 26 | S16: =IF($F16>=5,IF(AG16="","",AG16),"") -> 0 | T16: =IF($F16>=5,IF(AL16="","",AL16),"") -> 12 | U16: =IF($F16>=5,IF(AQ16="","",AQ16),"") -> 18 | V16: =IF($F16>=5,IF(AV16="","",AV16),"") -> 0 | W16: =IF($F16>=5,IF(BA16="","",BA16),"") -> 26 | X16: =IF($F16>=5,IF(BF16="","",BF16),"") -> 45 | Y16: =IF($F16>=5,IF(BK16="","",BK16),"") -> 0 | AA16: 10 | AB16: =IF(ISNUMBER(AA16),(VLOOKUP(AA16,$BO$6:$BP$50,2)),0) -> 26 | AC16: =IF(AA16<>"",5,0) -> 5 | AD16: =AB16+AC16 -> 31 | AF16: dsq | AG16: =IF(ISNUMBER(AF16),(VLOOKUP(AF16,$BO$6:$BP$50,2)),0) -> 0 | AH16: =IF(AF16<>"",5,0) -> 5 | AI16: =AG16+AH16 -> 5 | AK16: 19 | AL16: =IF(ISNUMBER(AK16),(VLOOKUP(AK16,$BO$6:$BP$50,2)),0) -> 12 | AM16: =IF(AK16<>"",5,0) -> 5 | AN16: =AL16+AM16 -> 17 | AP16: 14 | AQ16: =IF(ISNUMBER(AP16),(VLOOKUP(AP16,$BO$6:$BP$50,2)),0) -> 18 | AR16: =IF(AP16<>"",5,0) -> 5 | AS16: =AQ16+AR16 -> 23 | AV16: =IF(ISNUMBER(AU16),(VLOOKUP(AU16,$BO$6:$BP$50,2)),0) -> 0 | AW16: =IF(AU16<>"",5,0) -> 0 | AX16: =AV16+AW16 -> 0 | AZ16: 10 | BA16: =IF(ISNUMBER(AZ16),(VLOOKUP(AZ16,$BO$6:$BP$50,2)),0) -> 26 | BB16: =IF(AZ16<>"",5,0) -> 5 | BC16: =BA16+BB16 -> 31 | BE16: 5 | BF16: =IF(ISNUMBER(BE16),(VLOOKUP(BE16,$BO$6:$BP$50,2)),0) -> 45 | BG16: =IF(BE16<>"",5,0) -> 5 | BH16: =BF16+BG16 -> 50 | BK16: =IF(ISNUMBER(BJ16),(VLOOKUP(BJ16,$BO$6:$BP$50,2)),0) -> 0 | BL16: =IF(BJ16<>"",5,0) -> 0 | BM16: =BK16+BL16 -> 0 | BO16: 11 | BP16: 24 | BQ16: 0 | BR16: 0 | BS16: 1 | BT16: 0 | BU16: 0 | BV16: 0 | BW16: 0 | BX16: 0
A17: =IF(E17<E16,BO17,A16) -> 12 | B17: Hartmann | C17: Marius Holm | D17: Ready | E17: =IF(F17<=4,Q17,(Q17-SUM(SMALL(R17:Y17,{1;2;3;4})))) -> 133 | F17: =(IF(AC17=5,1,0)+IF(AH17=5,1,0)+IF(AM17=5,1,0)+IF(AR17=5,1,0)+IF(AW17=5,1,0)+IF(BB17=5,1,0)+IF(BG17=5,1,0)+IF(BL17=5,1,0)) -> 7 | H17: =IF(AA17="","",AA17) -> 12 | I17: =IF(AF17="","",AF17) -> 6 | J17: =IF(AK17="","",AK17) -> 20 | K17: =IF(AP17="","",AP17) -> 15 | L17: =IF(AU17="","",AU17) -> 19 | M17: =IF(AZ17="","",AZ17) -> 21 | N17: =IF(BE17="","",BE17) -> 13 | O17: =IF(BJ17="","",BJ17) ->  | Q17: =AD17+AI17+AN17+AS17+AX17+BC17+BH17 -> 166 | R17: =IF($F17>=5,IF(AB17="","",AB17),"") -> 22 | S17: =IF($F17>=5,IF(AG17="","",AG17),"") -> 40 | T17: =IF($F17>=5,IF(AL17="","",AL17),"") -> 11 | U17: =IF($F17>=5,IF(AQ17="","",AQ17),"") -> 16 | V17: =IF($F17>=5,IF(AV17="","",AV17),"") -> 12 | W17: =IF($F17>=5,IF(BA17="","",BA17),"") -> 10 | X17: =IF($F17>=5,IF(BF17="","",BF17),"") -> 20 | Y17: =IF($F17>=5,IF(BK17="","",BK17),"") -> 0 | AA17: 12 | AB17: =IF(ISNUMBER(AA17),(VLOOKUP(AA17,$BO$6:$BP$50,2)),0) -> 22 | AC17: =IF(AA17<>"",5,0) -> 5 | AD17: =AB17+AC17 -> 27 | AF17: 6 | AG17: =IF(ISNUMBER(AF17),(VLOOKUP(AF17,$BO$6:$BP$50,2)),0) -> 40 | AH17: =IF(AF17<>"",5,0) -> 5 | AI17: =AG17+AH17 -> 45 | AK17: 20 | AL17: =IF(ISNUMBER(AK17),(VLOOKUP(AK17,$BO$6:$BP$50,2)),0) -> 11 | AM17: =IF(AK17<>"",5,0) -> 5 | AN17: =AL17+AM17 -> 16 | AP17: 15 | AQ17: =IF(ISNUMBER(AP17),(VLOOKUP(AP17,$BO$6:$BP$50,2)),0) -> 16 | AR17: =IF(AP17<>"",5,0) -> 5 | AS17: =AQ17+AR17 -> 21 | AU17: 19 | AV17: =IF(ISNUMBER(AU17),(VLOOKUP(AU17,$BO$6:$BP$50,2)),0) -> 12 | AW17: =IF(AU17<>"",5,0) -> 5 | AX17: =AV17+AW17 -> 17 | AZ17: 21 | BA17: =IF(ISNUMBER(AZ17),(VLOOKUP(AZ17,$BO$6:$BP$50,2)),0) -> 10 | BB17: =IF(AZ17<>"",5,0) -> 5 | BC17: =BA17+BB17 -> 15 | BE17: 13 | BF17: =IF(ISNUMBER(BE17),(VLOOKUP(BE17,$BO$6:$BP$50,2)),0) -> 20 | BG17: =IF(BE17<>"",5,0) -> 5 | BH17: =BF17+BG17 -> 25 | BK17: =IF(ISNUMBER(BJ17),(VLOOKUP(BJ17,$BO$6:$BP$50,2)),0) -> 0 | BL17: =IF(BJ17<>"",5,0) -> 0 | BM17: =BK17+BL17 -> 0 | BO17: 12 | BP17: 22 | BQ17: 0 | BR17: 1 | BS17: 0 | BT17: 0 | BU17: 0 | BV17: 0 | BW17: 0 | BX17: 0
A18: =IF(E18<E17,BO18,A17) -> 13 | B18: Kvæl | C18: Elias | D18: Rælingen | E18: =IF(F18<=4,Q18,(Q18-SUM(SMALL(R18:Y18,{1;2;3;4})))) -> 120 | F18: =(IF(AC18=5,1,0)+IF(AH18=5,1,0)+IF(AM18=5,1,0)+IF(AR18=5,1,0)+IF(AW18=5,1,0)+IF(BB18=5,1,0)+IF(BG18=5,1,0)+IF(BL18=5,1,0)) -> 2 | H18: =IF(AA18="","",AA18) ->  | I18: =IF(AF18="","",AF18) ->  | J18: =IF(AK18="","",AK18) ->  | K18: =IF(AP18="","",AP18) ->  | L18: =IF(AU18="","",AU18) -> 4 | M18: =IF(AZ18="","",AZ18) -> 3 | N18: =IF(BE18="","",BE18) ->  | O18: =IF(BJ18="","",BJ18) ->  | Q18: =AD18+AI18+AN18+AS18+AX18+BC18+BH18 -> 120 | R18: =IF($F18>=5,IF(AB18="","",AB18),"") ->  | S18: =IF($F18>=5,IF(AG18="","",AG18),"") ->  | T18: =IF($F18>=5,IF(AL18="","",AL18),"") ->  | U18: =IF($F18>=5,IF(AQ18="","",AQ18),"") ->  | V18: =IF($F18>=5,IF(AV18="","",AV18),"") ->  | W18: =IF($F18>=5,IF(BA18="","",BA18),"") ->  | X18: =IF($F18>=5,IF(BF18="","",BF18),"") ->  | Y18: =IF($F18>=5,IF(BK18="","",BK18),"") ->  | AB18: =IF(ISNUMBER(AA18),(VLOOKUP(AA18,$BO$6:$BP$50,2)),0) -> 0 | AC18: =IF(AA18<>"",5,0) -> 0 | AD18: =AB18+AC18 -> 0 | AG18: =IF(ISNUMBER(AF18),(VLOOKUP(AF18,$BO$6:$BP$50,2)),0) -> 0 | AH18: =IF(AF18<>"",5,0) -> 0 | AI18: =AG18+AH18 -> 0 | AL18: =IF(ISNUMBER(AK18),(VLOOKUP(AK18,$BO$6:$BP$50,2)),0) -> 0 | AM18: =IF(AK18<>"",5,0) -> 0 | AN18: =AL18+AM18 -> 0 | AQ18: =IF(ISNUMBER(AP18),(VLOOKUP(AP18,$BO$6:$BP$50,2)),0) -> 0 | AR18: =IF(AP18<>"",5,0) -> 0 | AS18: =AQ18+AR18 -> 0 | AU18: 4 | AV18: =IF(ISNUMBER(AU18),(VLOOKUP(AU18,$BO$6:$BP$50,2)),0) -> 50 | AW18: =IF(AU18<>"",5,0) -> 5 | AX18: =AV18+AW18 -> 55 | AZ18: 3 | BA18: =IF(ISNUMBER(AZ18),(VLOOKUP(AZ18,$BO$6:$BP$50,2)),0) -> 60 | BB18: =IF(AZ18<>"",5,0) -> 5 | BC18: =BA18+BB18 -> 65 | BF18: =IF(ISNUMBER(BE18),(VLOOKUP(BE18,$BO$6:$BP$50,2)),0) -> 0 | BG18: =IF(BE18<>"",5,0) -> 0 | BH18: =BF18+BG18 -> 0 | BK18: =IF(ISNUMBER(BJ18),(VLOOKUP(BJ18,$BO$6:$BP$50,2)),0) -> 0 | BL18: =IF(BJ18<>"",5,0) -> 0 | BM18: =BK18+BL18 -> 0 | BO18: 13 | BP18: 20 | BQ18: 0 | BR18: =IF($F17=7,1,0) -> 1 | BS18: =IF($F17=6,1,0) -> 0 | BT18: =IF($F17=5,1,0) -> 0 | BU18: =IF($F17=4,1,0) -> 0 | BV18: =IF($F17=3,1,0) -> 0 | BW18: =IF($F17=2,1,0) -> 0 | BX18: =IF($F17=1,1,0) -> 0
A19: =IF(E19<E18,BO19,A18) -> 13 | B19: Rehman | C19: Tor Fabian Evert | D19: Ready | E19: =IF(F19<=4,Q19,(Q19-SUM(SMALL(R19:Y19,{1;2;3;4})))) -> 120 | F19: =(IF(AC19=5,1,0)+IF(AH19=5,1,0)+IF(AM19=5,1,0)+IF(AR19=5,1,0)+IF(AW19=5,1,0)+IF(BB19=5,1,0)+IF(BG19=5,1,0)+IF(BL19=5,1,0)) -> 4 | H19: =IF(AA19="","",AA19) -> 9 | I19: =IF(AF19="","",AF19) ->  | J19: =IF(AK19="","",AK19) -> 18 | K19: =IF(AP19="","",AP19) -> 12 | L19: =IF(AU19="","",AU19) ->  | M19: =IF(AZ19="","",AZ19) ->  | N19: =IF(BE19="","",BE19) -> 7 | O19: =IF(BJ19="","",BJ19) ->  | Q19: =AD19+AI19+AN19+AS19+AX19+BC19+BH19 -> 120 | R19: =IF($F19>=5,IF(AB19="","",AB19),"") ->  | S19: =IF($F19>=5,IF(AG19="","",AG19),"") ->  | T19: =IF($F19>=5,IF(AL19="","",AL19),"") ->  | U19: =IF($F19>=5,IF(AQ19="","",AQ19),"") ->  | V19: =IF($F19>=5,IF(AV19="","",AV19),"") ->  | W19: =IF($F19>=5,IF(BA19="","",BA19),"") ->  | X19: =IF($F19>=5,IF(BF19="","",BF19),"") ->  | Y19: =IF($F19>=5,IF(BK19="","",BK19),"") ->  | AA19: 9 | AB19: =IF(ISNUMBER(AA19),(VLOOKUP(AA19,$BO$6:$BP$50,2)),0) -> 29 | AC19: =IF(AA19<>"",5,0) -> 5 | AD19: =AB19+AC19 -> 34 | AG19: =IF(ISNUMBER(AF19),(VLOOKUP(AF19,$BO$6:$BP$50,2)),0) -> 0 | AH19: =IF(AF19<>"",5,0) -> 0 | AI19: =AG19+AH19 -> 0 | AK19: 18 | AL19: =IF(ISNUMBER(AK19),(VLOOKUP(AK19,$BO$6:$BP$50,2)),0) -> 13 | AM19: =IF(AK19<>"",5,0) -> 5 | AN19: =AL19+AM19 -> 18 | AP19: 12 | AQ19: =IF(ISNUMBER(AP19),(VLOOKUP(AP19,$BO$6:$BP$50,2)),0) -> 22 | AR19: =IF(AP19<>"",5,0) -> 5 | AS19: =AQ19+AR19 -> 27 | AV19: =IF(ISNUMBER(AU19),(VLOOKUP(AU19,$BO$6:$BP$50,2)),0) -> 0 | AW19: =IF(AU19<>"",5,0) -> 0 | AX19: =AV19+AW19 -> 0 | BA19: =IF(ISNUMBER(AZ19),(VLOOKUP(AZ19,$BO$6:$BP$50,2)),0) -> 0 | BB19: =IF(AZ19<>"",5,0) -> 0 | BC19: =BA19+BB19 -> 0 | BE19: 7 | BF19: =IF(ISNUMBER(BE19),(VLOOKUP(BE19,$BO$6:$BP$50,2)),0) -> 36 | BG19: =IF(BE19<>"",5,0) -> 5 | BH19: =BF19+BG19 -> 41 | BK19: =IF(ISNUMBER(BJ19),(VLOOKUP(BJ19,$BO$6:$BP$50,2)),0) -> 0 | BL19: =IF(BJ19<>"",5,0) -> 0 | BM19: =BK19+BL19 -> 0 | BO19: 14 | BP19: 18 | BQ19: 0 | BR19: =IF($F18=7,1,0) -> 0 | BS19: =IF($F18=6,1,0) -> 0 | BT19: =IF($F18=5,1,0) -> 0 | BU19: =IF($F18=4,1,0) -> 0 | BV19: =IF($F18=3,1,0) -> 0 | BW19: =IF($F18=2,1,0) -> 1 | BX19: =IF($F18=1,1,0) -> 0
A20: =IF(E20<E19,BO20,A19) -> 15 | B20: Lysgård | C20: Sebastian | D20: Try | E20: =IF(F20<=4,Q20,(Q20-SUM(SMALL(R20:Y20,{1;2;3;4})))) -> 116 | F20: =(IF(AC20=5,1,0)+IF(AH20=5,1,0)+IF(AM20=5,1,0)+IF(AR20=5,1,0)+IF(AW20=5,1,0)+IF(BB20=5,1,0)+IF(BG20=5,1,0)+IF(BL20=5,1,0)) -> 7 | H20: =IF(AA20="","",AA20) -> 16 | I20: =IF(AF20="","",AF20) -> dsq | J20: =IF(AK20="","",AK20) -> 22 | K20: =IF(AP20="","",AP20) -> 11 | L20: =IF(AU20="","",AU20) -> 15 | M20: =IF(AZ20="","",AZ20) -> 20 | N20: =IF(BE20="","",BE20) -> 10 | O20: =IF(BJ20="","",BJ20) ->  | Q20: =AD20+AI20+AN20+AS20+AX20+BC20+BH20 -> 136 | R20: =IF($F20>=5,IF(AB20="","",AB20),"") -> 15 | S20: =IF($F20>=5,IF(AG20="","",AG20),"") -> 0 | T20: =IF($F20>=5,IF(AL20="","",AL20),"") -> 9 | U20: =IF($F20>=5,IF(AQ20="","",AQ20),"") -> 24 | V20: =IF($F20>=5,IF(AV20="","",AV20),"") -> 16 | W20: =IF($F20>=5,IF(BA20="","",BA20),"") -> 11 | X20: =IF($F20>=5,IF(BF20="","",BF20),"") -> 26 | Y20: =IF($F20>=5,IF(BK20="","",BK20),"") -> 0 | AA20: 16 | AB20: =IF(ISNUMBER(AA20),(VLOOKUP(AA20,$BO$6:$BP$50,2)),0) -> 15 | AC20: =IF(AA20<>"",5,0) -> 5 | AD20: =AB20+AC20 -> 20 | AF20: dsq | AG20: =IF(ISNUMBER(AF20),(VLOOKUP(AF20,$BO$6:$BP$50,2)),0) -> 0 | AH20: =IF(AF20<>"",5,0) -> 5 | AI20: =AG20+AH20 -> 5 | AK20: 22 | AL20: =IF(ISNUMBER(AK20),(VLOOKUP(AK20,$BO$6:$BP$50,2)),0) -> 9 | AM20: =IF(AK20<>"",5,0) -> 5 | AN20: =AL20+AM20 -> 14 | AP20: 11 | AQ20: =IF(ISNUMBER(AP20),(VLOOKUP(AP20,$BO$6:$BP$50,2)),0) -> 24 | AR20: =IF(AP20<>"",5,0) -> 5 | AS20: =AQ20+AR20 -> 29 | AU20: 15 | AV20: =IF(ISNUMBER(AU20),(VLOOKUP(AU20,$BO$6:$BP$50,2)),0) -> 16 | AW20: =IF(AU20<>"",5,0) -> 5 | AX20: =AV20+AW20 -> 21 | AZ20: 20 | BA20: =IF(ISNUMBER(AZ20),(VLOOKUP(AZ20,$BO$6:$BP$50,2)),0) -> 11 | BB20: =IF(AZ20<>"",5,0) -> 5 | BC20: =BA20+BB20 -> 16 | BE20: 10 | BF20: =IF(ISNUMBER(BE20),(VLOOKUP(BE20,$BO$6:$BP$50,2)),0) -> 26 | BG20: =IF(BE20<>"",5,0) -> 5 | BH20: =BF20+BG20 -> 31 | BK20: =IF(ISNUMBER(BJ20),(VLOOKUP(BJ20,$BO$6:$BP$50,2)),0) -> 0 | BL20: =IF(BJ20<>"",5,0) -> 0 | BM20: =BK20+BL20 -> 0 | BO20: 15 | BP20: 16 | BQ20: 0 | BR20: =IF($F19=7,1,0) -> 0 | BS20: =IF($F19=6,1,0) -> 0 | BT20: =IF($F19=5,1,0) -> 0 | BU20: =IF($F19=4,1,0) -> 1 | BV20: =IF($F19=3,1,0) -> 0 | BW20: =IF($F19=2,1,0) -> 0 | BX20: =IF($F19=1,1,0) -> 0
A21: =IF(E21<E20,BO21,A20) -> 16 | B21: Knudsen | C21: Leon Loco | D21: IRS | E21: =IF(F21<=4,Q21,(Q21-SUM(SMALL(R21:Y21,{1;2;3;4})))) -> 110 | F21: =(IF(AC21=5,1,0)+IF(AH21=5,1,0)+IF(AM21=5,1,0)+IF(AR21=5,1,0)+IF(AW21=5,1,0)+IF(BB21=5,1,0)+IF(BG21=5,1,0)+IF(BL21=5,1,0)) -> 2 | H21: =IF(AA21="","",AA21) ->  | I21: =IF(AF21="","",AF21) ->  | J21: =IF(AK21="","",AK21) ->  | K21: =IF(AP21="","",AP21) ->  | L21: =IF(AU21="","",AU21) ->  | M21: =IF(AZ21="","",AZ21) -> 1 | N21: =IF(BE21="","",BE21) -> dsq | O21: =IF(BJ21="","",BJ21) ->  | Q21: =AD21+AI21+AN21+AS21+AX21+BC21+BH21 -> 110 | R21: =IF($F21>=5,IF(AB21="","",AB21),"") ->  | S21: =IF($F21>=5,IF(AG21="","",AG21),"") ->  | T21: =IF($F21>=5,IF(AL21="","",AL21),"") ->  | U21: =IF($F21>=5,IF(AQ21="","",AQ21),"") ->  | V21: =IF($F21>=5,IF(AV21="","",AV21),"") ->  | W21: =IF($F21>=5,IF(BA21="","",BA21),"") ->  | X21: =IF($F21>=5,IF(BF21="","",BF21),"") ->  | Y21: =IF($F21>=5,IF(BK21="","",BK21),"") ->  | AB21: =IF(ISNUMBER(AA21),(VLOOKUP(AA21,$BO$6:$BP$50,2)),0) -> 0 | AC21: =IF(AA21<>"",5,0) -> 0 | AD21: =AB21+AC21 -> 0 | AG21: =IF(ISNUMBER(AF21),(VLOOKUP(AF21,$BO$6:$BP$50,2)),0) -> 0 | AH21: =IF(AF21<>"",5,0) -> 0 | AI21: =AG21+AH21 -> 0 | AL21: =IF(ISNUMBER(AK21),(VLOOKUP(AK21,$BO$6:$BP$50,2)),0) -> 0 | AM21: =IF(AK21<>"",5,0) -> 0 | AN21: =AL21+AM21 -> 0 | AQ21: =IF(ISNUMBER(AP21),(VLOOKUP(AP21,$BO$6:$BP$50,2)),0) -> 0 | AR21: =IF(AP21<>"",5,0) -> 0 | AS21: =AQ21+AR21 -> 0 | AV21: =IF(ISNUMBER(AU21),(VLOOKUP(AU21,$BO$6:$BP$50,2)),0) -> 0 | AW21: =IF(AU21<>"",5,0) -> 0 | AX21: =AV21+AW21 -> 0 | AZ21: 1 | BA21: =IF(ISNUMBER(AZ21),(VLOOKUP(AZ21,$BO$6:$BP$50,2)),0) -> 100 | BB21: =IF(AZ21<>"",5,0) -> 5 | BC21: =BA21+BB21 -> 105 | BE21: dsq | BF21: =IF(ISNUMBER(BE21),(VLOOKUP(BE21,$BO$6:$BP$50,2)),0) -> 0 | BG21: =IF(BE21<>"",5,0) -> 5 | BH21: =BF21+BG21 -> 5 | BK21: =IF(ISNUMBER(BJ21),(VLOOKUP(BJ21,$BO$6:$BP$50,2)),0) -> 0 | BL21: =IF(BJ21<>"",5,0) -> 0 | BM21: =BK21+BL21 -> 0 | BO21: 16 | BP21: 15 | BQ21: 0 | BR21: =IF($F19=7,1,0) -> 0 | BS21: =IF($F19=6,1,0) -> 0 | BT21: =IF($F19=5,1,0) -> 0 | BU21: =IF($F19=4,1,0) -> 1 | BV21: =IF($F19=3,1,0) -> 0 | BW21: =IF($F19=2,1,0) -> 0 | BX21: =IF($F19=1,1,0) -> 0
A22: =IF(E22<E21,BO22,A21) -> 17 | B22: Tschudi-Nytvedt | C22: Sebastian | D22: Heming | E22: =IF(F22<=4,Q22,(Q22-SUM(SMALL(R22:Y22,{1;2;3;4})))) -> 100 | F22: =(IF(AC22=5,1,0)+IF(AH22=5,1,0)+IF(AM22=5,1,0)+IF(AR22=5,1,0)+IF(AW22=5,1,0)+IF(BB22=5,1,0)+IF(BG22=5,1,0)+IF(BL22=5,1,0)) -> 3 | H22: =IF(AA22="","",AA22) ->  | I22: =IF(AF22="","",AF22) ->  | J22: =IF(AK22="","",AK22) -> 9 | K22: =IF(AP22="","",AP22) -> 7 | L22: =IF(AU22="","",AU22) -> 13 | M22: =IF(AZ22="","",AZ22) ->  | N22: =IF(BE22="","",BE22) ->  | O22: =IF(BJ22="","",BJ22) ->  | Q22: =AD22+AI22+AN22+AS22+AX22+BC22+BH22 -> 100 | R22: =IF($F22>=5,IF(AB22="","",AB22),"") ->  | S22: =IF($F22>=5,IF(AG22="","",AG22),"") ->  | T22: =IF($F22>=5,IF(AL22="","",AL22),"") ->  | U22: =IF($F22>=5,IF(AQ22="","",AQ22),"") ->  | V22: =IF($F22>=5,IF(AV22="","",AV22),"") ->  | W22: =IF($F22>=5,IF(BA22="","",BA22),"") ->  | X22: =IF($F22>=5,IF(BF22="","",BF22),"") ->  | Y22: =IF($F22>=5,IF(BK22="","",BK22),"") ->  | AB22: =IF(ISNUMBER(AA22),(VLOOKUP(AA22,$BO$6:$BP$50,2)),0) -> 0 | AC22: =IF(AA22<>"",5,0) -> 0 | AD22: =AB22+AC22 -> 0 | AG22: =IF(ISNUMBER(AF22),(VLOOKUP(AF22,$BO$6:$BP$50,2)),0) -> 0 | AH22: =IF(AF22<>"",5,0) -> 0 | AI22: =AG22+AH22 -> 0 | AK22: 9 | AL22: =IF(ISNUMBER(AK22),(VLOOKUP(AK22,$BO$6:$BP$50,2)),0) -> 29 | AM22: =IF(AK22<>"",5,0) -> 5 | AN22: =AL22+AM22 -> 34 | AP22: 7 | AQ22: =IF(ISNUMBER(AP22),(VLOOKUP(AP22,$BO$6:$BP$50,2)),0) -> 36 | AR22: =IF(AP22<>"",5,0) -> 5 | AS22: =AQ22+AR22 -> 41 | AU22: 13 | AV22: =IF(ISNUMBER(AU22),(VLOOKUP(AU22,$BO$6:$BP$50,2)),0) -> 20 | AW22: =IF(AU22<>"",5,0) -> 5 | AX22: =AV22+AW22 -> 25 | BA22: =IF(ISNUMBER(AZ22),(VLOOKUP(AZ22,$BO$6:$BP$50,2)),0) -> 0 | BB22: =IF(AZ22<>"",5,0) -> 0 | BC22: =BA22+BB22 -> 0 | BF22: =IF(ISNUMBER(BE22),(VLOOKUP(BE22,$BO$6:$BP$50,2)),0) -> 0 | BG22: =IF(BE22<>"",5,0) -> 0 | BH22: =BF22+BG22 -> 0 | BK22: =IF(ISNUMBER(BJ22),(VLOOKUP(BJ22,$BO$6:$BP$50,2)),0) -> 0 | BL22: =IF(BJ22<>"",5,0) -> 0 | BM22: =BK22+BL22 -> 0 | BO22: 17 | BP22: 14 | BQ22: 0 | BR22: 1 | BS22: 0 | BT22: 0 | BU22: 0 | BV22: 0 | BW22: 0 | BX22: 0
A23: =IF(E23<E22,BO23,A22) -> 18 | B23: Johnsen | C23: Christian Hjallum | D23: Heming | E23: =IF(F23<=4,Q23,(Q23-SUM(SMALL(R23:Y23,{1;2;3;4})))) -> 98 | F23: =(IF(AC23=5,1,0)+IF(AH23=5,1,0)+IF(AM23=5,1,0)+IF(AR23=5,1,0)+IF(AW23=5,1,0)+IF(BB23=5,1,0)+IF(BG23=5,1,0)+IF(BL23=5,1,0)) -> 4 | H23: =IF(AA23="","",AA23) -> dsq | I23: =IF(AF23="","",AF23) ->  | J23: =IF(AK23="","",AK23) -> 13 | K23: =IF(AP23="","",AP23) -> 9 | L23: =IF(AU23="","",AU23) ->  | M23: =IF(AZ23="","",AZ23) ->  | N23: =IF(BE23="","",BE23) -> 9 | O23: =IF(BJ23="","",BJ23) ->  | Q23: =AD23+AI23+AN23+AS23+AX23+BC23+BH23 -> 98 | R23: =IF($F23>=5,IF(AB23="","",AB23),"") ->  | S23: =IF($F23>=5,IF(AG23="","",AG23),"") ->  | T23: =IF($F23>=5,IF(AL23="","",AL23),"") ->  | U23: =IF($F23>=5,IF(AQ23="","",AQ23),"") ->  | V23: =IF($F23>=5,IF(AV23="","",AV23),"") ->  | W23: =IF($F23>=5,IF(BA23="","",BA23),"") ->  | X23: =IF($F23>=5,IF(BF23="","",BF23),"") ->  | Y23: =IF($F23>=5,IF(BK23="","",BK23),"") ->  | AA23: dsq | AB23: =IF(ISNUMBER(AA23),(VLOOKUP(AA23,$BO$6:$BP$50,2)),0) -> 0 | AC23: =IF(AA23<>"",5,0) -> 5 | AD23: =AB23+AC23 -> 5 | AG23: =IF(ISNUMBER(AF23),(VLOOKUP(AF23,$BO$6:$BP$50,2)),0) -> 0 | AH23: =IF(AF23<>"",5,0) -> 0 | AI23: =AG23+AH23 -> 0 | AK23: 13 | AL23: =IF(ISNUMBER(AK23),(VLOOKUP(AK23,$BO$6:$BP$50,2)),0) -> 20 | AM23: =IF(AK23<>"",5,0) -> 5 | AN23: =AL23+AM23 -> 25 | AP23: 9 | AQ23: =IF(ISNUMBER(AP23),(VLOOKUP(AP23,$BO$6:$BP$50,2)),0) -> 29 | AR23: =IF(AP23<>"",5,0) -> 5 | AS23: =AQ23+AR23 -> 34 | AV23: =IF(ISNUMBER(AU23),(VLOOKUP(AU23,$BO$6:$BP$50,2)),0) -> 0 | AW23: =IF(AU23<>"",5,0) -> 0 | AX23: =AV23+AW23 -> 0 | BA23: =IF(ISNUMBER(AZ23),(VLOOKUP(AZ23,$BO$6:$BP$50,2)),0) -> 0 | BB23: =IF(AZ23<>"",5,0) -> 0 | BC23: =BA23+BB23 -> 0 | BE23: 9 | BF23: =IF(ISNUMBER(BE23),(VLOOKUP(BE23,$BO$6:$BP$50,2)),0) -> 29 | BG23: =IF(BE23<>"",5,0) -> 5 | BH23: =BF23+BG23 -> 34 | BK23: =IF(ISNUMBER(BJ23),(VLOOKUP(BJ23,$BO$6:$BP$50,2)),0) -> 0 | BL23: =IF(BJ23<>"",5,0) -> 0 | BM23: =BK23+BL23 -> 0 | BO23: 18 | BP23: 13 | BQ23: 0 | BR23: 0 | BS23: 0 | BT23: 0 | BU23: 0 | BV23: 0 | BW23: 1 | BX23: 0
A24: =IF(E24<E23,BO24,A23) -> 19 | B24: Bakkevig | C24: Johannes | D24: Heming | E24: =IF(F24<=4,Q24,(Q24-SUM(SMALL(R24:Y24,{1;2;3;4})))) -> 97 | F24: =(IF(AC24=5,1,0)+IF(AH24=5,1,0)+IF(AM24=5,1,0)+IF(AR24=5,1,0)+IF(AW24=5,1,0)+IF(BB24=5,1,0)+IF(BG24=5,1,0)+IF(BL24=5,1,0)) -> 2 | H24: =IF(AA24="","",AA24) ->  | I24: =IF(AF24="","",AF24) ->  | J24: =IF(AK24="","",AK24) ->  | K24: =IF(AP24="","",AP24) ->  | L24: =IF(AU24="","",AU24) -> 24 | M24: =IF(AZ24="","",AZ24) ->  | N24: =IF(BE24="","",BE24) -> 2 | O24: =IF(BJ24="","",BJ24) ->  | Q24: =AD24+AI24+AN24+AS24+AX24+BC24+BH24 -> 97 | R24: =IF($F24>=5,IF(AB24="","",AB24),"") ->  | S24: =IF($F24>=5,IF(AG24="","",AG24),"") ->  | T24: =IF($F24>=5,IF(AL24="","",AL24),"") ->  | U24: =IF($F24>=5,IF(AQ24="","",AQ24),"") ->  | V24: =IF($F24>=5,IF(AV24="","",AV24),"") ->  | W24: =IF($F24>=5,IF(BA24="","",BA24),"") ->  | X24: =IF($F24>=5,IF(BF24="","",BF24),"") ->  | Y24: =IF($F24>=5,IF(BK24="","",BK24),"") ->  | AB24: =IF(ISNUMBER(AA24),(VLOOKUP(AA24,$BO$6:$BP$50,2)),0) -> 0 | AC24: =IF(AA24<>"",5,0) -> 0 | AD24: =AB24+AC24 -> 0 | AG24: =IF(ISNUMBER(AF24),(VLOOKUP(AF24,$BO$6:$BP$50,2)),0) -> 0 | AH24: =IF(AF24<>"",5,0) -> 0 | AI24: =AG24+AH24 -> 0 | AL24: =IF(ISNUMBER(AK24),(VLOOKUP(AK24,$BO$6:$BP$50,2)),0) -> 0 | AM24: =IF(AK24<>"",5,0) -> 0 | AN24: =AL24+AM24 -> 0 | AQ24: =IF(ISNUMBER(AP24),(VLOOKUP(AP24,$BO$6:$BP$50,2)),0) -> 0 | AR24: =IF(AP24<>"",5,0) -> 0 | AS24: =AQ24+AR24 -> 0 | AU24: 24 | AV24: =IF(ISNUMBER(AU24),(VLOOKUP(AU24,$BO$6:$BP$50,2)),0) -> 7 | AW24: =IF(AU24<>"",5,0) -> 5 | AX24: =AV24+AW24 -> 12 | BA24: =IF(ISNUMBER(AZ24),(VLOOKUP(AZ24,$BO$6:$BP$50,2)),0) -> 0 | BB24: =IF(AZ24<>"",5,0) -> 0 | BC24: =BA24+BB24 -> 0 | BE24: 2 | BF24: =IF(ISNUMBER(BE24),(VLOOKUP(BE24,$BO$6:$BP$50,2)),0) -> 80 | BG24: =IF(BE24<>"",5,0) -> 5 | BH24: =BF24+BG24 -> 85 | BK24: =IF(ISNUMBER(BJ24),(VLOOKUP(BJ24,$BO$6:$BP$50,2)),0) -> 0 | BL24: =IF(BJ24<>"",5,0) -> 0 | BM24: =BK24+BL24 -> 0 | BO24: 19 | BP24: 12 | BQ24: 0 | BR24: 0 | BS24: 0 | BT24: 0 | BU24: 0 | BV24: 1 | BW24: 0 | BX24: 0
A25: =IF(E25<E24,BO25,A24) -> 20 | B25: Hole | C25: Henrik Grøthe | D25: IRS | E25: =IF(F25<=4,Q25,(Q25-SUM(SMALL(R25:Y25,{1;2;3;4})))) -> 96 | F25: =(IF(AC25=5,1,0)+IF(AH25=5,1,0)+IF(AM25=5,1,0)+IF(AR25=5,1,0)+IF(AW25=5,1,0)+IF(BB25=5,1,0)+IF(BG25=5,1,0)+IF(BL25=5,1,0)) -> 4 | H25: =IF(AA25="","",AA25) -> 14 | I25: =IF(AF25="","",AF25) -> 7 | J25: =IF(AK25="","",AK25) ->  | K25: =IF(AP25="","",AP25) ->  | L25: =IF(AU25="","",AU25) -> 21 | M25: =IF(AZ25="","",AZ25) ->  | N25: =IF(BE25="","",BE25) -> 19 | O25: =IF(BJ25="","",BJ25) ->  | Q25: =AD25+AI25+AN25+AS25+AX25+BC25+BH25 -> 96 | R25: =IF($F25>=5,IF(AB25="","",AB25),"") ->  | S25: =IF($F25>=5,IF(AG25="","",AG25),"") ->  | T25: =IF($F25>=5,IF(AL25="","",AL25),"") ->  | U25: =IF($F25>=5,IF(AQ25="","",AQ25),"") ->  | V25: =IF($F25>=5,IF(AV25="","",AV25),"") ->  | W25: =IF($F25>=5,IF(BA25="","",BA25),"") ->  | X25: =IF($F25>=5,IF(BF25="","",BF25),"") ->  | Y25: =IF($F25>=5,IF(BK25="","",BK25),"") ->  | AA25: 14 | AB25: =IF(ISNUMBER(AA25),(VLOOKUP(AA25,$BO$6:$BP$50,2)),0) -> 18 | AC25: =IF(AA25<>"",5,0) -> 5 | AD25: =AB25+AC25 -> 23 | AF25: 7 | AG25: =IF(ISNUMBER(AF25),(VLOOKUP(AF25,$BO$6:$BP$50,2)),0) -> 36 | AH25: =IF(AF25<>"",5,0) -> 5 | AI25: =AG25+AH25 -> 41 | AL25: =IF(ISNUMBER(AK25),(VLOOKUP(AK25,$BO$6:$BP$50,2)),0) -> 0 | AM25: =IF(AK25<>"",5,0) -> 0 | AN25: =AL25+AM25 -> 0 | AQ25: =IF(ISNUMBER(AP25),(VLOOKUP(AP25,$BO$6:$BP$50,2)),0) -> 0 | AR25: =IF(AP25<>"",5,0) -> 0 | AS25: =AQ25+AR25 -> 0 | AU25: 21 | AV25: =IF(ISNUMBER(AU25),(VLOOKUP(AU25,$BO$6:$BP$50,2)),0) -> 10 | AW25: =IF(AU25<>"",5,0) -> 5 | AX25: =AV25+AW25 -> 15 | BA25: =IF(ISNUMBER(AZ25),(VLOOKUP(AZ25,$BO$6:$BP$50,2)),0) -> 0 | BB25: =IF(AZ25<>"",5,0) -> 0 | BC25: =BA25+BB25 -> 0 | BE25: 19 | BF25: =IF(ISNUMBER(BE25),(VLOOKUP(BE25,$BO$6:$BP$50,2)),0) -> 12 | BG25: =IF(BE25<>"",5,0) -> 5 | BH25: =BF25+BG25 -> 17 | BK25: =IF(ISNUMBER(BJ25),(VLOOKUP(BJ25,$BO$6:$BP$50,2)),0) -> 0 | BL25: =IF(BJ25<>"",5,0) -> 0 | BM25: =BK25+BL25 -> 0 | BO25: 20 | BP25: 11 | BQ25: 0 | BR25: 0 | BS25: 0 | BT25: 0 | BU25: 1 | BV25: 0 | BW25: 0 | BX25: 0
A26: =IF(E26<E25,BO26,A25) -> 20 | B26: Burum-Auensen | C26: Jan Nicolas | D26: Njård | E26: =IF(F26<=4,Q26,(Q26-SUM(SMALL(R26:Y26,{1;2;3;4})))) -> 96 | F26: =(IF(AC26=5,1,0)+IF(AH26=5,1,0)+IF(AM26=5,1,0)+IF(AR26=5,1,0)+IF(AW26=5,1,0)+IF(BB26=5,1,0)+IF(BG26=5,1,0)+IF(BL26=5,1,0)) -> 4 | H26: =IF(AA26="","",AA26) -> 15 | I26: =IF(AF26="","",AF26) ->  | J26: =IF(AK26="","",AK26) -> 14 | K26: =IF(AP26="","",AP26) -> 13 | L26: =IF(AU26="","",AU26) ->  | M26: =IF(AZ26="","",AZ26) ->  | N26: =IF(BE26="","",BE26) -> 12 | O26: =IF(BJ26="","",BJ26) ->  | Q26: =AD26+AI26+AN26+AS26+AX26+BC26+BH26 -> 96 | R26: =IF($F26>=5,IF(AB26="","",AB26),"") ->  | S26: =IF($F26>=5,IF(AG26="","",AG26),"") ->  | T26: =IF($F26>=5,IF(AL26="","",AL26),"") ->  | U26: =IF($F26>=5,IF(AQ26="","",AQ26),"") ->  | V26: =IF($F26>=5,IF(AV26="","",AV26),"") ->  | W26: =IF($F26>=5,IF(BA26="","",BA26),"") ->  | X26: =IF($F26>=5,IF(BF26="","",BF26),"") ->  | Y26: =IF($F26>=5,IF(BK26="","",BK26),"") ->  | AA26: 15 | AB26: =IF(ISNUMBER(AA26),(VLOOKUP(AA26,$BO$6:$BP$50,2)),0) -> 16 | AC26: =IF(AA26<>"",5,0) -> 5 | AD26: =AB26+AC26 -> 21 | AG26: =IF(ISNUMBER(AF26),(VLOOKUP(AF26,$BO$6:$BP$50,2)),0) -> 0 | AH26: =IF(AF26<>"",5,0) -> 0 | AI26: =AG26+AH26 -> 0 | AK26: 14 | AL26: =IF(ISNUMBER(AK26),(VLOOKUP(AK26,$BO$6:$BP$50,2)),0) -> 18 | AM26: =IF(AK26<>"",5,0) -> 5 | AN26: =AL26+AM26 -> 23 | AP26: 13 | AQ26: =IF(ISNUMBER(AP26),(VLOOKUP(AP26,$BO$6:$BP$50,2)),0) -> 20 | AR26: =IF(AP26<>"",5,0) -> 5 | AS26: =AQ26+AR26 -> 25 | AV26: =IF(ISNUMBER(AU26),(VLOOKUP(AU26,$BO$6:$BP$50,2)),0) -> 0 | AW26: =IF(AU26<>"",5,0) -> 0 | AX26: =AV26+AW26 -> 0 | BA26: =IF(ISNUMBER(AZ26),(VLOOKUP(AZ26,$BO$6:$BP$50,2)),0) -> 0 | BB26: =IF(AZ26<>"",5,0) -> 0 | BC26: =BA26+BB26 -> 0 | BE26: 12 | BF26: =IF(ISNUMBER(BE26),(VLOOKUP(BE26,$BO$6:$BP$50,2)),0) -> 22 | BG26: =IF(BE26<>"",5,0) -> 5 | BH26: =BF26+BG26 -> 27 | BK26: =IF(ISNUMBER(BJ26),(VLOOKUP(BJ26,$BO$6:$BP$50,2)),0) -> 0 | BL26: =IF(BJ26<>"",5,0) -> 0 | BM26: =BK26+BL26 -> 0 | BO26: 21 | BP26: 10 | BQ26: 0 | BR26: 0 | BS26: 0 | BT26: 0 | BU26: 0 | BV26: 0 | BW26: 1 | BX26: 0
A27: =IF(E27<E26,BO27,A26) -> 22 | B27: Kildal | C27: Peder Risøe | D27: Heming | E27: =IF(F27<=4,Q27,(Q27-SUM(SMALL(R27:Y27,{1;2;3;4})))) -> 91 | F27: =(IF(AC27=5,1,0)+IF(AH27=5,1,0)+IF(AM27=5,1,0)+IF(AR27=5,1,0)+IF(AW27=5,1,0)+IF(BB27=5,1,0)+IF(BG27=5,1,0)+IF(BL27=5,1,0)) -> 3 | H27: =IF(AA27="","",AA27) ->  | I27: =IF(AF27="","",AF27) ->  | J27: =IF(AK27="","",AK27) -> 10 | K27: =IF(AP27="","",AP27) -> 10 | L27: =IF(AU27="","",AU27) -> 11 | M27: =IF(AZ27="","",AZ27) ->  | N27: =IF(BE27="","",BE27) ->  | O27: =IF(BJ27="","",BJ27) ->  | Q27: =AD27+AI27+AN27+AS27+AX27+BC27+BH27 -> 91 | R27: =IF($F27>=5,IF(AB27="","",AB27),"") ->  | S27: =IF($F27>=5,IF(AG27="","",AG27),"") ->  | T27: =IF($F27>=5,IF(AL27="","",AL27),"") ->  | U27: =IF($F27>=5,IF(AQ27="","",AQ27),"") ->  | V27: =IF($F27>=5,IF(AV27="","",AV27),"") ->  | W27: =IF($F27>=5,IF(BA27="","",BA27),"") ->  | X27: =IF($F27>=5,IF(BF27="","",BF27),"") ->  | Y27: =IF($F27>=5,IF(BK27="","",BK27),"") ->  | AB27: =IF(ISNUMBER(AA27),(VLOOKUP(AA27,$BO$6:$BP$50,2)),0) -> 0 | AC27: =IF(AA27<>"",5,0) -> 0 | AD27: =AB27+AC27 -> 0 | AG27: =IF(ISNUMBER(AF27),(VLOOKUP(AF27,$BO$6:$BP$50,2)),0) -> 0 | AH27: =IF(AF27<>"",5,0) -> 0 | AI27: =AG27+AH27 -> 0 | AK27: 10 | AL27: =IF(ISNUMBER(AK27),(VLOOKUP(AK27,$BO$6:$BP$50,2)),0) -> 26 | AM27: =IF(AK27<>"",5,0) -> 5 | AN27: =AL27+AM27 -> 31 | AP27: 10 | AQ27: =IF(ISNUMBER(AP27),(VLOOKUP(AP27,$BO$6:$BP$50,2)),0) -> 26 | AR27: =IF(AP27<>"",5,0) -> 5 | AS27: =AQ27+AR27 -> 31 | AU27: 11 | AV27: =IF(ISNUMBER(AU27),(VLOOKUP(AU27,$BO$6:$BP$50,2)),0) -> 24 | AW27: =IF(AU27<>"",5,0) -> 5 | AX27: =AV27+AW27 -> 29 | BA27: =IF(ISNUMBER(AZ27),(VLOOKUP(AZ27,$BO$6:$BP$50,2)),0) -> 0 | BB27: =IF(AZ27<>"",5,0) -> 0 | BC27: =BA27+BB27 -> 0 | BF27: =IF(ISNUMBER(BE27),(VLOOKUP(BE27,$BO$6:$BP$50,2)),0) -> 0 | BG27: =IF(BE27<>"",5,0) -> 0 | BH27: =BF27+BG27 -> 0 | BK27: =IF(ISNUMBER(BJ27),(VLOOKUP(BJ27,$BO$6:$BP$50,2)),0) -> 0 | BL27: =IF(BJ27<>"",5,0) -> 0 | BM27: =BK27+BL27 -> 0 | BO27: 22 | BP27: 9 | BQ27: 0 | BR27: 0 | BS27: 0 | BT27: 0 | BU27: 1 | BV27: 0 | BW27: 0 | BX27: 0
A28: =IF(E28<E27,BO28,A27) -> 23 | B28: Helgerud | C28: Christoffer Teistum | D28: Ljan | E28: =IF(F28<=4,Q28,(Q28-SUM(SMALL(R28:Y28,{1;2;3;4})))) -> 73 | F28: =(IF(AC28=5,1,0)+IF(AH28=5,1,0)+IF(AM28=5,1,0)+IF(AR28=5,1,0)+IF(AW28=5,1,0)+IF(BB28=5,1,0)+IF(BG28=5,1,0)+IF(BL28=5,1,0)) -> 4 | H28: =IF(AA28="","",AA28) ->  | I28: =IF(AF28="","",AF28) ->  | J28: =IF(AK28="","",AK28) -> 16 | K28: =IF(AP28="","",AP28) -> 18 | L28: =IF(AU28="","",AU28) -> 26 | M28: =IF(AZ28="","",AZ28) -> 13 | N28: =IF(BE28="","",BE28) ->  | O28: =IF(BJ28="","",BJ28) ->  | Q28: =AD28+AI28+AN28+AS28+AX28+BC28+BH28 -> 73 | R28: =IF($F28>=5,IF(AB28="","",AB28),"") ->  | S28: =IF($F28>=5,IF(AG28="","",AG28),"") ->  | T28: =IF($F28>=5,IF(AL28="","",AL28),"") ->  | U28: =IF($F28>=5,IF(AQ28="","",AQ28),"") ->  | V28: =IF($F28>=5,IF(AV28="","",AV28),"") ->  | W28: =IF($F28>=5,IF(BA28="","",BA28),"") ->  | X28: =IF($F28>=5,IF(BF28="","",BF28),"") ->  | Y28: =IF($F28>=5,IF(BK28="","",BK28),"") ->  | AB28: =IF(ISNUMBER(AA28),(VLOOKUP(AA28,$BO$6:$BP$50,2)),0) -> 0 | AC28: =IF(AA28<>"",5,0) -> 0 | AD28: =AB28+AC28 -> 0 | AG28: =IF(ISNUMBER(AF28),(VLOOKUP(AF28,$BO$6:$BP$50,2)),0) -> 0 | AH28: =IF(AF28<>"",5,0) -> 0 | AI28: =AG28+AH28 -> 0 | AK28: 16 | AL28: =IF(ISNUMBER(AK28),(VLOOKUP(AK28,$BO$6:$BP$50,2)),0) -> 15 | AM28: =IF(AK28<>"",5,0) -> 5 | AN28: =AL28+AM28 -> 20 | AP28: 18 | AQ28: =IF(ISNUMBER(AP28),(VLOOKUP(AP28,$BO$6:$BP$50,2)),0) -> 13 | AR28: =IF(AP28<>"",5,0) -> 5 | AS28: =AQ28+AR28 -> 18 | AU28: 26 | AV28: =IF(ISNUMBER(AU28),(VLOOKUP(AU28,$BO$6:$BP$50,2)),0) -> 5 | AW28: =IF(AU28<>"",5,0) -> 5 | AX28: =AV28+AW28 -> 10 | AZ28: 13 | BA28: =IF(ISNUMBER(AZ28),(VLOOKUP(AZ28,$BO$6:$BP$50,2)),0) -> 20 | BB28: =IF(AZ28<>"",5,0) -> 5 | BC28: =BA28+BB28 -> 25 | BF28: =IF(ISNUMBER(BE28),(VLOOKUP(BE28,$BO$6:$BP$50,2)),0) -> 0 | BG28: =IF(BE28<>"",5,0) -> 0 | BH28: =BF28+BG28 -> 0 | BK28: =IF(ISNUMBER(BJ28),(VLOOKUP(BJ28,$BO$6:$BP$50,2)),0) -> 0 | BL28: =IF(BJ28<>"",5,0) -> 0 | BM28: =BK28+BL28 -> 0 | BO28: 23 | BP28: 8 | BQ28: 0 | BR28: =IF($F23=7,1,0) -> 0 | BS28: =IF($F23=6,1,0) -> 0 | BT28: =IF($F23=5,1,0) -> 0 | BU28: =IF($F23=4,1,0) -> 1 | BV28: =IF($F23=3,1,0) -> 0 | BW28: =IF($F23=2,1,0) -> 0 | BX28: =IF($F23=1,1,0) -> 0
A29: =IF(E29<E28,BO29,A28) -> 24 | B29: Hunstad | C29: Nicolai Christian | D29: Heming | E29: =IF(F29<=4,Q29,(Q29-SUM(SMALL(R29:Y29,{1;2;3;4})))) -> 68 | F29: =(IF(AC29=5,1,0)+IF(AH29=5,1,0)+IF(AM29=5,1,0)+IF(AR29=5,1,0)+IF(AW29=5,1,0)+IF(BB29=5,1,0)+IF(BG29=5,1,0)+IF(BL29=5,1,0)) -> 3 | H29: =IF(AA29="","",AA29) ->  | I29: =IF(AF29="","",AF29) ->  | J29: =IF(AK29="","",AK29) -> 15 | K29: =IF(AP29="","",AP29) ->  | L29: =IF(AU29="","",AU29) -> 18 | M29: =IF(AZ29="","",AZ29) ->  | N29: =IF(BE29="","",BE29) -> 11 | O29: =IF(BJ29="","",BJ29) ->  | Q29: =AD29+AI29+AN29+AS29+AX29+BC29+BH29 -> 68 | R29: =IF($F29>=5,IF(AB29="","",AB29),"") ->  | S29: =IF($F29>=5,IF(AG29="","",AG29),"") ->  | T29: =IF($F29>=5,IF(AL29="","",AL29),"") ->  | U29: =IF($F29>=5,IF(AQ29="","",AQ29),"") ->  | V29: =IF($F29>=5,IF(AV29="","",AV29),"") ->  | W29: =IF($F29>=5,IF(BA29="","",BA29),"") ->  | X29: =IF($F29>=5,IF(BF29="","",BF29),"") ->  | Y29: =IF($F29>=5,IF(BK29="","",BK29),"") ->  | AB29: =IF(ISNUMBER(AA29),(VLOOKUP(AA29,$BO$6:$BP$50,2)),0) -> 0 | AC29: =IF(AA29<>"",5,0) -> 0 | AD29: =AB29+AC29 -> 0 | AG29: =IF(ISNUMBER(AF29),(VLOOKUP(AF29,$BO$6:$BP$50,2)),0) -> 0 | AH29: =IF(AF29<>"",5,0) -> 0 | AI29: =AG29+AH29 -> 0 | AK29: 15 | AL29: =IF(ISNUMBER(AK29),(VLOOKUP(AK29,$BO$6:$BP$50,2)),0) -> 16 | AM29: =IF(AK29<>"",5,0) -> 5 | AN29: =AL29+AM29 -> 21 | AQ29: =IF(ISNUMBER(AP29),(VLOOKUP(AP29,$BO$6:$BP$50,2)),0) -> 0 | AR29: =IF(AP29<>"",5,0) -> 0 | AS29: =AQ29+AR29 -> 0 | AU29: 18 | AV29: =IF(ISNUMBER(AU29),(VLOOKUP(AU29,$BO$6:$BP$50,2)),0) -> 13 | AW29: =IF(AU29<>"",5,0) -> 5 | AX29: =AV29+AW29 -> 18 | BA29: =IF(ISNUMBER(AZ29),(VLOOKUP(AZ29,$BO$6:$BP$50,2)),0) -> 0 | BB29: =IF(AZ29<>"",5,0) -> 0 | BC29: =BA29+BB29 -> 0 | BE29: 11 | BF29: =IF(ISNUMBER(BE29),(VLOOKUP(BE29,$BO$6:$BP$50,2)),0) -> 24 | BG29: =IF(BE29<>"",5,0) -> 5 | BH29: =BF29+BG29 -> 29 | BK29: =IF(ISNUMBER(BJ29),(VLOOKUP(BJ29,$BO$6:$BP$50,2)),0) -> 0 | BL29: =IF(BJ29<>"",5,0) -> 0 | BM29: =BK29+BL29 -> 0 | BO29: 24 | BP29: 7 | BQ29: 0 | BR29: =IF($F24=7,1,0) -> 0 | BS29: =IF($F24=6,1,0) -> 0 | BT29: =IF($F24=5,1,0) -> 0 | BU29: =IF($F24=4,1,0) -> 0 | BV29: =IF($F24=3,1,0) -> 0 | BW29: =IF($F24=2,1,0) -> 1 | BX29: =IF($F24=1,1,0) -> 0
A30: =IF(E30<E29,BO30,A29) -> 25 | B30: Daniels | C30: Alfred Axelsen | D30: Kjelsås | E30: =IF(F30<=4,Q30,(Q30-SUM(SMALL(R30:Y30,{1;2;3;4})))) -> 64 | F30: =(IF(AC30=5,1,0)+IF(AH30=5,1,0)+IF(AM30=5,1,0)+IF(AR30=5,1,0)+IF(AW30=5,1,0)+IF(BB30=5,1,0)+IF(BG30=5,1,0)+IF(BL30=5,1,0)) -> 4 | H30: =IF(AA30="","",AA30) ->  | I30: =IF(AF30="","",AF30) ->  | J30: =IF(AK30="","",AK30) -> 21 | K30: =IF(AP30="","",AP30) ->  | L30: =IF(AU30="","",AU30) -> 25 | M30: =IF(AZ30="","",AZ30) -> 18 | N30: =IF(BE30="","",BE30) -> 16 | O30: =IF(BJ30="","",BJ30) ->  | Q30: =AD30+AI30+AN30+AS30+AX30+BC30+BH30 -> 64 | R30: =IF($F30>=5,IF(AB30="","",AB30),"") ->  | S30: =IF($F30>=5,IF(AG30="","",AG30),"") ->  | T30: =IF($F30>=5,IF(AL30="","",AL30),"") ->  | U30: =IF($F30>=5,IF(AQ30="","",AQ30),"") ->  | V30: =IF($F30>=5,IF(AV30="","",AV30),"") ->  | W30: =IF($F30>=5,IF(BA30="","",BA30),"") ->  | X30: =IF($F30>=5,IF(BF30="","",BF30),"") ->  | Y30: =IF($F30>=5,IF(BK30="","",BK30),"") ->  | AB30: =IF(ISNUMBER(AA30),(VLOOKUP(AA30,$BO$6:$BP$50,2)),0) -> 0 | AC30: =IF(AA30<>"",5,0) -> 0 | AD30: =AB30+AC30 -> 0 | AG30: =IF(ISNUMBER(AF30),(VLOOKUP(AF30,$BO$6:$BP$50,2)),0) -> 0 | AH30: =IF(AF30<>"",5,0) -> 0 | AI30: =AG30+AH30 -> 0 | AK30: 21 | AL30: =IF(ISNUMBER(AK30),(VLOOKUP(AK30,$BO$6:$BP$50,2)),0) -> 10 | AM30: =IF(AK30<>"",5,0) -> 5 | AN30: =AL30+AM30 -> 15 | AQ30: =IF(ISNUMBER(AP30),(VLOOKUP(AP30,$BO$6:$BP$50,2)),0) -> 0 | AR30: =IF(AP30<>"",5,0) -> 0 | AS30: =AQ30+AR30 -> 0 | AU30: 25 | AV30: =IF(ISNUMBER(AU30),(VLOOKUP(AU30,$BO$6:$BP$50,2)),0) -> 6 | AW30: =IF(AU30<>"",5,0) -> 5 | AX30: =AV30+AW30 -> 11 | AZ30: 18 | BA30: =IF(ISNUMBER(AZ30),(VLOOKUP(AZ30,$BO$6:$BP$50,2)),0) -> 13 | BB30: =IF(AZ30<>"",5,0) -> 5 | BC30: =BA30+BB30 -> 18 | BE30: 16 | BF30: =IF(ISNUMBER(BE30),(VLOOKUP(BE30,$BO$6:$BP$50,2)),0) -> 15 | BG30: =IF(BE30<>"",5,0) -> 5 | BH30: =BF30+BG30 -> 20 | BK30: =IF(ISNUMBER(BJ30),(VLOOKUP(BJ30,$BO$6:$BP$50,2)),0) -> 0 | BL30: =IF(BJ30<>"",5,0) -> 0 | BM30: =BK30+BL30 -> 0 | BO30: 25 | BP30: 6 | BQ30: 0 | BR30: =IF($F25=7,1,0) -> 0 | BS30: =IF($F25=6,1,0) -> 0 | BT30: =IF($F25=5,1,0) -> 0 | BU30: =IF($F25=4,1,0) -> 1 | BV30: =IF($F25=3,1,0) -> 0 | BW30: =IF($F25=2,1,0) -> 0 | BX30: =IF($F25=1,1,0) -> 0
A31: =IF(E31<E30,BO31,A30) -> 26 | B31: Malling | C31: Michael de Vibe | D31: Heming | E31: =IF(F31<=4,Q31,(Q31-SUM(SMALL(R31:Y31,{1;2;3;4})))) -> 57 | F31: =(IF(AC31=5,1,0)+IF(AH31=5,1,0)+IF(AM31=5,1,0)+IF(AR31=5,1,0)+IF(AW31=5,1,0)+IF(BB31=5,1,0)+IF(BG31=5,1,0)+IF(BL31=5,1,0)) -> 3 | H31: =IF(AA31="","",AA31) ->  | I31: =IF(AF31="","",AF31) ->  | J31: =IF(AK31="","",AK31) -> 11 | K31: =IF(AP31="","",AP31) ->  | L31: =IF(AU31="","",AU31) -> 14 | M31: =IF(AZ31="","",AZ31) ->  | N31: =IF(BE31="","",BE31) -> dsq | O31: =IF(BJ31="","",BJ31) ->  | Q31: =AD31+AI31+AN31+AS31+AX31+BC31+BH31 -> 57 | R31: =IF($F31>=5,IF(AB31="","",AB31),"") ->  | S31: =IF($F31>=5,IF(AG31="","",AG31),"") ->  | T31: =IF($F31>=5,IF(AL31="","",AL31),"") ->  | U31: =IF($F31>=5,IF(AQ31="","",AQ31),"") ->  | V31: =IF($F31>=5,IF(AV31="","",AV31),"") ->  | W31: =IF($F31>=5,IF(BA31="","",BA31),"") ->  | X31: =IF($F31>=5,IF(BF31="","",BF31),"") ->  | Y31: =IF($F31>=5,IF(BK31="","",BK31),"") ->  | AB31: =IF(ISNUMBER(AA31),(VLOOKUP(AA31,$BO$6:$BP$50,2)),0) -> 0 | AC31: =IF(AA31<>"",5,0) -> 0 | AD31: =AB31+AC31 -> 0 | AG31: =IF(ISNUMBER(AF31),(VLOOKUP(AF31,$BO$6:$BP$50,2)),0) -> 0 | AH31: =IF(AF31<>"",5,0) -> 0 | AI31: =AG31+AH31 -> 0 | AK31: 11 | AL31: =IF(ISNUMBER(AK31),(VLOOKUP(AK31,$BO$6:$BP$50,2)),0) -> 24 | AM31: =IF(AK31<>"",5,0) -> 5 | AN31: =AL31+AM31 -> 29 | AQ31: =IF(ISNUMBER(AP31),(VLOOKUP(AP31,$BO$6:$BP$50,2)),0) -> 0 | AR31: =IF(AP31<>"",5,0) -> 0 | AS31: =AQ31+AR31 -> 0 | AU31: 14 | AV31: =IF(ISNUMBER(AU31),(VLOOKUP(AU31,$BO$6:$BP$50,2)),0) -> 18 | AW31: =IF(AU31<>"",5,0) -> 5 | AX31: =AV31+AW31 -> 23 | BA31: =IF(ISNUMBER(AZ31),(VLOOKUP(AZ31,$BO$6:$BP$50,2)),0) -> 0 | BB31: =IF(AZ31<>"",5,0) -> 0 | BC31: =BA31+BB31 -> 0 | BE31: dsq | BF31: =IF(ISNUMBER(BE31),(VLOOKUP(BE31,$BO$6:$BP$50,2)),0) -> 0 | BG31: =IF(BE31<>"",5,0) -> 5 | BH31: =BF31+BG31 -> 5 | BK31: =IF(ISNUMBER(BJ31),(VLOOKUP(BJ31,$BO$6:$BP$50,2)),0) -> 0 | BL31: =IF(BJ31<>"",5,0) -> 0 | BM31: =BK31+BL31 -> 0 | BO31: 26 | BP31: 5 | BQ31: 0 | BR31: =IF($F25=7,1,0) -> 0 | BS31: =IF($F25=6,1,0) -> 0 | BT31: =IF($F25=5,1,0) -> 0 | BU31: =IF($F25=4,1,0) -> 1 | BV31: =IF($F25=3,1,0) -> 0 | BW31: =IF($F25=2,1,0) -> 0 | BX31: =IF($F25=1,1,0) -> 0
A32: =IF(E32<E31,BO32,A31) -> 27 | B32: Trøan | C32: Caspian | D32: Heming | E32: =IF(F32<=4,Q32,(Q32-SUM(SMALL(R32:Y32,{1;2;3;4})))) -> 50 | F32: =(IF(AC32=5,1,0)+IF(AH32=5,1,0)+IF(AM32=5,1,0)+IF(AR32=5,1,0)+IF(AW32=5,1,0)+IF(BB32=5,1,0)+IF(BG32=5,1,0)+IF(BL32=5,1,0)) -> 1 | H32: =IF(AA32="","",AA32) ->  | I32: =IF(AF32="","",AF32) ->  | J32: =IF(AK32="","",AK32) ->  | K32: =IF(AP32="","",AP32) ->  | L32: =IF(AU32="","",AU32) -> 5 | M32: =IF(AZ32="","",AZ32) ->  | N32: =IF(BE32="","",BE32) ->  | O32: =IF(BJ32="","",BJ32) ->  | Q32: =AD32+AI32+AN32+AS32+AX32+BC32+BH32 -> 50 | R32: =IF($F32>=5,IF(AB32="","",AB32),"") ->  | S32: =IF($F32>=5,IF(AG32="","",AG32),"") ->  | T32: =IF($F32>=5,IF(AL32="","",AL32),"") ->  | U32: =IF($F32>=5,IF(AQ32="","",AQ32),"") ->  | V32: =IF($F32>=5,IF(AV32="","",AV32),"") ->  | W32: =IF($F32>=5,IF(BA32="","",BA32),"") ->  | X32: =IF($F32>=5,IF(BF32="","",BF32),"") ->  | Y32: =IF($F32>=5,IF(BK32="","",BK32),"") ->  | AB32: =IF(ISNUMBER(AA32),(VLOOKUP(AA32,$BO$6:$BP$50,2)),0) -> 0 | AC32: =IF(AA32<>"",5,0) -> 0 | AD32: =AB32+AC32 -> 0 | AG32: =IF(ISNUMBER(AF32),(VLOOKUP(AF32,$BO$6:$BP$50,2)),0) -> 0 | AH32: =IF(AF32<>"",5,0) -> 0 | AI32: =AG32+AH32 -> 0 | AL32: =IF(ISNUMBER(AK32),(VLOOKUP(AK32,$BO$6:$BP$50,2)),0) -> 0 | AM32: =IF(AK32<>"",5,0) -> 0 | AN32: =AL32+AM32 -> 0 | AQ32: =IF(ISNUMBER(AP32),(VLOOKUP(AP32,$BO$6:$BP$50,2)),0) -> 0 | AR32: =IF(AP32<>"",5,0) -> 0 | AS32: =AQ32+AR32 -> 0 | AU32: 5 | AV32: =IF(ISNUMBER(AU32),(VLOOKUP(AU32,$BO$6:$BP$50,2)),0) -> 45 | AW32: =IF(AU32<>"",5,0) -> 5 | AX32: =AV32+AW32 -> 50 | BA32: =IF(ISNUMBER(AZ32),(VLOOKUP(AZ32,$BO$6:$BP$50,2)),0) -> 0 | BB32: =IF(AZ32<>"",5,0) -> 0 | BC32: =BA32+BB32 -> 0 | BF32: =IF(ISNUMBER(BE32),(VLOOKUP(BE32,$BO$6:$BP$50,2)),0) -> 0 | BG32: =IF(BE32<>"",5,0) -> 0 | BH32: =BF32+BG32 -> 0 | BK32: =IF(ISNUMBER(BJ32),(VLOOKUP(BJ32,$BO$6:$BP$50,2)),0) -> 0 | BL32: =IF(BJ32<>"",5,0) -> 0 | BM32: =BK32+BL32 -> 0 | BO32: 27 | BP32: 4 | BQ32: 0 | BR32: =IF($F26=7,1,0) -> 0 | BS32: =IF($F26=6,1,0) -> 0 | BT32: =IF($F26=5,1,0) -> 0 | BU32: =IF($F26=4,1,0) -> 1 | BV32: =IF($F26=3,1,0) -> 0 | BW32: =IF($F26=2,1,0) -> 0 | BX32: =IF($F26=1,1,0) -> 0
A33: =IF(E33<E32,BO33,A32) -> 28 | B33: Flaaten | C33: Carl Sebastian | D33: Heming | E33: =IF(F33<=4,Q33,(Q33-SUM(SMALL(R33:Y33,{1;2;3;4})))) -> 46 | F33: =(IF(AC33=5,1,0)+IF(AH33=5,1,0)+IF(AM33=5,1,0)+IF(AR33=5,1,0)+IF(AW33=5,1,0)+IF(BB33=5,1,0)+IF(BG33=5,1,0)+IF(BL33=5,1,0)) -> 2 | H33: =IF(AA33="","",AA33) ->  | I33: =IF(AF33="","",AF33) ->  | J33: =IF(AK33="","",AK33) ->  | K33: =IF(AP33="","",AP33) ->  | L33: =IF(AU33="","",AU33) -> 17 | M33: =IF(AZ33="","",AZ33) -> 12 | N33: =IF(BE33="","",BE33) ->  | O33: =IF(BJ33="","",BJ33) ->  | Q33: =AD33+AI33+AN33+AS33+AX33+BC33+BH33 -> 46 | R33: =IF($F33>=5,IF(AB33="","",AB33),"") ->  | S33: =IF($F33>=5,IF(AG33="","",AG33),"") ->  | T33: =IF($F33>=5,IF(AL33="","",AL33),"") ->  | U33: =IF($F33>=5,IF(AQ33="","",AQ33),"") ->  | V33: =IF($F33>=5,IF(AV33="","",AV33),"") ->  | W33: =IF($F33>=5,IF(BA33="","",BA33),"") ->  | X33: =IF($F33>=5,IF(BF33="","",BF33),"") ->  | Y33: =IF($F33>=5,IF(BK33="","",BK33),"") ->  | AB33: =IF(ISNUMBER(AA33),(VLOOKUP(AA33,$BO$6:$BP$50,2)),0) -> 0 | AC33: =IF(AA33<>"",5,0) -> 0 | AD33: =AB33+AC33 -> 0 | AG33: =IF(ISNUMBER(AF33),(VLOOKUP(AF33,$BO$6:$BP$50,2)),0) -> 0 | AH33: =IF(AF33<>"",5,0) -> 0 | AI33: =AG33+AH33 -> 0 | AL33: =IF(ISNUMBER(AK33),(VLOOKUP(AK33,$BO$6:$BP$50,2)),0) -> 0 | AM33: =IF(AK33<>"",5,0) -> 0 | AN33: =AL33+AM33 -> 0 | AQ33: =IF(ISNUMBER(AP33),(VLOOKUP(AP33,$BO$6:$BP$50,2)),0) -> 0 | AR33: =IF(AP33<>"",5,0) -> 0 | AS33: =AQ33+AR33 -> 0 | AU33: 17 | AV33: =IF(ISNUMBER(AU33),(VLOOKUP(AU33,$BO$6:$BP$50,2)),0) -> 14 | AW33: =IF(AU33<>"",5,0) -> 5 | AX33: =AV33+AW33 -> 19 | AZ33: 12 | BA33: =IF(ISNUMBER(AZ33),(VLOOKUP(AZ33,$BO$6:$BP$50,2)),0) -> 22 | BB33: =IF(AZ33<>"",5,0) -> 5 | BC33: =BA33+BB33 -> 27 | BF33: =IF(ISNUMBER(BE33),(VLOOKUP(BE33,$BO$6:$BP$50,2)),0) -> 0 | BG33: =IF(BE33<>"",5,0) -> 0 | BH33: =BF33+BG33 -> 0 | BK33: =IF(ISNUMBER(BJ33),(VLOOKUP(BJ33,$BO$6:$BP$50,2)),0) -> 0 | BL33: =IF(BJ33<>"",5,0) -> 0 | BM33: =BK33+BL33 -> 0 | BO33: 28 | BP33: 3 | BQ33: 0 | BR33: 0 | BS33: 0 | BT33: 0 | BU33: 0 | BV33: 1 | BW33: 0 | BX33: 0
A34: =IF(E34<E33,BO34,A33) -> 29 | B34: Gudem | C34: Matheo | D34: IRS | E34: =IF(F34<=4,Q34,(Q34-SUM(SMALL(R34:Y34,{1;2;3;4})))) -> 45 | F34: =(IF(AC34=5,1,0)+IF(AH34=5,1,0)+IF(AM34=5,1,0)+IF(AR34=5,1,0)+IF(AW34=5,1,0)+IF(BB34=5,1,0)+IF(BG34=5,1,0)+IF(BL34=5,1,0)) -> 1 | H34: =IF(AA34="","",AA34) -> 6 | I34: =IF(AF34="","",AF34) ->  | J34: =IF(AK34="","",AK34) ->  | K34: =IF(AP34="","",AP34) ->  | L34: =IF(AU34="","",AU34) ->  | M34: =IF(AZ34="","",AZ34) ->  | N34: =IF(BE34="","",BE34) ->  | O34: =IF(BJ34="","",BJ34) ->  | Q34: =AD34+AI34+AN34+AS34+AX34+BC34+BH34 -> 45 | R34: =IF($F34>=5,IF(AB34="","",AB34),"") ->  | S34: =IF($F34>=5,IF(AG34="","",AG34),"") ->  | T34: =IF($F34>=5,IF(AL34="","",AL34),"") ->  | U34: =IF($F34>=5,IF(AQ34="","",AQ34),"") ->  | V34: =IF($F34>=5,IF(AV34="","",AV34),"") ->  | W34: =IF($F34>=5,IF(BA34="","",BA34),"") ->  | X34: =IF($F34>=5,IF(BF34="","",BF34),"") ->  | Y34: =IF($F34>=5,IF(BK34="","",BK34),"") ->  | AA34: 6 | AB34: =IF(ISNUMBER(AA34),(VLOOKUP(AA34,$BO$6:$BP$50,2)),0) -> 40 | AC34: =IF(AA34<>"",5,0) -> 5 | AD34: =AB34+AC34 -> 45 | AG34: =IF(ISNUMBER(AF34),(VLOOKUP(AF34,$BO$6:$BP$50,2)),0) -> 0 | AH34: =IF(AF34<>"",5,0) -> 0 | AI34: =AG34+AH34 -> 0 | AL34: =IF(ISNUMBER(AK34),(VLOOKUP(AK34,$BO$6:$BP$50,2)),0) -> 0 | AM34: =IF(AK34<>"",5,0) -> 0 | AN34: =AL34+AM34 -> 0 | AQ34: =IF(ISNUMBER(AP34),(VLOOKUP(AP34,$BO$6:$BP$50,2)),0) -> 0 | AR34: =IF(AP34<>"",5,0) -> 0 | AS34: =AQ34+AR34 -> 0 | AV34: =IF(ISNUMBER(AU34),(VLOOKUP(AU34,$BO$6:$BP$50,2)),0) -> 0 | AW34: =IF(AU34<>"",5,0) -> 0 | AX34: =AV34+AW34 -> 0 | BA34: =IF(ISNUMBER(AZ34),(VLOOKUP(AZ34,$BO$6:$BP$50,2)),0) -> 0 | BB34: =IF(AZ34<>"",5,0) -> 0 | BC34: =BA34+BB34 -> 0 | BF34: =IF(ISNUMBER(BE34),(VLOOKUP(BE34,$BO$6:$BP$50,2)),0) -> 0 | BG34: =IF(BE34<>"",5,0) -> 0 | BH34: =BF34+BG34 -> 0 | BK34: =IF(ISNUMBER(BJ34),(VLOOKUP(BJ34,$BO$6:$BP$50,2)),0) -> 0 | BL34: =IF(BJ34<>"",5,0) -> 0 | BM34: =BK34+BL34 -> 0 | BO34: 29 | BP34: 2 | BQ34: 0 | BR34: 0 | BS34: 0 | BT34: 0 | BU34: 1 | BV34: 0 | BW34: 0 | BX34: 0
A35: =IF(E35<E34,BO35,A34) -> 30 | B35: Bøhmer | C35: Knut Fredrik | D35: Heming | E35: =IF(F35<=4,Q35,(Q35-SUM(SMALL(R35:Y35,{1;2;3;4})))) -> 42 | F35: =(IF(AC35=5,1,0)+IF(AH35=5,1,0)+IF(AM35=5,1,0)+IF(AR35=5,1,0)+IF(AW35=5,1,0)+IF(BB35=5,1,0)+IF(BG35=5,1,0)+IF(BL35=5,1,0)) -> 2 | H35: =IF(AA35="","",AA35) ->  | I35: =IF(AF35="","",AF35) ->  | J35: =IF(AK35="","",AK35) ->  | K35: =IF(AP35="","",AP35) -> dnf | L35: =IF(AU35="","",AU35) ->  | M35: =IF(AZ35="","",AZ35) ->  | N35: =IF(BE35="","",BE35) -> 8 | O35: =IF(BJ35="","",BJ35) ->  | Q35: =AD35+AI35+AN35+AS35+AX35+BC35+BH35 -> 42 | R35: =IF($F35>=5,IF(AB35="","",AB35),"") ->  | S35: =IF($F35>=5,IF(AG35="","",AG35),"") ->  | T35: =IF($F35>=5,IF(AL35="","",AL35),"") ->  | U35: =IF($F35>=5,IF(AQ35="","",AQ35),"") ->  | V35: =IF($F35>=5,IF(AV35="","",AV35),"") ->  | W35: =IF($F35>=5,IF(BA35="","",BA35),"") ->  | X35: =IF($F35>=5,IF(BF35="","",BF35),"") ->  | Y35: =IF($F35>=5,IF(BK35="","",BK35),"") ->  | AB35: =IF(ISNUMBER(AA35),(VLOOKUP(AA35,$BO$6:$BP$50,2)),0) -> 0 | AC35: =IF(AA35<>"",5,0) -> 0 | AD35: =AB35+AC35 -> 0 | AG35: =IF(ISNUMBER(AF35),(VLOOKUP(AF35,$BO$6:$BP$50,2)),0) -> 0 | AH35: =IF(AF35<>"",5,0) -> 0 | AI35: =AG35+AH35 -> 0 | AL35: =IF(ISNUMBER(AK35),(VLOOKUP(AK35,$BO$6:$BP$50,2)),0) -> 0 | AM35: =IF(AK35<>"",5,0) -> 0 | AN35: =AL35+AM35 -> 0 | AP35: dnf | AQ35: =IF(ISNUMBER(AP35),(VLOOKUP(AP35,$BO$6:$BP$50,2)),0) -> 0 | AR35: =IF(AP35<>"",5,0) -> 5 | AS35: =AQ35+AR35 -> 5 | AV35: =IF(ISNUMBER(AU35),(VLOOKUP(AU35,$BO$6:$BP$50,2)),0) -> 0 | AW35: =IF(AU35<>"",5,0) -> 0 | AX35: =AV35+AW35 -> 0 | BA35: =IF(ISNUMBER(AZ35),(VLOOKUP(AZ35,$BO$6:$BP$50,2)),0) -> 0 | BB35: =IF(AZ35<>"",5,0) -> 0 | BC35: =BA35+BB35 -> 0 | BE35: 8 | BF35: =IF(ISNUMBER(BE35),(VLOOKUP(BE35,$BO$6:$BP$50,2)),0) -> 32 | BG35: =IF(BE35<>"",5,0) -> 5 | BH35: =BF35+BG35 -> 37 | BK35: =IF(ISNUMBER(BJ35),(VLOOKUP(BJ35,$BO$6:$BP$50,2)),0) -> 0 | BL35: =IF(BJ35<>"",5,0) -> 0 | BM35: =BK35+BL35 -> 0 | BO35: 30 | BP35: 1 | BQ35: 0 | BR35: =IF($F26=7,1,0) -> 0 | BS35: =IF($F26=6,1,0) -> 0 | BT35: =IF($F26=5,1,0) -> 0 | BU35: =IF($F26=4,1,0) -> 1 | BV35: =IF($F26=3,1,0) -> 0 | BW35: =IF($F26=2,1,0) -> 0 | BX35: =IF($F26=1,1,0) -> 0
A36: =IF(E36<E35,BO36,A35) -> 31 | B36: Krohn-Oppi | C36: Kristian | D36: Kjelsås | E36: =IF(F36<=4,Q36,(Q36-SUM(SMALL(R36:Y36,{1;2;3;4})))) -> 41 | F36: =(IF(AC36=5,1,0)+IF(AH36=5,1,0)+IF(AM36=5,1,0)+IF(AR36=5,1,0)+IF(AW36=5,1,0)+IF(BB36=5,1,0)+IF(BG36=5,1,0)+IF(BL36=5,1,0)) -> 3 | H36: =IF(AA36="","",AA36) ->  | I36: =IF(AF36="","",AF36) ->  | J36: =IF(AK36="","",AK36) ->  | K36: =IF(AP36="","",AP36) -> 16 | L36: =IF(AU36="","",AU36) -> 20 | M36: =IF(AZ36="","",AZ36) ->  | N36: =IF(BE36="","",BE36) -> dsq | O36: =IF(BJ36="","",BJ36) ->  | Q36: =AD36+AI36+AN36+AS36+AX36+BC36+BH36 -> 41 | R36: =IF($F36>=5,IF(AB36="","",AB36),"") ->  | S36: =IF($F36>=5,IF(AG36="","",AG36),"") ->  | T36: =IF($F36>=5,IF(AL36="","",AL36),"") ->  | U36: =IF($F36>=5,IF(AQ36="","",AQ36),"") ->  | V36: =IF($F36>=5,IF(AV36="","",AV36),"") ->  | W36: =IF($F36>=5,IF(BA36="","",BA36),"") ->  | X36: =IF($F36>=5,IF(BF36="","",BF36),"") ->  | Y36: =IF($F36>=5,IF(BK36="","",BK36),"") ->  | AB36: =IF(ISNUMBER(AA36),(VLOOKUP(AA36,$BO$6:$BP$50,2)),0) -> 0 | AC36: =IF(AA36<>"",5,0) -> 0 | AD36: =AB36+AC36 -> 0 | AG36: =IF(ISNUMBER(AF36),(VLOOKUP(AF36,$BO$6:$BP$50,2)),0) -> 0 | AH36: =IF(AF36<>"",5,0) -> 0 | AI36: =AG36+AH36 -> 0 | AL36: =IF(ISNUMBER(AK36),(VLOOKUP(AK36,$BO$6:$BP$50,2)),0) -> 0 | AM36: =IF(AK36<>"",5,0) -> 0 | AN36: =AL36+AM36 -> 0 | AP36: 16 | AQ36: =IF(ISNUMBER(AP36),(VLOOKUP(AP36,$BO$6:$BP$50,2)),0) -> 15 | AR36: =IF(AP36<>"",5,0) -> 5 | AS36: =AQ36+AR36 -> 20 | AU36: 20 | AV36: =IF(ISNUMBER(AU36),(VLOOKUP(AU36,$BO$6:$BP$50,2)),0) -> 11 | AW36: =IF(AU36<>"",5,0) -> 5 | AX36: =AV36+AW36 -> 16 | BA36: =IF(ISNUMBER(AZ36),(VLOOKUP(AZ36,$BO$6:$BP$50,2)),0) -> 0 | BB36: =IF(AZ36<>"",5,0) -> 0 | BC36: =BA36+BB36 -> 0 | BE36: dsq | BF36: =IF(ISNUMBER(BE36),(VLOOKUP(BE36,$BO$6:$BP$50,2)),0) -> 0 | BG36: =IF(BE36<>"",5,0) -> 5 | BH36: =BF36+BG36 -> 5 | BK36: =IF(ISNUMBER(BJ36),(VLOOKUP(BJ36,$BO$6:$BP$50,2)),0) -> 0 | BL36: =IF(BJ36<>"",5,0) -> 0 | BM36: =BK36+BL36 -> 0 | BO36: 31 | BP36: 0 | BQ36: 0 | BR36: 0 | BS36: 0 | BT36: 0 | BU36: 0 | BV36: 1 | BW36: 0 | BX36: 0
A37: =IF(E37<E36,BO37,A36) -> 32 | B37: Vigstad-Pedersen | C37: Eirik | D37: HSIL | E37: =IF(F37<=4,Q37,(Q37-SUM(SMALL(R37:Y37,{1;2;3;4})))) -> 40 | F37: =(IF(AC37=5,1,0)+IF(AH37=5,1,0)+IF(AM37=5,1,0)+IF(AR37=5,1,0)+IF(AW37=5,1,0)+IF(BB37=5,1,0)+IF(BG37=5,1,0)+IF(BL37=5,1,0)) -> 2 | H37: =IF(AA37="","",AA37) ->  | I37: =IF(AF37="","",AF37) ->  | J37: =IF(AK37="","",AK37) ->  | K37: =IF(AP37="","",AP37) ->  | L37: =IF(AU37="","",AU37) ->  | M37: =IF(AZ37="","",AZ37) -> 17 | N37: =IF(BE37="","",BE37) -> 15 | O37: =IF(BJ37="","",BJ37) ->  | Q37: =AD37+AI37+AN37+AS37+AX37+BC37+BH37 -> 40 | R37: =IF($F37>=5,IF(AB37="","",AB37),"") ->  | S37: =IF($F37>=5,IF(AG37="","",AG37),"") ->  | T37: =IF($F37>=5,IF(AL37="","",AL37),"") ->  | U37: =IF($F37>=5,IF(AQ37="","",AQ37),"") ->  | V37: =IF($F37>=5,IF(AV37="","",AV37),"") ->  | W37: =IF($F37>=5,IF(BA37="","",BA37),"") ->  | X37: =IF($F37>=5,IF(BF37="","",BF37),"") ->  | Y37: =IF($F37>=5,IF(BK37="","",BK37),"") ->  | AB37: =IF(ISNUMBER(AA37),(VLOOKUP(AA37,$BO$6:$BP$50,2)),0) -> 0 | AC37: =IF(AA37<>"",5,0) -> 0 | AD37: =AB37+AC37 -> 0 | AG37: =IF(ISNUMBER(AF37),(VLOOKUP(AF37,$BO$6:$BP$50,2)),0) -> 0 | AH37: =IF(AF37<>"",5,0) -> 0 | AI37: =AG37+AH37 -> 0 | AL37: =IF(ISNUMBER(AK37),(VLOOKUP(AK37,$BO$6:$BP$50,2)),0) -> 0 | AM37: =IF(AK37<>"",5,0) -> 0 | AN37: =AL37+AM37 -> 0 | AQ37: =IF(ISNUMBER(AP37),(VLOOKUP(AP37,$BO$6:$BP$50,2)),0) -> 0 | AR37: =IF(AP37<>"",5,0) -> 0 | AS37: =AQ37+AR37 -> 0 | AV37: =IF(ISNUMBER(AU37),(VLOOKUP(AU37,$BO$6:$BP$50,2)),0) -> 0 | AW37: =IF(AU37<>"",5,0) -> 0 | AX37: =AV37+AW37 -> 0 | AZ37: 17 | BA37: =IF(ISNUMBER(AZ37),(VLOOKUP(AZ37,$BO$6:$BP$50,2)),0) -> 14 | BB37: =IF(AZ37<>"",5,0) -> 5 | BC37: =BA37+BB37 -> 19 | BE37: 15 | BF37: =IF(ISNUMBER(BE37),(VLOOKUP(BE37,$BO$6:$BP$50,2)),0) -> 16 | BG37: =IF(BE37<>"",5,0) -> 5 | BH37: =BF37+BG37 -> 21 | BK37: =IF(ISNUMBER(BJ37),(VLOOKUP(BJ37,$BO$6:$BP$50,2)),0) -> 0 | BL37: =IF(BJ37<>"",5,0) -> 0 | BM37: =BK37+BL37 -> 0 | BO37: 32 | BP37: 0 | BQ37: 0 | BR37: 0 | BS37: 0 | BT37: 0 | BU37: 1 | BV37: 0 | BW37: 0 | BX37: 0
A38: =IF(E38<E37,BO38,A37) -> 33 | B38: Furuholmen | C38: Henrik Sæthre | D38: Heming | E38: =IF(F38<=4,Q38,(Q38-SUM(SMALL(R38:Y38,{1;2;3;4})))) -> 39 | F38: =(IF(AC38=5,1,0)+IF(AH38=5,1,0)+IF(AM38=5,1,0)+IF(AR38=5,1,0)+IF(AW38=5,1,0)+IF(BB38=5,1,0)+IF(BG38=5,1,0)+IF(BL38=5,1,0)) -> 2 | H38: =IF(AA38="","",AA38) ->  | I38: =IF(AF38="","",AF38) ->  | J38: =IF(AK38="","",AK38) ->  | K38: =IF(AP38="","",AP38) -> 17 | L38: =IF(AU38="","",AU38) ->  | M38: =IF(AZ38="","",AZ38) -> 16 | N38: =IF(BE38="","",BE38) ->  | O38: =IF(BJ38="","",BJ38) ->  | Q38: =AD38+AI38+AN38+AS38+AX38+BC38+BH38 -> 39 | R38: =IF($F38>=5,IF(AB38="","",AB38),"") ->  | S38: =IF($F38>=5,IF(AG38="","",AG38),"") ->  | T38: =IF($F38>=5,IF(AL38="","",AL38),"") ->  | U38: =IF($F38>=5,IF(AQ38="","",AQ38),"") ->  | V38: =IF($F38>=5,IF(AV38="","",AV38),"") ->  | W38: =IF($F38>=5,IF(BA38="","",BA38),"") ->  | X38: =IF($F38>=5,IF(BF38="","",BF38),"") ->  | Y38: =IF($F38>=5,IF(BK38="","",BK38),"") ->  | AB38: =IF(ISNUMBER(AA38),(VLOOKUP(AA38,$BO$6:$BP$50,2)),0) -> 0 | AC38: =IF(AA38<>"",5,0) -> 0 | AD38: =AB38+AC38 -> 0 | AG38: =IF(ISNUMBER(AF38),(VLOOKUP(AF38,$BO$6:$BP$50,2)),0) -> 0 | AH38: =IF(AF38<>"",5,0) -> 0 | AI38: =AG38+AH38 -> 0 | AL38: =IF(ISNUMBER(AK38),(VLOOKUP(AK38,$BO$6:$BP$50,2)),0) -> 0 | AM38: =IF(AK38<>"",5,0) -> 0 | AN38: =AL38+AM38 -> 0 | AP38: 17 | AQ38: =IF(ISNUMBER(AP38),(VLOOKUP(AP38,$BO$6:$BP$50,2)),0) -> 14 | AR38: =IF(AP38<>"",5,0) -> 5 | AS38: =AQ38+AR38 -> 19 | AV38: =IF(ISNUMBER(AU38),(VLOOKUP(AU38,$BO$6:$BP$50,2)),0) -> 0 | AW38: =IF(AU38<>"",5,0) -> 0 | AX38: =AV38+AW38 -> 0 | AZ38: 16 | BA38: =IF(ISNUMBER(AZ38),(VLOOKUP(AZ38,$BO$6:$BP$50,2)),0) -> 15 | BB38: =IF(AZ38<>"",5,0) -> 5 | BC38: =BA38+BB38 -> 20 | BF38: =IF(ISNUMBER(BE38),(VLOOKUP(BE38,$BO$6:$BP$50,2)),0) -> 0 | BG38: =IF(BE38<>"",5,0) -> 0 | BH38: =BF38+BG38 -> 0 | BK38: =IF(ISNUMBER(BJ38),(VLOOKUP(BJ38,$BO$6:$BP$50,2)),0) -> 0 | BL38: =IF(BJ38<>"",5,0) -> 0 | BM38: =BK38+BL38 -> 0 | BO38: 33 | BP38: 0 | BQ38: 0 | BR38: 0 | BS38: 0 | BT38: 0 | BU38: 0 | BV38: 1 | BW38: 0 | BX38: 0
A39: =IF(E39<E38,BO39,A38) -> 34 | B39: Meinich-Bakke | C39: Sindre | D39: Rælingen | E39: =IF(F39<=4,Q39,(Q39-SUM(SMALL(R39:Y39,{1;2;3;4})))) -> 34 | F39: =(IF(AC39=5,1,0)+IF(AH39=5,1,0)+IF(AM39=5,1,0)+IF(AR39=5,1,0)+IF(AW39=5,1,0)+IF(BB39=5,1,0)+IF(BG39=5,1,0)+IF(BL39=5,1,0)) -> 1 | H39: =IF(AA39="","",AA39) ->  | I39: =IF(AF39="","",AF39) ->  | J39: =IF(AK39="","",AK39) ->  | K39: =IF(AP39="","",AP39) ->  | L39: =IF(AU39="","",AU39) ->  | M39: =IF(AZ39="","",AZ39) -> 9 | N39: =IF(BE39="","",BE39) ->  | O39: =IF(BJ39="","",BJ39) ->  | Q39: =AD39+AI39+AN39+AS39+AX39+BC39+BH39 -> 34 | R39: =IF($F39>=5,IF(AB39="","",AB39),"") ->  | S39: =IF($F39>=5,IF(AG39="","",AG39),"") ->  | T39: =IF($F39>=5,IF(AL39="","",AL39),"") ->  | U39: =IF($F39>=5,IF(AQ39="","",AQ39),"") ->  | V39: =IF($F39>=5,IF(AV39="","",AV39),"") ->  | W39: =IF($F39>=5,IF(BA39="","",BA39),"") ->  | X39: =IF($F39>=5,IF(BF39="","",BF39),"") ->  | Y39: =IF($F39>=5,IF(BK39="","",BK39),"") ->  | AB39: =IF(ISNUMBER(AA39),(VLOOKUP(AA39,$BO$6:$BP$50,2)),0) -> 0 | AC39: =IF(AA39<>"",5,0) -> 0 | AD39: =AB39+AC39 -> 0 | AG39: =IF(ISNUMBER(AF39),(VLOOKUP(AF39,$BO$6:$BP$50,2)),0) -> 0 | AH39: =IF(AF39<>"",5,0) -> 0 | AI39: =AG39+AH39 -> 0 | AL39: =IF(ISNUMBER(AK39),(VLOOKUP(AK39,$BO$6:$BP$50,2)),0) -> 0 | AM39: =IF(AK39<>"",5,0) -> 0 | AN39: =AL39+AM39 -> 0 | AQ39: =IF(ISNUMBER(AP39),(VLOOKUP(AP39,$BO$6:$BP$50,2)),0) -> 0 | AR39: =IF(AP39<>"",5,0) -> 0 | AS39: =AQ39+AR39 -> 0 | AV39: =IF(ISNUMBER(AU39),(VLOOKUP(AU39,$BO$6:$BP$50,2)),0) -> 0 | AW39: =IF(AU39<>"",5,0) -> 0 | AX39: =AV39+AW39 -> 0 | AZ39: 9 | BA39: =IF(ISNUMBER(AZ39),(VLOOKUP(AZ39,$BO$6:$BP$50,2)),0) -> 29 | BB39: =IF(AZ39<>"",5,0) -> 5 | BC39: =BA39+BB39 -> 34 | BF39: =IF(ISNUMBER(BE39),(VLOOKUP(BE39,$BO$6:$BP$50,2)),0) -> 0 | BG39: =IF(BE39<>"",5,0) -> 0 | BH39: =BF39+BG39 -> 0 | BK39: =IF(ISNUMBER(BJ39),(VLOOKUP(BJ39,$BO$6:$BP$50,2)),0) -> 0 | BL39: =IF(BJ39<>"",5,0) -> 0 | BM39: =BK39+BL39 -> 0 | BO39: 34 | BP39: 0 | BQ39: 0 | BR39: 0 | BS39: 0 | BT39: 0 | BU39: 1 | BV39: 0 | BW39: 0 | BX39: 0
A40: =IF(E40<E39,BO40,A39) -> 34 | B40: Christiansen | C40: Victor | D40: IRS | E40: =IF(F40<=4,Q40,(Q40-SUM(SMALL(R40:Y40,{1;2;3;4})))) -> 34 | F40: =(IF(AC40=5,1,0)+IF(AH40=5,1,0)+IF(AM40=5,1,0)+IF(AR40=5,1,0)+IF(AW40=5,1,0)+IF(BB40=5,1,0)+IF(BG40=5,1,0)+IF(BL40=5,1,0)) -> 2 | H40: =IF(AA40="","",AA40) -> 11 | I40: =IF(AF40="","",AF40) ->  | J40: =IF(AK40="","",AK40) ->  | K40: =IF(AP40="","",AP40) ->  | L40: =IF(AU40="","",AU40) ->  | M40: =IF(AZ40="","",AZ40) ->  | N40: =IF(BE40="","",BE40) -> dsq | O40: =IF(BJ40="","",BJ40) ->  | Q40: =AD40+AI40+AN40+AS40+AX40+BC40+BH40 -> 34 | R40: =IF($F40>=5,IF(AB40="","",AB40),"") ->  | S40: =IF($F40>=5,IF(AG40="","",AG40),"") ->  | T40: =IF($F40>=5,IF(AL40="","",AL40),"") ->  | U40: =IF($F40>=5,IF(AQ40="","",AQ40),"") ->  | V40: =IF($F40>=5,IF(AV40="","",AV40),"") ->  | W40: =IF($F40>=5,IF(BA40="","",BA40),"") ->  | X40: =IF($F40>=5,IF(BF40="","",BF40),"") ->  | Y40: =IF($F40>=5,IF(BK40="","",BK40),"") ->  | AA40: 11 | AB40: =IF(ISNUMBER(AA40),(VLOOKUP(AA40,$BO$6:$BP$50,2)),0) -> 24 | AC40: =IF(AA40<>"",5,0) -> 5 | AD40: =AB40+AC40 -> 29 | AG40: =IF(ISNUMBER(AF40),(VLOOKUP(AF40,$BO$6:$BP$50,2)),0) -> 0 | AH40: =IF(AF40<>"",5,0) -> 0 | AI40: =AG40+AH40 -> 0 | AL40: =IF(ISNUMBER(AK40),(VLOOKUP(AK40,$BO$6:$BP$50,2)),0) -> 0 | AM40: =IF(AK40<>"",5,0) -> 0 | AN40: =AL40+AM40 -> 0 | AQ40: =IF(ISNUMBER(AP40),(VLOOKUP(AP40,$BO$6:$BP$50,2)),0) -> 0 | AR40: =IF(AP40<>"",5,0) -> 0 | AS40: =AQ40+AR40 -> 0 | AV40: =IF(ISNUMBER(AU40),(VLOOKUP(AU40,$BO$6:$BP$50,2)),0) -> 0 | AW40: =IF(AU40<>"",5,0) -> 0 | AX40: =AV40+AW40 -> 0 | BA40: =IF(ISNUMBER(AZ40),(VLOOKUP(AZ40,$BO$6:$BP$50,2)),0) -> 0 | BB40: =IF(AZ40<>"",5,0) -> 0 | BC40: =BA40+BB40 -> 0 | BE40: dsq | BF40: =IF(ISNUMBER(BE40),(VLOOKUP(BE40,$BO$6:$BP$50,2)),0) -> 0 | BG40: =IF(BE40<>"",5,0) -> 5 | BH40: =BF40+BG40 -> 5 | BK40: =IF(ISNUMBER(BJ40),(VLOOKUP(BJ40,$BO$6:$BP$50,2)),0) -> 0 | BL40: =IF(BJ40<>"",5,0) -> 0 | BM40: =BK40+BL40 -> 0 | BO40: 35 | BP40: 0 | BQ40: 0 | BR40: 0 | BS40: 0 | BT40: 0 | BU40: 0 | BV40: 1 | BW40: 0 | BX40: 0
A41: =IF(E41<E40,BO41,A40) -> 36 | B41: Hagen-Småstu | C41: Sindre | D41: Kjelsås | E41: =IF(F41<=4,Q41,(Q41-SUM(SMALL(R41:Y41,{1;2;3;4})))) -> 33 | F41: =(IF(AC41=5,1,0)+IF(AH41=5,1,0)+IF(AM41=5,1,0)+IF(AR41=5,1,0)+IF(AW41=5,1,0)+IF(BB41=5,1,0)+IF(BG41=5,1,0)+IF(BL41=5,1,0)) -> 2 | H41: =IF(AA41="","",AA41) ->  | I41: =IF(AF41="","",AF41) ->  | J41: =IF(AK41="","",AK41) ->  | K41: =IF(AP41="","",AP41) ->  | L41: =IF(AU41="","",AU41) ->  | M41: =IF(AZ41="","",AZ41) -> 22 | N41: =IF(BE41="","",BE41) -> 17 | O41: =IF(BJ41="","",BJ41) ->  | Q41: =AD41+AI41+AN41+AS41+AX41+BC41+BH41 -> 33 | R41: =IF($F41>=5,IF(AB41="","",AB41),"") ->  | S41: =IF($F41>=5,IF(AG41="","",AG41),"") ->  | T41: =IF($F41>=5,IF(AL41="","",AL41),"") ->  | U41: =IF($F41>=5,IF(AQ41="","",AQ41),"") ->  | V41: =IF($F41>=5,IF(AV41="","",AV41),"") ->  | W41: =IF($F41>=5,IF(BA41="","",BA41),"") ->  | X41: =IF($F41>=5,IF(BF41="","",BF41),"") ->  | Y41: =IF($F41>=5,IF(BK41="","",BK41),"") ->  | AB41: =IF(ISNUMBER(AA41),(VLOOKUP(AA41,$BO$6:$BP$50,2)),0) -> 0 | AC41: =IF(AA41<>"",5,0) -> 0 | AD41: =AB41+AC41 -> 0 | AG41: =IF(ISNUMBER(AF41),(VLOOKUP(AF41,$BO$6:$BP$50,2)),0) -> 0 | AH41: =IF(AF41<>"",5,0) -> 0 | AI41: =AG41+AH41 -> 0 | AL41: =IF(ISNUMBER(AK41),(VLOOKUP(AK41,$BO$6:$BP$50,2)),0) -> 0 | AM41: =IF(AK41<>"",5,0) -> 0 | AN41: =AL41+AM41 -> 0 | AQ41: =IF(ISNUMBER(AP41),(VLOOKUP(AP41,$BO$6:$BP$50,2)),0) -> 0 | AR41: =IF(AP41<>"",5,0) -> 0 | AS41: =AQ41+AR41 -> 0 | AV41: =IF(ISNUMBER(AU41),(VLOOKUP(AU41,$BO$6:$BP$50,2)),0) -> 0 | AW41: =IF(AU41<>"",5,0) -> 0 | AX41: =AV41+AW41 -> 0 | AZ41: 22 | BA41: =IF(ISNUMBER(AZ41),(VLOOKUP(AZ41,$BO$6:$BP$50,2)),0) -> 9 | BB41: =IF(AZ41<>"",5,0) -> 5 | BC41: =BA41+BB41 -> 14 | BE41: 17 | BF41: =IF(ISNUMBER(BE41),(VLOOKUP(BE41,$BO$6:$BP$50,2)),0) -> 14 | BG41: =IF(BE41<>"",5,0) -> 5 | BH41: =BF41+BG41 -> 19 | BK41: =IF(ISNUMBER(BJ41),(VLOOKUP(BJ41,$BO$6:$BP$50,2)),0) -> 0 | BL41: =IF(BJ41<>"",5,0) -> 0 | BM41: =BK41+BL41 -> 0 | BO41: 36 | BP41: 0 | BQ41: 0 | BR41: 0 | BS41: 0 | BT41: 0 | BU41: 0 | BV41: 0 | BW41: 0 | BX41: 1
A42: =IF(E42<E41,BO42,A41) -> 37 | B42: Lyseklætt | C42: Sebastian | D42: Heming | E42: =IF(F42<=4,Q42,(Q42-SUM(SMALL(R42:Y42,{1;2;3;4})))) -> 28 | F42: =(IF(AC42=5,1,0)+IF(AH42=5,1,0)+IF(AM42=5,1,0)+IF(AR42=5,1,0)+IF(AW42=5,1,0)+IF(BB42=5,1,0)+IF(BG42=5,1,0)+IF(BL42=5,1,0)) -> 2 | H42: =IF(AA42="","",AA42) ->  | I42: =IF(AF42="","",AF42) ->  | J42: =IF(AK42="","",AK42) ->  | K42: =IF(AP42="","",AP42) ->  | L42: =IF(AU42="","",AU42) -> dnf | M42: =IF(AZ42="","",AZ42) -> 14 | N42: =IF(BE42="","",BE42) ->  | O42: =IF(BJ42="","",BJ42) ->  | Q42: =AD42+AI42+AN42+AS42+AX42+BC42+BH42 -> 28 | R42: =IF($F42>=5,IF(AB42="","",AB42),"") ->  | S42: =IF($F42>=5,IF(AG42="","",AG42),"") ->  | T42: =IF($F42>=5,IF(AL42="","",AL42),"") ->  | U42: =IF($F42>=5,IF(AQ42="","",AQ42),"") ->  | V42: =IF($F42>=5,IF(AV42="","",AV42),"") ->  | W42: =IF($F42>=5,IF(BA42="","",BA42),"") ->  | X42: =IF($F42>=5,IF(BF42="","",BF42),"") ->  | Y42: =IF($F42>=5,IF(BK42="","",BK42),"") ->  | AB42: =IF(ISNUMBER(AA42),(VLOOKUP(AA42,$BO$6:$BP$50,2)),0) -> 0 | AC42: =IF(AA42<>"",5,0) -> 0 | AD42: =AB42+AC42 -> 0 | AG42: =IF(ISNUMBER(AF42),(VLOOKUP(AF42,$BO$6:$BP$50,2)),0) -> 0 | AH42: =IF(AF42<>"",5,0) -> 0 | AI42: =AG42+AH42 -> 0 | AL42: =IF(ISNUMBER(AK42),(VLOOKUP(AK42,$BO$6:$BP$50,2)),0) -> 0 | AM42: =IF(AK42<>"",5,0) -> 0 | AN42: =AL42+AM42 -> 0 | AQ42: =IF(ISNUMBER(AP42),(VLOOKUP(AP42,$BO$6:$BP$50,2)),0) -> 0 | AR42: =IF(AP42<>"",5,0) -> 0 | AS42: =AQ42+AR42 -> 0 | AU42: dnf | AV42: =IF(ISNUMBER(AU42),(VLOOKUP(AU42,$BO$6:$BP$50,2)),0) -> 0 | AW42: =IF(AU42<>"",5,0) -> 5 | AX42: =AV42+AW42 -> 5 | AZ42: 14 | BA42: =IF(ISNUMBER(AZ42),(VLOOKUP(AZ42,$BO$6:$BP$50,2)),0) -> 18 | BB42: =IF(AZ42<>"",5,0) -> 5 | BC42: =BA42+BB42 -> 23 | BF42: =IF(ISNUMBER(BE42),(VLOOKUP(BE42,$BO$6:$BP$50,2)),0) -> 0 | BG42: =IF(BE42<>"",5,0) -> 0 | BH42: =BF42+BG42 -> 0 | BK42: =IF(ISNUMBER(BJ42),(VLOOKUP(BJ42,$BO$6:$BP$50,2)),0) -> 0 | BL42: =IF(BJ42<>"",5,0) -> 0 | BM42: =BK42+BL42 -> 0 | BO42: 37 | BP42: 0 | BQ42: 0 | BR42: 0 | BS42: 0 | BT42: 0 | BU42: 0 | BV42: 0 | BW42: 1 | BX42: 0
A43: =IF(E43<E42,BO43,A42) -> 37 | B43: Stigen | C43: Mikkel | D43: Kjelsås | E43: =IF(F43<=4,Q43,(Q43-SUM(SMALL(R43:Y43,{1;2;3;4})))) -> 28 | F43: =(IF(AC43=5,1,0)+IF(AH43=5,1,0)+IF(AM43=5,1,0)+IF(AR43=5,1,0)+IF(AW43=5,1,0)+IF(BB43=5,1,0)+IF(BG43=5,1,0)+IF(BL43=5,1,0)) -> 2 | H43: =IF(AA43="","",AA43) ->  | I43: =IF(AF43="","",AF43) ->  | J43: =IF(AK43="","",AK43) ->  | K43: =IF(AP43="","",AP43) ->  | L43: =IF(AU43="","",AU43) ->  | M43: =IF(AZ43="","",AZ43) -> 23 | N43: =IF(BE43="","",BE43) -> 21 | O43: =IF(BJ43="","",BJ43) ->  | Q43: =AD43+AI43+AN43+AS43+AX43+BC43+BH43 -> 28 | R43: =IF($F43>=5,IF(AB43="","",AB43),"") ->  | S43: =IF($F43>=5,IF(AG43="","",AG43),"") ->  | T43: =IF($F43>=5,IF(AL43="","",AL43),"") ->  | U43: =IF($F43>=5,IF(AQ43="","",AQ43),"") ->  | V43: =IF($F43>=5,IF(AV43="","",AV43),"") ->  | W43: =IF($F43>=5,IF(BA43="","",BA43),"") ->  | X43: =IF($F43>=5,IF(BF43="","",BF43),"") ->  | Y43: =IF($F43>=5,IF(BK43="","",BK43),"") ->  | AB43: =IF(ISNUMBER(AA43),(VLOOKUP(AA43,$BO$6:$BP$50,2)),0) -> 0 | AC43: =IF(AA43<>"",5,0) -> 0 | AD43: =AB43+AC43 -> 0 | AG43: =IF(ISNUMBER(AF43),(VLOOKUP(AF43,$BO$6:$BP$50,2)),0) -> 0 | AH43: =IF(AF43<>"",5,0) -> 0 | AI43: =AG43+AH43 -> 0 | AL43: =IF(ISNUMBER(AK43),(VLOOKUP(AK43,$BO$6:$BP$50,2)),0) -> 0 | AM43: =IF(AK43<>"",5,0) -> 0 | AN43: =AL43+AM43 -> 0 | AQ43: =IF(ISNUMBER(AP43),(VLOOKUP(AP43,$BO$6:$BP$50,2)),0) -> 0 | AR43: =IF(AP43<>"",5,0) -> 0 | AS43: =AQ43+AR43 -> 0 | AV43: =IF(ISNUMBER(AU43),(VLOOKUP(AU43,$BO$6:$BP$50,2)),0) -> 0 | AW43: =IF(AU43<>"",5,0) -> 0 | AX43: =AV43+AW43 -> 0 | AZ43: 23 | BA43: =IF(ISNUMBER(AZ43),(VLOOKUP(AZ43,$BO$6:$BP$50,2)),0) -> 8 | BB43: =IF(AZ43<>"",5,0) -> 5 | BC43: =BA43+BB43 -> 13 | BE43: 21 | BF43: =IF(ISNUMBER(BE43),(VLOOKUP(BE43,$BO$6:$BP$50,2)),0) -> 10 | BG43: =IF(BE43<>"",5,0) -> 5 | BH43: =BF43+BG43 -> 15 | BK43: =IF(ISNUMBER(BJ43),(VLOOKUP(BJ43,$BO$6:$BP$50,2)),0) -> 0 | BL43: =IF(BJ43<>"",5,0) -> 0 | BM43: =BK43+BL43 -> 0 | BO43: 38 | BP43: 0 | BQ43: 0 | BR43: 0 | BS43: 0 | BT43: 0 | BU43: 0 | BV43: 0 | BW43: 0 | BX43: 1
A44: =IF(E44<E43,BO44,A43) -> 39 | B44: Øksnes | C44: Håkon Eiksund | D44: Kjelsås | E44: =IF(F44<=4,Q44,(Q44-SUM(SMALL(R44:Y44,{1;2;3;4})))) -> 25 | F44: =(IF(AC44=5,1,0)+IF(AH44=5,1,0)+IF(AM44=5,1,0)+IF(AR44=5,1,0)+IF(AW44=5,1,0)+IF(BB44=5,1,0)+IF(BG44=5,1,0)+IF(BL44=5,1,0)) -> 1 | H44: =IF(AA44="","",AA44) -> 13 | I44: =IF(AF44="","",AF44) ->  | J44: =IF(AK44="","",AK44) ->  | K44: =IF(AP44="","",AP44) ->  | L44: =IF(AU44="","",AU44) ->  | M44: =IF(AZ44="","",AZ44) ->  | N44: =IF(BE44="","",BE44) ->  | O44: =IF(BJ44="","",BJ44) ->  | Q44: =AD44+AI44+AN44+AS44+AX44+BC44+BH44 -> 25 | R44: =IF($F44>=5,IF(AB44="","",AB44),"") ->  | S44: =IF($F44>=5,IF(AG44="","",AG44),"") ->  | T44: =IF($F44>=5,IF(AL44="","",AL44),"") ->  | U44: =IF($F44>=5,IF(AQ44="","",AQ44),"") ->  | V44: =IF($F44>=5,IF(AV44="","",AV44),"") ->  | W44: =IF($F44>=5,IF(BA44="","",BA44),"") ->  | X44: =IF($F44>=5,IF(BF44="","",BF44),"") ->  | Y44: =IF($F44>=5,IF(BK44="","",BK44),"") ->  | AA44: 13 | AB44: =IF(ISNUMBER(AA44),(VLOOKUP(AA44,$BO$6:$BP$50,2)),0) -> 20 | AC44: =IF(AA44<>"",5,0) -> 5 | AD44: =AB44+AC44 -> 25 | AG44: =IF(ISNUMBER(AF44),(VLOOKUP(AF44,$BO$6:$BP$50,2)),0) -> 0 | AH44: =IF(AF44<>"",5,0) -> 0 | AI44: =AG44+AH44 -> 0 | AL44: =IF(ISNUMBER(AK44),(VLOOKUP(AK44,$BO$6:$BP$50,2)),0) -> 0 | AM44: =IF(AK44<>"",5,0) -> 0 | AN44: =AL44+AM44 -> 0 | AQ44: =IF(ISNUMBER(AP44),(VLOOKUP(AP44,$BO$6:$BP$50,2)),0) -> 0 | AR44: =IF(AP44<>"",5,0) -> 0 | AS44: =AQ44+AR44 -> 0 | AV44: =IF(ISNUMBER(AU44),(VLOOKUP(AU44,$BO$6:$BP$50,2)),0) -> 0 | AW44: =IF(AU44<>"",5,0) -> 0 | AX44: =AV44+AW44 -> 0 | BA44: =IF(ISNUMBER(AZ44),(VLOOKUP(AZ44,$BO$6:$BP$50,2)),0) -> 0 | BB44: =IF(AZ44<>"",5,0) -> 0 | BC44: =BA44+BB44 -> 0 | BF44: =IF(ISNUMBER(BE44),(VLOOKUP(BE44,$BO$6:$BP$50,2)),0) -> 0 | BG44: =IF(BE44<>"",5,0) -> 0 | BH44: =BF44+BG44 -> 0 | BK44: =IF(ISNUMBER(BJ44),(VLOOKUP(BJ44,$BO$6:$BP$50,2)),0) -> 0 | BL44: =IF(BJ44<>"",5,0) -> 0 | BM44: =BK44+BL44 -> 0 | BO44: 39 | BP44: 0 | BQ44: 0 | BR44: 0 | BS44: 0 | BT44: 0 | BU44: 0 | BV44: 0 | BW44: 1 | BX44: 0
A45: =IF(E45<E44,BO45,A44) -> 40 | B45: Ruud-Hansen | C45: Max | D45: Kjelsås | E45: =IF(F45<=4,Q45,(Q45-SUM(SMALL(R45:Y45,{1;2;3;4})))) -> 22 | F45: =(IF(AC45=5,1,0)+IF(AH45=5,1,0)+IF(AM45=5,1,0)+IF(AR45=5,1,0)+IF(AW45=5,1,0)+IF(BB45=5,1,0)+IF(BG45=5,1,0)+IF(BL45=5,1,0)) -> 2 | H45: =IF(AA45="","",AA45) ->  | I45: =IF(AF45="","",AF45) ->  | J45: =IF(AK45="","",AK45) ->  | K45: =IF(AP45="","",AP45) ->  | L45: =IF(AU45="","",AU45) ->  | M45: =IF(AZ45="","",AZ45) -> 19 | N45: =IF(BE45="","",BE45) -> dsq | O45: =IF(BJ45="","",BJ45) ->  | Q45: =AD45+AI45+AN45+AS45+AX45+BC45+BH45 -> 22 | R45: =IF($F45>=5,IF(AB45="","",AB45),"") ->  | S45: =IF($F45>=5,IF(AG45="","",AG45),"") ->  | T45: =IF($F45>=5,IF(AL45="","",AL45),"") ->  | U45: =IF($F45>=5,IF(AQ45="","",AQ45),"") ->  | V45: =IF($F45>=5,IF(AV45="","",AV45),"") ->  | W45: =IF($F45>=5,IF(BA45="","",BA45),"") ->  | X45: =IF($F45>=5,IF(BF45="","",BF45),"") ->  | Y45: =IF($F45>=5,IF(BK45="","",BK45),"") ->  | AB45: =IF(ISNUMBER(AA45),(VLOOKUP(AA45,$BO$6:$BP$50,2)),0) -> 0 | AC45: =IF(AA45<>"",5,0) -> 0 | AD45: =AB45+AC45 -> 0 | AG45: =IF(ISNUMBER(AF45),(VLOOKUP(AF45,$BO$6:$BP$50,2)),0) -> 0 | AH45: =IF(AF45<>"",5,0) -> 0 | AI45: =AG45+AH45 -> 0 | AL45: =IF(ISNUMBER(AK45),(VLOOKUP(AK45,$BO$6:$BP$50,2)),0) -> 0 | AM45: =IF(AK45<>"",5,0) -> 0 | AN45: =AL45+AM45 -> 0 | AQ45: =IF(ISNUMBER(AP45),(VLOOKUP(AP45,$BO$6:$BP$50,2)),0) -> 0 | AR45: =IF(AP45<>"",5,0) -> 0 | AS45: =AQ45+AR45 -> 0 | AV45: =IF(ISNUMBER(AU45),(VLOOKUP(AU45,$BO$6:$BP$50,2)),0) -> 0 | AW45: =IF(AU45<>"",5,0) -> 0 | AX45: =AV45+AW45 -> 0 | AZ45: 19 | BA45: =IF(ISNUMBER(AZ45),(VLOOKUP(AZ45,$BO$6:$BP$50,2)),0) -> 12 | BB45: =IF(AZ45<>"",5,0) -> 5 | BC45: =BA45+BB45 -> 17 | BE45: dsq | BF45: =IF(ISNUMBER(BE45),(VLOOKUP(BE45,$BO$6:$BP$50,2)),0) -> 0 | BG45: =IF(BE45<>"",5,0) -> 5 | BH45: =BF45+BG45 -> 5 | BK45: =IF(ISNUMBER(BJ45),(VLOOKUP(BJ45,$BO$6:$BP$50,2)),0) -> 0 | BL45: =IF(BJ45<>"",5,0) -> 0 | BM45: =BK45+BL45 -> 0 | BO45: 40 | BP45: 0 | BQ45: 0 | BR45: 0 | BS45: 0 | BT45: 0 | BU45: 0 | BV45: 1 | BW45: 0 | BX45: 0
A46: =IF(E46<E45,BO46,A45) -> 41 | B46: Erlandsen | C46: Mats | D46: Ullensaker | E46: =IF(F46<=4,Q46,(Q46-SUM(SMALL(R46:Y46,{1;2;3;4})))) -> 20 | F46: =(IF(AC46=5,1,0)+IF(AH46=5,1,0)+IF(AM46=5,1,0)+IF(AR46=5,1,0)+IF(AW46=5,1,0)+IF(BB46=5,1,0)+IF(BG46=5,1,0)+IF(BL46=5,1,0)) -> 1 | H46: =IF(AA46="","",AA46) ->  | I46: =IF(AF46="","",AF46) ->  | J46: =IF(AK46="","",AK46) ->  | K46: =IF(AP46="","",AP46) ->  | L46: =IF(AU46="","",AU46) -> 16 | M46: =IF(AZ46="","",AZ46) ->  | N46: =IF(BE46="","",BE46) ->  | O46: =IF(BJ46="","",BJ46) ->  | Q46: =AD46+AI46+AN46+AS46+AX46+BC46+BH46 -> 20 | R46: =IF($F46>=5,IF(AB46="","",AB46),"") ->  | S46: =IF($F46>=5,IF(AG46="","",AG46),"") ->  | T46: =IF($F46>=5,IF(AL46="","",AL46),"") ->  | U46: =IF($F46>=5,IF(AQ46="","",AQ46),"") ->  | V46: =IF($F46>=5,IF(AV46="","",AV46),"") ->  | W46: =IF($F46>=5,IF(BA46="","",BA46),"") ->  | X46: =IF($F46>=5,IF(BF46="","",BF46),"") ->  | Y46: =IF($F46>=5,IF(BK46="","",BK46),"") ->  | AB46: =IF(ISNUMBER(AA46),(VLOOKUP(AA46,$BO$6:$BP$50,2)),0) -> 0 | AC46: =IF(AA46<>"",5,0) -> 0 | AD46: =AB46+AC46 -> 0 | AG46: =IF(ISNUMBER(AF46),(VLOOKUP(AF46,$BO$6:$BP$50,2)),0) -> 0 | AH46: =IF(AF46<>"",5,0) -> 0 | AI46: =AG46+AH46 -> 0 | AL46: =IF(ISNUMBER(AK46),(VLOOKUP(AK46,$BO$6:$BP$50,2)),0) -> 0 | AM46: =IF(AK46<>"",5,0) -> 0 | AN46: =AL46+AM46 -> 0 | AQ46: =IF(ISNUMBER(AP46),(VLOOKUP(AP46,$BO$6:$BP$50,2)),0) -> 0 | AR46: =IF(AP46<>"",5,0) -> 0 | AS46: =AQ46+AR46 -> 0 | AU46: 16 | AV46: =IF(ISNUMBER(AU46),(VLOOKUP(AU46,$BO$6:$BP$50,2)),0) -> 15 | AW46: =IF(AU46<>"",5,0) -> 5 | AX46: =AV46+AW46 -> 20 | BA46: =IF(ISNUMBER(AZ46),(VLOOKUP(AZ46,$BO$6:$BP$50,2)),0) -> 0 | BB46: =IF(AZ46<>"",5,0) -> 0 | BC46: =BA46+BB46 -> 0 | BF46: =IF(ISNUMBER(BE46),(VLOOKUP(BE46,$BO$6:$BP$50,2)),0) -> 0 | BG46: =IF(BE46<>"",5,0) -> 0 | BH46: =BF46+BG46 -> 0 | BK46: =IF(ISNUMBER(BJ46),(VLOOKUP(BJ46,$BO$6:$BP$50,2)),0) -> 0 | BL46: =IF(BJ46<>"",5,0) -> 0 | BM46: =BK46+BL46 -> 0 | BO46: 41 | BP46: 0 | BQ46: 0 | BR46: 0 | BS46: 0 | BT46: 0 | BU46: 0 | BV46: 0 | BW46: 1 | BX46: 0
A47: =IF(E47<E46,BO47,A46) -> 42 | B47: Manley | C47: Hermann | D47: Kjelsås | E47: =IF(F47<=4,Q47,(Q47-SUM(SMALL(R47:Y47,{1;2;3;4})))) -> 16 | F47: =(IF(AC47=5,1,0)+IF(AH47=5,1,0)+IF(AM47=5,1,0)+IF(AR47=5,1,0)+IF(AW47=5,1,0)+IF(BB47=5,1,0)+IF(BG47=5,1,0)+IF(BL47=5,1,0)) -> 1 | H47: =IF(AA47="","",AA47) ->  | I47: =IF(AF47="","",AF47) ->  | J47: =IF(AK47="","",AK47) ->  | K47: =IF(AP47="","",AP47) ->  | L47: =IF(AU47="","",AU47) ->  | M47: =IF(AZ47="","",AZ47) ->  | N47: =IF(BE47="","",BE47) -> 20 | O47: =IF(BJ47="","",BJ47) ->  | Q47: =AD47+AI47+AN47+AS47+AX47+BC47+BH47 -> 16 | R47: =IF($F47>=5,IF(AB47="","",AB47),"") ->  | S47: =IF($F47>=5,IF(AG47="","",AG47),"") ->  | T47: =IF($F47>=5,IF(AL47="","",AL47),"") ->  | U47: =IF($F47>=5,IF(AQ47="","",AQ47),"") ->  | V47: =IF($F47>=5,IF(AV47="","",AV47),"") ->  | W47: =IF($F47>=5,IF(BA47="","",BA47),"") ->  | X47: =IF($F47>=5,IF(BF47="","",BF47),"") ->  | Y47: =IF($F47>=5,IF(BK47="","",BK47),"") ->  | AB47: =IF(ISNUMBER(AA47),(VLOOKUP(AA47,$BO$6:$BP$50,2)),0) -> 0 | AC47: =IF(AA47<>"",5,0) -> 0 | AD47: =AB47+AC47 -> 0 | AG47: =IF(ISNUMBER(AF47),(VLOOKUP(AF47,$BO$6:$BP$50,2)),0) -> 0 | AH47: =IF(AF47<>"",5,0) -> 0 | AI47: =AG47+AH47 -> 0 | AL47: =IF(ISNUMBER(AK47),(VLOOKUP(AK47,$BO$6:$BP$50,2)),0) -> 0 | AM47: =IF(AK47<>"",5,0) -> 0 | AN47: =AL47+AM47 -> 0 | AQ47: =IF(ISNUMBER(AP47),(VLOOKUP(AP47,$BO$6:$BP$50,2)),0) -> 0 | AR47: =IF(AP47<>"",5,0) -> 0 | AS47: =AQ47+AR47 -> 0 | AV47: =IF(ISNUMBER(AU47),(VLOOKUP(AU47,$BO$6:$BP$50,2)),0) -> 0 | AW47: =IF(AU47<>"",5,0) -> 0 | AX47: =AV47+AW47 -> 0 | BA47: =IF(ISNUMBER(AZ47),(VLOOKUP(AZ47,$BO$6:$BP$50,2)),0) -> 0 | BB47: =IF(AZ47<>"",5,0) -> 0 | BC47: =BA47+BB47 -> 0 | BE47: 20 | BF47: =IF(ISNUMBER(BE47),(VLOOKUP(BE47,$BO$6:$BP$50,2)),0) -> 11 | BG47: =IF(BE47<>"",5,0) -> 5 | BH47: =BF47+BG47 -> 16 | BK47: =IF(ISNUMBER(BJ47),(VLOOKUP(BJ47,$BO$6:$BP$50,2)),0) -> 0 | BL47: =IF(BJ47<>"",5,0) -> 0 | BM47: =BK47+BL47 -> 0 | BO47: 42 | BP47: 0 | BQ47: 0 | BR47: 0 | BS47: 0 | BT47: 0 | BU47: 0 | BV47: 0 | BW47: 1 | BX47: 0
A48: =IF(E48<E47,BO48,A47) -> 43 | B48: Ross | C48: Hans Christian | D48: Heming | E48: =IF(F48<=4,Q48,(Q48-SUM(SMALL(R48:Y48,{1;2;3;4})))) -> 14 | F48: =(IF(AC48=5,1,0)+IF(AH48=5,1,0)+IF(AM48=5,1,0)+IF(AR48=5,1,0)+IF(AW48=5,1,0)+IF(BB48=5,1,0)+IF(BG48=5,1,0)+IF(BL48=5,1,0)) -> 1 | H48: =IF(AA48="","",AA48) ->  | I48: =IF(AF48="","",AF48) ->  | J48: =IF(AK48="","",AK48) ->  | K48: =IF(AP48="","",AP48) ->  | L48: =IF(AU48="","",AU48) -> 22 | M48: =IF(AZ48="","",AZ48) ->  | N48: =IF(BE48="","",BE48) ->  | O48: =IF(BJ48="","",BJ48) ->  | Q48: =AD48+AI48+AN48+AS48+AX48+BC48+BH48 -> 14 | R48: =IF($F48>=5,IF(AB48="","",AB48),"") ->  | S48: =IF($F48>=5,IF(AG48="","",AG48),"") ->  | T48: =IF($F48>=5,IF(AL48="","",AL48),"") ->  | U48: =IF($F48>=5,IF(AQ48="","",AQ48),"") ->  | V48: =IF($F48>=5,IF(AV48="","",AV48),"") ->  | W48: =IF($F48>=5,IF(BA48="","",BA48),"") ->  | X48: =IF($F48>=5,IF(BF48="","",BF48),"") ->  | Y48: =IF($F48>=5,IF(BK48="","",BK48),"") ->  | AB48: =IF(ISNUMBER(AA48),(VLOOKUP(AA48,$BO$6:$BP$50,2)),0) -> 0 | AC48: =IF(AA48<>"",5,0) -> 0 | AD48: =AB48+AC48 -> 0 | AG48: =IF(ISNUMBER(AF48),(VLOOKUP(AF48,$BO$6:$BP$50,2)),0) -> 0 | AH48: =IF(AF48<>"",5,0) -> 0 | AI48: =AG48+AH48 -> 0 | AL48: =IF(ISNUMBER(AK48),(VLOOKUP(AK48,$BO$6:$BP$50,2)),0) -> 0 | AM48: =IF(AK48<>"",5,0) -> 0 | AN48: =AL48+AM48 -> 0 | AQ48: =IF(ISNUMBER(AP48),(VLOOKUP(AP48,$BO$6:$BP$50,2)),0) -> 0 | AR48: =IF(AP48<>"",5,0) -> 0 | AS48: =AQ48+AR48 -> 0 | AU48: 22 | AV48: =IF(ISNUMBER(AU48),(VLOOKUP(AU48,$BO$6:$BP$50,2)),0) -> 9 | AW48: =IF(AU48<>"",5,0) -> 5 | AX48: =AV48+AW48 -> 14 | BA48: =IF(ISNUMBER(AZ48),(VLOOKUP(AZ48,$BO$6:$BP$50,2)),0) -> 0 | BB48: =IF(AZ48<>"",5,0) -> 0 | BC48: =BA48+BB48 -> 0 | BF48: =IF(ISNUMBER(BE48),(VLOOKUP(BE48,$BO$6:$BP$50,2)),0) -> 0 | BG48: =IF(BE48<>"",5,0) -> 0 | BH48: =BF48+BG48 -> 0 | BK48: =IF(ISNUMBER(BJ48),(VLOOKUP(BJ48,$BO$6:$BP$50,2)),0) -> 0 | BL48: =IF(BJ48<>"",5,0) -> 0 | BM48: =BK48+BL48 -> 0 | BO48: 43 | BP48: 0 | BQ48: 0 | BR48: 0 | BS48: 0 | BT48: 0 | BU48: 0 | BV48: 0 | BW48: 0 | BX48: 1
A49: =IF(E49<E48,BO49,A48) -> 43 | B49: Nyman | C49: Carl Axel | D49: Kjelsås | E49: =IF(F49<=4,Q49,(Q49-SUM(SMALL(R49:Y49,{1;2;3;4})))) -> 14 | F49: =(IF(AC49=5,1,0)+IF(AH49=5,1,0)+IF(AM49=5,1,0)+IF(AR49=5,1,0)+IF(AW49=5,1,0)+IF(BB49=5,1,0)+IF(BG49=5,1,0)+IF(BL49=5,1,0)) -> 1 | H49: =IF(AA49="","",AA49) ->  | I49: =IF(AF49="","",AF49) ->  | J49: =IF(AK49="","",AK49) ->  | K49: =IF(AP49="","",AP49) ->  | L49: =IF(AU49="","",AU49) ->  | M49: =IF(AZ49="","",AZ49) ->  | N49: =IF(BE49="","",BE49) -> 22 | O49: =IF(BJ49="","",BJ49) ->  | Q49: =AD49+AI49+AN49+AS49+AX49+BC49+BH49 -> 14 | R49: =IF($F49>=5,IF(AB49="","",AB49),"") ->  | S49: =IF($F49>=5,IF(AG49="","",AG49),"") ->  | T49: =IF($F49>=5,IF(AL49="","",AL49),"") ->  | U49: =IF($F49>=5,IF(AQ49="","",AQ49),"") ->  | V49: =IF($F49>=5,IF(AV49="","",AV49),"") ->  | W49: =IF($F49>=5,IF(BA49="","",BA49),"") ->  | X49: =IF($F49>=5,IF(BF49="","",BF49),"") ->  | Y49: =IF($F49>=5,IF(BK49="","",BK49),"") ->  | AB49: =IF(ISNUMBER(AA49),(VLOOKUP(AA49,$BO$6:$BP$50,2)),0) -> 0 | AC49: =IF(AA49<>"",5,0) -> 0 | AD49: =AB49+AC49 -> 0 | AG49: =IF(ISNUMBER(AF49),(VLOOKUP(AF49,$BO$6:$BP$50,2)),0) -> 0 | AH49: =IF(AF49<>"",5,0) -> 0 | AI49: =AG49+AH49 -> 0 | AL49: =IF(ISNUMBER(AK49),(VLOOKUP(AK49,$BO$6:$BP$50,2)),0) -> 0 | AM49: =IF(AK49<>"",5,0) -> 0 | AN49: =AL49+AM49 -> 0 | AQ49: =IF(ISNUMBER(AP49),(VLOOKUP(AP49,$BO$6:$BP$50,2)),0) -> 0 | AR49: =IF(AP49<>"",5,0) -> 0 | AS49: =AQ49+AR49 -> 0 | AV49: =IF(ISNUMBER(AU49),(VLOOKUP(AU49,$BO$6:$BP$50,2)),0) -> 0 | AW49: =IF(AU49<>"",5,0) -> 0 | AX49: =AV49+AW49 -> 0 | BA49: =IF(ISNUMBER(AZ49),(VLOOKUP(AZ49,$BO$6:$BP$50,2)),0) -> 0 | BB49: =IF(AZ49<>"",5,0) -> 0 | BC49: =BA49+BB49 -> 0 | BE49: 22 | BF49: =IF(ISNUMBER(BE49),(VLOOKUP(BE49,$BO$6:$BP$50,2)),0) -> 9 | BG49: =IF(BE49<>"",5,0) -> 5 | BH49: =BF49+BG49 -> 14 | BK49: =IF(ISNUMBER(BJ49),(VLOOKUP(BJ49,$BO$6:$BP$50,2)),0) -> 0 | BL49: =IF(BJ49<>"",5,0) -> 0 | BM49: =BK49+BL49 -> 0 | BO49: 44 | BP49: 0 | BQ49: 0 | BR49: 0 | BS49: 0 | BT49: 0 | BU49: 0 | BV49: 0 | BW49: 1 | BX49: 0
A50: =IF(E50<E49,BO50,A49) -> 45 | B50: Valasjø | C50: Henrik | D50: Heming | E50: =IF(F50<=4,Q50,(Q50-SUM(SMALL(R50:Y50,{1;2;3;4})))) -> 13 | F50: =(IF(AC50=5,1,0)+IF(AH50=5,1,0)+IF(AM50=5,1,0)+IF(AR50=5,1,0)+IF(AW50=5,1,0)+IF(BB50=5,1,0)+IF(BG50=5,1,0)+IF(BL50=5,1,0)) -> 1 | H50: =IF(AA50="","",AA50) ->  | I50: =IF(AF50="","",AF50) ->  | J50: =IF(AK50="","",AK50) ->  | K50: =IF(AP50="","",AP50) ->  | L50: =IF(AU50="","",AU50) -> 23 | M50: =IF(AZ50="","",AZ50) ->  | N50: =IF(BE50="","",BE50) ->  | O50: =IF(BJ50="","",BJ50) ->  | Q50: =AD50+AI50+AN50+AS50+AX50+BC50+BH50 -> 13 | R50: =IF($F41>=5,IF(AB50="","",AB50),"") ->  | S50: =IF($F41>=5,IF(AG50="","",AG50),"") ->  | T50: =IF($F41>=5,IF(AL50="","",AL50),"") ->  | U50: =IF($F41>=5,IF(AQ50="","",AQ50),"") ->  | V50: =IF($F41>=5,IF(AR50="","",AR50),"") ->  | W50: =IF($F41>=5,IF(AV50="","",AV50),"") ->  | X50: =IF($F41>=5,IF(BA50="","",BA50),"") ->  | Y50: =IF($F41>=5,IF(BF50="","",BF50),"") ->  | AB50: =IF(ISNUMBER(AA50),(VLOOKUP(AA50,$BO$6:$BP$50,2)),0) -> 0 | AC50: =IF(AA50<>"",5,0) -> 0 | AD50: =AB50+AC50 -> 0 | AG50: =IF(ISNUMBER(AF50),(VLOOKUP(AF50,$BO$6:$BP$50,2)),0) -> 0 | AH50: =IF(AF50<>"",5,0) -> 0 | AI50: =AG50+AH50 -> 0 | AL50: =IF(ISNUMBER(AK50),(VLOOKUP(AK50,$BO$6:$BP$50,2)),0) -> 0 | AM50: =IF(AK50<>"",5,0) -> 0 | AN50: =AL50+AM50 -> 0 | AQ50: =IF(ISNUMBER(AP50),(VLOOKUP(AP50,$BO$6:$BP$50,2)),0) -> 0 | AR50: =IF(AP50<>"",5,0) -> 0 | AS50: =AQ50+AR50 -> 0 | AU50: 23 | AV50: =IF(ISNUMBER(AU50),(VLOOKUP(AU50,$BO$6:$BP$50,2)),0) -> 8 | AW50: =IF(AU50<>"",5,0) -> 5 | AX50: =AV50+AW50 -> 13 | BA50: =IF(ISNUMBER(AZ50),(VLOOKUP(AZ50,$BO$6:$BP$50,2)),0) -> 0 | BB50: =IF(AZ50<>"",5,0) -> 0 | BC50: =BA50+BB50 -> 0 | BF50: =IF(ISNUMBER(BE50),(VLOOKUP(BE50,$BO$6:$BP$50,2)),0) -> 0 | BG50: =IF(BE50<>"",5,0) -> 0 | BH50: =BF50+BG50 -> 0 | BK50: =IF(ISNUMBER(BJ50),(VLOOKUP(BJ50,$BO$6:$BP$50,2)),0) -> 0 | BL50: =IF(BJ50<>"",5,0) -> 0 | BM50: =BK50+BL50 -> 0 | BO50: 45 | BP50: 0 | BQ50: 0 | BR50: 0 | BS50: 0 | BT50: 0 | BU50: 0 | BV50: 0 | BW50: 1 | BX50: 0
A51: =IF(E51<E50,BO51,A50) -> 46 | B51: Aulestad | C51: Herman | D51: Lørenskog | E51: =IF(F51<=4,Q51,(Q51-SUM(SMALL(R51:Y51,{1;2;3;4})))) -> 12 | F51: =(IF(AC51=5,1,0)+IF(AH51=5,1,0)+IF(AM51=5,1,0)+IF(AR51=5,1,0)+IF(AW51=5,1,0)+IF(BB51=5,1,0)+IF(BG51=5,1,0)+IF(BL51=5,1,0)) -> 1 | H51: =IF(AA51="","",AA51) ->  | I51: =IF(AF51="","",AF51) ->  | J51: =IF(AK51="","",AK51) ->  | K51: =IF(AP51="","",AP51) ->  | L51: =IF(AU51="","",AU51) ->  | M51: =IF(AZ51="","",AZ51) -> 24 | N51: =IF(BE51="","",BE51) ->  | O51: =IF(BJ51="","",BJ51) ->  | Q51: =AD51+AI51+AN51+AS51+AX51+BC51+BH51 -> 12 | R51: =IF($F42>=5,IF(AB51="","",AB51),"") ->  | S51: =IF($F42>=5,IF(AG51="","",AG51),"") ->  | T51: =IF($F42>=5,IF(AL51="","",AL51),"") ->  | U51: =IF($F42>=5,IF(AQ51="","",AQ51),"") ->  | V51: =IF($F42>=5,IF(AR51="","",AR51),"") ->  | W51: =IF($F42>=5,IF(AV51="","",AV51),"") ->  | X51: =IF($F42>=5,IF(BA51="","",BA51),"") ->  | Y51: =IF($F42>=5,IF(BF51="","",BF51),"") ->  | AB51: =IF(ISNUMBER(AA51),(VLOOKUP(AA51,$BO$6:$BP$50,2)),0) -> 0 | AC51: =IF(AA51<>"",5,0) -> 0 | AD51: =AB51+AC51 -> 0 | AG51: =IF(ISNUMBER(AF51),(VLOOKUP(AF51,$BO$6:$BP$50,2)),0) -> 0 | AH51: =IF(AF51<>"",5,0) -> 0 | AI51: =AG51+AH51 -> 0 | AL51: =IF(ISNUMBER(AK51),(VLOOKUP(AK51,$BO$6:$BP$50,2)),0) -> 0 | AM51: =IF(AK51<>"",5,0) -> 0 | AN51: =AL51+AM51 -> 0 | AQ51: =IF(ISNUMBER(AP51),(VLOOKUP(AP51,$BO$6:$BP$50,2)),0) -> 0 | AR51: =IF(AP51<>"",5,0) -> 0 | AS51: =AQ51+AR51 -> 0 | AV51: =IF(ISNUMBER(AU51),(VLOOKUP(AU51,$BO$6:$BP$50,2)),0) -> 0 | AW51: =IF(AU51<>"",5,0) -> 0 | AX51: =AV51+AW51 -> 0 | AZ51: 24 | BA51: =IF(ISNUMBER(AZ51),(VLOOKUP(AZ51,$BO$6:$BP$50,2)),0) -> 7 | BB51: =IF(AZ51<>"",5,0) -> 5 | BC51: =BA51+BB51 -> 12 | BF51: =IF(ISNUMBER(BE51),(VLOOKUP(BE51,$BO$6:$BP$50,2)),0) -> 0 | BG51: =IF(BE51<>"",5,0) -> 0 | BH51: =BF51+BG51 -> 0 | BK51: =IF(ISNUMBER(BJ51),(VLOOKUP(BJ51,$BO$6:$BP$50,2)),0) -> 0 | BL51: =IF(BJ51<>"",5,0) -> 0 | BM51: =BK51+BL51 -> 0 | BO51: 46 | BP51: 0 | BQ51: 0 | BR51: =IF($F42=7,1,0) -> 0 | BS51: 0 | BT51: 0 | BU51: 0 | BV51: 0 | BW51: 1 | BX51: 0
A52: =IF(E52<E51,BO52,A51) -> 47 | B52: Axelsen | C52: Alfred | D52: Kjelsås | E52: =IF(F52<=4,Q52,(Q52-SUM(SMALL(R52:Y52,{1;2;3;4})))) -> 5 | F52: =(IF(AC52=5,1,0)+IF(AH52=5,1,0)+IF(AM52=5,1,0)+IF(AR52=5,1,0)+IF(AW52=5,1,0)+IF(BB52=5,1,0)+IF(BG52=5,1,0)+IF(BL52=5,1,0)) -> 1 | H52: =IF(AA52="","",AA52) ->  | I52: =IF(AF52="","",AF52) -> dsq | J52: =IF(AK52="","",AK52) ->  | K52: =IF(AP52="","",AP52) ->  | L52: =IF(AU52="","",AU52) ->  | M52: =IF(AZ52="","",AZ52) ->  | N52: =IF(BE52="","",BE52) ->  | O52: =IF(BJ52="","",BJ52) ->  | Q52: =AD52+AI52+AN52+AS52+AX52+BC52+BH52 -> 5 | R52: =IF($F52>=5,IF(AB52="","",AB52),"") ->  | S52: =IF($F52>=5,IF(AG52="","",AG52),"") ->  | T52: =IF($F52>=5,IF(AL52="","",AL52),"") ->  | U52: =IF($F52>=5,IF(AQ52="","",AQ52),"") ->  | V52: =IF($F52>=5,IF(AV52="","",AV52),"") ->  | W52: =IF($F52>=5,IF(BA52="","",BA52),"") ->  | X52: =IF($F52>=5,IF(BF52="","",BF52),"") ->  | Y52: =IF($F52>=5,IF(BK52="","",BK52),"") ->  | AB52: =IF(ISNUMBER(AA52),(VLOOKUP(AA52,$BO$6:$BP$50,2)),0) -> 0 | AC52: =IF(AA52<>"",5,0) -> 0 | AD52: =AB52+AC52 -> 0 | AF52: dsq | AG52: =IF(ISNUMBER(AF52),(VLOOKUP(AF52,$BO$6:$BP$50,2)),0) -> 0 | AH52: =IF(AF52<>"",5,0) -> 5 | AI52: =AG52+AH52 -> 5 | AL52: =IF(ISNUMBER(AK52),(VLOOKUP(AK52,$BO$6:$BP$50,2)),0) -> 0 | AM52: =IF(AK52<>"",5,0) -> 0 | AN52: =AL52+AM52 -> 0 | AQ52: =IF(ISNUMBER(AP52),(VLOOKUP(AP52,$BO$6:$BP$50,2)),0) -> 0 | AR52: =IF(AP52<>"",5,0) -> 0 | AS52: =AQ52+AR52 -> 0 | AV52: =IF(ISNUMBER(AU52),(VLOOKUP(AU52,$BO$6:$BP$50,2)),0) -> 0 | AW52: =IF(AU52<>"",5,0) -> 0 | AX52: =AV52+AW52 -> 0 | BA52: =IF(ISNUMBER(AZ52),(VLOOKUP(AZ52,$BO$6:$BP$50,2)),0) -> 0 | BB52: =IF(AZ52<>"",5,0) -> 0 | BC52: =BA52+BB52 -> 0 | BF52: =IF(ISNUMBER(BE52),(VLOOKUP(BE52,$BO$6:$BP$50,2)),0) -> 0 | BG52: =IF(BE52<>"",5,0) -> 0 | BH52: =BF52+BG52 -> 0 | BK52: =IF(ISNUMBER(BJ52),(VLOOKUP(BJ52,$BO$6:$BP$50,2)),0) -> 0 | BL52: =IF(BJ52<>"",5,0) -> 0 | BM52: =BK52+BL52 -> 0 | BO52: 47 | BP52: 0 | BQ52: 0 | BR52: 0 | BS52: 0 | BT52: 0 | BU52: 0 | BV52: 0 | BW52: 1 | BX52: 0
A53: =IF(E53<E52,BO53,A52) -> 47 | B53: Skavik | C53: Trym Skogheim | D53: Heming | E53: =IF(F53<=4,Q53,(Q53-SUM(SMALL(R53:Y53,{1;2;3;4})))) -> 5 | F53: =(IF(AC53=5,1,0)+IF(AH53=5,1,0)+IF(AM53=5,1,0)+IF(AR53=5,1,0)+IF(AW53=5,1,0)+IF(BB53=5,1,0)+IF(BG53=5,1,0)+IF(BL53=5,1,0)) -> 1 | H53: =IF(AA53="","",AA53) ->  | I53: =IF(AF53="","",AF53) ->  | J53: =IF(AK53="","",AK53) ->  | K53: =IF(AP53="","",AP53) ->  | L53: =IF(AU53="","",AU53) -> dnf | M53: =IF(AZ53="","",AZ53) ->  | N53: =IF(BE53="","",BE53) ->  | O53: =IF(BJ53="","",BJ53) ->  | Q53: =AD53+AI53+AN53+AS53+AX53+BC53+BH53 -> 5 | R53: =IF($F53>=5,IF(AB53="","",AB53),"") ->  | S53: =IF($F53>=5,IF(AG53="","",AG53),"") ->  | T53: =IF($F53>=5,IF(AL53="","",AL53),"") ->  | U53: =IF($F53>=5,IF(AQ53="","",AQ53),"") ->  | V53: =IF($F53>=5,IF(AV53="","",AV53),"") ->  | W53: =IF($F53>=5,IF(BA53="","",BA53),"") ->  | X53: =IF($F53>=5,IF(BF53="","",BF53),"") ->  | Y53: =IF($F53>=5,IF(BK53="","",BK53),"") ->  | AB53: =IF(ISNUMBER(AA53),(VLOOKUP(AA53,$BO$6:$BP$50,2)),0) -> 0 | AC53: =IF(AA53<>"",5,0) -> 0 | AD53: =AB53+AC53 -> 0 | AG53: =IF(ISNUMBER(AF53),(VLOOKUP(AF53,$BO$6:$BP$50,2)),0) -> 0 | AH53: =IF(AF53<>"",5,0) -> 0 | AI53: =AG53+AH53 -> 0 | AL53: =IF(ISNUMBER(AK53),(VLOOKUP(AK53,$BO$6:$BP$50,2)),0) -> 0 | AM53: =IF(AK53<>"",5,0) -> 0 | AN53: =AL53+AM53 -> 0 | AQ53: =IF(ISNUMBER(AP53),(VLOOKUP(AP53,$BO$6:$BP$50,2)),0) -> 0 | AR53: =IF(AP53<>"",5,0) -> 0 | AS53: =AQ53+AR53 -> 0 | AU53: dnf | AV53: =IF(ISNUMBER(AU53),(VLOOKUP(AU53,$BO$6:$BP$50,2)),0) -> 0 | AW53: =IF(AU53<>"",5,0) -> 5 | AX53: =AV53+AW53 -> 5 | BA53: =IF(ISNUMBER(AZ53),(VLOOKUP(AZ53,$BO$6:$BP$50,2)),0) -> 0 | BB53: =IF(AZ53<>"",5,0) -> 0 | BC53: =BA53+BB53 -> 0 | BF53: =IF(ISNUMBER(BE53),(VLOOKUP(BE53,$BO$6:$BP$50,2)),0) -> 0 | BG53: =IF(BE53<>"",5,0) -> 0 | BH53: =BF53+BG53 -> 0 | BK53: =IF(ISNUMBER(BJ53),(VLOOKUP(BJ53,$BO$6:$BP$50,2)),0) -> 0 | BL53: =IF(BJ53<>"",5,0) -> 0 | BM53: =BK53+BL53 -> 0 | BO53: 48 | BP53: 0

Sheet J12 2018
A1: Resultatliste Oslo Cup 2018 - Jenter 12 år
A2: ='Forside 2018'!A2 -> Etter 7 av 8 renn
H3: IRS Rennet | I3: Ljan Rennet | J3: Njård Rennet | K3: Ready Rennet | L3: Telenor Arena Cup | M3: Euro-tecfarten | N3: Oslo Alpinfestival SL | O3: Oslo Alpinfestival SSL | R3: IRS Rennet | S3: Ljan Rennet | T3: Njård Rennet | U3: Ready Rennet | V3: Telenor Arena Cup | W3: Euro-tecfarten | X3: Oslo Alpinfestival SL | Y3: Oslo Alpinfestival SSL | AA3: --------IRS Rennet---------- | AF3: ----------Ljan Rennet--------- | AK3: --------Njård Rennet---------- | AP3: --------Ready Rennet--------- | AU3: -----Telenor Arena Cup---- | AZ3: ------Euro-tecfarten-------- | BE3: ---Oslo Alpinfestival SL--- | BJ3: ---Oslo Alpinfestival SSL---
F4: Antall | H4: 2018-02-03 | I4: 2018-02-04 | J4: 2018-02-10 | K4: 2018-02-11 | L4: 2018-02-14 | M4: 2018-02-28 | N4: 2018-03-03 | O4: 2018-03-04 | Q4: Poeng | R4: 2018-02-03 | S4: 2018-02-04 | T4: 2018-02-10 | U4: 2018-02-11 | V4: 2018-02-14 | W4: 2018-02-28 | X4: 2018-03-03 | Y4: 2018-03-04 | AB4: --------Poeng-------- | AG4: --------Poeng-------- | AL4: -------Poeng--------- | AQ4: -------Poeng--------- | AV4: -------Poeng--------- | BA4: -------Poeng--------- | BF4: -------Poeng--------- | BK4: -------Poeng--------- | BQ4: Løpere med | BR4: Løpere med | BS4: Løpere med | BT4: Løpere med | BU4: Løpere med | BV4: Løpere med | BW4: Løpere med | BX4: Løpere med
A5: Plass | B5: Etternavn | C5: Fornavn | D5: Klubb | E5: Poeng | F5: renn | H5: ------------------------------Plassering i rennene--------------------------------- | Q5: brutto | R5: ----------------Resultatpoeng hvis mer enn 4 renn---------------- | AA5: Plass | AB5: Res. | AC5: Del. | AD5: Tot. | AF5: Plass | AG5: Res. | AH5: Del. | AI5: Tot. | AK5: Plass | AL5: Res. | AM5: Del. | AN5: Tot. | AP5: Plass | AQ5: Res. | AR5: Del. | AS5: Tot. | AU5: Plass | AV5: Res. | AW5: Del. | AX5: Tot. | AZ5: Plass | BA5: Res. | BB5: Del. | BC5: Tot. | BE5: Plass | BF5: Res. | BG5: Del. | BH5: Tot. | BJ5: Plass | BK5: Res. | BL5: Del. | BM5: Tot. | BO5: Plass | BP5: Poeng | BQ5: 8 renn | BR5: 7 renn | BS5: 6 renn | BT5: 5 renn | BU5: 4 renn | BV5: 3 renn | BW5: 2 renn | BX5: kun 1 renn
A6: =IF(E6<E5,BO6,A5) -> 1 | B6: Frederiksen | C6: Charlotte C L | D6: Ready | E6: =IF(F6<=4,Q6,(Q6-SUM(SMALL(R6:Y6,{1;2;3;4})))) -> 375 | F6: =(IF(AC6=5,1,0)+IF(AH6=5,1,0)+IF(AM6=5,1,0)+IF(AR6=5,1,0)+IF(AW6=5,1,0)+IF(BB6=5,1,0)+IF(BG6=5,1,0)+IF(BL6=5,1,0)) -> 7 | H6: =IF(AA6="","",AA6) -> 2 | I6: =IF(AF6="","",AF6) -> 3 | J6: =IF(AK6="","",AK6) -> 2 | K6: =IF(AP6="","",AP6) -> 2 | L6: =IF(AU6="","",AU6) -> 1 | M6: =IF(AZ6="","",AZ6) -> 5 | N6: =IF(BE6="","",BE6) -> dsq | O6: =IF(BJ6="","",BJ6) ->  | Q6: =AD6+AI6+AN6+AS6+AX6+BC6+BH6 -> 480 | R6: =IF($F6>=5,IF(AB6="","",AB6),"") -> 80 | S6: =IF($F6>=5,IF(AG6="","",AG6),"") -> 60 | T6: =IF($F6>=5,IF(AL6="","",AL6),"") -> 80 | U6: =IF($F6>=5,IF(AQ6="","",AQ6),"") -> 80 | V6: =IF($F6>=5,IF(AV6="","",AV6),"") -> 100 | W6: =IF($F6>=5,IF(BA6="","",BA6),"") -> 45 | X6: =IF($F6>=5,IF(BF6="","",BF6),"") -> 0 | Y6: =IF($F6>=5,IF(BK6="","",BK6),"") -> 0 | AA6: 2 | AB6: =IF(ISNUMBER(AA6),(VLOOKUP(AA6,$BO$6:$BP$50,2)),0) -> 80 | AC6: =IF(AA6<>"",5,0) -> 5 | AD6: =AB6+AC6 -> 85 | AF6: 3 | AG6: =IF(ISNUMBER(AF6),(VLOOKUP(AF6,$BO$6:$BP$50,2)),0) -> 60 | AH6: =IF(AF6<>"",5,0) -> 5 | AI6: =AG6+AH6 -> 65 | AK6: 2 | AL6: =IF(ISNUMBER(AK6),(VLOOKUP(AK6,$BO$6:$BP$50,2)),0) -> 80 | AM6: =IF(AK6<>"",5,0) -> 5 | AN6: =AL6+AM6 -> 85 | AP6: 2 | AQ6: =IF(ISNUMBER(AP6),(VLOOKUP(AP6,$BO$6:$BP$50,2)),0) -> 80 | AR6: =IF(AP6<>"",5,0) -> 5 | AS6: =AQ6+AR6 -> 85 | AU6: 1 | AV6: =IF(ISNUMBER(AU6),(VLOOKUP(AU6,$BO$6:$BP$50,2)),0) -> 100 | AW6: =IF(AU6<>"",5,0) -> 5 | AX6: =AV6+AW6 -> 105 | AZ6: 5 | BA6: =IF(ISNUMBER(AZ6),(VLOOKUP(AZ6,$BO$6:$BP$50,2)),0) -> 45 | BB6: =IF(AZ6<>"",5,0) -> 5 | BC6: =BA6+BB6 -> 50 | BE6: dsq | BF6: =IF(ISNUMBER(BE6),(VLOOKUP(BE6,$BO$6:$BP$50,2)),0) -> 0 | BG6: =IF(BE6<>"",5,0) -> 5 | BH6: =BF6+BG6 -> 5 | BK6: =IF(ISNUMBER(BJ6),(VLOOKUP(BJ6,$BO$6:$BP$50,2)),0) -> 0 | BL6: =IF(BJ6<>"",5,0) -> 0 | BM6: =BK6+BL6 -> 0 | BO6: 1 | BP6: 100 | BQ6: =IF($F6=8,1,0) -> 0 | BR6: =IF($F6=7,1,0) -> 1 | BS6: =IF($F6=6,1,0) -> 0 | BT6: =IF($F6=5,1,0) -> 0 | BU6: =IF($F6=4,1,0) -> 0 | BV6: =IF($F6=3,1,0) -> 0 | BW6: =IF($F6=2,1,0) -> 0 | BX6: =IF($F6=1,1,0) -> 0
A7: =IF(E7<E6,BO7,A6) -> 1 | B7: Rasmussen | C7: Cornelia Nystrøm | D7: Heming | E7: =IF(F7<=4,Q7,(Q7-SUM(SMALL(R7:Y7,{1;2;3;4})))) -> 375 | F7: =(IF(AC7=5,1,0)+IF(AH7=5,1,0)+IF(AM7=5,1,0)+IF(AR7=5,1,0)+IF(AW7=5,1,0)+IF(BB7=5,1,0)+IF(BG7=5,1,0)+IF(BL7=5,1,0)) -> 7 | H7: =IF(AA7="","",AA7) -> 4 | I7: =IF(AF7="","",AF7) -> 2 | J7: =IF(AK7="","",AK7) -> 3 | K7: =IF(AP7="","",AP7) -> 1 | L7: =IF(AU7="","",AU7) -> 4 | M7: =IF(AZ7="","",AZ7) -> 1 | N7: =IF(BE7="","",BE7) -> 16 | O7: =IF(BJ7="","",BJ7) ->  | Q7: =AD7+AI7+AN7+AS7+AX7+BC7+BH7 -> 490 | R7: =IF($F7>=5,IF(AB7="","",AB7),"") -> 50 | S7: =IF($F7>=5,IF(AG7="","",AG7),"") -> 80 | T7: =IF($F7>=5,IF(AL7="","",AL7),"") -> 60 | U7: =IF($F7>=5,IF(AQ7="","",AQ7),"") -> 100 | V7: =IF($F7>=5,IF(AV7="","",AV7),"") -> 50 | W7: =IF($F7>=5,IF(BA7="","",BA7),"") -> 100 | X7: =IF($F7>=5,IF(BF7="","",BF7),"") -> 15 | Y7: =IF($F7>=5,IF(BK7="","",BK7),"") -> 0 | AA7: 4 | AB7: =IF(ISNUMBER(AA7),(VLOOKUP(AA7,$BO$6:$BP$50,2)),0) -> 50 | AC7: =IF(AA7<>"",5,0) -> 5 | AD7: =AB7+AC7 -> 55 | AF7: 2 | AG7: =IF(ISNUMBER(AF7),(VLOOKUP(AF7,$BO$6:$BP$50,2)),0) -> 80 | AH7: =IF(AF7<>"",5,0) -> 5 | AI7: =AG7+AH7 -> 85 | AK7: 3 | AL7: =IF(ISNUMBER(AK7),(VLOOKUP(AK7,$BO$6:$BP$50,2)),0) -> 60 | AM7: =IF(AK7<>"",5,0) -> 5 | AN7: =AL7+AM7 -> 65 | AP7: 1 | AQ7: =IF(ISNUMBER(AP7),(VLOOKUP(AP7,$BO$6:$BP$50,2)),0) -> 100 | AR7: =IF(AP7<>"",5,0) -> 5 | AS7: =AQ7+AR7 -> 105 | AU7: 4 | AV7: =IF(ISNUMBER(AU7),(VLOOKUP(AU7,$BO$6:$BP$50,2)),0) -> 50 | AW7: =IF(AU7<>"",5,0) -> 5 | AX7: =AV7+AW7 -> 55 | AZ7: 1 | BA7: =IF(ISNUMBER(AZ7),(VLOOKUP(AZ7,$BO$6:$BP$50,2)),0) -> 100 | BB7: =IF(AZ7<>"",5,0) -> 5 | BC7: =BA7+BB7 -> 105 | BE7: 16 | BF7: =IF(ISNUMBER(BE7),(VLOOKUP(BE7,$BO$6:$BP$50,2)),0) -> 15 | BG7: =IF(BE7<>"",5,0) -> 5 | BH7: =BF7+BG7 -> 20 | BK7: =IF(ISNUMBER(BJ7),(VLOOKUP(BJ7,$BO$6:$BP$50,2)),0) -> 0 | BL7: =IF(BJ7<>"",5,0) -> 0 | BM7: =BK7+BL7 -> 0 | BO7: 2 | BP7: 80 | BQ7: =IF($F7=8,1,0) -> 0 | BR7: 1 | BS7: 0 | BT7: 0 | BU7: 0 | BV7: 0 | BW7: 0 | BX7: 0
A8: =IF(E8<E7,BO8,A7) -> 3 | B8: Rasmussen | C8: Maisen Holst | D8: Stabæk | E8: =IF(F8<=4,Q8,(Q8-SUM(SMALL(R8:Y8,{1;2;3;4})))) -> 365 | F8: =(IF(AC8=5,1,0)+IF(AH8=5,1,0)+IF(AM8=5,1,0)+IF(AR8=5,1,0)+IF(AW8=5,1,0)+IF(BB8=5,1,0)+IF(BG8=5,1,0)+IF(BL8=5,1,0)) -> 5 | H8: =IF(AA8="","",AA8) -> 1 | I8: =IF(AF8="","",AF8) -> dsq | J8: =IF(AK8="","",AK8) -> 1 | K8: =IF(AP8="","",AP8) ->  | L8: =IF(AU8="","",AU8) -> 3 | M8: =IF(AZ8="","",AZ8) -> 2 | N8: =IF(BE8="","",BE8) ->  | O8: =IF(BJ8="","",BJ8) ->  | Q8: =AD8+AI8+AN8+AS8+AX8+BC8+BH8 -> 365 | R8: =IF($F8>=5,IF(AB8="","",AB8),"") -> 100 | S8: =IF($F8>=5,IF(AG8="","",AG8),"") -> 0 | T8: =IF($F8>=5,IF(AL8="","",AL8),"") -> 100 | U8: =IF($F8>=5,IF(AQ8="","",AQ8),"") -> 0 | V8: =IF($F8>=5,IF(AV8="","",AV8),"") -> 60 | W8: =IF($F8>=5,IF(BA8="","",BA8),"") -> 80 | X8: =IF($F8>=5,IF(BF8="","",BF8),"") -> 0 | Y8: =IF($F8>=5,IF(BK8="","",BK8),"") -> 0 | AA8: 1 | AB8: =IF(ISNUMBER(AA8),(VLOOKUP(AA8,$BO$6:$BP$50,2)),0) -> 100 | AC8: =IF(AA8<>"",5,0) -> 5 | AD8: =AB8+AC8 -> 105 | AF8: dsq | AG8: =IF(ISNUMBER(AF8),(VLOOKUP(AF8,$BO$6:$BP$50,2)),0) -> 0 | AH8: =IF(AF8<>"",5,0) -> 5 | AI8: =AG8+AH8 -> 5 | AK8: 1 | AL8: =IF(ISNUMBER(AK8),(VLOOKUP(AK8,$BO$6:$BP$50,2)),0) -> 100 | AM8: =IF(AK8<>"",5,0) -> 5 | AN8: =AL8+AM8 -> 105 | AQ8: =IF(ISNUMBER(AP8),(VLOOKUP(AP8,$BO$6:$BP$50,2)),0) -> 0 | AR8: =IF(AP8<>"",5,0) -> 0 | AS8: =AQ8+AR8 -> 0 | AU8: 3 | AV8: =IF(ISNUMBER(AU8),(VLOOKUP(AU8,$BO$6:$BP$50,2)),0) -> 60 | AW8: =IF(AU8<>"",5,0) -> 5 | AX8: =AV8+AW8 -> 65 | AZ8: 2 | BA8: =IF(ISNUMBER(AZ8),(VLOOKUP(AZ8,$BO$6:$BP$50,2)),0) -> 80 | BB8: =IF(AZ8<>"",5,0) -> 5 | BC8: =BA8+BB8 -> 85 | BF8: =IF(ISNUMBER(BE8),(VLOOKUP(BE8,$BO$6:$BP$50,2)),0) -> 0 | BG8: =IF(BE8<>"",5,0) -> 0 | BH8: =BF8+BG8 -> 0 | BK8: =IF(ISNUMBER(BJ8),(VLOOKUP(BJ8,$BO$6:$BP$50,2)),0) -> 0 | BL8: =IF(BJ8<>"",5,0) -> 0 | BM8: =BK8+BL8 -> 0 | BO8: 3 | BP8: 60 | BQ8: 0 | BR8: 0 | BS8: 0 | BT8: 1 | BU8: 0 | BV8: 0 | BW8: 0 | BX8: 0
A9: =IF(E9<E8,BO9,A8) -> 4 | B9: Finn-Hansen | C9: Nora | D9: Heming | E9: =IF(F9<=4,Q9,(Q9-SUM(SMALL(R9:Y9,{1;2;3;4})))) -> 325 | F9: =(IF(AC9=5,1,0)+IF(AH9=5,1,0)+IF(AM9=5,1,0)+IF(AR9=5,1,0)+IF(AW9=5,1,0)+IF(BB9=5,1,0)+IF(BG9=5,1,0)+IF(BL9=5,1,0)) -> 7 | H9: =IF(AA9="","",AA9) -> 3 | I9: =IF(AF9="","",AF9) -> 4 | J9: =IF(AK9="","",AK9) -> 4 | K9: =IF(AP9="","",AP9) -> 4 | L9: =IF(AU9="","",AU9) -> 7 | M9: =IF(AZ9="","",AZ9) -> 2 | N9: =IF(BE9="","",BE9) -> 1 | O9: =IF(BJ9="","",BJ9) ->  | Q9: =AD9+AI9+AN9+AS9+AX9+BC9+BH9 -> 461 | R9: =IF($F9>=5,IF(AB9="","",AB9),"") -> 60 | S9: =IF($F9>=5,IF(AG9="","",AG9),"") -> 50 | T9: =IF($F9>=5,IF(AL9="","",AL9),"") -> 50 | U9: =IF($F9>=5,IF(AQ9="","",AQ9),"") -> 50 | V9: =IF($F9>=5,IF(AV9="","",AV9),"") -> 36 | W9: =IF($F9>=5,IF(BA9="","",BA9),"") -> 80 | X9: =IF($F9>=5,IF(BF9="","",BF9),"") -> 100 | Y9: =IF($F9>=5,IF(BK9="","",BK9),"") -> 0 | AA9: 3 | AB9: =IF(ISNUMBER(AA9),(VLOOKUP(AA9,$BO$6:$BP$50,2)),0) -> 60 | AC9: =IF(AA9<>"",5,0) -> 5 | AD9: =AB9+AC9 -> 65 | AF9: 4 | AG9: =IF(ISNUMBER(AF9),(VLOOKUP(AF9,$BO$6:$BP$50,2)),0) -> 50 | AH9: =IF(AF9<>"",5,0) -> 5 | AI9: =AG9+AH9 -> 55 | AK9: 4 | AL9: =IF(ISNUMBER(AK9),(VLOOKUP(AK9,$BO$6:$BP$50,2)),0) -> 50 | AM9: =IF(AK9<>"",5,0) -> 5 | AN9: =AL9+AM9 -> 55 | AP9: 4 | AQ9: =IF(ISNUMBER(AP9),(VLOOKUP(AP9,$BO$6:$BP$50,2)),0) -> 50 | AR9: =IF(AP9<>"",5,0) -> 5 | AS9: =AQ9+AR9 -> 55 | AU9: 7 | AV9: =IF(ISNUMBER(AU9),(VLOOKUP(AU9,$BO$6:$BP$50,2)),0) -> 36 | AW9: =IF(AU9<>"",5,0) -> 5 | AX9: =AV9+AW9 -> 41 | AZ9: 2 | BA9: =IF(ISNUMBER(AZ9),(VLOOKUP(AZ9,$BO$6:$BP$50,2)),0) -> 80 | BB9: =IF(AZ9<>"",5,0) -> 5 | BC9: =BA9+BB9 -> 85 | BE9: 1 | BF9: =IF(ISNUMBER(BE9),(VLOOKUP(BE9,$BO$6:$BP$50,2)),0) -> 100 | BG9: =IF(BE9<>"",5,0) -> 5 | BH9: =BF9+BG9 -> 105 | BK9: =IF(ISNUMBER(BJ9),(VLOOKUP(BJ9,$BO$6:$BP$50,2)),0) -> 0 | BL9: =IF(BJ9<>"",5,0) -> 0 | BM9: =BK9+BL9 -> 0 | BO9: 4 | BP9: 50 | BQ9: 0 | BR9: 1 | BS9: 0 | BT9: 0 | BU9: 0 | BV9: 0 | BW9: 0 | BX9: 0
A10: =IF(E10<E9,BO10,A9) -> 5 | B10: Wessel-aas | C10: camilla | D10: Heming | E10: =IF(F10<=4,Q10,(Q10-SUM(SMALL(R10:Y10,{1;2;3;4})))) -> 255 | F10: =(IF(AC10=5,1,0)+IF(AH10=5,1,0)+IF(AM10=5,1,0)+IF(AR10=5,1,0)+IF(AW10=5,1,0)+IF(BB10=5,1,0)+IF(BG10=5,1,0)+IF(BL10=5,1,0)) -> 5 | H10: =IF(AA10="","",AA10) -> 5 | I10: =IF(AF10="","",AF10) -> 1 | J10: =IF(AK10="","",AK10) -> 8 | K10: =IF(AP10="","",AP10) -> 5 | L10: =IF(AU10="","",AU10) -> 6 | M10: =IF(AZ10="","",AZ10) ->  | N10: =IF(BE10="","",BE10) ->  | O10: =IF(BJ10="","",BJ10) ->  | Q10: =AD10+AI10+AN10+AS10+AX10+BC10+BH10 -> 287 | R10: =IF($F10>=5,IF(AB10="","",AB10),"") -> 45 | S10: =IF($F10>=5,IF(AG10="","",AG10),"") -> 100 | T10: =IF($F10>=5,IF(AL10="","",AL10),"") -> 32 | U10: =IF($F10>=5,IF(AQ10="","",AQ10),"") -> 45 | V10: =IF($F10>=5,IF(AV10="","",AV10),"") -> 40 | W10: =IF($F10>=5,IF(BA10="","",BA10),"") -> 0 | X10: =IF($F10>=5,IF(BF10="","",BF10),"") -> 0 | Y10: =IF($F10>=5,IF(BK10="","",BK10),"") -> 0 | AA10: 5 | AB10: =IF(ISNUMBER(AA10),(VLOOKUP(AA10,$BO$6:$BP$50,2)),0) -> 45 | AC10: =IF(AA10<>"",5,0) -> 5 | AD10: =AB10+AC10 -> 50 | AF10: 1 | AG10: =IF(ISNUMBER(AF10),(VLOOKUP(AF10,$BO$6:$BP$50,2)),0) -> 100 | AH10: =IF(AF10<>"",5,0) -> 5 | AI10: =AG10+AH10 -> 105 | AK10: 8 | AL10: =IF(ISNUMBER(AK10),(VLOOKUP(AK10,$BO$6:$BP$50,2)),0) -> 32 | AM10: =IF(AK10<>"",5,0) -> 5 | AN10: =AL10+AM10 -> 37 | AP10: 5 | AQ10: =IF(ISNUMBER(AP10),(VLOOKUP(AP10,$BO$6:$BP$50,2)),0) -> 45 | AR10: =IF(AP10<>"",5,0) -> 5 | AS10: =AQ10+AR10 -> 50 | AU10: 6 | AV10: =IF(ISNUMBER(AU10),(VLOOKUP(AU10,$BO$6:$BP$50,2)),0) -> 40 | AW10: =IF(AU10<>"",5,0) -> 5 | AX10: =AV10+AW10 -> 45 | BA10: =IF(ISNUMBER(AZ10),(VLOOKUP(AZ10,$BO$6:$BP$50,2)),0) -> 0 | BB10: =IF(AZ10<>"",5,0) -> 0 | BC10: =BA10+BB10 -> 0 | BF10: =IF(ISNUMBER(BE10),(VLOOKUP(BE10,$BO$6:$BP$50,2)),0) -> 0 | BG10: =IF(BE10<>"",5,0) -> 0 | BH10: =BF10+BG10 -> 0 | BK10: =IF(ISNUMBER(BJ10),(VLOOKUP(BJ10,$BO$6:$BP$50,2)),0) -> 0 | BL10: =IF(BJ10<>"",5,0) -> 0 | BM10: =BK10+BL10 -> 0 | BO10: 5 | BP10: 45 | BQ10: 0 | BR10: 0 | BS10: 0 | BT10: 1 | BU10: 0 | BV10: 0 | BW10: 0 | BX10: 0
A11: =IF(E11<E10,BO11,A10) -> 6 | B11: Hoel | C11: Hermine Owesen | D11: Heming | E11: =IF(F11<=4,Q11,(Q11-SUM(SMALL(R11:Y11,{1;2;3;4})))) -> 231 | F11: =(IF(AC11=5,1,0)+IF(AH11=5,1,0)+IF(AM11=5,1,0)+IF(AR11=5,1,0)+IF(AW11=5,1,0)+IF(BB11=5,1,0)+IF(BG11=5,1,0)+IF(BL11=5,1,0)) -> 5 | H11: =IF(AA11="","",AA11) -> 7 | I11: =IF(AF11="","",AF11) -> 7 | J11: =IF(AK11="","",AK11) -> 5 | K11: =IF(AP11="","",AP11) ->  | L11: =IF(AU11="","",AU11) -> 5 | M11: =IF(AZ11="","",AZ11) ->  | N11: =IF(BE11="","",BE11) -> 2 | O11: =IF(BJ11="","",BJ11) ->  | Q11: =AD11+AI11+AN11+AS11+AX11+BC11+BH11 -> 267 | R11: =IF($F11>=5,IF(AB11="","",AB11),"") -> 36 | S11: =IF($F11>=5,IF(AG11="","",AG11),"") -> 36 | T11: =IF($F11>=5,IF(AL11="","",AL11),"") -> 45 | U11: =IF($F11>=5,IF(AQ11="","",AQ11),"") -> 0 | V11: =IF($F11>=5,IF(AV11="","",AV11),"") -> 45 | W11: =IF($F11>=5,IF(BA11="","",BA11),"") -> 0 | X11: =IF($F11>=5,IF(BF11="","",BF11),"") -> 80 | Y11: =IF($F11>=5,IF(BK11="","",BK11),"") -> 0 | AA11: 7 | AB11: =IF(ISNUMBER(AA11),(VLOOKUP(AA11,$BO$6:$BP$50,2)),0) -> 36 | AC11: =IF(AA11<>"",5,0) -> 5 | AD11: =AB11+AC11 -> 41 | AF11: 7 | AG11: =IF(ISNUMBER(AF11),(VLOOKUP(AF11,$BO$6:$BP$50,2)),0) -> 36 | AH11: =IF(AF11<>"",5,0) -> 5 | AI11: =AG11+AH11 -> 41 | AK11: 5 | AL11: =IF(ISNUMBER(AK11),(VLOOKUP(AK11,$BO$6:$BP$50,2)),0) -> 45 | AM11: =IF(AK11<>"",5,0) -> 5 | AN11: =AL11+AM11 -> 50 | AQ11: =IF(ISNUMBER(AP11),(VLOOKUP(AP11,$BO$6:$BP$50,2)),0) -> 0 | AR11: =IF(AP11<>"",5,0) -> 0 | AS11: =AQ11+AR11 -> 0 | AU11: 5 | AV11: =IF(ISNUMBER(AU11),(VLOOKUP(AU11,$BO$6:$BP$50,2)),0) -> 45 | AW11: =IF(AU11<>"",5,0) -> 5 | AX11: =AV11+AW11 -> 50 | BA11: =IF(ISNUMBER(AZ11),(VLOOKUP(AZ11,$BO$6:$BP$50,2)),0) -> 0 | BB11: =IF(AZ11<>"",5,0) -> 0 | BC11: =BA11+BB11 -> 0 | BE11: 2 | BF11: =IF(ISNUMBER(BE11),(VLOOKUP(BE11,$BO$6:$BP$50,2)),0) -> 80 | BG11: =IF(BE11<>"",5,0) -> 5 | BH11: =BF11+BG11 -> 85 | BK11: =IF(ISNUMBER(BJ11),(VLOOKUP(BJ11,$BO$6:$BP$50,2)),0) -> 0 | BL11: =IF(BJ11<>"",5,0) -> 0 | BM11: =BK11+BL11 -> 0 | BO11: 6 | BP11: 40 | BQ11: 0 | BR11: 0 | BS11: 0 | BT11: 1 | BU11: 0 | BV11: 0 | BW11: 0 | BX11: 0
A12: =IF(E12<E11,BO12,A11) -> 7 | B12: Aandahl | C12: Nicola Alexandra | D12: Ready | E12: =IF(F12<=4,Q12,(Q12-SUM(SMALL(R12:Y12,{1;2;3;4})))) -> 230 | F12: =(IF(AC12=5,1,0)+IF(AH12=5,1,0)+IF(AM12=5,1,0)+IF(AR12=5,1,0)+IF(AW12=5,1,0)+IF(BB12=5,1,0)+IF(BG12=5,1,0)+IF(BL12=5,1,0)) -> 7 | H12: =IF(AA12="","",AA12) -> 9 | I12: =IF(AF12="","",AF12) -> 5 | J12: =IF(AK12="","",AK12) -> 6 | K12: =IF(AP12="","",AP12) -> 3 | L12: =IF(AU12="","",AU12) -> 30 | M12: =IF(AZ12="","",AZ12) -> 8 | N12: =IF(BE12="","",BE12) -> 4 | O12: =IF(BJ12="","",BJ12) ->  | Q12: =AD12+AI12+AN12+AS12+AX12+BC12+BH12 -> 292 | R12: =IF($F12>=5,IF(AB12="","",AB12),"") -> 29 | S12: =IF($F12>=5,IF(AG12="","",AG12),"") -> 45 | T12: =IF($F12>=5,IF(AL12="","",AL12),"") -> 40 | U12: =IF($F12>=5,IF(AQ12="","",AQ12),"") -> 60 | V12: =IF($F12>=5,IF(AV12="","",AV12),"") -> 1 | W12: =IF($F12>=5,IF(BA12="","",BA12),"") -> 32 | X12: =IF($F12>=5,IF(BF12="","",BF12),"") -> 50 | Y12: =IF($F12>=5,IF(BK12="","",BK12),"") -> 0 | AA12: 9 | AB12: =IF(ISNUMBER(AA12),(VLOOKUP(AA12,$BO$6:$BP$50,2)),0) -> 29 | AC12: =IF(AA12<>"",5,0) -> 5 | AD12: =AB12+AC12 -> 34 | AF12: 5 | AG12: =IF(ISNUMBER(AF12),(VLOOKUP(AF12,$BO$6:$BP$50,2)),0) -> 45 | AH12: =IF(AF12<>"",5,0) -> 5 | AI12: =AG12+AH12 -> 50 | AK12: 6 | AL12: =IF(ISNUMBER(AK12),(VLOOKUP(AK12,$BO$6:$BP$50,2)),0) -> 40 | AM12: =IF(AK12<>"",5,0) -> 5 | AN12: =AL12+AM12 -> 45 | AP12: 3 | AQ12: =IF(ISNUMBER(AP12),(VLOOKUP(AP12,$BO$6:$BP$50,2)),0) -> 60 | AR12: =IF(AP12<>"",5,0) -> 5 | AS12: =AQ12+AR12 -> 65 | AU12: 30 | AV12: =IF(ISNUMBER(AU12),(VLOOKUP(AU12,$BO$6:$BP$50,2)),0) -> 1 | AW12: =IF(AU12<>"",5,0) -> 5 | AX12: =AV12+AW12 -> 6 | AZ12: 8 | BA12: =IF(ISNUMBER(AZ12),(VLOOKUP(AZ12,$BO$6:$BP$50,2)),0) -> 32 | BB12: =IF(AZ12<>"",5,0) -> 5 | BC12: =BA12+BB12 -> 37 | BE12: 4 | BF12: =IF(ISNUMBER(BE12),(VLOOKUP(BE12,$BO$6:$BP$50,2)),0) -> 50 | BG12: =IF(BE12<>"",5,0) -> 5 | BH12: =BF12+BG12 -> 55 | BK12: =IF(ISNUMBER(BJ12),(VLOOKUP(BJ12,$BO$6:$BP$50,2)),0) -> 0 | BL12: =IF(BJ12<>"",5,0) -> 0 | BM12: =BK12+BL12 -> 0 | BO12: 7 | BP12: 36 | BQ12: 0 | BR12: 1 | BS12: 0 | BT12: 0 | BU12: 0 | BV12: 0 | BW12: 0 | BX12: 0
A13: =IF(E13<E12,BO13,A12) -> 8 | B13: Thorsby | C13: Pernille | D13: Heming | E13: =IF(F13<=4,Q13,(Q13-SUM(SMALL(R13:Y13,{1;2;3;4})))) -> 163 | F13: =(IF(AC13=5,1,0)+IF(AH13=5,1,0)+IF(AM13=5,1,0)+IF(AR13=5,1,0)+IF(AW13=5,1,0)+IF(BB13=5,1,0)+IF(BG13=5,1,0)+IF(BL13=5,1,0)) -> 5 | H13: =IF(AA13="","",AA13) -> 6 | I13: =IF(AF13="","",AF13) -> 9 | J13: =IF(AK13="","",AK13) -> 9 | K13: =IF(AP13="","",AP13) -> 6 | L13: =IF(AU13="","",AU13) -> 9 | M13: =IF(AZ13="","",AZ13) ->  | N13: =IF(BE13="","",BE13) ->  | O13: =IF(BJ13="","",BJ13) ->  | Q13: =AD13+AI13+AN13+AS13+AX13+BC13+BH13 -> 192 | R13: =IF($F13>=5,IF(AB13="","",AB13),"") -> 40 | S13: =IF($F13>=5,IF(AG13="","",AG13),"") -> 29 | T13: =IF($F13>=5,IF(AL13="","",AL13),"") -> 29 | U13: =IF($F13>=5,IF(AQ13="","",AQ13),"") -> 40 | V13: =IF($F13>=5,IF(AV13="","",AV13),"") -> 29 | W13: =IF($F13>=5,IF(BA13="","",BA13),"") -> 0 | X13: =IF($F13>=5,IF(BF13="","",BF13),"") -> 0 | Y13: =IF($F13>=5,IF(BK13="","",BK13),"") -> 0 | AA13: 6 | AB13: =IF(ISNUMBER(AA13),(VLOOKUP(AA13,$BO$6:$BP$50,2)),0) -> 40 | AC13: =IF(AA13<>"",5,0) -> 5 | AD13: =AB13+AC13 -> 45 | AF13: 9 | AG13: =IF(ISNUMBER(AF13),(VLOOKUP(AF13,$BO$6:$BP$50,2)),0) -> 29 | AH13: =IF(AF13<>"",5,0) -> 5 | AI13: =AG13+AH13 -> 34 | AK13: 9 | AL13: =IF(ISNUMBER(AK13),(VLOOKUP(AK13,$BO$6:$BP$50,2)),0) -> 29 | AM13: =IF(AK13<>"",5,0) -> 5 | AN13: =AL13+AM13 -> 34 | AP13: 6 | AQ13: =IF(ISNUMBER(AP13),(VLOOKUP(AP13,$BO$6:$BP$50,2)),0) -> 40 | AR13: =IF(AP13<>"",5,0) -> 5 | AS13: =AQ13+AR13 -> 45 | AU13: 9 | AV13: =IF(ISNUMBER(AU13),(VLOOKUP(AU13,$BO$6:$BP$50,2)),0) -> 29 | AW13: =IF(AU13<>"",5,0) -> 5 | AX13: =AV13+AW13 -> 34 | BA13: =IF(ISNUMBER(AZ13),(VLOOKUP(AZ13,$BO$6:$BP$50,2)),0) -> 0 | BB13: =IF(AZ13<>"",5,0) -> 0 | BC13: =BA13+BB13 -> 0 | BF13: =IF(ISNUMBER(BE13),(VLOOKUP(BE13,$BO$6:$BP$50,2)),0) -> 0 | BG13: =IF(BE13<>"",5,0) -> 0 | BH13: =BF13+BG13 -> 0 | BK13: =IF(ISNUMBER(BJ13),(VLOOKUP(BJ13,$BO$6:$BP$50,2)),0) -> 0 | BL13: =IF(BJ13<>"",5,0) -> 0 | BM13: =BK13+BL13 -> 0 | BO13: 8 | BP13: 32 | BQ13: 0 | BR13: 0 | BS13: 0 | BT13: 1 | BU13: 0 | BV13: 0 | BW13: 0 | BX13: 0
A14: =IF(E14<E13,BO14,A13) -> 9 | B14: Sartz-Lunde | C14: Emily Nell | D14: Heming | E14: =IF(F14<=4,Q14,(Q14-SUM(SMALL(R14:Y14,{1;2;3;4})))) -> 161 | F14: =(IF(AC14=5,1,0)+IF(AH14=5,1,0)+IF(AM14=5,1,0)+IF(AR14=5,1,0)+IF(AW14=5,1,0)+IF(BB14=5,1,0)+IF(BG14=5,1,0)+IF(BL14=5,1,0)) -> 4 | H14: =IF(AA14="","",AA14) ->  | I14: =IF(AF14="","",AF14) ->  | J14: =IF(AK14="","",AK14) -> 7 | K14: =IF(AP14="","",AP14) -> 10 | L14: =IF(AU14="","",AU14) ->  | M14: =IF(AZ14="","",AZ14) -> 4 | N14: =IF(BE14="","",BE14) -> 9 | O14: =IF(BJ14="","",BJ14) ->  | Q14: =AD14+AI14+AN14+AS14+AX14+BC14+BH14 -> 161 | R14: =IF($F14>=5,IF(AB14="","",AB14),"") ->  | S14: =IF($F14>=5,IF(AG14="","",AG14),"") ->  | T14: =IF($F14>=5,IF(AL14="","",AL14),"") ->  | U14: =IF($F14>=5,IF(AQ14="","",AQ14),"") ->  | V14: =IF($F14>=5,IF(AV14="","",AV14),"") ->  | W14: =IF($F14>=5,IF(BA14="","",BA14),"") ->  | X14: =IF($F14>=5,IF(BF14="","",BF14),"") ->  | Y14: =IF($F14>=5,IF(BK14="","",BK14),"") ->  | AB14: =IF(ISNUMBER(AA14),(VLOOKUP(AA14,$BO$6:$BP$50,2)),0) -> 0 | AC14: =IF(AA14<>"",5,0) -> 0 | AD14: =AB14+AC14 -> 0 | AG14: =IF(ISNUMBER(AF14),(VLOOKUP(AF14,$BO$6:$BP$50,2)),0) -> 0 | AH14: =IF(AF14<>"",5,0) -> 0 | AI14: =AG14+AH14 -> 0 | AK14: 7 | AL14: =IF(ISNUMBER(AK14),(VLOOKUP(AK14,$BO$6:$BP$50,2)),0) -> 36 | AM14: =IF(AK14<>"",5,0) -> 5 | AN14: =AL14+AM14 -> 41 | AP14: 10 | AQ14: =IF(ISNUMBER(AP14),(VLOOKUP(AP14,$BO$6:$BP$50,2)),0) -> 26 | AR14: =IF(AP14<>"",5,0) -> 5 | AS14: =AQ14+AR14 -> 31 | AV14: =IF(ISNUMBER(AU14),(VLOOKUP(AU14,$BO$6:$BP$50,2)),0) -> 0 | AW14: =IF(AU14<>"",5,0) -> 0 | AX14: =AV14+AW14 -> 0 | AZ14: 4 | BA14: =IF(ISNUMBER(AZ14),(VLOOKUP(AZ14,$BO$6:$BP$50,2)),0) -> 50 | BB14: =IF(AZ14<>"",5,0) -> 5 | BC14: =BA14+BB14 -> 55 | BE14: 9 | BF14: =IF(ISNUMBER(BE14),(VLOOKUP(BE14,$BO$6:$BP$50,2)),0) -> 29 | BG14: =IF(BE14<>"",5,0) -> 5 | BH14: =BF14+BG14 -> 34 | BK14: =IF(ISNUMBER(BJ14),(VLOOKUP(BJ14,$BO$6:$BP$50,2)),0) -> 0 | BL14: =IF(BJ14<>"",5,0) -> 0 | BM14: =BK14+BL14 -> 0 | BO14: 9 | BP14: 29 | BQ14: 0 | BR14: 0 | BS14: 0 | BT14: 0 | BU14: 1 | BV14: 0 | BW14: 0 | BX14: 0
A15: =IF(E15<E14,BO15,A14) -> 10 | B15: Norstrand | C15: Nicoline | D15: Heming | E15: =IF(F15<=4,Q15,(Q15-SUM(SMALL(R15:Y15,{1;2;3;4})))) -> 152 | F15: =(IF(AC15=5,1,0)+IF(AH15=5,1,0)+IF(AM15=5,1,0)+IF(AR15=5,1,0)+IF(AW15=5,1,0)+IF(BB15=5,1,0)+IF(BG15=5,1,0)+IF(BL15=5,1,0)) -> 4 | H15: =IF(AA15="","",AA15) ->  | I15: =IF(AF15="","",AF15) ->  | J15: =IF(AK15="","",AK15) -> 12 | K15: =IF(AP15="","",AP15) -> 8 | L15: =IF(AU15="","",AU15) -> 14 | M15: =IF(AZ15="","",AZ15) ->  | N15: =IF(BE15="","",BE15) -> 3 | O15: =IF(BJ15="","",BJ15) ->  | Q15: =AD15+AI15+AN15+AS15+AX15+BC15+BH15 -> 152 | R15: =IF($F15>=5,IF(AB15="","",AB15),"") ->  | S15: =IF($F15>=5,IF(AG15="","",AG15),"") ->  | T15: =IF($F15>=5,IF(AL15="","",AL15),"") ->  | U15: =IF($F15>=5,IF(AQ15="","",AQ15),"") ->  | V15: =IF($F15>=5,IF(AV15="","",AV15),"") ->  | W15: =IF($F15>=5,IF(BA15="","",BA15),"") ->  | X15: =IF($F15>=5,IF(BF15="","",BF15),"") ->  | Y15: =IF($F15>=5,IF(BK15="","",BK15),"") ->  | AB15: =IF(ISNUMBER(AA15),(VLOOKUP(AA15,$BO$6:$BP$50,2)),0) -> 0 | AC15: =IF(AA15<>"",5,0) -> 0 | AD15: =AB15+AC15 -> 0 | AG15: =IF(ISNUMBER(AF15),(VLOOKUP(AF15,$BO$6:$BP$50,2)),0) -> 0 | AH15: =IF(AF15<>"",5,0) -> 0 | AI15: =AG15+AH15 -> 0 | AK15: 12 | AL15: =IF(ISNUMBER(AK15),(VLOOKUP(AK15,$BO$6:$BP$50,2)),0) -> 22 | AM15: =IF(AK15<>"",5,0) -> 5 | AN15: =AL15+AM15 -> 27 | AP15: 8 | AQ15: =IF(ISNUMBER(AP15),(VLOOKUP(AP15,$BO$6:$BP$50,2)),0) -> 32 | AR15: =IF(AP15<>"",5,0) -> 5 | AS15: =AQ15+AR15 -> 37 | AU15: 14 | AV15: =IF(ISNUMBER(AU15),(VLOOKUP(AU15,$BO$6:$BP$50,2)),0) -> 18 | AW15: =IF(AU15<>"",5,0) -> 5 | AX15: =AV15+AW15 -> 23 | BA15: =IF(ISNUMBER(AZ15),(VLOOKUP(AZ15,$BO$6:$BP$50,2)),0) -> 0 | BB15: =IF(AZ15<>"",5,0) -> 0 | BC15: =BA15+BB15 -> 0 | BE15: 3 | BF15: =IF(ISNUMBER(BE15),(VLOOKUP(BE15,$BO$6:$BP$50,2)),0) -> 60 | BG15: =IF(BE15<>"",5,0) -> 5 | BH15: =BF15+BG15 -> 65 | BK15: =IF(ISNUMBER(BJ15),(VLOOKUP(BJ15,$BO$6:$BP$50,2)),0) -> 0 | BL15: =IF(BJ15<>"",5,0) -> 0 | BM15: =BK15+BL15 -> 0 | BO15: 10 | BP15: 26 | BQ15: 0 | BR15: 0 | BS15: 0 | BT15: 0 | BU15: 1 | BV15: 0 | BW15: 0 | BX15: 0
A16: =IF(E16<E15,BO16,A15) -> 11 | B16: Alsos | C16: Synne | D16: Ready | E16: =IF(F16<=4,Q16,(Q16-SUM(SMALL(R16:Y16,{1;2;3;4})))) -> 145 | F16: =(IF(AC16=5,1,0)+IF(AH16=5,1,0)+IF(AM16=5,1,0)+IF(AR16=5,1,0)+IF(AW16=5,1,0)+IF(BB16=5,1,0)+IF(BG16=5,1,0)+IF(BL16=5,1,0)) -> 5 | H16: =IF(AA16="","",AA16) -> 8 | I16: =IF(AF16="","",AF16) -> 6 | J16: =IF(AK16="","",AK16) -> 10 | K16: =IF(AP16="","",AP16) -> 18 | L16: =IF(AU16="","",AU16) -> 12 | M16: =IF(AZ16="","",AZ16) ->  | N16: =IF(BE16="","",BE16) ->  | O16: =IF(BJ16="","",BJ16) ->  | Q16: =AD16+AI16+AN16+AS16+AX16+BC16+BH16 -> 158 | R16: =IF($F16>=5,IF(AB16="","",AB16),"") -> 32 | S16: =IF($F16>=5,IF(AG16="","",AG16),"") -> 40 | T16: =IF($F16>=5,IF(AL16="","",AL16),"") -> 26 | U16: =IF($F16>=5,IF(AQ16="","",AQ16),"") -> 13 | V16: =IF($F16>=5,IF(AV16="","",AV16),"") -> 22 | W16: =IF($F16>=5,IF(BA16="","",BA16),"") -> 0 | X16: =IF($F16>=5,IF(BF16="","",BF16),"") -> 0 | Y16: =IF($F16>=5,IF(BK16="","",BK16),"") -> 0 | AA16: 8 | AB16: =IF(ISNUMBER(AA16),(VLOOKUP(AA16,$BO$6:$BP$50,2)),0) -> 32 | AC16: =IF(AA16<>"",5,0) -> 5 | AD16: =AB16+AC16 -> 37 | AF16: 6 | AG16: =IF(ISNUMBER(AF16),(VLOOKUP(AF16,$BO$6:$BP$50,2)),0) -> 40 | AH16: =IF(AF16<>"",5,0) -> 5 | AI16: =AG16+AH16 -> 45 | AK16: 10 | AL16: =IF(ISNUMBER(AK16),(VLOOKUP(AK16,$BO$6:$BP$50,2)),0) -> 26 | AM16: =IF(AK16<>"",5,0) -> 5 | AN16: =AL16+AM16 -> 31 | AP16: 18 | AQ16: =IF(ISNUMBER(AP16),(VLOOKUP(AP16,$BO$6:$BP$50,2)),0) -> 13 | AR16: =IF(AP16<>"",5,0) -> 5 | AS16: =AQ16+AR16 -> 18 | AU16: 12 | AV16: =IF(ISNUMBER(AU16),(VLOOKUP(AU16,$BO$6:$BP$50,2)),0) -> 22 | AW16: =IF(AU16<>"",5,0) -> 5 | AX16: =AV16+AW16 -> 27 | BA16: =IF(ISNUMBER(AZ16),(VLOOKUP(AZ16,$BO$6:$BP$50,2)),0) -> 0 | BB16: =IF(AZ16<>"",5,0) -> 0 | BC16: =BA16+BB16 -> 0 | BF16: =IF(ISNUMBER(BE16),(VLOOKUP(BE16,$BO$6:$BP$50,2)),0) -> 0 | BG16: =IF(BE16<>"",5,0) -> 0 | BH16: =BF16+BG16 -> 0 | BK16: =IF(ISNUMBER(BJ16),(VLOOKUP(BJ16,$BO$6:$BP$50,2)),0) -> 0 | BL16: =IF(BJ16<>"",5,0) -> 0 | BM16: =BK16+BL16 -> 0 | BO16: 11 | BP16: 24 | BQ16: 0 | BR16: 0 | BS16: 0 | BT16: 1 | BU16: 0 | BV16: 0 | BW16: 0 | BX16: 0
A17: =IF(E17<E16,BO17,A16) -> 12 | B17: Granerud | C17: Cornelie Hemme | D17: Ljan | E17: =IF(F17<=4,Q17,(Q17-SUM(SMALL(R17:Y17,{1;2;3;4})))) -> 144 | F17: =(IF(AC17=5,1,0)+IF(AH17=5,1,0)+IF(AM17=5,1,0)+IF(AR17=5,1,0)+IF(AW17=5,1,0)+IF(BB17=5,1,0)+IF(BG17=5,1,0)+IF(BL17=5,1,0)) -> 6 | H17: =IF(AA17="","",AA17) -> dnf | I17: =IF(AF17="","",AF17) -> dsq | J17: =IF(AK17="","",AK17) -> 11 | K17: =IF(AP17="","",AP17) -> 7 | L17: =IF(AU17="","",AU17) -> 17 | M17: =IF(AZ17="","",AZ17) ->  | N17: =IF(BE17="","",BE17) -> 6 | O17: =IF(BJ17="","",BJ17) ->  | Q17: =AD17+AI17+AN17+AS17+AX17+BC17+BH17 -> 144 | R17: =IF($F17>=5,IF(AB17="","",AB17),"") -> 0 | S17: =IF($F17>=5,IF(AG17="","",AG17),"") -> 0 | T17: =IF($F17>=5,IF(AL17="","",AL17),"") -> 24 | U17: =IF($F17>=5,IF(AQ17="","",AQ17),"") -> 36 | V17: =IF($F17>=5,IF(AV17="","",AV17),"") -> 14 | W17: =IF($F17>=5,IF(BA17="","",BA17),"") -> 0 | X17: =IF($F17>=5,IF(BF17="","",BF17),"") -> 40 | Y17: =IF($F17>=5,IF(BK17="","",BK17),"") -> 0 | AA17: dnf | AB17: =IF(ISNUMBER(AA17),(VLOOKUP(AA17,$BO$6:$BP$50,2)),0) -> 0 | AC17: =IF(AA17<>"",5,0) -> 5 | AD17: =AB17+AC17 -> 5 | AF17: dsq | AG17: =IF(ISNUMBER(AF17),(VLOOKUP(AF17,$BO$6:$BP$50,2)),0) -> 0 | AH17: =IF(AF17<>"",5,0) -> 5 | AI17: =AG17+AH17 -> 5 | AK17: 11 | AL17: =IF(ISNUMBER(AK17),(VLOOKUP(AK17,$BO$6:$BP$50,2)),0) -> 24 | AM17: =IF(AK17<>"",5,0) -> 5 | AN17: =AL17+AM17 -> 29 | AP17: 7 | AQ17: =IF(ISNUMBER(AP17),(VLOOKUP(AP17,$BO$6:$BP$50,2)),0) -> 36 | AR17: =IF(AP17<>"",5,0) -> 5 | AS17: =AQ17+AR17 -> 41 | AU17: 17 | AV17: =IF(ISNUMBER(AU17),(VLOOKUP(AU17,$BO$6:$BP$50,2)),0) -> 14 | AW17: =IF(AU17<>"",5,0) -> 5 | AX17: =AV17+AW17 -> 19 | BA17: =IF(ISNUMBER(AZ17),(VLOOKUP(AZ17,$BO$6:$BP$50,2)),0) -> 0 | BB17: =IF(AZ17<>"",5,0) -> 0 | BC17: =BA17+BB17 -> 0 | BE17: 6 | BF17: =IF(ISNUMBER(BE17),(VLOOKUP(BE17,$BO$6:$BP$50,2)),0) -> 40 | BG17: =IF(BE17<>"",5,0) -> 5 | BH17: =BF17+BG17 -> 45 | BK17: =IF(ISNUMBER(BJ17),(VLOOKUP(BJ17,$BO$6:$BP$50,2)),0) -> 0 | BL17: =IF(BJ17<>"",5,0) -> 0 | BM17: =BK17+BL17 -> 0 | BO17: 12 | BP17: 22 | BQ17: 0 | BR17: 0 | BS17: 1 | BT17: 0 | BU17: 0 | BV17: 0 | BW17: 0 | BX17: 0
A18: =IF(E18<E17,BO18,A17) -> 13 | B18: Bjørnstad | C18: Erika Scheid | D18: IRS | E18: =IF(F18<=4,Q18,(Q18-SUM(SMALL(R18:Y18,{1;2;3;4})))) -> 138 | F18: =(IF(AC18=5,1,0)+IF(AH18=5,1,0)+IF(AM18=5,1,0)+IF(AR18=5,1,0)+IF(AW18=5,1,0)+IF(BB18=5,1,0)+IF(BG18=5,1,0)+IF(BL18=5,1,0)) -> 6 | H18: =IF(AA18="","",AA18) -> 13 | I18: =IF(AF18="","",AF18) -> 10 | J18: =IF(AK18="","",AK18) -> 23 | K18: =IF(AP18="","",AP18) -> 17 | L18: =IF(AU18="","",AU18) ->  | M18: =IF(AZ18="","",AZ18) -> 7 | N18: =IF(BE18="","",BE18) -> 10 | O18: =IF(BJ18="","",BJ18) ->  | Q18: =AD18+AI18+AN18+AS18+AX18+BC18+BH18 -> 160 | R18: =IF($F18>=5,IF(AB18="","",AB18),"") -> 20 | S18: =IF($F18>=5,IF(AG18="","",AG18),"") -> 26 | T18: =IF($F18>=5,IF(AL18="","",AL18),"") -> 8 | U18: =IF($F18>=5,IF(AQ18="","",AQ18),"") -> 14 | V18: =IF($F18>=5,IF(AV18="","",AV18),"") -> 0 | W18: =IF($F18>=5,IF(BA18="","",BA18),"") -> 36 | X18: =IF($F18>=5,IF(BF18="","",BF18),"") -> 26 | Y18: =IF($F18>=5,IF(BK18="","",BK18),"") -> 0 | AA18: 13 | AB18: =IF(ISNUMBER(AA18),(VLOOKUP(AA18,$BO$6:$BP$50,2)),0) -> 20 | AC18: =IF(AA18<>"",5,0) -> 5 | AD18: =AB18+AC18 -> 25 | AF18: 10 | AG18: =IF(ISNUMBER(AF18),(VLOOKUP(AF18,$BO$6:$BP$50,2)),0) -> 26 | AH18: =IF(AF18<>"",5,0) -> 5 | AI18: =AG18+AH18 -> 31 | AK18: 23 | AL18: =IF(ISNUMBER(AK18),(VLOOKUP(AK18,$BO$6:$BP$50,2)),0) -> 8 | AM18: =IF(AK18<>"",5,0) -> 5 | AN18: =AL18+AM18 -> 13 | AP18: 17 | AQ18: =IF(ISNUMBER(AP18),(VLOOKUP(AP18,$BO$6:$BP$50,2)),0) -> 14 | AR18: =IF(AP18<>"",5,0) -> 5 | AS18: =AQ18+AR18 -> 19 | AV18: =IF(ISNUMBER(AU18),(VLOOKUP(AU18,$BO$6:$BP$50,2)),0) -> 0 | AW18: =IF(AU18<>"",5,0) -> 0 | AX18: =AV18+AW18 -> 0 | AZ18: 7 | BA18: =IF(ISNUMBER(AZ18),(VLOOKUP(AZ18,$BO$6:$BP$50,2)),0) -> 36 | BB18: =IF(AZ18<>"",5,0) -> 5 | BC18: =BA18+BB18 -> 41 | BE18: 10 | BF18: =IF(ISNUMBER(BE18),(VLOOKUP(BE18,$BO$6:$BP$50,2)),0) -> 26 | BG18: =IF(BE18<>"",5,0) -> 5 | BH18: =BF18+BG18 -> 31 | BK18: =IF(ISNUMBER(BJ18),(VLOOKUP(BJ18,$BO$6:$BP$50,2)),0) -> 0 | BL18: =IF(BJ18<>"",5,0) -> 0 | BM18: =BK18+BL18 -> 0 | BO18: 13 | BP18: 20 | BQ18: 0 | BR18: =IF($F17=7,1,0) -> 0 | BS18: =IF($F17=6,1,0) -> 1 | BT18: =IF($F17=5,1,0) -> 0 | BU18: =IF($F17=4,1,0) -> 0 | BV18: =IF($F17=3,1,0) -> 0 | BW18: =IF($F17=2,1,0) -> 0 | BX18: =IF($F17=1,1,0) -> 0
A19: =IF(E19<E18,BO19,A18) -> 14 | B19: Horgen | C19: Alexandra Astrup | D19: Heming | E19: =IF(F19<=4,Q19,(Q19-SUM(SMALL(R19:Y19,{1;2;3;4})))) -> 134 | F19: =(IF(AC19=5,1,0)+IF(AH19=5,1,0)+IF(AM19=5,1,0)+IF(AR19=5,1,0)+IF(AW19=5,1,0)+IF(BB19=5,1,0)+IF(BG19=5,1,0)+IF(BL19=5,1,0)) -> 4 | H19: =IF(AA19="","",AA19) -> 10 | I19: =IF(AF19="","",AF19) -> 8 | J19: =IF(AK19="","",AK19) ->  | K19: =IF(AP19="","",AP19) ->  | L19: =IF(AU19="","",AU19) -> 13 | M19: =IF(AZ19="","",AZ19) ->  | N19: =IF(BE19="","",BE19) -> 7 | O19: =IF(BJ19="","",BJ19) ->  | Q19: =AD19+AI19+AN19+AS19+AX19+BC19+BH19 -> 134 | R19: =IF($F19>=5,IF(AB19="","",AB19),"") ->  | S19: =IF($F19>=5,IF(AG19="","",AG19),"") ->  | T19: =IF($F19>=5,IF(AL19="","",AL19),"") ->  | U19: =IF($F19>=5,IF(AQ19="","",AQ19),"") ->  | V19: =IF($F19>=5,IF(AV19="","",AV19),"") ->  | W19: =IF($F19>=5,IF(BA19="","",BA19),"") ->  | X19: =IF($F19>=5,IF(BF19="","",BF19),"") ->  | Y19: =IF($F19>=5,IF(BK19="","",BK19),"") ->  | AA19: 10 | AB19: =IF(ISNUMBER(AA19),(VLOOKUP(AA19,$BO$6:$BP$50,2)),0) -> 26 | AC19: =IF(AA19<>"",5,0) -> 5 | AD19: =AB19+AC19 -> 31 | AF19: 8 | AG19: =IF(ISNUMBER(AF19),(VLOOKUP(AF19,$BO$6:$BP$50,2)),0) -> 32 | AH19: =IF(AF19<>"",5,0) -> 5 | AI19: =AG19+AH19 -> 37 | AL19: =IF(ISNUMBER(AK19),(VLOOKUP(AK19,$BO$6:$BP$50,2)),0) -> 0 | AM19: =IF(AK19<>"",5,0) -> 0 | AN19: =AL19+AM19 -> 0 | AQ19: =IF(ISNUMBER(AP19),(VLOOKUP(AP19,$BO$6:$BP$50,2)),0) -> 0 | AR19: =IF(AP19<>"",5,0) -> 0 | AS19: =AQ19+AR19 -> 0 | AU19: 13 | AV19: =IF(ISNUMBER(AU19),(VLOOKUP(AU19,$BO$6:$BP$50,2)),0) -> 20 | AW19: =IF(AU19<>"",5,0) -> 5 | AX19: =AV19+AW19 -> 25 | BA19: =IF(ISNUMBER(AZ19),(VLOOKUP(AZ19,$BO$6:$BP$50,2)),0) -> 0 | BB19: =IF(AZ19<>"",5,0) -> 0 | BC19: =BA19+BB19 -> 0 | BE19: 7 | BF19: =IF(ISNUMBER(BE19),(VLOOKUP(BE19,$BO$6:$BP$50,2)),0) -> 36 | BG19: =IF(BE19<>"",5,0) -> 5 | BH19: =BF19+BG19 -> 41 | BK19: =IF(ISNUMBER(BJ19),(VLOOKUP(BJ19,$BO$6:$BP$50,2)),0) -> 0 | BL19: =IF(BJ19<>"",5,0) -> 0 | BM19: =BK19+BL19 -> 0 | BO19: 14 | BP19: 18 | BQ19: 0 | BR19: =IF($F18=7,1,0) -> 0 | BS19: =IF($F18=6,1,0) -> 1 | BT19: =IF($F18=5,1,0) -> 0 | BU19: =IF($F18=4,1,0) -> 0 | BV19: =IF($F18=3,1,0) -> 0 | BW19: =IF($F18=2,1,0) -> 0 | BX19: =IF($F18=1,1,0) -> 0
A20: =IF(E20<E19,BO20,A19) -> 15 | B20: Solberg | C20: Erle | D20: Ready | E20: =IF(F20<=4,Q20,(Q20-SUM(SMALL(R20:Y20,{1;2;3;4})))) -> 118 | F20: =(IF(AC20=5,1,0)+IF(AH20=5,1,0)+IF(AM20=5,1,0)+IF(AR20=5,1,0)+IF(AW20=5,1,0)+IF(BB20=5,1,0)+IF(BG20=5,1,0)+IF(BL20=5,1,0)) -> 6 | H20: =IF(AA20="","",AA20) -> dsq | I20: =IF(AF20="","",AF20) -> 14 | J20: =IF(AK20="","",AK20) ->  | K20: =IF(AP20="","",AP20) -> 19 | L20: =IF(AU20="","",AU20) -> 25 | M20: =IF(AZ20="","",AZ20) -> 6 | N20: =IF(BE20="","",BE20) -> 14 | O20: =IF(BJ20="","",BJ20) ->  | Q20: =AD20+AI20+AN20+AS20+AX20+BC20+BH20 -> 124 | R20: =IF($F20>=5,IF(AB20="","",AB20),"") -> 0 | S20: =IF($F20>=5,IF(AG20="","",AG20),"") -> 18 | T20: =IF($F20>=5,IF(AL20="","",AL20),"") -> 0 | U20: =IF($F20>=5,IF(AQ20="","",AQ20),"") -> 12 | V20: =IF($F20>=5,IF(AV20="","",AV20),"") -> 6 | W20: =IF($F20>=5,IF(BA20="","",BA20),"") -> 40 | X20: =IF($F20>=5,IF(BF20="","",BF20),"") -> 18 | Y20: =IF($F20>=5,IF(BK20="","",BK20),"") -> 0 | AA20: dsq | AB20: =IF(ISNUMBER(AA20),(VLOOKUP(AA20,$BO$6:$BP$50,2)),0) -> 0 | AC20: =IF(AA20<>"",5,0) -> 5 | AD20: =AB20+AC20 -> 5 | AF20: 14 | AG20: =IF(ISNUMBER(AF20),(VLOOKUP(AF20,$BO$6:$BP$50,2)),0) -> 18 | AH20: =IF(AF20<>"",5,0) -> 5 | AI20: =AG20+AH20 -> 23 | AL20: =IF(ISNUMBER(AK20),(VLOOKUP(AK20,$BO$6:$BP$50,2)),0) -> 0 | AM20: =IF(AK20<>"",5,0) -> 0 | AN20: =AL20+AM20 -> 0 | AP20: 19 | AQ20: =IF(ISNUMBER(AP20),(VLOOKUP(AP20,$BO$6:$BP$50,2)),0) -> 12 | AR20: =IF(AP20<>"",5,0) -> 5 | AS20: =AQ20+AR20 -> 17 | AU20: 25 | AV20: =IF(ISNUMBER(AU20),(VLOOKUP(AU20,$BO$6:$BP$50,2)),0) -> 6 | AW20: =IF(AU20<>"",5,0) -> 5 | AX20: =AV20+AW20 -> 11 | AZ20: 6 | BA20: =IF(ISNUMBER(AZ20),(VLOOKUP(AZ20,$BO$6:$BP$50,2)),0) -> 40 | BB20: =IF(AZ20<>"",5,0) -> 5 | BC20: =BA20+BB20 -> 45 | BE20: 14 | BF20: =IF(ISNUMBER(BE20),(VLOOKUP(BE20,$BO$6:$BP$50,2)),0) -> 18 | BG20: =IF(BE20<>"",5,0) -> 5 | BH20: =BF20+BG20 -> 23 | BK20: =IF(ISNUMBER(BJ20),(VLOOKUP(BJ20,$BO$6:$BP$50,2)),0) -> 0 | BL20: =IF(BJ20<>"",5,0) -> 0 | BM20: =BK20+BL20 -> 0 | BO20: 15 | BP20: 16 | BQ20: 0 | BR20: =IF($F19=7,1,0) -> 0 | BS20: =IF($F19=6,1,0) -> 0 | BT20: =IF($F19=5,1,0) -> 0 | BU20: =IF($F19=4,1,0) -> 1 | BV20: =IF($F19=3,1,0) -> 0 | BW20: =IF($F19=2,1,0) -> 0 | BX20: =IF($F19=1,1,0) -> 0
A21: =IF(E21<E20,BO21,A20) -> 16 | B21: Solheim | C21: Cornelia Margrethe Lysne | D21: Njård | E21: =IF(F21<=4,Q21,(Q21-SUM(SMALL(R21:Y21,{1;2;3;4})))) -> 117 | F21: =(IF(AC21=5,1,0)+IF(AH21=5,1,0)+IF(AM21=5,1,0)+IF(AR21=5,1,0)+IF(AW21=5,1,0)+IF(BB21=5,1,0)+IF(BG21=5,1,0)+IF(BL21=5,1,0)) -> 5 | H21: =IF(AA21="","",AA21) -> 15 | I21: =IF(AF21="","",AF21) ->  | J21: =IF(AK21="","",AK21) -> 14 | K21: =IF(AP21="","",AP21) -> 9 | L21: =IF(AU21="","",AU21) -> 20 | M21: =IF(AZ21="","",AZ21) -> 9 | N21: =IF(BE21="","",BE21) ->  | O21: =IF(BJ21="","",BJ21) ->  | Q21: =AD21+AI21+AN21+AS21+AX21+BC21+BH21 -> 128 | R21: =IF($F21>=5,IF(AB21="","",AB21),"") -> 16 | S21: =IF($F21>=5,IF(AG21="","",AG21),"") -> 0 | T21: =IF($F21>=5,IF(AL21="","",AL21),"") -> 18 | U21: =IF($F21>=5,IF(AQ21="","",AQ21),"") -> 29 | V21: =IF($F21>=5,IF(AV21="","",AV21),"") -> 11 | W21: =IF($F21>=5,IF(BA21="","",BA21),"") -> 29 | X21: =IF($F21>=5,IF(BF21="","",BF21),"") -> 0 | Y21: =IF($F21>=5,IF(BK21="","",BK21),"") -> 0 | AA21: 15 | AB21: =IF(ISNUMBER(AA21),(VLOOKUP(AA21,$BO$6:$BP$50,2)),0) -> 16 | AC21: =IF(AA21<>"",5,0) -> 5 | AD21: =AB21+AC21 -> 21 | AG21: =IF(ISNUMBER(AF21),(VLOOKUP(AF21,$BO$6:$BP$50,2)),0) -> 0 | AH21: =IF(AF21<>"",5,0) -> 0 | AI21: =AG21+AH21 -> 0 | AK21: 14 | AL21: =IF(ISNUMBER(AK21),(VLOOKUP(AK21,$BO$6:$BP$50,2)),0) -> 18 | AM21: =IF(AK21<>"",5,0) -> 5 | AN21: =AL21+AM21 -> 23 | AP21: 9 | AQ21: =IF(ISNUMBER(AP21),(VLOOKUP(AP21,$BO$6:$BP$50,2)),0) -> 29 | AR21: =IF(AP21<>"",5,0) -> 5 | AS21: =AQ21+AR21 -> 34 | AU21: 20 | AV21: =IF(ISNUMBER(AU21),(VLOOKUP(AU21,$BO$6:$BP$50,2)),0) -> 11 | AW21: =IF(AU21<>"",5,0) -> 5 | AX21: =AV21+AW21 -> 16 | AZ21: 9 | BA21: =IF(ISNUMBER(AZ21),(VLOOKUP(AZ21,$BO$6:$BP$50,2)),0) -> 29 | BB21: =IF(AZ21<>"",5,0) -> 5 | BC21: =BA21+BB21 -> 34 | BF21: =IF(ISNUMBER(BE21),(VLOOKUP(BE21,$BO$6:$BP$50,2)),0) -> 0 | BG21: =IF(BE21<>"",5,0) -> 0 | BH21: =BF21+BG21 -> 0 | BK21: =IF(ISNUMBER(BJ21),(VLOOKUP(BJ21,$BO$6:$BP$50,2)),0) -> 0 | BL21: =IF(BJ21<>"",5,0) -> 0 | BM21: =BK21+BL21 -> 0 | BO21: 16 | BP21: 15 | BQ21: 0 | BR21: =IF($F19=7,1,0) -> 0 | BS21: =IF($F19=6,1,0) -> 0 | BT21: =IF($F19=5,1,0) -> 0 | BU21: =IF($F19=4,1,0) -> 1 | BV21: =IF($F19=3,1,0) -> 0 | BW21: =IF($F19=2,1,0) -> 0 | BX21: =IF($F19=1,1,0) -> 0
A22: =IF(E22<E21,BO22,A21) -> 17 | B22: Brækken | C22: Eili | D22: IRS | E22: =IF(F22<=4,Q22,(Q22-SUM(SMALL(R22:Y22,{1;2;3;4})))) -> 109 | F22: =(IF(AC22=5,1,0)+IF(AH22=5,1,0)+IF(AM22=5,1,0)+IF(AR22=5,1,0)+IF(AW22=5,1,0)+IF(BB22=5,1,0)+IF(BG22=5,1,0)+IF(BL22=5,1,0)) -> 5 | H22: =IF(AA22="","",AA22) -> 14 | I22: =IF(AF22="","",AF22) -> 11 | J22: =IF(AK22="","",AK22) -> 18 | K22: =IF(AP22="","",AP22) -> 12 | L22: =IF(AU22="","",AU22) ->  | M22: =IF(AZ22="","",AZ22) ->  | N22: =IF(BE22="","",BE22) -> 13 | O22: =IF(BJ22="","",BJ22) ->  | Q22: =AD22+AI22+AN22+AS22+AX22+BC22+BH22 -> 122 | R22: =IF($F22>=5,IF(AB22="","",AB22),"") -> 18 | S22: =IF($F22>=5,IF(AG22="","",AG22),"") -> 24 | T22: =IF($F22>=5,IF(AL22="","",AL22),"") -> 13 | U22: =IF($F22>=5,IF(AQ22="","",AQ22),"") -> 22 | V22: =IF($F22>=5,IF(AV22="","",AV22),"") -> 0 | W22: =IF($F22>=5,IF(BA22="","",BA22),"") -> 0 | X22: =IF($F22>=5,IF(BF22="","",BF22),"") -> 20 | Y22: =IF($F22>=5,IF(BK22="","",BK22),"") -> 0 | AA22: 14 | AB22: =IF(ISNUMBER(AA22),(VLOOKUP(AA22,$BO$6:$BP$50,2)),0) -> 18 | AC22: =IF(AA22<>"",5,0) -> 5 | AD22: =AB22+AC22 -> 23 | AF22: 11 | AG22: =IF(ISNUMBER(AF22),(VLOOKUP(AF22,$BO$6:$BP$50,2)),0) -> 24 | AH22: =IF(AF22<>"",5,0) -> 5 | AI22: =AG22+AH22 -> 29 | AK22: 18 | AL22: =IF(ISNUMBER(AK22),(VLOOKUP(AK22,$BO$6:$BP$50,2)),0) -> 13 | AM22: =IF(AK22<>"",5,0) -> 5 | AN22: =AL22+AM22 -> 18 | AP22: 12 | AQ22: =IF(ISNUMBER(AP22),(VLOOKUP(AP22,$BO$6:$BP$50,2)),0) -> 22 | AR22: =IF(AP22<>"",5,0) -> 5 | AS22: =AQ22+AR22 -> 27 | AV22: =IF(ISNUMBER(AU22),(VLOOKUP(AU22,$BO$6:$BP$50,2)),0) -> 0 | AW22: =IF(AU22<>"",5,0) -> 0 | AX22: =AV22+AW22 -> 0 | BA22: =IF(ISNUMBER(AZ22),(VLOOKUP(AZ22,$BO$6:$BP$50,2)),0) -> 0 | BB22: =IF(AZ22<>"",5,0) -> 0 | BC22: =BA22+BB22 -> 0 | BE22: 13 | BF22: =IF(ISNUMBER(BE22),(VLOOKUP(BE22,$BO$6:$BP$50,2)),0) -> 20 | BG22: =IF(BE22<>"",5,0) -> 5 | BH22: =BF22+BG22 -> 25 | BK22: =IF(ISNUMBER(BJ22),(VLOOKUP(BJ22,$BO$6:$BP$50,2)),0) -> 0 | BL22: =IF(BJ22<>"",5,0) -> 0 | BM22: =BK22+BL22 -> 0 | BO22: 17 | BP22: 14 | BQ22: 0 | BR22: 0 | BS22: 1 | BT22: 0 | BU22: 0 | BV22: 0 | BW22: 0 | BX22: 0
A23: =IF(E23<E22,BO23,A22) -> 18 | B23: Benjamin-Wormdahl | C23: Sarah Louise | D23: Heming | E23: =IF(F23<=4,Q23,(Q23-SUM(SMALL(R23:Y23,{1;2;3;4})))) -> 101 | F23: =(IF(AC23=5,1,0)+IF(AH23=5,1,0)+IF(AM23=5,1,0)+IF(AR23=5,1,0)+IF(AW23=5,1,0)+IF(BB23=5,1,0)+IF(BG23=5,1,0)+IF(BL23=5,1,0)) -> 4 | H23: =IF(AA23="","",AA23) ->  | I23: =IF(AF23="","",AF23) ->  | J23: =IF(AK23="","",AK23) ->  | K23: =IF(AP23="","",AP23) -> 13 | L23: =IF(AU23="","",AU23) -> 18 | M23: =IF(AZ23="","",AZ23) -> 11 | N23: =IF(BE23="","",BE23) -> 11 | O23: =IF(BJ23="","",BJ23) ->  | Q23: =AD23+AI23+AN23+AS23+AX23+BC23+BH23 -> 101 | R23: =IF($F23>=5,IF(AB23="","",AB23),"") ->  | S23: =IF($F23>=5,IF(AG23="","",AG23),"") ->  | T23: =IF($F23>=5,IF(AL23="","",AL23),"") ->  | U23: =IF($F23>=5,IF(AQ23="","",AQ23),"") ->  | V23: =IF($F23>=5,IF(AV23="","",AV23),"") ->  | W23: =IF($F23>=5,IF(BA23="","",BA23),"") ->  | X23: =IF($F23>=5,IF(BF23="","",BF23),"") ->  | Y23: =IF($F23>=5,IF(BK23="","",BK23),"") ->  | AB23: =IF(ISNUMBER(AA23),(VLOOKUP(AA23,$BO$6:$BP$50,2)),0) -> 0 | AC23: =IF(AA23<>"",5,0) -> 0 | AD23: =AB23+AC23 -> 0 | AG23: =IF(ISNUMBER(AF23),(VLOOKUP(AF23,$BO$6:$BP$50,2)),0) -> 0 | AH23: =IF(AF23<>"",5,0) -> 0 | AI23: =AG23+AH23 -> 0 | AL23: =IF(ISNUMBER(AK23),(VLOOKUP(AK23,$BO$6:$BP$50,2)),0) -> 0 | AM23: =IF(AK23<>"",5,0) -> 0 | AN23: =AL23+AM23 -> 0 | AP23: 13 | AQ23: =IF(ISNUMBER(AP23),(VLOOKUP(AP23,$BO$6:$BP$50,2)),0) -> 20 | AR23: =IF(AP23<>"",5,0) -> 5 | AS23: =AQ23+AR23 -> 25 | AU23: 18 | AV23: =IF(ISNUMBER(AU23),(VLOOKUP(AU23,$BO$6:$BP$50,2)),0) -> 13 | AW23: =IF(AU23<>"",5,0) -> 5 | AX23: =AV23+AW23 -> 18 | AZ23: 11 | BA23: =IF(ISNUMBER(AZ23),(VLOOKUP(AZ23,$BO$6:$BP$50,2)),0) -> 24 | BB23: =IF(AZ23<>"",5,0) -> 5 | BC23: =BA23+BB23 -> 29 | BE23: 11 | BF23: =IF(ISNUMBER(BE23),(VLOOKUP(BE23,$BO$6:$BP$50,2)),0) -> 24 | BG23: =IF(BE23<>"",5,0) -> 5 | BH23: =BF23+BG23 -> 29 | BK23: =IF(ISNUMBER(BJ23),(VLOOKUP(BJ23,$BO$6:$BP$50,2)),0) -> 0 | BL23: =IF(BJ23<>"",5,0) -> 0 | BM23: =BK23+BL23 -> 0 | BO23: 18 | BP23: 13 | BQ23: 0 | BR23: 0 | BS23: 0 | BT23: 1 | BU23: 0 | BV23: 0 | BW23: 0 | BX23: 0
A24: =IF(E24<E23,BO24,A23) -> 19 | B24: Øye | C24: Alva Østnes | D24: IRS | E24: =IF(F24<=4,Q24,(Q24-SUM(SMALL(R24:Y24,{1;2;3;4})))) -> 96 | F24: =(IF(AC24=5,1,0)+IF(AH24=5,1,0)+IF(AM24=5,1,0)+IF(AR24=5,1,0)+IF(AW24=5,1,0)+IF(BB24=5,1,0)+IF(BG24=5,1,0)+IF(BL24=5,1,0)) -> 4 | H24: =IF(AA24="","",AA24) -> 12 | I24: =IF(AF24="","",AF24) -> 17 | J24: =IF(AK24="","",AK24) ->  | K24: =IF(AP24="","",AP24) ->  | L24: =IF(AU24="","",AU24) -> 23 | M24: =IF(AZ24="","",AZ24) ->  | N24: =IF(BE24="","",BE24) -> 8 | O24: =IF(BJ24="","",BJ24) ->  | Q24: =AD24+AI24+AN24+AS24+AX24+BC24+BH24 -> 96 | R24: =IF($F24>=5,IF(AB24="","",AB24),"") ->  | S24: =IF($F24>=5,IF(AG24="","",AG24),"") ->  | T24: =IF($F24>=5,IF(AL24="","",AL24),"") ->  | U24: =IF($F24>=5,IF(AQ24="","",AQ24),"") ->  | V24: =IF($F24>=5,IF(AV24="","",AV24),"") ->  | W24: =IF($F24>=5,IF(BA24="","",BA24),"") ->  | X24: =IF($F24>=5,IF(BF24="","",BF24),"") ->  | Y24: =IF($F24>=5,IF(BK24="","",BK24),"") ->  | AA24: 12 | AB24: =IF(ISNUMBER(AA24),(VLOOKUP(AA24,$BO$6:$BP$50,2)),0) -> 22 | AC24: =IF(AA24<>"",5,0) -> 5 | AD24: =AB24+AC24 -> 27 | AF24: 17 | AG24: =IF(ISNUMBER(AF24),(VLOOKUP(AF24,$BO$6:$BP$50,2)),0) -> 14 | AH24: =IF(AF24<>"",5,0) -> 5 | AI24: =AG24+AH24 -> 19 | AL24: =IF(ISNUMBER(AK24),(VLOOKUP(AK24,$BO$6:$BP$50,2)),0) -> 0 | AM24: =IF(AK24<>"",5,0) -> 0 | AN24: =AL24+AM24 -> 0 | AQ24: =IF(ISNUMBER(AP24),(VLOOKUP(AP24,$BO$6:$BP$50,2)),0) -> 0 | AR24: =IF(AP24<>"",5,0) -> 0 | AS24: =AQ24+AR24 -> 0 | AU24: 23 | AV24: =IF(ISNUMBER(AU24),(VLOOKUP(AU24,$BO$6:$BP$50,2)),0) -> 8 | AW24: =IF(AU24<>"",5,0) -> 5 | AX24: =AV24+AW24 -> 13 | BA24: =IF(ISNUMBER(AZ24),(VLOOKUP(AZ24,$BO$6:$BP$50,2)),0) -> 0 | BB24: =IF(AZ24<>"",5,0) -> 0 | BC24: =BA24+BB24 -> 0 | BE24: 8 | BF24: =IF(ISNUMBER(BE24),(VLOOKUP(BE24,$BO$6:$BP$50,2)),0) -> 32 | BG24: =IF(BE24<>"",5,0) -> 5 | BH24: =BF24+BG24 -> 37 | BK24: =IF(ISNUMBER(BJ24),(VLOOKUP(BJ24,$BO$6:$BP$50,2)),0) -> 0 | BL24: =IF(BJ24<>"",5,0) -> 0 | BM24: =BK24+BL24 -> 0 | BO24: 19 | BP24: 12 | BQ24: 0 | BR24: 0 | BS24: 0 | BT24: 1 | BU24: 0 | BV24: 0 | BW24: 0 | BX24: 0
A25: =IF(E25<E24,BO25,A24) -> 20 | B25: Aardal | C25: Mina | D25: NERO | E25: =IF(F25<=4,Q25,(Q25-SUM(SMALL(R25:Y25,{1;2;3;4})))) -> 89 | F25: =(IF(AC25=5,1,0)+IF(AH25=5,1,0)+IF(AM25=5,1,0)+IF(AR25=5,1,0)+IF(AW25=5,1,0)+IF(BB25=5,1,0)+IF(BG25=5,1,0)+IF(BL25=5,1,0)) -> 3 | H25: =IF(AA25="","",AA25) ->  | I25: =IF(AF25="","",AF25) ->  | J25: =IF(AK25="","",AK25) -> 17 | K25: =IF(AP25="","",AP25) ->  | L25: =IF(AU25="","",AU25) -> 16 | M25: =IF(AZ25="","",AZ25) ->  | N25: =IF(BE25="","",BE25) -> 5 | O25: =IF(BJ25="","",BJ25) ->  | Q25: =AD25+AI25+AN25+AS25+AX25+BC25+BH25 -> 89 | R25: =IF($F25>=5,IF(AB25="","",AB25),"") ->  | S25: =IF($F25>=5,IF(AG25="","",AG25),"") ->  | T25: =IF($F25>=5,IF(AL25="","",AL25),"") ->  | U25: =IF($F25>=5,IF(AQ25="","",AQ25),"") ->  | V25: =IF($F25>=5,IF(AV25="","",AV25),"") ->  | W25: =IF($F25>=5,IF(BA25="","",BA25),"") ->  | X25: =IF($F25>=5,IF(BF25="","",BF25),"") ->  | Y25: =IF($F25>=5,IF(BK25="","",BK25),"") ->  | AB25: =IF(ISNUMBER(AA25),(VLOOKUP(AA25,$BO$6:$BP$50,2)),0) -> 0 | AC25: =IF(AA25<>"",5,0) -> 0 | AD25: =AB25+AC25 -> 0 | AG25: =IF(ISNUMBER(AF25),(VLOOKUP(AF25,$BO$6:$BP$50,2)),0) -> 0 | AH25: =IF(AF25<>"",5,0) -> 0 | AI25: =AG25+AH25 -> 0 | AK25: 17 | AL25: =IF(ISNUMBER(AK25),(VLOOKUP(AK25,$BO$6:$BP$50,2)),0) -> 14 | AM25: =IF(AK25<>"",5,0) -> 5 | AN25: =AL25+AM25 -> 19 | AQ25: =IF(ISNUMBER(AP25),(VLOOKUP(AP25,$BO$6:$BP$50,2)),0) -> 0 | AR25: =IF(AP25<>"",5,0) -> 0 | AS25: =AQ25+AR25 -> 0 | AU25: 16 | AV25: =IF(ISNUMBER(AU25),(VLOOKUP(AU25,$BO$6:$BP$50,2)),0) -> 15 | AW25: =IF(AU25<>"",5,0) -> 5 | AX25: =AV25+AW25 -> 20 | BA25: =IF(ISNUMBER(AZ25),(VLOOKUP(AZ25,$BO$6:$BP$50,2)),0) -> 0 | BB25: =IF(AZ25<>"",5,0) -> 0 | BC25: =BA25+BB25 -> 0 | BE25: 5 | BF25: =IF(ISNUMBER(BE25),(VLOOKUP(BE25,$BO$6:$BP$50,2)),0) -> 45 | BG25: =IF(BE25<>"",5,0) -> 5 | BH25: =BF25+BG25 -> 50 | BK25: =IF(ISNUMBER(BJ25),(VLOOKUP(BJ25,$BO$6:$BP$50,2)),0) -> 0 | BL25: =IF(BJ25<>"",5,0) -> 0 | BM25: =BK25+BL25 -> 0 | BO25: 20 | BP25: 11 | BQ25: 0 | BR25: 0 | BS25: 0 | BT25: 0 | BU25: 1 | BV25: 0 | BW25: 0 | BX25: 0
A26: =IF(E26<E25,BO26,A25) -> 21 | B26: Braathen | C26: Selma Georgia | D26: Stabæk | E26: =IF(F26<=4,Q26,(Q26-SUM(SMALL(R26:Y26,{1;2;3;4})))) -> 85 | F26: =(IF(AC26=5,1,0)+IF(AH26=5,1,0)+IF(AM26=5,1,0)+IF(AR26=5,1,0)+IF(AW26=5,1,0)+IF(BB26=5,1,0)+IF(BG26=5,1,0)+IF(BL26=5,1,0)) -> 1 | H26: =IF(AA26="","",AA26) ->  | I26: =IF(AF26="","",AF26) ->  | J26: =IF(AK26="","",AK26) ->  | K26: =IF(AP26="","",AP26) ->  | L26: =IF(AU26="","",AU26) -> 2 | M26: =IF(AZ26="","",AZ26) ->  | N26: =IF(BE26="","",BE26) ->  | O26: =IF(BJ26="","",BJ26) ->  | Q26: =AD26+AI26+AN26+AS26+AX26+BC26+BH26 -> 85 | R26: =IF($F26>=5,IF(AB26="","",AB26),"") ->  | S26: =IF($F26>=5,IF(AG26="","",AG26),"") ->  | T26: =IF($F26>=5,IF(AL26="","",AL26),"") ->  | U26: =IF($F26>=5,IF(AQ26="","",AQ26),"") ->  | V26: =IF($F26>=5,IF(AV26="","",AV26),"") ->  | W26: =IF($F26>=5,IF(BA26="","",BA26),"") ->  | X26: =IF($F26>=5,IF(BF26="","",BF26),"") ->  | Y26: =IF($F26>=5,IF(BK26="","",BK26),"") ->  | AB26: =IF(ISNUMBER(AA26),(VLOOKUP(AA26,$BO$6:$BP$50,2)),0) -> 0 | AC26: =IF(AA26<>"",5,0) -> 0 | AD26: =AB26+AC26 -> 0 | AG26: =IF(ISNUMBER(AF26),(VLOOKUP(AF26,$BO$6:$BP$50,2)),0) -> 0 | AH26: =IF(AF26<>"",5,0) -> 0 | AI26: =AG26+AH26 -> 0 | AL26: =IF(ISNUMBER(AK26),(VLOOKUP(AK26,$BO$6:$BP$50,2)),0) -> 0 | AM26: =IF(AK26<>"",5,0) -> 0 | AN26: =AL26+AM26 -> 0 | AQ26: =IF(ISNUMBER(AP26),(VLOOKUP(AP26,$BO$6:$BP$50,2)),0) -> 0 | AR26: =IF(AP26<>"",5,0) -> 0 | AS26: =AQ26+AR26 -> 0 | AU26: 2 | AV26: =IF(ISNUMBER(AU26),(VLOOKUP(AU26,$BO$6:$BP$50,2)),0) -> 80 | AW26: =IF(AU26<>"",5,0) -> 5 | AX26: =AV26+AW26 -> 85 | BA26: =IF(ISNUMBER(AZ26),(VLOOKUP(AZ26,$BO$6:$BP$50,2)),0) -> 0 | BB26: =IF(AZ26<>"",5,0) -> 0 | BC26: =BA26+BB26 -> 0 | BF26: =IF(ISNUMBER(BE26),(VLOOKUP(BE26,$BO$6:$BP$50,2)),0) -> 0 | BG26: =IF(BE26<>"",5,0) -> 0 | BH26: =BF26+BG26 -> 0 | BK26: =IF(ISNUMBER(BJ26),(VLOOKUP(BJ26,$BO$6:$BP$50,2)),0) -> 0 | BL26: =IF(BJ26<>"",5,0) -> 0 | BM26: =BK26+BL26 -> 0 | BO26: 21 | BP26: 10 | BQ26: 0 | BR26: 0 | BS26: 0 | BT26: 0 | BU26: 1 | BV26: 0 | BW26: 0 | BX26: 0
A27: =IF(E27<E26,BO27,A26) -> 22 | B27: Solhusløkk | C27: Carina | D27: IRS | E27: =IF(F27<=4,Q27,(Q27-SUM(SMALL(R27:Y27,{1;2;3;4})))) -> 83 | F27: =(IF(AC27=5,1,0)+IF(AH27=5,1,0)+IF(AM27=5,1,0)+IF(AR27=5,1,0)+IF(AW27=5,1,0)+IF(BB27=5,1,0)+IF(BG27=5,1,0)+IF(BL27=5,1,0)) -> 6 | H27: =IF(AA27="","",AA27) -> 18 | I27: =IF(AF27="","",AF27) -> 16 | J27: =IF(AK27="","",AK27) -> 24 | K27: =IF(AP27="","",AP27) -> 20 | L27: =IF(AU27="","",AU27) -> 26 | M27: =IF(AZ27="","",AZ27) ->  | N27: =IF(BE27="","",BE27) -> 17 | O27: =IF(BJ27="","",BJ27) ->  | Q27: =AD27+AI27+AN27+AS27+AX27+BC27+BH27 -> 95 | R27: =IF($F27>=5,IF(AB27="","",AB27),"") -> 13 | S27: =IF($F27>=5,IF(AG27="","",AG27),"") -> 15 | T27: =IF($F27>=5,IF(AL27="","",AL27),"") -> 7 | U27: =IF($F27>=5,IF(AQ27="","",AQ27),"") -> 11 | V27: =IF($F27>=5,IF(AV27="","",AV27),"") -> 5 | W27: =IF($F27>=5,IF(BA27="","",BA27),"") -> 0 | X27: =IF($F27>=5,IF(BF27="","",BF27),"") -> 14 | Y27: =IF($F27>=5,IF(BK27="","",BK27),"") -> 0 | AA27: 18 | AB27: =IF(ISNUMBER(AA27),(VLOOKUP(AA27,$BO$6:$BP$50,2)),0) -> 13 | AC27: =IF(AA27<>"",5,0) -> 5 | AD27: =AB27+AC27 -> 18 | AF27: 16 | AG27: =IF(ISNUMBER(AF27),(VLOOKUP(AF27,$BO$6:$BP$50,2)),0) -> 15 | AH27: =IF(AF27<>"",5,0) -> 5 | AI27: =AG27+AH27 -> 20 | AK27: 24 | AL27: =IF(ISNUMBER(AK27),(VLOOKUP(AK27,$BO$6:$BP$50,2)),0) -> 7 | AM27: =IF(AK27<>"",5,0) -> 5 | AN27: =AL27+AM27 -> 12 | AP27: 20 | AQ27: =IF(ISNUMBER(AP27),(VLOOKUP(AP27,$BO$6:$BP$50,2)),0) -> 11 | AR27: =IF(AP27<>"",5,0) -> 5 | AS27: =AQ27+AR27 -> 16 | AU27: 26 | AV27: =IF(ISNUMBER(AU27),(VLOOKUP(AU27,$BO$6:$BP$50,2)),0) -> 5 | AW27: =IF(AU27<>"",5,0) -> 5 | AX27: =AV27+AW27 -> 10 | BA27: =IF(ISNUMBER(AZ27),(VLOOKUP(AZ27,$BO$6:$BP$50,2)),0) -> 0 | BB27: =IF(AZ27<>"",5,0) -> 0 | BC27: =BA27+BB27 -> 0 | BE27: 17 | BF27: =IF(ISNUMBER(BE27),(VLOOKUP(BE27,$BO$6:$BP$50,2)),0) -> 14 | BG27: =IF(BE27<>"",5,0) -> 5 | BH27: =BF27+BG27 -> 19 | BK27: =IF(ISNUMBER(BJ27),(VLOOKUP(BJ27,$BO$6:$BP$50,2)),0) -> 0 | BL27: =IF(BJ27<>"",5,0) -> 0 | BM27: =BK27+BL27 -> 0 | BO27: 22 | BP27: 9 | BQ27: 0 | BR27: 0 | BS27: 0 | BT27: 0 | BU27: 0 | BV27: 1 | BW27: 0 | BX27: 0
A28: =IF(E28<E27,BO28,A27) -> 23 | B28: Brandi | C28: Philippa | D28: Ready | E28: =IF(F28<=4,Q28,(Q28-SUM(SMALL(R28:Y28,{1;2;3;4})))) -> 76 | F28: =(IF(AC28=5,1,0)+IF(AH28=5,1,0)+IF(AM28=5,1,0)+IF(AR28=5,1,0)+IF(AW28=5,1,0)+IF(BB28=5,1,0)+IF(BG28=5,1,0)+IF(BL28=5,1,0)) -> 5 | H28: =IF(AA28="","",AA28) ->  | I28: =IF(AF28="","",AF28) ->  | J28: =IF(AK28="","",AK28) -> 15 | K28: =IF(AP28="","",AP28) -> 21 | L28: =IF(AU28="","",AU28) -> 22 | M28: =IF(AZ28="","",AZ28) -> dsq | N28: =IF(BE28="","",BE28) -> 15 | O28: =IF(BJ28="","",BJ28) ->  | Q28: =AD28+AI28+AN28+AS28+AX28+BC28+BH28 -> 76 | R28: =IF($F28>=5,IF(AB28="","",AB28),"") -> 0 | S28: =IF($F28>=5,IF(AG28="","",AG28),"") -> 0 | T28: =IF($F28>=5,IF(AL28="","",AL28),"") -> 16 | U28: =IF($F28>=5,IF(AQ28="","",AQ28),"") -> 10 | V28: =IF($F28>=5,IF(AV28="","",AV28),"") -> 9 | W28: =IF($F28>=5,IF(BA28="","",BA28),"") -> 0 | X28: =IF($F28>=5,IF(BF28="","",BF28),"") -> 16 | Y28: =IF($F28>=5,IF(BK28="","",BK28),"") -> 0 | AB28: =IF(ISNUMBER(AA28),(VLOOKUP(AA28,$BO$6:$BP$50,2)),0) -> 0 | AC28: =IF(AA28<>"",5,0) -> 0 | AD28: =AB28+AC28 -> 0 | AG28: =IF(ISNUMBER(AF28),(VLOOKUP(AF28,$BO$6:$BP$50,2)),0) -> 0 | AH28: =IF(AF28<>"",5,0) -> 0 | AI28: =AG28+AH28 -> 0 | AK28: 15 | AL28: =IF(ISNUMBER(AK28),(VLOOKUP(AK28,$BO$6:$BP$50,2)),0) -> 16 | AM28: =IF(AK28<>"",5,0) -> 5 | AN28: =AL28+AM28 -> 21 | AP28: 21 | AQ28: =IF(ISNUMBER(AP28),(VLOOKUP(AP28,$BO$6:$BP$50,2)),0) -> 10 | AR28: =IF(AP28<>"",5,0) -> 5 | AS28: =AQ28+AR28 -> 15 | AU28: 22 | AV28: =IF(ISNUMBER(AU28),(VLOOKUP(AU28,$BO$6:$BP$50,2)),0) -> 9 | AW28: =IF(AU28<>"",5,0) -> 5 | AX28: =AV28+AW28 -> 14 | AZ28: dsq | BA28: =IF(ISNUMBER(AZ28),(VLOOKUP(AZ28,$BO$6:$BP$50,2)),0) -> 0 | BB28: =IF(AZ28<>"",5,0) -> 5 | BC28: =BA28+BB28 -> 5 | BE28: 15 | BF28: =IF(ISNUMBER(BE28),(VLOOKUP(BE28,$BO$6:$BP$50,2)),0) -> 16 | BG28: =IF(BE28<>"",5,0) -> 5 | BH28: =BF28+BG28 -> 21 | BK28: =IF(ISNUMBER(BJ28),(VLOOKUP(BJ28,$BO$6:$BP$50,2)),0) -> 0 | BL28: =IF(BJ28<>"",5,0) -> 0 | BM28: =BK28+BL28 -> 0 | BO28: 23 | BP28: 8 | BQ28: 0 | BR28: =IF($F23=7,1,0) -> 0 | BS28: =IF($F23=6,1,0) -> 0 | BT28: =IF($F23=5,1,0) -> 0 | BU28: =IF($F23=4,1,0) -> 1 | BV28: =IF($F23=3,1,0) -> 0 | BW28: =IF($F23=2,1,0) -> 0 | BX28: =IF($F23=1,1,0) -> 0
A29: =IF(E29<E28,BO29,A28) -> 24 | B29: Dynna | C29: Nathalie Østnes | D29: IRS | E29: =IF(F29<=4,Q29,(Q29-SUM(SMALL(R29:Y29,{1;2;3;4})))) -> 71 | F29: =(IF(AC29=5,1,0)+IF(AH29=5,1,0)+IF(AM29=5,1,0)+IF(AR29=5,1,0)+IF(AW29=5,1,0)+IF(BB29=5,1,0)+IF(BG29=5,1,0)+IF(BL29=5,1,0)) -> 4 | H29: =IF(AA29="","",AA29) -> 11 | I29: =IF(AF29="","",AF29) -> dsq | J29: =IF(AK29="","",AK29) ->  | K29: =IF(AP29="","",AP29) -> 16 | L29: =IF(AU29="","",AU29) -> 19 | M29: =IF(AZ29="","",AZ29) ->  | N29: =IF(BE29="","",BE29) ->  | O29: =IF(BJ29="","",BJ29) ->  | Q29: =AD29+AI29+AN29+AS29+AX29+BC29+BH29 -> 71 | R29: =IF($F29>=5,IF(AB29="","",AB29),"") ->  | S29: =IF($F29>=5,IF(AG29="","",AG29),"") ->  | T29: =IF($F29>=5,IF(AL29="","",AL29),"") ->  | U29: =IF($F29>=5,IF(AQ29="","",AQ29),"") ->  | V29: =IF($F29>=5,IF(AV29="","",AV29),"") ->  | W29: =IF($F29>=5,IF(BA29="","",BA29),"") ->  | X29: =IF($F29>=5,IF(BF29="","",BF29),"") ->  | Y29: =IF($F29>=5,IF(BK29="","",BK29),"") ->  | AA29: 11 | AB29: =IF(ISNUMBER(AA29),(VLOOKUP(AA29,$BO$6:$BP$50,2)),0) -> 24 | AC29: =IF(AA29<>"",5,0) -> 5 | AD29: =AB29+AC29 -> 29 | AF29: dsq | AG29: =IF(ISNUMBER(AF29),(VLOOKUP(AF29,$BO$6:$BP$50,2)),0) -> 0 | AH29: =IF(AF29<>"",5,0) -> 5 | AI29: =AG29+AH29 -> 5 | AL29: =IF(ISNUMBER(AK29),(VLOOKUP(AK29,$BO$6:$BP$50,2)),0) -> 0 | AM29: =IF(AK29<>"",5,0) -> 0 | AN29: =AL29+AM29 -> 0 | AP29: 16 | AQ29: =IF(ISNUMBER(AP29),(VLOOKUP(AP29,$BO$6:$BP$50,2)),0) -> 15 | AR29: =IF(AP29<>"",5,0) -> 5 | AS29: =AQ29+AR29 -> 20 | AU29: 19 | AV29: =IF(ISNUMBER(AU29),(VLOOKUP(AU29,$BO$6:$BP$50,2)),0) -> 12 | AW29: =IF(AU29<>"",5,0) -> 5 | AX29: =AV29+AW29 -> 17 | BA29: =IF(ISNUMBER(AZ29),(VLOOKUP(AZ29,$BO$6:$BP$50,2)),0) -> 0 | BB29: =IF(AZ29<>"",5,0) -> 0 | BC29: =BA29+BB29 -> 0 | BF29: =IF(ISNUMBER(BE29),(VLOOKUP(BE29,$BO$6:$BP$50,2)),0) -> 0 | BG29: =IF(BE29<>"",5,0) -> 0 | BH29: =BF29+BG29 -> 0 | BK29: =IF(ISNUMBER(BJ29),(VLOOKUP(BJ29,$BO$6:$BP$50,2)),0) -> 0 | BL29: =IF(BJ29<>"",5,0) -> 0 | BM29: =BK29+BL29 -> 0 | BO29: 24 | BP29: 7 | BQ29: 0 | BR29: =IF($F24=7,1,0) -> 0 | BS29: =IF($F24=6,1,0) -> 0 | BT29: =IF($F24=5,1,0) -> 0 | BU29: =IF($F24=4,1,0) -> 1 | BV29: =IF($F24=3,1,0) -> 0 | BW29: =IF($F24=2,1,0) -> 0 | BX29: =IF($F24=1,1,0) -> 0
A30: =IF(E30<E29,BO30,A29) -> 24 | B30: Hystad | C30: Fanny | D30: HSIL | E30: =IF(F30<=4,Q30,(Q30-SUM(SMALL(R30:Y30,{1;2;3;4})))) -> 71 | F30: =(IF(AC30=5,1,0)+IF(AH30=5,1,0)+IF(AM30=5,1,0)+IF(AR30=5,1,0)+IF(AW30=5,1,0)+IF(BB30=5,1,0)+IF(BG30=5,1,0)+IF(BL30=5,1,0)) -> 3 | H30: =IF(AA30="","",AA30) ->  | I30: =IF(AF30="","",AF30) ->  | J30: =IF(AK30="","",AK30) -> 21 | K30: =IF(AP30="","",AP30) ->  | L30: =IF(AU30="","",AU30) ->  | M30: =IF(AZ30="","",AZ30) -> 12 | N30: =IF(BE30="","",BE30) -> 11 | O30: =IF(BJ30="","",BJ30) ->  | Q30: =AD30+AI30+AN30+AS30+AX30+BC30+BH30 -> 71 | R30: =IF($F30>=5,IF(AB30="","",AB30),"") ->  | S30: =IF($F30>=5,IF(AG30="","",AG30),"") ->  | T30: =IF($F30>=5,IF(AL30="","",AL30),"") ->  | U30: =IF($F30>=5,IF(AQ30="","",AQ30),"") ->  | V30: =IF($F30>=5,IF(AV30="","",AV30),"") ->  | W30: =IF($F30>=5,IF(BA30="","",BA30),"") ->  | X30: =IF($F30>=5,IF(BF30="","",BF30),"") ->  | Y30: =IF($F30>=5,IF(BK30="","",BK30),"") ->  | AB30: =IF(ISNUMBER(AA30),(VLOOKUP(AA30,$BO$6:$BP$50,2)),0) -> 0 | AC30: =IF(AA30<>"",5,0) -> 0 | AD30: =AB30+AC30 -> 0 | AG30: =IF(ISNUMBER(AF30),(VLOOKUP(AF30,$BO$6:$BP$50,2)),0) -> 0 | AH30: =IF(AF30<>"",5,0) -> 0 | AI30: =AG30+AH30 -> 0 | AK30: 21 | AL30: =IF(ISNUMBER(AK30),(VLOOKUP(AK30,$BO$6:$BP$50,2)),0) -> 10 | AM30: =IF(AK30<>"",5,0) -> 5 | AN30: =AL30+AM30 -> 15 | AQ30: =IF(ISNUMBER(AP30),(VLOOKUP(AP30,$BO$6:$BP$50,2)),0) -> 0 | AR30: =IF(AP30<>"",5,0) -> 0 | AS30: =AQ30+AR30 -> 0 | AV30: =IF(ISNUMBER(AU30),(VLOOKUP(AU30,$BO$6:$BP$50,2)),0) -> 0 | AW30: =IF(AU30<>"",5,0) -> 0 | AX30: =AV30+AW30 -> 0 | AZ30: 12 | BA30: =IF(ISNUMBER(AZ30),(VLOOKUP(AZ30,$BO$6:$BP$50,2)),0) -> 22 | BB30: =IF(AZ30<>"",5,0) -> 5 | BC30: =BA30+BB30 -> 27 | BE30: 11 | BF30: =IF(ISNUMBER(BE30),(VLOOKUP(BE30,$BO$6:$BP$50,2)),0) -> 24 | BG30: =IF(BE30<>"",5,0) -> 5 | BH30: =BF30+BG30 -> 29 | BK30: =IF(ISNUMBER(BJ30),(VLOOKUP(BJ30,$BO$6:$BP$50,2)),0) -> 0 | BL30: =IF(BJ30<>"",5,0) -> 0 | BM30: =BK30+BL30 -> 0 | BO30: 25 | BP30: 6 | BQ30: 0 | BR30: =IF($F25=7,1,0) -> 0 | BS30: =IF($F25=6,1,0) -> 0 | BT30: =IF($F25=5,1,0) -> 0 | BU30: =IF($F25=4,1,0) -> 0 | BV30: =IF($F25=3,1,0) -> 1 | BW30: =IF($F25=2,1,0) -> 0 | BX30: =IF($F25=1,1,0) -> 0
A31: =IF(E31<E30,BO31,A30) -> 26 | B31: Hurlen | C31: Hermine Erichsen | D31: Njård | E31: =IF(F31<=4,Q31,(Q31-SUM(SMALL(R31:Y31,{1;2;3;4})))) -> 65 | F31: =(IF(AC31=5,1,0)+IF(AH31=5,1,0)+IF(AM31=5,1,0)+IF(AR31=5,1,0)+IF(AW31=5,1,0)+IF(BB31=5,1,0)+IF(BG31=5,1,0)+IF(BL31=5,1,0)) -> 5 | H31: =IF(AA31="","",AA31) ->  | I31: =IF(AF31="","",AF31) ->  | J31: =IF(AK31="","",AK31) -> 26 | K31: =IF(AP31="","",AP31) -> 22 | L31: =IF(AU31="","",AU31) -> 28 | M31: =IF(AZ31="","",AZ31) -> 16 | N31: =IF(BE31="","",BE31) -> 20 | O31: =IF(BJ31="","",BJ31) ->  | Q31: =AD31+AI31+AN31+AS31+AX31+BC31+BH31 -> 68 | R31: =IF($F31>=5,IF(AB31="","",AB31),"") -> 0 | S31: =IF($F31>=5,IF(AG31="","",AG31),"") -> 0 | T31: =IF($F31>=5,IF(AL31="","",AL31),"") -> 5 | U31: =IF($F31>=5,IF(AQ31="","",AQ31),"") -> 9 | V31: =IF($F31>=5,IF(AV31="","",AV31),"") -> 3 | W31: =IF($F31>=5,IF(BA31="","",BA31),"") -> 15 | X31: =IF($F31>=5,IF(BF31="","",BF31),"") -> 11 | Y31: =IF($F31>=5,IF(BK31="","",BK31),"") -> 0 | AB31: =IF(ISNUMBER(AA31),(VLOOKUP(AA31,$BO$6:$BP$50,2)),0) -> 0 | AC31: =IF(AA31<>"",5,0) -> 0 | AD31: =AB31+AC31 -> 0 | AG31: =IF(ISNUMBER(AF31),(VLOOKUP(AF31,$BO$6:$BP$50,2)),0) -> 0 | AH31: =IF(AF31<>"",5,0) -> 0 | AI31: =AG31+AH31 -> 0 | AK31: 26 | AL31: =IF(ISNUMBER(AK31),(VLOOKUP(AK31,$BO$6:$BP$50,2)),0) -> 5 | AM31: =IF(AK31<>"",5,0) -> 5 | AN31: =AL31+AM31 -> 10 | AP31: 22 | AQ31: =IF(ISNUMBER(AP31),(VLOOKUP(AP31,$BO$6:$BP$50,2)),0) -> 9 | AR31: =IF(AP31<>"",5,0) -> 5 | AS31: =AQ31+AR31 -> 14 | AU31: 28 | AV31: =IF(ISNUMBER(AU31),(VLOOKUP(AU31,$BO$6:$BP$50,2)),0) -> 3 | AW31: =IF(AU31<>"",5,0) -> 5 | AX31: =AV31+AW31 -> 8 | AZ31: 16 | BA31: =IF(ISNUMBER(AZ31),(VLOOKUP(AZ31,$BO$6:$BP$50,2)),0) -> 15 | BB31: =IF(AZ31<>"",5,0) -> 5 | BC31: =BA31+BB31 -> 20 | BE31: 20 | BF31: =IF(ISNUMBER(BE31),(VLOOKUP(BE31,$BO$6:$BP$50,2)),0) -> 11 | BG31: =IF(BE31<>"",5,0) -> 5 | BH31: =BF31+BG31 -> 16 | BK31: =IF(ISNUMBER(BJ31),(VLOOKUP(BJ31,$BO$6:$BP$50,2)),0) -> 0 | BL31: =IF(BJ31<>"",5,0) -> 0 | BM31: =BK31+BL31 -> 0 | BO31: 26 | BP31: 5 | BQ31: 0 | BR31: =IF($F25=7,1,0) -> 0 | BS31: =IF($F25=6,1,0) -> 0 | BT31: =IF($F25=5,1,0) -> 0 | BU31: =IF($F25=4,1,0) -> 0 | BV31: =IF($F25=3,1,0) -> 1 | BW31: =IF($F25=2,1,0) -> 0 | BX31: =IF($F25=1,1,0) -> 0
A32: =IF(E32<E31,BO32,A31) -> 27 | B32: Rustad | C32: PetronellaG | D32: Njård | E32: =IF(F32<=4,Q32,(Q32-SUM(SMALL(R32:Y32,{1;2;3;4})))) -> 64 | F32: =(IF(AC32=5,1,0)+IF(AH32=5,1,0)+IF(AM32=5,1,0)+IF(AR32=5,1,0)+IF(AW32=5,1,0)+IF(BB32=5,1,0)+IF(BG32=5,1,0)+IF(BL32=5,1,0)) -> 4 | H32: =IF(AA32="","",AA32) -> 17 | I32: =IF(AF32="","",AF32) ->  | J32: =IF(AK32="","",AK32) -> 19 | K32: =IF(AP32="","",AP32) -> 14 | L32: =IF(AU32="","",AU32) -> dnf | M32: =IF(AZ32="","",AZ32) ->  | N32: =IF(BE32="","",BE32) ->  | O32: =IF(BJ32="","",BJ32) ->  | Q32: =AD32+AI32+AN32+AS32+AX32+BC32+BH32 -> 64 | R32: =IF($F32>=5,IF(AB32="","",AB32),"") ->  | S32: =IF($F32>=5,IF(AG32="","",AG32),"") ->  | T32: =IF($F32>=5,IF(AL32="","",AL32),"") ->  | U32: =IF($F32>=5,IF(AQ32="","",AQ32),"") ->  | V32: =IF($F32>=5,IF(AV32="","",AV32),"") ->  | W32: =IF($F32>=5,IF(BA32="","",BA32),"") ->  | X32: =IF($F32>=5,IF(BF32="","",BF32),"") ->  | Y32: =IF($F32>=5,IF(BK32="","",BK32),"") ->  | AA32: 17 | AB32: =IF(ISNUMBER(AA32),(VLOOKUP(AA32,$BO$6:$BP$50,2)),0) -> 14 | AC32: =IF(AA32<>"",5,0) -> 5 | AD32: =AB32+AC32 -> 19 | AG32: =IF(ISNUMBER(AF32),(VLOOKUP(AF32,$BO$6:$BP$50,2)),0) -> 0 | AH32: =IF(AF32<>"",5,0) -> 0 | AI32: =AG32+AH32 -> 0 | AK32: 19 | AL32: =IF(ISNUMBER(AK32),(VLOOKUP(AK32,$BO$6:$BP$50,2)),0) -> 12 | AM32: =IF(AK32<>"",5,0) -> 5 | AN32: =AL32+AM32 -> 17 | AP32: 14 | AQ32: =IF(ISNUMBER(AP32),(VLOOKUP(AP32,$BO$6:$BP$50,2)),0) -> 18 | AR32: =IF(AP32<>"",5,0) -> 5 | AS32: =AQ32+AR32 -> 23 | AU32: dnf | AV32: =IF(ISNUMBER(AU32),(VLOOKUP(AU32,$BO$6:$BP$50,2)),0) -> 0 | AW32: =IF(AU32<>"",5,0) -> 5 | AX32: =AV32+AW32 -> 5 | BA32: =IF(ISNUMBER(AZ32),(VLOOKUP(AZ32,$BO$6:$BP$50,2)),0) -> 0 | BB32: =IF(AZ32<>"",5,0) -> 0 | BC32: =BA32+BB32 -> 0 | BF32: =IF(ISNUMBER(BE32),(VLOOKUP(BE32,$BO$6:$BP$50,2)),0) -> 0 | BG32: =IF(BE32<>"",5,0) -> 0 | BH32: =BF32+BG32 -> 0 | BK32: =IF(ISNUMBER(BJ32),(VLOOKUP(BJ32,$BO$6:$BP$50,2)),0) -> 0 | BL32: =IF(BJ32<>"",5,0) -> 0 | BM32: =BK32+BL32 -> 0 | BO32: 27 | BP32: 4 | BQ32: 0 | BR32: =IF($F26=7,1,0) -> 0 | BS32: =IF($F26=6,1,0) -> 0 | BT32: =IF($F26=5,1,0) -> 0 | BU32: =IF($F26=4,1,0) -> 0 | BV32: =IF($F26=3,1,0) -> 0 | BW32: =IF($F26=2,1,0) -> 0 | BX32: =IF($F26=1,1,0) -> 1
A33: =IF(E33<E32,BO33,A32) -> 28 | B33: Swenson | C33: Lily Aster Larsdatter | D33: Ljan | E33: =IF(F33<=4,Q33,(Q33-SUM(SMALL(R33:Y33,{1;2;3;4})))) -> 63 | F33: =(IF(AC33=5,1,0)+IF(AH33=5,1,0)+IF(AM33=5,1,0)+IF(AR33=5,1,0)+IF(AW33=5,1,0)+IF(BB33=5,1,0)+IF(BG33=5,1,0)+IF(BL33=5,1,0)) -> 4 | H33: =IF(AA33="","",AA33) -> dsq | I33: =IF(AF33="","",AF33) -> 13 | J33: =IF(AK33="","",AK33) ->  | K33: =IF(AP33="","",AP33) -> 15 | L33: =IF(AU33="","",AU33) -> 24 | M33: =IF(AZ33="","",AZ33) ->  | N33: =IF(BE33="","",BE33) ->  | O33: =IF(BJ33="","",BJ33) ->  | Q33: =AD33+AI33+AN33+AS33+AX33+BC33+BH33 -> 63 | R33: =IF($F33>=5,IF(AB33="","",AB33),"") ->  | S33: =IF($F33>=5,IF(AG33="","",AG33),"") ->  | T33: =IF($F33>=5,IF(AL33="","",AL33),"") ->  | U33: =IF($F33>=5,IF(AQ33="","",AQ33),"") ->  | V33: =IF($F33>=5,IF(AV33="","",AV33),"") ->  | W33: =IF($F33>=5,IF(BA33="","",BA33),"") ->  | X33: =IF($F33>=5,IF(BF33="","",BF33),"") ->  | Y33: =IF($F33>=5,IF(BK33="","",BK33),"") ->  | AA33: dsq | AB33: =IF(ISNUMBER(AA33),(VLOOKUP(AA33,$BO$6:$BP$50,2)),0) -> 0 | AC33: =IF(AA33<>"",5,0) -> 5 | AD33: =AB33+AC33 -> 5 | AF33: 13 | AG33: =IF(ISNUMBER(AF33),(VLOOKUP(AF33,$BO$6:$BP$50,2)),0) -> 20 | AH33: =IF(AF33<>"",5,0) -> 5 | AI33: =AG33+AH33 -> 25 | AL33: =IF(ISNUMBER(AK33),(VLOOKUP(AK33,$BO$6:$BP$50,2)),0) -> 0 | AM33: =IF(AK33<>"",5,0) -> 0 | AN33: =AL33+AM33 -> 0 | AP33: 15 | AQ33: =IF(ISNUMBER(AP33),(VLOOKUP(AP33,$BO$6:$BP$50,2)),0) -> 16 | AR33: =IF(AP33<>"",5,0) -> 5 | AS33: =AQ33+AR33 -> 21 | AU33: 24 | AV33: =IF(ISNUMBER(AU33),(VLOOKUP(AU33,$BO$6:$BP$50,2)),0) -> 7 | AW33: =IF(AU33<>"",5,0) -> 5 | AX33: =AV33+AW33 -> 12 | BA33: =IF(ISNUMBER(AZ33),(VLOOKUP(AZ33,$BO$6:$BP$50,2)),0) -> 0 | BB33: =IF(AZ33<>"",5,0) -> 0 | BC33: =BA33+BB33 -> 0 | BF33: =IF(ISNUMBER(BE33),(VLOOKUP(BE33,$BO$6:$BP$50,2)),0) -> 0 | BG33: =IF(BE33<>"",5,0) -> 0 | BH33: =BF33+BG33 -> 0 | BK33: =IF(ISNUMBER(BJ33),(VLOOKUP(BJ33,$BO$6:$BP$50,2)),0) -> 0 | BL33: =IF(BJ33<>"",5,0) -> 0 | BM33: =BK33+BL33 -> 0 | BO33: 28 | BP33: 3 | BQ33: 0 | BR33: 0 | BS33: 1 | BT33: 0 | BU33: 0 | BV33: 0 | BW33: 0 | BX33: 0
A34: =IF(E34<E33,BO34,A33) -> 29 | B34: Talen | C34: Henriette Young | D34: Heming | E34: =IF(F34<=4,Q34,(Q34-SUM(SMALL(R34:Y34,{1;2;3;4})))) -> 62 | F34: =(IF(AC34=5,1,0)+IF(AH34=5,1,0)+IF(AM34=5,1,0)+IF(AR34=5,1,0)+IF(AW34=5,1,0)+IF(BB34=5,1,0)+IF(BG34=5,1,0)+IF(BL34=5,1,0)) -> 3 | H34: =IF(AA34="","",AA34) -> 16 | I34: =IF(AF34="","",AF34) -> 12 | J34: =IF(AK34="","",AK34) ->  | K34: =IF(AP34="","",AP34) ->  | L34: =IF(AU34="","",AU34) -> 21 | M34: =IF(AZ34="","",AZ34) ->  | N34: =IF(BE34="","",BE34) ->  | O34: =IF(BJ34="","",BJ34) ->  | Q34: =AD34+AI34+AN34+AS34+AX34+BC34+BH34 -> 62 | R34: =IF($F34>=5,IF(AB34="","",AB34),"") ->  | S34: =IF($F34>=5,IF(AG34="","",AG34),"") ->  | T34: =IF($F34>=5,IF(AL34="","",AL34),"") ->  | U34: =IF($F34>=5,IF(AQ34="","",AQ34),"") ->  | V34: =IF($F34>=5,IF(AV34="","",AV34),"") ->  | W34: =IF($F34>=5,IF(BA34="","",BA34),"") ->  | X34: =IF($F34>=5,IF(BF34="","",BF34),"") ->  | Y34: =IF($F34>=5,IF(BK34="","",BK34),"") ->  | AA34: 16 | AB34: =IF(ISNUMBER(AA34),(VLOOKUP(AA34,$BO$6:$BP$50,2)),0) -> 15 | AC34: =IF(AA34<>"",5,0) -> 5 | AD34: =AB34+AC34 -> 20 | AF34: 12 | AG34: =IF(ISNUMBER(AF34),(VLOOKUP(AF34,$BO$6:$BP$50,2)),0) -> 22 | AH34: =IF(AF34<>"",5,0) -> 5 | AI34: =AG34+AH34 -> 27 | AL34: =IF(ISNUMBER(AK34),(VLOOKUP(AK34,$BO$6:$BP$50,2)),0) -> 0 | AM34: =IF(AK34<>"",5,0) -> 0 | AN34: =AL34+AM34 -> 0 | AQ34: =IF(ISNUMBER(AP34),(VLOOKUP(AP34,$BO$6:$BP$50,2)),0) -> 0 | AR34: =IF(AP34<>"",5,0) -> 0 | AS34: =AQ34+AR34 -> 0 | AU34: 21 | AV34: =IF(ISNUMBER(AU34),(VLOOKUP(AU34,$BO$6:$BP$50,2)),0) -> 10 | AW34: =IF(AU34<>"",5,0) -> 5 | AX34: =AV34+AW34 -> 15 | BA34: =IF(ISNUMBER(AZ34),(VLOOKUP(AZ34,$BO$6:$BP$50,2)),0) -> 0 | BB34: =IF(AZ34<>"",5,0) -> 0 | BC34: =BA34+BB34 -> 0 | BF34: =IF(ISNUMBER(BE34),(VLOOKUP(BE34,$BO$6:$BP$50,2)),0) -> 0 | BG34: =IF(BE34<>"",5,0) -> 0 | BH34: =BF34+BG34 -> 0 | BK34: =IF(ISNUMBER(BJ34),(VLOOKUP(BJ34,$BO$6:$BP$50,2)),0) -> 0 | BL34: =IF(BJ34<>"",5,0) -> 0 | BM34: =BK34+BL34 -> 0 | BO34: 29 | BP34: 2 | BQ34: 0 | BR34: 0 | BS34: 0 | BT34: 1 | BU34: 0 | BV34: 0 | BW34: 0 | BX34: 0
A35: =IF(E35<E34,BO35,A34) -> 30 | B35: Botten | C35: Maren Stavseng | D35: Rælingen | E35: =IF(F35<=4,Q35,(Q35-SUM(SMALL(R35:Y35,{1;2;3;4})))) -> 60 | F35: =(IF(AC35=5,1,0)+IF(AH35=5,1,0)+IF(AM35=5,1,0)+IF(AR35=5,1,0)+IF(AW35=5,1,0)+IF(BB35=5,1,0)+IF(BG35=5,1,0)+IF(BL35=5,1,0)) -> 2 | H35: =IF(AA35="","",AA35) ->  | I35: =IF(AF35="","",AF35) ->  | J35: =IF(AK35="","",AK35) ->  | K35: =IF(AP35="","",AP35) ->  | L35: =IF(AU35="","",AU35) -> 11 | M35: =IF(AZ35="","",AZ35) -> 10 | N35: =IF(BE35="","",BE35) ->  | O35: =IF(BJ35="","",BJ35) ->  | Q35: =AD35+AI35+AN35+AS35+AX35+BC35+BH35 -> 60 | R35: =IF($F35>=5,IF(AB35="","",AB35),"") ->  | S35: =IF($F35>=5,IF(AG35="","",AG35),"") ->  | T35: =IF($F35>=5,IF(AL35="","",AL35),"") ->  | U35: =IF($F35>=5,IF(AQ35="","",AQ35),"") ->  | V35: =IF($F35>=5,IF(AV35="","",AV35),"") ->  | W35: =IF($F35>=5,IF(BA35="","",BA35),"") ->  | X35: =IF($F35>=5,IF(BF35="","",BF35),"") ->  | Y35: =IF($F35>=5,IF(BK35="","",BK35),"") ->  | AB35: =IF(ISNUMBER(AA35),(VLOOKUP(AA35,$BO$6:$BP$50,2)),0) -> 0 | AC35: =IF(AA35<>"",5,0) -> 0 | AD35: =AB35+AC35 -> 0 | AG35: =IF(ISNUMBER(AF35),(VLOOKUP(AF35,$BO$6:$BP$50,2)),0) -> 0 | AH35: =IF(AF35<>"",5,0) -> 0 | AI35: =AG35+AH35 -> 0 | AL35: =IF(ISNUMBER(AK35),(VLOOKUP(AK35,$BO$6:$BP$50,2)),0) -> 0 | AM35: =IF(AK35<>"",5,0) -> 0 | AN35: =AL35+AM35 -> 0 | AQ35: =IF(ISNUMBER(AP35),(VLOOKUP(AP35,$BO$6:$BP$50,2)),0) -> 0 | AR35: =IF(AP35<>"",5,0) -> 0 | AS35: =AQ35+AR35 -> 0 | AU35: 11 | AV35: =IF(ISNUMBER(AU35),(VLOOKUP(AU35,$BO$6:$BP$50,2)),0) -> 24 | AW35: =IF(AU35<>"",5,0) -> 5 | AX35: =AV35+AW35 -> 29 | AZ35: 10 | BA35: =IF(ISNUMBER(AZ35),(VLOOKUP(AZ35,$BO$6:$BP$50,2)),0) -> 26 | BB35: =IF(AZ35<>"",5,0) -> 5 | BC35: =BA35+BB35 -> 31 | BF35: =IF(ISNUMBER(BE35),(VLOOKUP(BE35,$BO$6:$BP$50,2)),0) -> 0 | BG35: =IF(BE35<>"",5,0) -> 0 | BH35: =BF35+BG35 -> 0 | BK35: =IF(ISNUMBER(BJ35),(VLOOKUP(BJ35,$BO$6:$BP$50,2)),0) -> 0 | BL35: =IF(BJ35<>"",5,0) -> 0 | BM35: =BK35+BL35 -> 0 | BO35: 30 | BP35: 1 | BQ35: 0 | BR35: =IF($F26=7,1,0) -> 0 | BS35: =IF($F26=6,1,0) -> 0 | BT35: =IF($F26=5,1,0) -> 0 | BU35: =IF($F26=4,1,0) -> 0 | BV35: =IF($F26=3,1,0) -> 0 | BW35: =IF($F26=2,1,0) -> 0 | BX35: =IF($F26=1,1,0) -> 1
A36: =IF(E36<E35,BO36,A35) -> 31 | B36: Moen | C36: Magda | D36: Kjelsås | E36: =IF(F36<=4,Q36,(Q36-SUM(SMALL(R36:Y36,{1;2;3;4})))) -> 59 | F36: =(IF(AC36=5,1,0)+IF(AH36=5,1,0)+IF(AM36=5,1,0)+IF(AR36=5,1,0)+IF(AW36=5,1,0)+IF(BB36=5,1,0)+IF(BG36=5,1,0)+IF(BL36=5,1,0)) -> 4 | H36: =IF(AA36="","",AA36) ->  | I36: =IF(AF36="","",AF36) -> dsq | J36: =IF(AK36="","",AK36) -> 16 | K36: =IF(AP36="","",AP36) -> 11 | L36: =IF(AU36="","",AU36) ->  | M36: =IF(AZ36="","",AZ36) ->  | N36: =IF(BE36="","",BE36) -> dsq | O36: =IF(BJ36="","",BJ36) ->  | Q36: =AD36+AI36+AN36+AS36+AX36+BC36+BH36 -> 59 | R36: =IF($F36>=5,IF(AB36="","",AB36),"") ->  | S36: =IF($F36>=5,IF(AG36="","",AG36),"") ->  | T36: =IF($F36>=5,IF(AL36="","",AL36),"") ->  | U36: =IF($F36>=5,IF(AQ36="","",AQ36),"") ->  | V36: =IF($F36>=5,IF(AV36="","",AV36),"") ->  | W36: =IF($F36>=5,IF(BA36="","",BA36),"") ->  | X36: =IF($F36>=5,IF(BF36="","",BF36),"") ->  | Y36: =IF($F36>=5,IF(BK36="","",BK36),"") ->  | AB36: =IF(ISNUMBER(AA36),(VLOOKUP(AA36,$BO$6:$BP$50,2)),0) -> 0 | AC36: =IF(AA36<>"",5,0) -> 0 | AD36: =AB36+AC36 -> 0 | AF36: dsq | AG36: =IF(ISNUMBER(AF36),(VLOOKUP(AF36,$BO$6:$BP$50,2)),0) -> 0 | AH36: =IF(AF36<>"",5,0) -> 5 | AI36: =AG36+AH36 -> 5 | AK36: 16 | AL36: =IF(ISNUMBER(AK36),(VLOOKUP(AK36,$BO$6:$BP$50,2)),0) -> 15 | AM36: =IF(AK36<>"",5,0) -> 5 | AN36: =AL36+AM36 -> 20 | AP36: 11 | AQ36: =IF(ISNUMBER(AP36),(VLOOKUP(AP36,$BO$6:$BP$50,2)),0) -> 24 | AR36: =IF(AP36<>"",5,0) -> 5 | AS36: =AQ36+AR36 -> 29 | AV36: =IF(ISNUMBER(AU36),(VLOOKUP(AU36,$BO$6:$BP$50,2)),0) -> 0 | AW36: =IF(AU36<>"",5,0) -> 0 | AX36: =AV36+AW36 -> 0 | BA36: =IF(ISNUMBER(AZ36),(VLOOKUP(AZ36,$BO$6:$BP$50,2)),0) -> 0 | BB36: =IF(AZ36<>"",5,0) -> 0 | BC36: =BA36+BB36 -> 0 | BE36: dsq | BF36: =IF(ISNUMBER(BE36),(VLOOKUP(BE36,$BO$6:$BP$50,2)),0) -> 0 | BG36: =IF(BE36<>"",5,0) -> 5 | BH36: =BF36+BG36 -> 5 | BK36: =IF(ISNUMBER(BJ36),(VLOOKUP(BJ36,$BO$6:$BP$50,2)),0) -> 0 | BL36: =IF(BJ36<>"",5,0) -> 0 | BM36: =BK36+BL36 -> 0 | BO36: 31 | BP36: 0 | BQ36: 0 | BR36: 0 | BS36: 1 | BT36: 0 | BU36: 0 | BV36: 0 | BW36: 0 | BX36: 0
A37: =IF(E37<E36,BO37,A36) -> 32 | B37: Bruseth | C37: Sienna Grande | D37: Ullensaker | E37: =IF(F37<=4,Q37,(Q37-SUM(SMALL(R37:Y37,{1;2;3;4})))) -> 57 | F37: =(IF(AC37=5,1,0)+IF(AH37=5,1,0)+IF(AM37=5,1,0)+IF(AR37=5,1,0)+IF(AW37=5,1,0)+IF(BB37=5,1,0)+IF(BG37=5,1,0)+IF(BL37=5,1,0)) -> 3 | H37: =IF(AA37="","",AA37) ->  | I37: =IF(AF37="","",AF37) ->  | J37: =IF(AK37="","",AK37) -> 13 | K37: =IF(AP37="","",AP37) ->  | L37: =IF(AU37="","",AU37) -> 29 | M37: =IF(AZ37="","",AZ37) -> 13 | N37: =IF(BE37="","",BE37) ->  | O37: =IF(BJ37="","",BJ37) ->  | Q37: =AD37+AI37+AN37+AS37+AX37+BC37+BH37 -> 57 | R37: =IF($F37>=5,IF(AB37="","",AB37),"") ->  | S37: =IF($F37>=5,IF(AG37="","",AG37),"") ->  | T37: =IF($F37>=5,IF(AL37="","",AL37),"") ->  | U37: =IF($F37>=5,IF(AQ37="","",AQ37),"") ->  | V37: =IF($F37>=5,IF(AV37="","",AV37),"") ->  | W37: =IF($F37>=5,IF(BA37="","",BA37),"") ->  | X37: =IF($F37>=5,IF(BF37="","",BF37),"") ->  | Y37: =IF($F37>=5,IF(BK37="","",BK37),"") ->  | AB37: =IF(ISNUMBER(AA37),(VLOOKUP(AA37,$BO$6:$BP$50,2)),0) -> 0 | AC37: =IF(AA37<>"",5,0) -> 0 | AD37: =AB37+AC37 -> 0 | AG37: =IF(ISNUMBER(AF37),(VLOOKUP(AF37,$BO$6:$BP$50,2)),0) -> 0 | AH37: =IF(AF37<>"",5,0) -> 0 | AI37: =AG37+AH37 -> 0 | AK37: 13 | AL37: =IF(ISNUMBER(AK37),(VLOOKUP(AK37,$BO$6:$BP$50,2)),0) -> 20 | AM37: =IF(AK37<>"",5,0) -> 5 | AN37: =AL37+AM37 -> 25 | AQ37: =IF(ISNUMBER(AP37),(VLOOKUP(AP37,$BO$6:$BP$50,2)),0) -> 0 | AR37: =IF(AP37<>"",5,0) -> 0 | AS37: =AQ37+AR37 -> 0 | AU37: 29 | AV37: =IF(ISNUMBER(AU37),(VLOOKUP(AU37,$BO$6:$BP$50,2)),0) -> 2 | AW37: =IF(AU37<>"",5,0) -> 5 | AX37: =AV37+AW37 -> 7 | AZ37: 13 | BA37: =IF(ISNUMBER(AZ37),(VLOOKUP(AZ37,$BO$6:$BP$50,2)),0) -> 20 | BB37: =IF(AZ37<>"",5,0) -> 5 | BC37: =BA37+BB37 -> 25 | BF37: =IF(ISNUMBER(BE37),(VLOOKUP(BE37,$BO$6:$BP$50,2)),0) -> 0 | BG37: =IF(BE37<>"",5,0) -> 0 | BH37: =BF37+BG37 -> 0 | BK37: =IF(ISNUMBER(BJ37),(VLOOKUP(BJ37,$BO$6:$BP$50,2)),0) -> 0 | BL37: =IF(BJ37<>"",5,0) -> 0 | BM37: =BK37+BL37 -> 0 | BO37: 32 | BP37: 0 | BQ37: 0 | BR37: 0 | BS37: 0 | BT37: 1 | BU37: 0 | BV37: 0 | BW37: 0 | BX37: 0
A38: =IF(E38<E37,BO38,A37) -> 33 | B38: Lunde | C38: Fryd | D38: Kjelsås | E38: =IF(F38<=4,Q38,(Q38-SUM(SMALL(R38:Y38,{1;2;3;4})))) -> 38 | F38: =(IF(AC38=5,1,0)+IF(AH38=5,1,0)+IF(AM38=5,1,0)+IF(AR38=5,1,0)+IF(AW38=5,1,0)+IF(BB38=5,1,0)+IF(BG38=5,1,0)+IF(BL38=5,1,0)) -> 2 | H38: =IF(AA38="","",AA38) ->  | I38: =IF(AF38="","",AF38) ->  | J38: =IF(AK38="","",AK38) ->  | K38: =IF(AP38="","",AP38) ->  | L38: =IF(AU38="","",AU38) ->  | M38: =IF(AZ38="","",AZ38) -> 15 | N38: =IF(BE38="","",BE38) -> 19 | O38: =IF(BJ38="","",BJ38) ->  | Q38: =AD38+AI38+AN38+AS38+AX38+BC38+BH38 -> 38 | R38: =IF($F38>=5,IF(AB38="","",AB38),"") ->  | S38: =IF($F38>=5,IF(AG38="","",AG38),"") ->  | T38: =IF($F38>=5,IF(AL38="","",AL38),"") ->  | U38: =IF($F38>=5,IF(AQ38="","",AQ38),"") ->  | V38: =IF($F38>=5,IF(AV38="","",AV38),"") ->  | W38: =IF($F38>=5,IF(BA38="","",BA38),"") ->  | X38: =IF($F38>=5,IF(BF38="","",BF38),"") ->  | Y38: =IF($F38>=5,IF(BK38="","",BK38),"") ->  | AB38: =IF(ISNUMBER(AA38),(VLOOKUP(AA38,$BO$6:$BP$50,2)),0) -> 0 | AC38: =IF(AA38<>"",5,0) -> 0 | AD38: =AB38+AC38 -> 0 | AG38: =IF(ISNUMBER(AF38),(VLOOKUP(AF38,$BO$6:$BP$50,2)),0) -> 0 | AH38: =IF(AF38<>"",5,0) -> 0 | AI38: =AG38+AH38 -> 0 | AL38: =IF(ISNUMBER(AK38),(VLOOKUP(AK38,$BO$6:$BP$50,2)),0) -> 0 | AM38: =IF(AK38<>"",5,0) -> 0 | AN38: =AL38+AM38 -> 0 | AQ38: =IF(ISNUMBER(AP38),(VLOOKUP(AP38,$BO$6:$BP$50,2)),0) -> 0 | AR38: =IF(AP38<>"",5,0) -> 0 | AS38: =AQ38+AR38 -> 0 | AV38: =IF(ISNUMBER(AU38),(VLOOKUP(AU38,$BO$6:$BP$50,2)),0) -> 0 | AW38: =IF(AU38<>"",5,0) -> 0 | AX38: =AV38+AW38 -> 0 | AZ38: 15 | BA38: =IF(ISNUMBER(AZ38),(VLOOKUP(AZ38,$BO$6:$BP$50,2)),0) -> 16 | BB38: =IF(AZ38<>"",5,0) -> 5 | BC38: =BA38+BB38 -> 21 | BE38: 19 | BF38: =IF(ISNUMBER(BE38),(VLOOKUP(BE38,$BO$6:$BP$50,2)),0) -> 12 | BG38: =IF(BE38<>"",5,0) -> 5 | BH38: =BF38+BG38 -> 17 | BK38: =IF(ISNUMBER(BJ38),(VLOOKUP(BJ38,$BO$6:$BP$50,2)),0) -> 0 | BL38: =IF(BJ38<>"",5,0) -> 0 | BM38: =BK38+BL38 -> 0 | BO38: 33 | BP38: 0 | BQ38: 0 | BR38: 0 | BS38: 0 | BT38: 0 | BU38: 1 | BV38: 0 | BW38: 0 | BX38: 0
A39: =IF(E39<E38,BO39,A38) -> 34 | B39: Johannessen | C39: Selma Berg | D39: Rælingen | E39: =IF(F39<=4,Q39,(Q39-SUM(SMALL(R39:Y39,{1;2;3;4})))) -> 37 | F39: =(IF(AC39=5,1,0)+IF(AH39=5,1,0)+IF(AM39=5,1,0)+IF(AR39=5,1,0)+IF(AW39=5,1,0)+IF(BB39=5,1,0)+IF(BG39=5,1,0)+IF(BL39=5,1,0)) -> 1 | H39: =IF(AA39="","",AA39) ->  | I39: =IF(AF39="","",AF39) ->  | J39: =IF(AK39="","",AK39) ->  | K39: =IF(AP39="","",AP39) ->  | L39: =IF(AU39="","",AU39) -> 8 | M39: =IF(AZ39="","",AZ39) ->  | N39: =IF(BE39="","",BE39) ->  | O39: =IF(BJ39="","",BJ39) ->  | Q39: =AD39+AI39+AN39+AS39+AX39+BC39+BH39 -> 37 | R39: =IF($F39>=5,IF(AB39="","",AB39),"") ->  | S39: =IF($F39>=5,IF(AG39="","",AG39),"") ->  | T39: =IF($F39>=5,IF(AL39="","",AL39),"") ->  | U39: =IF($F39>=5,IF(AQ39="","",AQ39),"") ->  | V39: =IF($F39>=5,IF(AV39="","",AV39),"") ->  | W39: =IF($F39>=5,IF(BA39="","",BA39),"") ->  | X39: =IF($F39>=5,IF(BF39="","",BF39),"") ->  | Y39: =IF($F39>=5,IF(BK39="","",BK39),"") ->  | AB39: =IF(ISNUMBER(AA39),(VLOOKUP(AA39,$BO$6:$BP$50,2)),0) -> 0 | AC39: =IF(AA39<>"",5,0) -> 0 | AD39: =AB39+AC39 -> 0 | AG39: =IF(ISNUMBER(AF39),(VLOOKUP(AF39,$BO$6:$BP$50,2)),0) -> 0 | AH39: =IF(AF39<>"",5,0) -> 0 | AI39: =AG39+AH39 -> 0 | AL39: =IF(ISNUMBER(AK39),(VLOOKUP(AK39,$BO$6:$BP$50,2)),0) -> 0 | AM39: =IF(AK39<>"",5,0) -> 0 | AN39: =AL39+AM39 -> 0 | AQ39: =IF(ISNUMBER(AP39),(VLOOKUP(AP39,$BO$6:$BP$50,2)),0) -> 0 | AR39: =IF(AP39<>"",5,0) -> 0 | AS39: =AQ39+AR39 -> 0 | AU39: 8 | AV39: =IF(ISNUMBER(AU39),(VLOOKUP(AU39,$BO$6:$BP$50,2)),0) -> 32 | AW39: =IF(AU39<>"",5,0) -> 5 | AX39: =AV39+AW39 -> 37 | BA39: =IF(ISNUMBER(AZ39),(VLOOKUP(AZ39,$BO$6:$BP$50,2)),0) -> 0 | BB39: =IF(AZ39<>"",5,0) -> 0 | BC39: =BA39+BB39 -> 0 | BF39: =IF(ISNUMBER(BE39),(VLOOKUP(BE39,$BO$6:$BP$50,2)),0) -> 0 | BG39: =IF(BE39<>"",5,0) -> 0 | BH39: =BF39+BG39 -> 0 | BK39: =IF(ISNUMBER(BJ39),(VLOOKUP(BJ39,$BO$6:$BP$50,2)),0) -> 0 | BL39: =IF(BJ39<>"",5,0) -> 0 | BM39: =BK39+BL39 -> 0 | BO39: 34 | BP39: 0 | BQ39: 0 | BR39: 0 | BS39: 0 | BT39: 0 | BU39: 0 | BV39: 1 | BW39: 0 | BX39: 0
A40: =IF(E40<E39,BO40,A39) -> 35 | B40: Lundberg | C40: Martine | D40: Rælingen | E40: =IF(F40<=4,Q40,(Q40-SUM(SMALL(R40:Y40,{1;2;3;4})))) -> 31 | F40: =(IF(AC40=5,1,0)+IF(AH40=5,1,0)+IF(AM40=5,1,0)+IF(AR40=5,1,0)+IF(AW40=5,1,0)+IF(BB40=5,1,0)+IF(BG40=5,1,0)+IF(BL40=5,1,0)) -> 1 | H40: =IF(AA40="","",AA40) ->  | I40: =IF(AF40="","",AF40) ->  | J40: =IF(AK40="","",AK40) ->  | K40: =IF(AP40="","",AP40) ->  | L40: =IF(AU40="","",AU40) -> 10 | M40: =IF(AZ40="","",AZ40) ->  | N40: =IF(BE40="","",BE40) ->  | O40: =IF(BJ40="","",BJ40) ->  | Q40: =AD40+AI40+AN40+AS40+AX40+BC40+BH40 -> 31 | R40: =IF($F40>=5,IF(AB40="","",AB40),"") ->  | S40: =IF($F40>=5,IF(AG40="","",AG40),"") ->  | T40: =IF($F40>=5,IF(AL40="","",AL40),"") ->  | U40: =IF($F40>=5,IF(AQ40="","",AQ40),"") ->  | V40: =IF($F40>=5,IF(AV40="","",AV40),"") ->  | W40: =IF($F40>=5,IF(BA40="","",BA40),"") ->  | X40: =IF($F40>=5,IF(BF40="","",BF40),"") ->  | Y40: =IF($F40>=5,IF(BK40="","",BK40),"") ->  | AB40: =IF(ISNUMBER(AA40),(VLOOKUP(AA40,$BO$6:$BP$50,2)),0) -> 0 | AC40: =IF(AA40<>"",5,0) -> 0 | AD40: =AB40+AC40 -> 0 | AG40: =IF(ISNUMBER(AF40),(VLOOKUP(AF40,$BO$6:$BP$50,2)),0) -> 0 | AH40: =IF(AF40<>"",5,0) -> 0 | AI40: =AG40+AH40 -> 0 | AL40: =IF(ISNUMBER(AK40),(VLOOKUP(AK40,$BO$6:$BP$50,2)),0) -> 0 | AM40: =IF(AK40<>"",5,0) -> 0 | AN40: =AL40+AM40 -> 0 | AQ40: =IF(ISNUMBER(AP40),(VLOOKUP(AP40,$BO$6:$BP$50,2)),0) -> 0 | AR40: =IF(AP40<>"",5,0) -> 0 | AS40: =AQ40+AR40 -> 0 | AU40: 10 | AV40: =IF(ISNUMBER(AU40),(VLOOKUP(AU40,$BO$6:$BP$50,2)),0) -> 26 | AW40: =IF(AU40<>"",5,0) -> 5 | AX40: =AV40+AW40 -> 31 | BA40: =IF(ISNUMBER(AZ40),(VLOOKUP(AZ40,$BO$6:$BP$50,2)),0) -> 0 | BB40: =IF(AZ40<>"",5,0) -> 0 | BC40: =BA40+BB40 -> 0 | BF40: =IF(ISNUMBER(BE40),(VLOOKUP(BE40,$BO$6:$BP$50,2)),0) -> 0 | BG40: =IF(BE40<>"",5,0) -> 0 | BH40: =BF40+BG40 -> 0 | BK40: =IF(ISNUMBER(BJ40),(VLOOKUP(BJ40,$BO$6:$BP$50,2)),0) -> 0 | BL40: =IF(BJ40<>"",5,0) -> 0 | BM40: =BK40+BL40 -> 0 | BO40: 35 | BP40: 0 | BQ40: 0 | BR40: 0 | BS40: 0 | BT40: 1 | BU40: 0 | BV40: 0 | BW40: 0 | BX40: 0
A41: =IF(E41<E40,BO41,A40) -> 36 | B41: Øverby | C41: Erle Christine Nyborg | D41: Njård | E41: =IF(F41<=4,Q41,(Q41-SUM(SMALL(R41:Y41,{1;2;3;4})))) -> 27 | F41: =(IF(AC41=5,1,0)+IF(AH41=5,1,0)+IF(AM41=5,1,0)+IF(AR41=5,1,0)+IF(AW41=5,1,0)+IF(BB41=5,1,0)+IF(BG41=5,1,0)+IF(BL41=5,1,0)) -> 2 | H41: =IF(AA41="","",AA41) ->  | I41: =IF(AF41="","",AF41) ->  | J41: =IF(AK41="","",AK41) -> 22 | K41: =IF(AP41="","",AP41) -> 23 | L41: =IF(AU41="","",AU41) ->  | M41: =IF(AZ41="","",AZ41) ->  | N41: =IF(BE41="","",BE41) ->  | O41: =IF(BJ41="","",BJ41) ->  | Q41: =AD41+AI41+AN41+AS41+AX41+BC41+BH41 -> 27 | R41: =IF($F41>=5,IF(AB41="","",AB41),"") ->  | S41: =IF($F41>=5,IF(AG41="","",AG41),"") ->  | T41: =IF($F41>=5,IF(AL41="","",AL41),"") ->  | U41: =IF($F41>=5,IF(AQ41="","",AQ41),"") ->  | V41: =IF($F41>=5,IF(AV41="","",AV41),"") ->  | W41: =IF($F41>=5,IF(BA41="","",BA41),"") ->  | X41: =IF($F41>=5,IF(BF41="","",BF41),"") ->  | Y41: =IF($F41>=5,IF(BK41="","",BK41),"") ->  | AB41: =IF(ISNUMBER(AA41),(VLOOKUP(AA41,$BO$6:$BP$50,2)),0) -> 0 | AC41: =IF(AA41<>"",5,0) -> 0 | AD41: =AB41+AC41 -> 0 | AG41: =IF(ISNUMBER(AF41),(VLOOKUP(AF41,$BO$6:$BP$50,2)),0) -> 0 | AH41: =IF(AF41<>"",5,0) -> 0 | AI41: =AG41+AH41 -> 0 | AK41: 22 | AL41: =IF(ISNUMBER(AK41),(VLOOKUP(AK41,$BO$6:$BP$50,2)),0) -> 9 | AM41: =IF(AK41<>"",5,0) -> 5 | AN41: =AL41+AM41 -> 14 | AP41: 23 | AQ41: =IF(ISNUMBER(AP41),(VLOOKUP(AP41,$BO$6:$BP$50,2)),0) -> 8 | AR41: =IF(AP41<>"",5,0) -> 5 | AS41: =AQ41+AR41 -> 13 | AV41: =IF(ISNUMBER(AU41),(VLOOKUP(AU41,$BO$6:$BP$50,2)),0) -> 0 | AW41: =IF(AU41<>"",5,0) -> 0 | AX41: =AV41+AW41 -> 0 | BA41: =IF(ISNUMBER(AZ41),(VLOOKUP(AZ41,$BO$6:$BP$50,2)),0) -> 0 | BB41: =IF(AZ41<>"",5,0) -> 0 | BC41: =BA41+BB41 -> 0 | BF41: =IF(ISNUMBER(BE41),(VLOOKUP(BE41,$BO$6:$BP$50,2)),0) -> 0 | BG41: =IF(BE41<>"",5,0) -> 0 | BH41: =BF41+BG41 -> 0 | BK41: =IF(ISNUMBER(BJ41),(VLOOKUP(BJ41,$BO$6:$BP$50,2)),0) -> 0 | BL41: =IF(BJ41<>"",5,0) -> 0 | BM41: =BK41+BL41 -> 0 | BO41: 36 | BP41: 0 | BQ41: 0 | BR41: 0 | BS41: 0 | BT41: 0 | BU41: 1 | BV41: 0 | BW41: 0 | BX41: 0
A42: =IF(E42<E41,BO42,A41) -> 37 | B42: Håkonsen | C42: Kristina | D42: Kjelsås | E42: =IF(F42<=4,Q42,(Q42-SUM(SMALL(R42:Y42,{1;2;3;4})))) -> 23 | F42: =(IF(AC42=5,1,0)+IF(AH42=5,1,0)+IF(AM42=5,1,0)+IF(AR42=5,1,0)+IF(AW42=5,1,0)+IF(BB42=5,1,0)+IF(BG42=5,1,0)+IF(BL42=5,1,0)) -> 1 | H42: =IF(AA42="","",AA42) ->  | I42: =IF(AF42="","",AF42) ->  | J42: =IF(AK42="","",AK42) ->  | K42: =IF(AP42="","",AP42) ->  | L42: =IF(AU42="","",AU42) ->  | M42: =IF(AZ42="","",AZ42) -> 14 | N42: =IF(BE42="","",BE42) ->  | O42: =IF(BJ42="","",BJ42) ->  | Q42: =AD42+AI42+AN42+AS42+AX42+BC42+BH42 -> 23 | R42: =IF($F42>=5,IF(AB42="","",AB42),"") ->  | S42: =IF($F42>=5,IF(AG42="","",AG42),"") ->  | T42: =IF($F42>=5,IF(AL42="","",AL42),"") ->  | U42: =IF($F42>=5,IF(AQ42="","",AQ42),"") ->  | V42: =IF($F42>=5,IF(AV42="","",AV42),"") ->  | W42: =IF($F42>=5,IF(BA42="","",BA42),"") ->  | X42: =IF($F42>=5,IF(BF42="","",BF42),"") ->  | Y42: =IF($F42>=5,IF(BK42="","",BK42),"") ->  | AB42: =IF(ISNUMBER(AA42),(VLOOKUP(AA42,$BO$6:$BP$50,2)),0) -> 0 | AC42: =IF(AA42<>"",5,0) -> 0 | AD42: =AB42+AC42 -> 0 | AG42: =IF(ISNUMBER(AF42),(VLOOKUP(AF42,$BO$6:$BP$50,2)),0) -> 0 | AH42: =IF(AF42<>"",5,0) -> 0 | AI42: =AG42+AH42 -> 0 | AL42: =IF(ISNUMBER(AK42),(VLOOKUP(AK42,$BO$6:$BP$50,2)),0) -> 0 | AM42: =IF(AK42<>"",5,0) -> 0 | AN42: =AL42+AM42 -> 0 | AQ42: =IF(ISNUMBER(AP42),(VLOOKUP(AP42,$BO$6:$BP$50,2)),0) -> 0 | AR42: =IF(AP42<>"",5,0) -> 0 | AS42: =AQ42+AR42 -> 0 | AV42: =IF(ISNUMBER(AU42),(VLOOKUP(AU42,$BO$6:$BP$50,2)),0) -> 0 | AW42: =IF(AU42<>"",5,0) -> 0 | AX42: =AV42+AW42 -> 0 | AZ42: 14 | BA42: =IF(ISNUMBER(AZ42),(VLOOKUP(AZ42,$BO$6:$BP$50,2)),0) -> 18 | BB42: =IF(AZ42<>"",5,0) -> 5 | BC42: =BA42+BB42 -> 23 | BF42: =IF(ISNUMBER(BE42),(VLOOKUP(BE42,$BO$6:$BP$50,2)),0) -> 0 | BG42: =IF(BE42<>"",5,0) -> 0 | BH42: =BF42+BG42 -> 0 | BK42: =IF(ISNUMBER(BJ42),(VLOOKUP(BJ42,$BO$6:$BP$50,2)),0) -> 0 | BL42: =IF(BJ42<>"",5,0) -> 0 | BM42: =BK42+BL42 -> 0 | BO42: 37 | BP42: 0 | BQ42: 0 | BR42: 0 | BS42: 0 | BT42: 0 | BU42: 1 | BV42: 0 | BW42: 0 | BX42: 0
A43: =IF(E43<E42,BO43,A42) -> 38 | B43: Rabben | C43: Ella | D43: Ljan | E43: =IF(F43<=4,Q43,(Q43-SUM(SMALL(R43:Y43,{1;2;3;4})))) -> 21 | F43: =(IF(AC43=5,1,0)+IF(AH43=5,1,0)+IF(AM43=5,1,0)+IF(AR43=5,1,0)+IF(AW43=5,1,0)+IF(BB43=5,1,0)+IF(BG43=5,1,0)+IF(BL43=5,1,0)) -> 1 | H43: =IF(AA43="","",AA43) ->  | I43: =IF(AF43="","",AF43) -> 15 | J43: =IF(AK43="","",AK43) ->  | K43: =IF(AP43="","",AP43) ->  | L43: =IF(AU43="","",AU43) ->  | M43: =IF(AZ43="","",AZ43) ->  | N43: =IF(BE43="","",BE43) ->  | O43: =IF(BJ43="","",BJ43) ->  | Q43: =AD43+AI43+AN43+AS43+AX43+BC43+BH43 -> 21 | R43: =IF($F43>=5,IF(AB43="","",AB43),"") ->  | S43: =IF($F43>=5,IF(AG43="","",AG43),"") ->  | T43: =IF($F43>=5,IF(AL43="","",AL43),"") ->  | U43: =IF($F43>=5,IF(AQ43="","",AQ43),"") ->  | V43: =IF($F43>=5,IF(AV43="","",AV43),"") ->  | W43: =IF($F43>=5,IF(BA43="","",BA43),"") ->  | X43: =IF($F43>=5,IF(BF43="","",BF43),"") ->  | Y43: =IF($F43>=5,IF(BK43="","",BK43),"") ->  | AB43: =IF(ISNUMBER(AA43),(VLOOKUP(AA43,$BO$6:$BP$50,2)),0) -> 0 | AC43: =IF(AA43<>"",5,0) -> 0 | AD43: =AB43+AC43 -> 0 | AF43: 15 | AG43: =IF(ISNUMBER(AF43),(VLOOKUP(AF43,$BO$6:$BP$50,2)),0) -> 16 | AH43: =IF(AF43<>"",5,0) -> 5 | AI43: =AG43+AH43 -> 21 | AL43: =IF(ISNUMBER(AK43),(VLOOKUP(AK43,$BO$6:$BP$50,2)),0) -> 0 | AM43: =IF(AK43<>"",5,0) -> 0 | AN43: =AL43+AM43 -> 0 | AQ43: =IF(ISNUMBER(AP43),(VLOOKUP(AP43,$BO$6:$BP$50,2)),0) -> 0 | AR43: =IF(AP43<>"",5,0) -> 0 | AS43: =AQ43+AR43 -> 0 | AV43: =IF(ISNUMBER(AU43),(VLOOKUP(AU43,$BO$6:$BP$50,2)),0) -> 0 | AW43: =IF(AU43<>"",5,0) -> 0 | AX43: =AV43+AW43 -> 0 | BA43: =IF(ISNUMBER(AZ43),(VLOOKUP(AZ43,$BO$6:$BP$50,2)),0) -> 0 | BB43: =IF(AZ43<>"",5,0) -> 0 | BC43: =BA43+BB43 -> 0 | BF43: =IF(ISNUMBER(BE43),(VLOOKUP(BE43,$BO$6:$BP$50,2)),0) -> 0 | BG43: =IF(BE43<>"",5,0) -> 0 | BH43: =BF43+BG43 -> 0 | BK43: =IF(ISNUMBER(BJ43),(VLOOKUP(BJ43,$BO$6:$BP$50,2)),0) -> 0 | BL43: =IF(BJ43<>"",5,0) -> 0 | BM43: =BK43+BL43 -> 0 | BO43: 38 | BP43: 0 | BQ43: 0 | BR43: 0 | BS43: 0 | BT43: 0 | BU43: 0 | BV43: 1 | BW43: 0 | BX43: 0
A44: =IF(E44<E43,BO44,A43) -> 38 | B44: Mortensen | C44: Christina | D44: Lommedalen | E44: =IF(F44<=4,Q44,(Q44-SUM(SMALL(R44:Y44,{1;2;3;4})))) -> 21 | F44: =(IF(AC44=5,1,0)+IF(AH44=5,1,0)+IF(AM44=5,1,0)+IF(AR44=5,1,0)+IF(AW44=5,1,0)+IF(BB44=5,1,0)+IF(BG44=5,1,0)+IF(BL44=5,1,0)) -> 1 | H44: =IF(AA44="","",AA44) ->  | I44: =IF(AF44="","",AF44) ->  | J44: =IF(AK44="","",AK44) ->  | K44: =IF(AP44="","",AP44) ->  | L44: =IF(AU44="","",AU44) -> 15 | M44: =IF(AZ44="","",AZ44) ->  | N44: =IF(BE44="","",BE44) ->  | O44: =IF(BJ44="","",BJ44) ->  | Q44: =AD44+AI44+AN44+AS44+AX44+BC44+BH44 -> 21 | R44: =IF($F44>=5,IF(AB44="","",AB44),"") ->  | S44: =IF($F44>=5,IF(AG44="","",AG44),"") ->  | T44: =IF($F44>=5,IF(AL44="","",AL44),"") ->  | U44: =IF($F44>=5,IF(AQ44="","",AQ44),"") ->  | V44: =IF($F44>=5,IF(AV44="","",AV44),"") ->  | W44: =IF($F44>=5,IF(BA44="","",BA44),"") ->  | X44: =IF($F44>=5,IF(BF44="","",BF44),"") ->  | Y44: =IF($F44>=5,IF(BK44="","",BK44),"") ->  | AB44: =IF(ISNUMBER(AA44),(VLOOKUP(AA44,$BO$6:$BP$50,2)),0) -> 0 | AC44: =IF(AA44<>"",5,0) -> 0 | AD44: =AB44+AC44 -> 0 | AG44: =IF(ISNUMBER(AF44),(VLOOKUP(AF44,$BO$6:$BP$50,2)),0) -> 0 | AH44: =IF(AF44<>"",5,0) -> 0 | AI44: =AG44+AH44 -> 0 | AL44: =IF(ISNUMBER(AK44),(VLOOKUP(AK44,$BO$6:$BP$50,2)),0) -> 0 | AM44: =IF(AK44<>"",5,0) -> 0 | AN44: =AL44+AM44 -> 0 | AQ44: =IF(ISNUMBER(AP44),(VLOOKUP(AP44,$BO$6:$BP$50,2)),0) -> 0 | AR44: =IF(AP44<>"",5,0) -> 0 | AS44: =AQ44+AR44 -> 0 | AU44: 15 | AV44: =IF(ISNUMBER(AU44),(VLOOKUP(AU44,$BO$6:$BP$50,2)),0) -> 16 | AW44: =IF(AU44<>"",5,0) -> 5 | AX44: =AV44+AW44 -> 21 | BA44: =IF(ISNUMBER(AZ44),(VLOOKUP(AZ44,$BO$6:$BP$50,2)),0) -> 0 | BB44: =IF(AZ44<>"",5,0) -> 0 | BC44: =BA44+BB44 -> 0 | BF44: =IF(ISNUMBER(BE44),(VLOOKUP(BE44,$BO$6:$BP$50,2)),0) -> 0 | BG44: =IF(BE44<>"",5,0) -> 0 | BH44: =BF44+BG44 -> 0 | BK44: =IF(ISNUMBER(BJ44),(VLOOKUP(BJ44,$BO$6:$BP$50,2)),0) -> 0 | BL44: =IF(BJ44<>"",5,0) -> 0 | BM44: =BK44+BL44 -> 0 | BO44: 39 | BP44: 0 | BQ44: 0 | BR44: 0 | BS44: 0 | BT44: 0 | BU44: 0 | BV44: 0 | BW44: 1 | BX44: 0
A45: =IF(E45<E44,BO45,A44) -> 40 | B45: Navestad | C45: Astrid | D45: Kjelsås | E45: =IF(F45<=4,Q45,(Q45-SUM(SMALL(R45:Y45,{1;2;3;4})))) -> 18 | F45: =(IF(AC45=5,1,0)+IF(AH45=5,1,0)+IF(AM45=5,1,0)+IF(AR45=5,1,0)+IF(AW45=5,1,0)+IF(BB45=5,1,0)+IF(BG45=5,1,0)+IF(BL45=5,1,0)) -> 1 | H45: =IF(AA45="","",AA45) ->  | I45: =IF(AF45="","",AF45) ->  | J45: =IF(AK45="","",AK45) ->  | K45: =IF(AP45="","",AP45) ->  | L45: =IF(AU45="","",AU45) ->  | M45: =IF(AZ45="","",AZ45) ->  | N45: =IF(BE45="","",BE45) -> 18 | O45: =IF(BJ45="","",BJ45) ->  | Q45: =AD45+AI45+AN45+AS45+AX45+BC45+BH45 -> 18 | R45: =IF($F45>=5,IF(AB45="","",AB45),"") ->  | S45: =IF($F45>=5,IF(AG45="","",AG45),"") ->  | T45: =IF($F45>=5,IF(AL45="","",AL45),"") ->  | U45: =IF($F45>=5,IF(AQ45="","",AQ45),"") ->  | V45: =IF($F45>=5,IF(AV45="","",AV45),"") ->  | W45: =IF($F45>=5,IF(BA45="","",BA45),"") ->  | X45: =IF($F45>=5,IF(BF45="","",BF45),"") ->  | Y45: =IF($F45>=5,IF(BK45="","",BK45),"") ->  | AB45: =IF(ISNUMBER(AA45),(VLOOKUP(AA45,$BO$6:$BP$50,2)),0) -> 0 | AC45: =IF(AA45<>"",5,0) -> 0 | AD45: =AB45+AC45 -> 0 | AG45: =IF(ISNUMBER(AF45),(VLOOKUP(AF45,$BO$6:$BP$50,2)),0) -> 0 | AH45: =IF(AF45<>"",5,0) -> 0 | AI45: =AG45+AH45 -> 0 | AL45: =IF(ISNUMBER(AK45),(VLOOKUP(AK45,$BO$6:$BP$50,2)),0) -> 0 | AM45: =IF(AK45<>"",5,0) -> 0 | AN45: =AL45+AM45 -> 0 | AQ45: =IF(ISNUMBER(AP45),(VLOOKUP(AP45,$BO$6:$BP$50,2)),0) -> 0 | AR45: =IF(AP45<>"",5,0) -> 0 | AS45: =AQ45+AR45 -> 0 | AV45: =IF(ISNUMBER(AU45),(VLOOKUP(AU45,$BO$6:$BP$50,2)),0) -> 0 | AW45: =IF(AU45<>"",5,0) -> 0 | AX45: =AV45+AW45 -> 0 | BA45: =IF(ISNUMBER(AZ45),(VLOOKUP(AZ45,$BO$6:$BP$50,2)),0) -> 0 | BB45: =IF(AZ45<>"",5,0) -> 0 | BC45: =BA45+BB45 -> 0 | BE45: 18 | BF45: =IF(ISNUMBER(BE45),(VLOOKUP(BE45,$BO$6:$BP$50,2)),0) -> 13 | BG45: =IF(BE45<>"",5,0) -> 5 | BH45: =BF45+BG45 -> 18 | BK45: =IF(ISNUMBER(BJ45),(VLOOKUP(BJ45,$BO$6:$BP$50,2)),0) -> 0 | BL45: =IF(BJ45<>"",5,0) -> 0 | BM45: =BK45+BL45 -> 0 | BO45: 40 | BP45: 0 | BQ45: 0 | BR45: 0 | BS45: 0 | BT45: 0 | BU45: 1 | BV45: 0 | BW45: 0 | BX45: 0
A46: =IF(E46<E45,BO46,A45) -> 41 | B46: Oustad | C46: Mina Foronda | D46: NERO | E46: =IF(F46<=4,Q46,(Q46-SUM(SMALL(R46:Y46,{1;2;3;4})))) -> 16 | F46: =(IF(AC46=5,1,0)+IF(AH46=5,1,0)+IF(AM46=5,1,0)+IF(AR46=5,1,0)+IF(AW46=5,1,0)+IF(BB46=5,1,0)+IF(BG46=5,1,0)+IF(BL46=5,1,0)) -> 1 | H46: =IF(AA46="","",AA46) ->  | I46: =IF(AF46="","",AF46) ->  | J46: =IF(AK46="","",AK46) -> 20 | K46: =IF(AP46="","",AP46) ->  | L46: =IF(AU46="","",AU46) ->  | M46: =IF(AZ46="","",AZ46) ->  | N46: =IF(BE46="","",BE46) ->  | O46: =IF(BJ46="","",BJ46) ->  | Q46: =AD46+AI46+AN46+AS46+AX46+BC46+BH46 -> 16 | R46: =IF($F46>=5,IF(AB46="","",AB46),"") ->  | S46: =IF($F46>=5,IF(AG46="","",AG46),"") ->  | T46: =IF($F46>=5,IF(AL46="","",AL46),"") ->  | U46: =IF($F46>=5,IF(AQ46="","",AQ46),"") ->  | V46: =IF($F46>=5,IF(AV46="","",AV46),"") ->  | W46: =IF($F46>=5,IF(BA46="","",BA46),"") ->  | X46: =IF($F46>=5,IF(BF46="","",BF46),"") ->  | Y46: =IF($F46>=5,IF(BK46="","",BK46),"") ->  | AB46: =IF(ISNUMBER(AA46),(VLOOKUP(AA46,$BO$6:$BP$50,2)),0) -> 0 | AC46: =IF(AA46<>"",5,0) -> 0 | AD46: =AB46+AC46 -> 0 | AG46: =IF(ISNUMBER(AF46),(VLOOKUP(AF46,$BO$6:$BP$50,2)),0) -> 0 | AH46: =IF(AF46<>"",5,0) -> 0 | AI46: =AG46+AH46 -> 0 | AK46: 20 | AL46: =IF(ISNUMBER(AK46),(VLOOKUP(AK46,$BO$6:$BP$50,2)),0) -> 11 | AM46: =IF(AK46<>"",5,0) -> 5 | AN46: =AL46+AM46 -> 16 | AQ46: =IF(ISNUMBER(AP46),(VLOOKUP(AP46,$BO$6:$BP$50,2)),0) -> 0 | AR46: =IF(AP46<>"",5,0) -> 0 | AS46: =AQ46+AR46 -> 0 | AV46: =IF(ISNUMBER(AU46),(VLOOKUP(AU46,$BO$6:$BP$50,2)),0) -> 0 | AW46: =IF(AU46<>"",5,0) -> 0 | AX46: =AV46+AW46 -> 0 | BA46: =IF(ISNUMBER(AZ46),(VLOOKUP(AZ46,$BO$6:$BP$50,2)),0) -> 0 | BB46: =IF(AZ46<>"",5,0) -> 0 | BC46: =BA46+BB46 -> 0 | BF46: =IF(ISNUMBER(BE46),(VLOOKUP(BE46,$BO$6:$BP$50,2)),0) -> 0 | BG46: =IF(BE46<>"",5,0) -> 0 | BH46: =BF46+BG46 -> 0 | BK46: =IF(ISNUMBER(BJ46),(VLOOKUP(BJ46,$BO$6:$BP$50,2)),0) -> 0 | BL46: =IF(BJ46<>"",5,0) -> 0 | BM46: =BK46+BL46 -> 0 | BO46: 41 | BP46: 0 | BQ46: 0 | BR46: 0 | BS46: 0 | BT46: 0 | BU46: 0 | BV46: 1 | BW46: 0 | BX46: 0
A47: =IF(E47<E46,BO47,A46) -> 42 | B47: Kaas | C47: Tora Lilly | D47: Kjelsås | E47: =IF(F47<=4,Q47,(Q47-SUM(SMALL(R47:Y47,{1;2;3;4})))) -> 15 | F47: =(IF(AC47=5,1,0)+IF(AH47=5,1,0)+IF(AM47=5,1,0)+IF(AR47=5,1,0)+IF(AW47=5,1,0)+IF(BB47=5,1,0)+IF(BG47=5,1,0)+IF(BL47=5,1,0)) -> 1 | H47: =IF(AA47="","",AA47) ->  | I47: =IF(AF47="","",AF47) ->  | J47: =IF(AK47="","",AK47) ->  | K47: =IF(AP47="","",AP47) ->  | L47: =IF(AU47="","",AU47) ->  | M47: =IF(AZ47="","",AZ47) ->  | N47: =IF(BE47="","",BE47) -> 21 | O47: =IF(BJ47="","",BJ47) ->  | Q47: =AD47+AI47+AN47+AS47+AX47+BC47+BH47 -> 15 | R47: =IF($F38>=5,IF(AB47="","",AB47),"") ->  | S47: =IF($F38>=5,IF(AG47="","",AG47),"") ->  | T47: =IF($F38>=5,IF(AL47="","",AL47),"") ->  | U47: =IF($F38>=5,IF(AQ47="","",AQ47),"") ->  | V47: =IF($F38>=5,IF(AR47="","",AR47),"") ->  | W47: =IF($F38>=5,IF(AV47="","",AV47),"") ->  | X47: =IF($F38>=5,IF(BA47="","",BA47),"") ->  | Y47: =IF($F38>=5,IF(BF47="","",BF47),"") ->  | AB47: =IF(ISNUMBER(AA47),(VLOOKUP(AA47,$BO$6:$BP$50,2)),0) -> 0 | AC47: =IF(AA47<>"",5,0) -> 0 | AD47: =AB47+AC47 -> 0 | AG47: =IF(ISNUMBER(AF47),(VLOOKUP(AF47,$BO$6:$BP$50,2)),0) -> 0 | AH47: =IF(AF47<>"",5,0) -> 0 | AI47: =AG47+AH47 -> 0 | AL47: =IF(ISNUMBER(AK47),(VLOOKUP(AK47,$BO$6:$BP$50,2)),0) -> 0 | AM47: =IF(AK47<>"",5,0) -> 0 | AN47: =AL47+AM47 -> 0 | AQ47: =IF(ISNUMBER(AP47),(VLOOKUP(AP47,$BO$6:$BP$50,2)),0) -> 0 | AR47: =IF(AP47<>"",5,0) -> 0 | AS47: =AQ47+AR47 -> 0 | AV47: =IF(ISNUMBER(AU47),(VLOOKUP(AU47,$BO$6:$BP$50,2)),0) -> 0 | AW47: =IF(AU47<>"",5,0) -> 0 | AX47: =AV47+AW47 -> 0 | BA47: =IF(ISNUMBER(AZ47),(VLOOKUP(AZ47,$BO$6:$BP$50,2)),0) -> 0 | BB47: =IF(AZ47<>"",5,0) -> 0 | BC47: =BA47+BB47 -> 0 | BE47: 21 | BF47: =IF(ISNUMBER(BE47),(VLOOKUP(BE47,$BO$6:$BP$50,2)),0) -> 10 | BG47: =IF(BE47<>"",5,0) -> 5 | BH47: =BF47+BG47 -> 15 | BK47: =IF(ISNUMBER(BJ47),(VLOOKUP(BJ47,$BO$6:$BP$50,2)),0) -> 0 | BL47: =IF(BJ47<>"",5,0) -> 0 | BM47: =BK47+BL47 -> 0 | BO47: 42 | BP47: 0 | BQ47: 0 | BR47: 0 | BS47: 0 | BT47: 0 | BU47: 0 | BV47: 0 | BW47: 1 | BX47: 0
A48: =IF(E48<E47,BO48,A47) -> 43 | B48: Krogsethagen | C48: Sara | D48: Kjelsås | E48: =IF(F48<=4,Q48,(Q48-SUM(SMALL(R48:Y48,{1;2;3;4})))) -> 14 | F48: =(IF(AC48=5,1,0)+IF(AH48=5,1,0)+IF(AM48=5,1,0)+IF(AR48=5,1,0)+IF(AW48=5,1,0)+IF(BB48=5,1,0)+IF(BG48=5,1,0)+IF(BL48=5,1,0)) -> 1 | H48: =IF(AA48="","",AA48) ->  | I48: =IF(AF48="","",AF48) ->  | J48: =IF(AK48="","",AK48) ->  | K48: =IF(AP48="","",AP48) ->  | L48: =IF(AU48="","",AU48) ->  | M48: =IF(AZ48="","",AZ48) ->  | N48: =IF(BE48="","",BE48) -> 22 | O48: =IF(BJ48="","",BJ48) ->  | Q48: =AD48+AI48+AN48+AS48+AX48+BC48+BH48 -> 14 | R48: =IF($F39>=5,IF(AB48="","",AB48),"") ->  | S48: =IF($F39>=5,IF(AG48="","",AG48),"") ->  | T48: =IF($F39>=5,IF(AL48="","",AL48),"") ->  | U48: =IF($F39>=5,IF(AQ48="","",AQ48),"") ->  | V48: =IF($F39>=5,IF(AR48="","",AR48),"") ->  | W48: =IF($F39>=5,IF(AV48="","",AV48),"") ->  | X48: =IF($F39>=5,IF(BA48="","",BA48),"") ->  | Y48: =IF($F39>=5,IF(BF48="","",BF48),"") ->  | AB48: =IF(ISNUMBER(AA48),(VLOOKUP(AA48,$BO$6:$BP$50,2)),0) -> 0 | AC48: =IF(AA48<>"",5,0) -> 0 | AD48: =AB48+AC48 -> 0 | AG48: =IF(ISNUMBER(AF48),(VLOOKUP(AF48,$BO$6:$BP$50,2)),0) -> 0 | AH48: =IF(AF48<>"",5,0) -> 0 | AI48: =AG48+AH48 -> 0 | AL48: =IF(ISNUMBER(AK48),(VLOOKUP(AK48,$BO$6:$BP$50,2)),0) -> 0 | AM48: =IF(AK48<>"",5,0) -> 0 | AN48: =AL48+AM48 -> 0 | AQ48: =IF(ISNUMBER(AP48),(VLOOKUP(AP48,$BO$6:$BP$50,2)),0) -> 0 | AR48: =IF(AP48<>"",5,0) -> 0 | AS48: =AQ48+AR48 -> 0 | AV48: =IF(ISNUMBER(AU48),(VLOOKUP(AU48,$BO$6:$BP$50,2)),0) -> 0 | AW48: =IF(AU48<>"",5,0) -> 0 | AX48: =AV48+AW48 -> 0 | BA48: =IF(ISNUMBER(AZ48),(VLOOKUP(AZ48,$BO$6:$BP$50,2)),0) -> 0 | BB48: =IF(AZ48<>"",5,0) -> 0 | BC48: =BA48+BB48 -> 0 | BE48: 22 | BF48: =IF(ISNUMBER(BE48),(VLOOKUP(BE48,$BO$6:$BP$50,2)),0) -> 9 | BG48: =IF(BE48<>"",5,0) -> 5 | BH48: =BF48+BG48 -> 14 | BK48: =IF(ISNUMBER(BJ48),(VLOOKUP(BJ48,$BO$6:$BP$50,2)),0) -> 0 | BL48: =IF(BJ48<>"",5,0) -> 0 | BM48: =BK48+BL48 -> 0 | BO48: 43 | BP48: 0 | BQ48: 0 | BR48: 0 | BS48: 0 | BT48: 0 | BU48: 0 | BV48: 0 | BW48: 0 | BX48: 1
A49: =IF(E49<E48,BO49,A48) -> 44 | B49: Løe | C49: Marie Furuseth | D49: Ullensaker | E49: =IF(F49<=4,Q49,(Q49-SUM(SMALL(R49:Y49,{1;2;3;4})))) -> 13 | F49: =(IF(AC49=5,1,0)+IF(AH49=5,1,0)+IF(AM49=5,1,0)+IF(AR49=5,1,0)+IF(AW49=5,1,0)+IF(BB49=5,1,0)+IF(BG49=5,1,0)+IF(BL49=5,1,0)) -> 1 | H49: =IF(AA49="","",AA49) ->  | I49: =IF(AF49="","",AF49) ->  | J49: =IF(AK49="","",AK49) ->  | K49: =IF(AP49="","",AP49) ->  | L49: =IF(AU49="","",AU49) ->  | M49: =IF(AZ49="","",AZ49) ->  | N49: =IF(BE49="","",BE49) -> 23 | O49: =IF(BJ49="","",BJ49) ->  | Q49: =AD49+AI49+AN49+AS49+AX49+BC49+BH49 -> 13 | AB49: =IF(ISNUMBER(AA49),(VLOOKUP(AA49,$BO$6:$BP$50,2)),0) -> 0 | AC49: =IF(AA49<>"",5,0) -> 0 | AD49: =AB49+AC49 -> 0 | AG49: =IF(ISNUMBER(AF49),(VLOOKUP(AF49,$BO$6:$BP$50,2)),0) -> 0 | AH49: =IF(AF49<>"",5,0) -> 0 | AI49: =AG49+AH49 -> 0 | AL49: =IF(ISNUMBER(AK49),(VLOOKUP(AK49,$BO$6:$BP$50,2)),0) -> 0 | AM49: =IF(AK49<>"",5,0) -> 0 | AN49: =AL49+AM49 -> 0 | AQ49: =IF(ISNUMBER(AP49),(VLOOKUP(AP49,$BO$6:$BP$50,2)),0) -> 0 | AR49: =IF(AP49<>"",5,0) -> 0 | AS49: =AQ49+AR49 -> 0 | AV49: =IF(ISNUMBER(AU49),(VLOOKUP(AU49,$BO$6:$BP$50,2)),0) -> 0 | AW49: =IF(AU49<>"",5,0) -> 0 | AX49: =AV49+AW49 -> 0 | BA49: =IF(ISNUMBER(AZ49),(VLOOKUP(AZ49,$BO$6:$BP$50,2)),0) -> 0 | BB49: =IF(AZ49<>"",5,0) -> 0 | BC49: =BA49+BB49 -> 0 | BE49: 23 | BF49: =IF(ISNUMBER(BE49),(VLOOKUP(BE49,$BO$6:$BP$50,2)),0) -> 8 | BG49: =IF(BE49<>"",5,0) -> 5 | BH49: =BF49+BG49 -> 13 | BK49: =IF(ISNUMBER(BJ49),(VLOOKUP(BJ49,$BO$6:$BP$50,2)),0) -> 0 | BL49: =IF(BJ49<>"",5,0) -> 0 | BM49: =BK49+BL49 -> 0 | BO49: 44 | BP49: 0 | BQ49: 0 | BR49: 0 | BS49: 0 | BT49: 0 | BU49: 0 | BV49: 0 | BW49: 0 | BX49: 1
A50: =IF(E50<E49,BO50,A49) -> 45 | B50: Rastad | C50: Julie Christine Høisæter | D50: Njård | E50: =IF(F50<=4,Q50,(Q50-SUM(SMALL(R50:Y50,{1;2;3;4})))) -> 11 | F50: =(IF(AC50=5,1,0)+IF(AH50=5,1,0)+IF(AM50=5,1,0)+IF(AR50=5,1,0)+IF(AW50=5,1,0)+IF(BB50=5,1,0)+IF(BG50=5,1,0)+IF(BL50=5,1,0)) -> 1 | H50: =IF(AA50="","",AA50) ->  | I50: =IF(AF50="","",AF50) ->  | J50: =IF(AK50="","",AK50) -> 25 | K50: =IF(AP50="","",AP50) ->  | L50: =IF(AU50="","",AU50) ->  | M50: =IF(AZ50="","",AZ50) ->  | N50: =IF(BE50="","",BE50) ->  | O50: =IF(BJ50="","",BJ50) ->  | Q50: =AD50+AI50+AN50+AS50+AX50+BC50+BH50 -> 11 | R50: =IF($F50>=5,IF(AB50="","",AB50),"") ->  | S50: =IF($F50>=5,IF(AG50="","",AG50),"") ->  | T50: =IF($F50>=5,IF(AL50="","",AL50),"") ->  | U50: =IF($F50>=5,IF(AQ50="","",AQ50),"") ->  | V50: =IF($F50>=5,IF(AV50="","",AV50),"") ->  | W50: =IF($F50>=5,IF(BA50="","",BA50),"") ->  | X50: =IF($F50>=5,IF(BF50="","",BF50),"") ->  | Y50: =IF($F50>=5,IF(BK50="","",BK50),"") ->  | AB50: =IF(ISNUMBER(AA50),(VLOOKUP(AA50,$BO$6:$BP$50,2)),0) -> 0 | AC50: =IF(AA50<>"",5,0) -> 0 | AD50: =AB50+AC50 -> 0 | AG50: =IF(ISNUMBER(AF50),(VLOOKUP(AF50,$BO$6:$BP$50,2)),0) -> 0 | AH50: =IF(AF50<>"",5,0) -> 0 | AI50: =AG50+AH50 -> 0 | AK50: 25 | AL50: =IF(ISNUMBER(AK50),(VLOOKUP(AK50,$BO$6:$BP$50,2)),0) -> 6 | AM50: =IF(AK50<>"",5,0) -> 5 | AN50: =AL50+AM50 -> 11 | AQ50: =IF(ISNUMBER(AP50),(VLOOKUP(AP50,$BO$6:$BP$50,2)),0) -> 0 | AR50: =IF(AP50<>"",5,0) -> 0 | AS50: =AQ50+AR50 -> 0 | AV50: =IF(ISNUMBER(AU50),(VLOOKUP(AU50,$BO$6:$BP$50,2)),0) -> 0 | AW50: =IF(AU50<>"",5,0) -> 0 | AX50: =AV50+AW50 -> 0 | BA50: =IF(ISNUMBER(AZ50),(VLOOKUP(AZ50,$BO$6:$BP$50,2)),0) -> 0 | BB50: =IF(AZ50<>"",5,0) -> 0 | BC50: =BA50+BB50 -> 0 | BF50: =IF(ISNUMBER(BE50),(VLOOKUP(BE50,$BO$6:$BP$50,2)),0) -> 0 | BG50: =IF(BE50<>"",5,0) -> 0 | BH50: =BF50+BG50 -> 0 | BK50: =IF(ISNUMBER(BJ50),(VLOOKUP(BJ50,$BO$6:$BP$50,2)),0) -> 0 | BL50: =IF(BJ50<>"",5,0) -> 0 | BM50: =BK50+BL50 -> 0 | BO50: 45 | BP50: 0 | BQ50: 0 | BR50: 0 | BS50: 0 | BT50: 0 | BU50: 0 | BV50: 0 | BW50: 1 | BX50: 0
A51: =IF(E51<E50,BO51,A50) -> 46 | B51: Brodtkorp | C51: Ulla Amalie | D51: Heming | E51: =IF(F51<=4,Q51,(Q51-SUM(SMALL(R51:Y51,{1;2;3;4})))) -> 9 | F51: =(IF(AC51=5,1,0)+IF(AH51=5,1,0)+IF(AM51=5,1,0)+IF(AR51=5,1,0)+IF(AW51=5,1,0)+IF(BB51=5,1,0)+IF(BG51=5,1,0)+IF(BL51=5,1,0)) -> 1 | H51: =IF(AA51="","",AA51) ->  | I51: =IF(AF51="","",AF51) ->  | J51: =IF(AK51="","",AK51) ->  | K51: =IF(AP51="","",AP51) ->  | L51: =IF(AU51="","",AU51) -> 27 | M51: =IF(AZ51="","",AZ51) ->  | N51: =IF(BE51="","",BE51) ->  | O51: =IF(BJ51="","",BJ51) ->  | Q51: =AD51+AI51+AN51+AS51+AX51+BC51+BH51 -> 9 | R51: =IF($F51>=5,IF(AB51="","",AB51),"") ->  | S51: =IF($F51>=5,IF(AG51="","",AG51),"") ->  | T51: =IF($F51>=5,IF(AL51="","",AL51),"") ->  | U51: =IF($F51>=5,IF(AQ51="","",AQ51),"") ->  | V51: =IF($F51>=5,IF(AV51="","",AV51),"") ->  | W51: =IF($F51>=5,IF(BA51="","",BA51),"") ->  | X51: =IF($F51>=5,IF(BF51="","",BF51),"") ->  | Y51: =IF($F51>=5,IF(BK51="","",BK51),"") ->  | AB51: =IF(ISNUMBER(AA51),(VLOOKUP(AA51,$BO$6:$BP$50,2)),0) -> 0 | AC51: =IF(AA51<>"",5,0) -> 0 | AD51: =AB51+AC51 -> 0 | AG51: =IF(ISNUMBER(AF51),(VLOOKUP(AF51,$BO$6:$BP$50,2)),0) -> 0 | AH51: =IF(AF51<>"",5,0) -> 0 | AI51: =AG51+AH51 -> 0 | AL51: =IF(ISNUMBER(AK51),(VLOOKUP(AK51,$BO$6:$BP$50,2)),0) -> 0 | AM51: =IF(AK51<>"",5,0) -> 0 | AN51: =AL51+AM51 -> 0 | AQ51: =IF(ISNUMBER(AP51),(VLOOKUP(AP51,$BO$6:$BP$50,2)),0) -> 0 | AR51: =IF(AP51<>"",5,0) -> 0 | AS51: =AQ51+AR51 -> 0 | AU51: 27 | AV51: =IF(ISNUMBER(AU51),(VLOOKUP(AU51,$BO$6:$BP$50,2)),0) -> 4 | AW51: =IF(AU51<>"",5,0) -> 5 | AX51: =AV51+AW51 -> 9 | BA51: =IF(ISNUMBER(AZ51),(VLOOKUP(AZ51,$BO$6:$BP$50,2)),0) -> 0 | BB51: =IF(AZ51<>"",5,0) -> 0 | BC51: =BA51+BB51 -> 0 | BF51: =IF(ISNUMBER(BE51),(VLOOKUP(BE51,$BO$6:$BP$50,2)),0) -> 0 | BG51: =IF(BE51<>"",5,0) -> 0 | BH51: =BF51+BG51 -> 0 | BK51: =IF(ISNUMBER(BJ51),(VLOOKUP(BJ51,$BO$6:$BP$50,2)),0) -> 0 | BL51: =IF(BJ51<>"",5,0) -> 0 | BM51: =BK51+BL51 -> 0 | BO51: 46 | BP51: 0 | BQ51: 0 | BR51: =IF($F42=7,1,0) -> 0 | BS51: 0 | BT51: 0 | BU51: 0 | BV51: 0 | BW51: 0 | BX51: 1
A52: =IF(E52<E51,BO52,A51) -> 47 | B52: Beck | C52: Mari | D52: Ullensaker | E52: =IF(F52<=4,Q52,(Q52-SUM(SMALL(R52:Y52,{1;2;3;4})))) -> 5 | F52: =(IF(AC52=5,1,0)+IF(AH52=5,1,0)+IF(AM52=5,1,0)+IF(AR52=5,1,0)+IF(AW52=5,1,0)+IF(BB52=5,1,0)+IF(BG52=5,1,0)+IF(BL52=5,1,0)) -> 1 | H52: =IF(AA52="","",AA52) -> dnf | I52: =IF(AF52="","",AF52) ->  | J52: =IF(AK52="","",AK52) ->  | K52: =IF(AP52="","",AP52) ->  | L52: =IF(AU52="","",AU52) ->  | M52: =IF(AZ52="","",AZ52) ->  | N52: =IF(BE52="","",BE52) ->  | O52: =IF(BJ52="","",BJ52) ->  | Q52: =AD52+AI52+AN52+AS52+AX52+BC52+BH52 -> 5 | R52: =IF($F52>=5,IF(AB52="","",AB52),"") ->  | S52: =IF($F52>=5,IF(AG52="","",AG52),"") ->  | T52: =IF($F52>=5,IF(AL52="","",AL52),"") ->  | U52: =IF($F52>=5,IF(AQ52="","",AQ52),"") ->  | V52: =IF($F52>=5,IF(AV52="","",AV52),"") ->  | W52: =IF($F52>=5,IF(BA52="","",BA52),"") ->  | X52: =IF($F52>=5,IF(BF52="","",BF52),"") ->  | Y52: =IF($F52>=5,IF(BK52="","",BK52),"") ->  | AA52: dnf | AB52: =IF(ISNUMBER(AA52),(VLOOKUP(AA52,$BO$6:$BP$50,2)),0) -> 0 | AC52: =IF(AA52<>"",5,0) -> 5 | AD52: =AB52+AC52 -> 5 | AG52: =IF(ISNUMBER(AF52),(VLOOKUP(AF52,$BO$6:$BP$50,2)),0) -> 0 | AH52: =IF(AF52<>"",5,0) -> 0 | AI52: =AG52+AH52 -> 0 | AL52: =IF(ISNUMBER(AK52),(VLOOKUP(AK52,$BO$6:$BP$50,2)),0) -> 0 | AM52: =IF(AK52<>"",5,0) -> 0 | AN52: =AL52+AM52 -> 0 | AQ52: =IF(ISNUMBER(AP52),(VLOOKUP(AP52,$BO$6:$BP$50,2)),0) -> 0 | AR52: =IF(AP52<>"",5,0) -> 0 | AS52: =AQ52+AR52 -> 0 | AV52: =IF(ISNUMBER(AU52),(VLOOKUP(AU52,$BO$6:$BP$50,2)),0) -> 0 | AW52: =IF(AU52<>"",5,0) -> 0 | AX52: =AV52+AW52 -> 0 | BA52: =IF(ISNUMBER(AZ52),(VLOOKUP(AZ52,$BO$6:$BP$50,2)),0) -> 0 | BB52: =IF(AZ52<>"",5,0) -> 0 | BC52: =BA52+BB52 -> 0 | BF52: =IF(ISNUMBER(BE52),(VLOOKUP(BE52,$BO$6:$BP$50,2)),0) -> 0 | BG52: =IF(BE52<>"",5,0) -> 0 | BH52: =BF52+BG52 -> 0 | BK52: =IF(ISNUMBER(BJ52),(VLOOKUP(BJ52,$BO$6:$BP$50,2)),0) -> 0 | BL52: =IF(BJ52<>"",5,0) -> 0 | BM52: =BK52+BL52 -> 0 | BO52: 47 | BP52: 0 | BQ52: 0 | BR52: 0 | BS52: 0 | BT52: 0 | BU52: 0 | BV52: 0 | BW52: 0 | BX52: 1
A53: =IF(E53<E52,BO53,A52) -> 47 | B53: Roos | C53: Elisabeth | D53: Try | E53: =IF(F53<=4,Q53,(Q53-SUM(SMALL(R53:Y53,{1;2;3;4})))) -> 5 | F53: =(IF(AC53=5,1,0)+IF(AH53=5,1,0)+IF(AM53=5,1,0)+IF(AR53=5,1,0)+IF(AW53=5,1,0)+IF(BB53=5,1,0)+IF(BG53=5,1,0)+IF(BL53=5,1,0)) -> 1 | H53: =IF(AA53="","",AA53) ->  | I53: =IF(AF53="","",AF53) ->  | J53: =IF(AK53="","",AK53) ->  | K53: =IF(AP53="","",AP53) ->  | L53: =IF(AU53="","",AU53) -> 31 | M53: =IF(AZ53="","",AZ53) ->  | N53: =IF(BE53="","",BE53) ->  | O53: =IF(BJ53="","",BJ53) ->  | Q53: =AD53+AI53+AN53+AS53+AX53+BC53+BH53 -> 5 | R53: =IF($F44>=5,IF(AB53="","",AB53),"") ->  | S53: =IF($F44>=5,IF(AG53="","",AG53),"") ->  | T53: =IF($F44>=5,IF(AL53="","",AL53),"") ->  | U53: =IF($F44>=5,IF(AQ53="","",AQ53),"") ->  | V53: =IF($F44>=5,IF(AR53="","",AR53),"") ->  | W53: =IF($F44>=5,IF(AV53="","",AV53),"") ->  | X53: =IF($F44>=5,IF(BA53="","",BA53),"") ->  | Y53: =IF($F44>=5,IF(BF53="","",BF53),"") ->  | AB53: =IF(ISNUMBER(AA53),(VLOOKUP(AA53,$BO$6:$BP$50,2)),0) -> 0 | AC53: =IF(AA53<>"",5,0) -> 0 | AD53: =AB53+AC53 -> 0 | AG53: =IF(ISNUMBER(AF53),(VLOOKUP(AF53,$BO$6:$BP$50,2)),0) -> 0 | AH53: =IF(AF53<>"",5,0) -> 0 | AI53: =AG53+AH53 -> 0 | AL53: =IF(ISNUMBER(AK53),(VLOOKUP(AK53,$BO$6:$BP$50,2)),0) -> 0 | AM53: =IF(AK53<>"",5,0) -> 0 | AN53: =AL53+AM53 -> 0 | AQ53: =IF(ISNUMBER(AP53),(VLOOKUP(AP53,$BO$6:$BP$50,2)),0) -> 0 | AR53: =IF(AP53<>"",5,0) -> 0 | AS53: =AQ53+AR53 -> 0 | AU53: 31 | AV53: =IF(ISNUMBER(AU53),(VLOOKUP(AU53,$BO$6:$BP$50,2)),0) -> 0 | AW53: =IF(AU53<>"",5,0) -> 5 | AX53: =AV53+AW53 -> 5 | BA53: =IF(ISNUMBER(AZ53),(VLOOKUP(AZ53,$BO$6:$BP$50,2)),0) -> 0 | BB53: =IF(AZ53<>"",5,0) -> 0 | BC53: =BA53+BB53 -> 0 | BF53: =IF(ISNUMBER(BE53),(VLOOKUP(BE53,$BO$6:$BP$50,2)),0) -> 0 | BG53: =IF(BE53<>"",5,0) -> 0 | BH53: =BF53+BG53 -> 0 | BK53: =IF(ISNUMBER(BJ53),(VLOOKUP(BJ53,$BO$6:$BP$50,2)),0) -> 0 | BL53: =IF(BJ53<>"",5,0) -> 0 | BM53: =BK53+BL53 -> 0 | BO53: 48 | BP53: 0 | BQ53: 0 | BR53: 0 | BS53: 0 | BT53: 0 | BU53: 0 | BV53: 0 | BW53: 0 | BX53: 1
A54: =IF(E54<E53,BO54,A53) -> 47 | B54: Kjønigsen | C54: Elvira | D54: Kjelsås | E54: =IF(F54<=4,Q54,(Q54-SUM(SMALL(R54:Y54,{1;2;3;4})))) -> 5 | F54: =(IF(AC54=5,1,0)+IF(AH54=5,1,0)+IF(AM54=5,1,0)+IF(AR54=5,1,0)+IF(AW54=5,1,0)+IF(BB54=5,1,0)+IF(BG54=5,1,0)+IF(BL54=5,1,0)) -> 1 | H54: =IF(AA54="","",AA54) ->  | I54: =IF(AF54="","",AF54) ->  | J54: =IF(AK54="","",AK54) ->  | K54: =IF(AP54="","",AP54) ->  | L54: =IF(AU54="","",AU54) ->  | M54: =IF(AZ54="","",AZ54) ->  | N54: =IF(BE54="","",BE54) -> dsq | O54: =IF(BJ54="","",BJ54) ->  | Q54: =AD54+AI54+AN54+AS54+AX54+BC54+BH54 -> 5 | AB54: =IF(ISNUMBER(AA54),(VLOOKUP(AA54,$BO$6:$BP$50,2)),0) -> 0 | AC54: =IF(AA54<>"",5,0) -> 0 | AD54: =AB54+AC54 -> 0 | AG54: =IF(ISNUMBER(AF54),(VLOOKUP(AF54,$BO$6:$BP$50,2)),0) -> 0 | AH54: =IF(AF54<>"",5,0) -> 0 | AI54: =AG54+AH54 -> 0 | AL54: =IF(ISNUMBER(AK54),(VLOOKUP(AK54,$BO$6:$BP$50,2)),0) -> 0 | AM54: =IF(AK54<>"",5,0) -> 0 | AN54: =AL54+AM54 -> 0 | AQ54: =IF(ISNUMBER(AP54),(VLOOKUP(AP54,$BO$6:$BP$50,2)),0) -> 0 | AR54: =IF(AP54<>"",5,0) -> 0 | AS54: =AQ54+AR54 -> 0 | AV54: =IF(ISNUMBER(AU54),(VLOOKUP(AU54,$BO$6:$BP$50,2)),0) -> 0 | AW54: =IF(AU54<>"",5,0) -> 0 | AX54: =AV54+AW54 -> 0 | BA54: =IF(ISNUMBER(AZ54),(VLOOKUP(AZ54,$BO$6:$BP$50,2)),0) -> 0 | BB54: =IF(AZ54<>"",5,0) -> 0 | BC54: =BA54+BB54 -> 0 | BE54: dsq | BF54: =IF(ISNUMBER(BE54),(VLOOKUP(BE54,$BO$6:$BP$50,2)),0) -> 0 | BG54: =IF(BE54<>"",5,0) -> 5 | BH54: =BF54+BG54 -> 5 | BK54: =IF(ISNUMBER(BJ54),(VLOOKUP(BJ54,$BO$6:$BP$50,2)),0) -> 0 | BL54: =IF(BJ54<>"",5,0) -> 0 | BM54: =BK54+BL54 -> 0 | BO54: 48 | BP54: 0 | BQ54: 0 | BR54: 0 | BS54: 0 | BT54: 0 | BU54: 0 | BV54: 0 | BW54: 0 | BX54: 1
H55: =IF(AA55="","",AA55) ->  | I55: =IF(AF55="","",AF55) ->  | J55: =IF(AK55="","",AK55) ->  | K55: =IF(AP55="","",AP55) ->  | L55: =IF(AU55="","",AU55) ->  | M55: =IF(AZ55="","",AZ55) ->  | N55: =IF(BE55="","",BE55) ->  | O55: =IF(BJ55="","",BJ55) -> 

Sheet G12 2018
A1: Resultatliste Oslo Cup 2018 - Gutter 12 år
A2: ='Forside 2018'!A2 -> Etter 7 av 8 renn
H3: IRS Rennet | I3: Ljan Rennet | J3: Njård Rennet | K3: Ready Rennet | L3: Telenor Arena Cup | M3: Euro-tecfarten | N3: Oslo Alpinfestival SL | O3: Oslo Alpinfestival SSL | R3: IRS Rennet | S3: Ljan Rennet | T3: Njård Rennet | U3: Ready Rennet | V3: Telenor Arena Cup | W3: Euro-tecfarten | X3: Oslo Alpinfestival SL | Y3: Oslo Alpinfestival SSL | AA3: --------IRS Rennet---------- | AF3: ----------Ljan Rennet--------- | AK3: --------Njård Rennet---------- | AP3: --------Ready Rennet--------- | AU3: -----Telenor Arena Cup---- | AZ3: ------Euro-tecfarten-------- | BE3: ---Oslo Alpinfestival SL--- | BJ3: ---Oslo Alpinfestival SSL---
F4: Antall | H4: 2018-02-03 | I4: 2018-02-04 | J4: 2018-02-10 | K4: 2018-02-11 | L4: 2018-02-14 | M4: 2018-02-28 | N4: 2018-03-03 | O4: 2018-03-04 | Q4: Poeng | R4: 2018-02-03 | S4: 2018-02-04 | T4: 2018-02-10 | U4: 2018-02-11 | V4: 2018-02-14 | W4: 2018-02-28 | X4: 2018-03-03 | Y4: 2018-03-04 | AB4: --------Poeng-------- | AG4: --------Poeng-------- | AL4: -------Poeng--------- | AQ4: -------Poeng--------- | AV4: -------Poeng--------- | BA4: -------Poeng--------- | BF4: -------Poeng--------- | BK4: -------Poeng--------- | BQ4: Løpere med | BR4: Løpere med | BS4: Løpere med | BT4: Løpere med | BU4: Løpere med | BV4: Løpere med | BW4: Løpere med | BX4: Løpere med
